Workbook

Sheet トップ
B1: 平成27年名古屋市産業連関表における地域間表分析ツール（統合大分類版）
B2: トップページ
B6: ●この分析ツールについて
C7: この分析ツールは、産業連関表を使った経済波及効果の分析が行えるよう、平成27年名古屋市産業連関表を用いて作成
C8: しました。新規需要が発生した場合に、各地域・各産業にどの程度の経済効果を及ぼすかを分析することができます。分
C9: 析メニューからページを移動してください。また、分析ツールでは３種類の分析メニューを用意しましたので、目的に合
C10: わせてご活用ください。
C11: 経済波及効果の分析には様々な前提条件があり、計算に用いるデータによって結果が変わってきます。分析を行う際に
C12: 必ず「利用の手引き」をご確認ください。計算方法やその他ご不明な点は総務局企画部統計課解析活用係までお問合せく
C13: ださい。
B15: ●分析メニューの解説
C17: 需要増加分析
E20: ■ | F20: 消費、投資等の需要の増加が経済にどれだけの影響を与えるかということを測定することができます。需要が
F21: 発生した地域（市内、県内市外、県外）別に波及効果をみることができます。
E22: ■ | F22: この分析ツールは、通常の産業連関表による波及効果分析を行うことができます。地域内の需要増加額がわか
F23: る場合にご活用ください。
C26: イベント・観光分析
E29: ■ | F29: 市内で行われたイベントや観光で訪れた観光客が、市内で飲食・宿泊したり、お土産を購入したりするなどの
F30: 消費が経済にどれだけの影響を与えるかということを測定することができます。また、イベントの開催にかか
F31: った費用（建物の建設、会場の設営、その他準備にかかった経費等）による影響も測定することができます。
E32: ■ | F32: 名古屋市を訪れた観光客数からその波及効果を測定できるため、観光客の実際の消費額がわからない場合には
F33: この分析ツールをご活用ください。
C36: 設備投資分析
E39: ■ | F39: 市内の事業所が行った設備投資が経済にどれだけの影響を与えるかということを測定することができます。
E40: ■ | F40: 通常、産業連関表による経済波及効果分析では、どのような設備投資が行われたかというデータが必要となり
F41: ますが、この分析ツールでは事業所の設備投資総額からその波及効果を測定できるため、設備投資額の中身が
F42: わからない場合にご活用ください。
E43: ■ | F43: なお、この分析ツールでは、設備投資による生産効率の向上などは考慮されませんのでご注意ください。
C46: パラメータの設定
E49: ■ | F49: 以下の分析パラメータについて選択することができます。空欄の場合は、ディフォルト値(太字表示期間)が選ば
F50: れます。2020年以降の値は、新型コロナウィルス感染症の影響を受け、2019年以前と傾向が異なる可能性があ
F51: ります。
E52: ■ | F52: 消費転換率 ( 1: 2017-2019年平均、2: 2018-2020年平均、3: 2019-2021年平均、4: 2020-2022年平均 )
G53: ⇒ | H53: =【非表示】各種データ!AM4 -> 2017-2019年平均
F54: 消費転換率は、消費の２次波及効果の計算で用います。消費転換率は「家計調査」（総務省）の総世帯のうち勤
F55: 労者世帯の「勤め先収入」に対する「消費支出」の比率の上記３か年の平均値として算出しています。
F56: 名古屋市は「名古屋市」、県内市外は「東海」、県外は「全国」の数値を用いています。
E58: ■ | F58: 就業者の居住地割合 ( 1: 2010年値、2: 2015年値 )
G59: ⇒ | H59: =【非表示】各種データ!X12 -> 2015年値
F60: 就業者の居住地割合は、求めた雇用者所得誘発額が就業地ベースであるので、これを居住地ベースの所得に変換
F61: する時に用います。就業者の居住地比率は「国勢調査」（総務省）の居住地別就業者割合を用います。
E63: ■ | F63: 市税率 ( 1: 2016-2018年平均、2: 2017-2019年平均、3: 2018-2020年平均 )
G64: ⇒ | H64: =【非表示】各種データ!AE26 -> 2017-2019年平均
F65: 市税率は、名古屋市の市税収入についての効果の算出で用います。名古屋市決算資料から直接税は税目別に個人
F66: ・法人に分割し、「令和2年度名古屋の市民経済計算」を用いて、個人税は「雇用者報酬」に対する比率、法人
F67: 税は「営業余剰・混合所得」に対する比率、間接税（たばこ税）は家計最終消費支出に対する比率を算出し、こ
F68: れを上記３か年平均値として計算しています。その比率を名古屋市の雇用者所得誘発額（居住者ベース）、営業
F69: 余剰誘発額、家計消費増加額に乗じ、合算して税収効果としています。
E71: ■ | F71: 【イベント・観光分析】国内旅行消費単価
F72: ( 1: 2018-2019年平均、2: 2019-2020年平均、3: 2020-2021年平均、4: 2021-2022年平均 )
G73: ⇒ | H73: =【非表示】平均!L3 -> 2018-2019年平均
F74: 国内旅行消費単価は、国内の旅行消費額を求めるとき、旅行消費単価が入力されない場合のディフォルト値とし
F75: て利用します。旅行消費単価は、「旅行・観光消費動向調査」（観光庁）から上記２か年の平均値として算出し
F76: ています。旅行消費額は、旅行消費単価に旅行消費者数と拍数を乗じて算出します。
E78: ■ | F78: 【イベント・観光分析】訪日外国人旅行消費単価
F79: ( 1: 2018-2019年平均、2: 2022年値 )
G80: ⇒ | H80: =【非表示】平均!F48 -> 2018-2019年平均
F81: 訪日外国人旅行消費単価は、訪日外国人の旅行消費額を求めるとき、旅行消費単価が入力されない場合の
F82: ディフォルト値として利用します。海外からの旅行者の消費単価は、「訪日外国人消費動向調査」（観光庁）か
F83: ら上記２か年の平均として算出します。旅行消費額は、旅行消費単価に旅行消費者数と拍数を乗じて算出します。
F84: (新型コロナウィルス感染症のため、2020年、2021年の調査内容が大幅に変更されました。)

Sheet 産業連関表
B1: =トップ!B1 -> 平成27年名古屋市産業連関表における地域間表分析ツール（統合大分類版）
B2: 全国3地域間産業連関表（38部門表）
B5: （単位：百万円）
F6: 中間需要 | DQ6: 最終需要
F7: 名古屋市 | AR7: 県内市外 | CD7: 県外 | DQ7: 名古屋市 | DX7: 県内市外 | EE7: 県外
F8: 1 | G8: 2 | H8: 3 | I8: 4 | J8: 5 | K8: 6 | L8: 7 | M8: 8 | N8: 9 | O8: 10 | P8: 11 | Q8: 12 | R8: 13 | S8: 14 | T8: 15 | U8: 16 | V8: 17 | W8: 18 | X8: 19 | Y8: 20 | Z8: 21 | AA8: 22 | AB8: 23 | AC8: 24 | AD8: 25 | AE8: 26 | AF8: 27 | AG8: 28 | AH8: 29 | AI8: 30 | AJ8: 31 | AK8: 32 | AL8: 33 | AM8: 34 | AN8: 35 | AO8: 36 | AP8: 37 | AQ8: 38 | AR8: 1 | AS8: 2 | AT8: 3 | AU8: 4 | AV8: 5 | AW8: 6 | AX8: 7 | AY8: 8 | AZ8: 9 | BA8: 10 | BB8: 11 | BC8: 12 | BD8: 13 | BE8: 14 | BF8: 15 | BG8: 16 | BH8: 17 | BI8: 18 | BJ8: 19 | BK8: 20 | BL8: 21 | BM8: 22 | BN8: 23 | BO8: 24 | BP8: 25 | BQ8: 26 | BR8: 27 | BS8: 28 | BT8: 29 | BU8: 30 | BV8: 31 | BW8: 32 | BX8: 33 | BY8: 34 | BZ8: 35 | CA8: 36 | CB8: 37 | CC8: 38 | CD8: 1 | CE8: 2 | CF8: 3 | CG8: 4 | CH8: 5 | CI8: 6 | CJ8: 7 | CK8: 8 | CL8: 9 | CM8: 10 | CN8: 11 | CO8: 12 | CP8: 13 | CQ8: 14 | CR8: 15 | CS8: 16 | CT8: 17 | CU8: 18 | CV8: 19 | CW8: 20 | CX8: 21 | CY8: 22 | CZ8: 23 | DA8: 24 | DB8: 25 | DC8: 26 | DD8: 27 | DE8: 28 | DF8: 29 | DG8: 30 | DH8: 31 | DI8: 32 | DJ8: 33 | DK8: 34 | DL8: 35 | DM8: 36 | DN8: 37 | DO8: 38
F9: 農林漁業 | G9: 鉱業 | H9: 飲食料品 | I9: 繊維製品 | J9: パルプ・紙・木製品 | K9: 化学製品 | L9: 石油・石炭製品 | M9: プラスチック・ゴム製品 | N9: 窯業・土石製品 | O9: 鉄鋼 | P9: 非鉄金属 | Q9: 金属製品 | R9: はん用機械 | S9: 生産用機械 | T9: 業務用機械 | U9: 電子部品 | V9: 電気機械 | W9: 情報通信機器 | X9: 輸送機械 | Y9: その他の製造工業製品 | Z9: 建設 | AA9: 電力・ガス・熱供給 | AB9: 水道 | AC9: 廃棄物処理 | AD9: 商業 | AE9: 金融・保険 | AF9: 不動産 | AG9: 運輸・郵便 | AH9: 情報通信 | AI9: 公務 | AJ9: 教育・研究 | AK9: 医療・福祉 | AL9: 他に分類されない会員制団体 | AM9: 対事業所サービス | AN9: 対個人サービス | AO9: 事務用品 | AP9: 分類不明 | AQ9: 本社 | AR9: 農林漁業 | AS9: 鉱業 | AT9: 飲食料品 | AU9: 繊維製品 | AV9: パルプ・紙・木製品 | AW9: 化学製品 | AX9: 石油・石炭製品 | AY9: プラスチック・ゴム製品 | AZ9: 窯業・土石製品 | BA9: 鉄鋼 | BB9: 非鉄金属 | BC9: 金属製品 | BD9: はん用機械 | BE9: 生産用機械 | BF9: 業務用機械 | BG9: 電子部品 | BH9: 電気機械 | BI9: 情報通信機器 | BJ9: 輸送機械 | BK9: その他の製造工業製品 | BL9: 建設 | BM9: 電力・ガス・熱供給 | BN9: 水道 | BO9: 廃棄物処理 | BP9: 商業 | BQ9: 金融・保険 | BR9: 不動産 | BS9: 運輸・郵便 | BT9: 情報通信 | BU9: 公務 | BV9: 教育・研究 | BW9: 医療・福祉 | BX9: 他に分類されない会員制団体 | BY9: 対事業所サービス | BZ9: 対個人サービス | CA9: 事務用品 | CB9: 分類不明 | CC9: 本社 | CD9: 農林漁業 | CE9: 鉱業 | CF9: 飲食料品 | CG9: 繊維製品 | CH9: パルプ・紙・木製品 | CI9: 化学製品 | CJ9: 石油・石炭製品 | CK9: プラスチック・ゴム製品 | CL9: 窯業・土石製品 | CM9: 鉄鋼 | CN9: 非鉄金属 | CO9: 金属製品 | CP9: はん用機械 | CQ9: 生産用機械 | CR9: 業務用機械 | CS9: 電子部品 | CT9: 電気機械 | CU9: 情報通信機器 | CV9: 輸送機械 | CW9: その他の製造工業製品 | CX9: 建設 | CY9: 電力・ガス・熱供給 | CZ9: 水道 | DA9: 廃棄物処理 | DB9: 商業 | DC9: 金融・保険 | DD9: 不動産 | DE9: 運輸・郵便 | DF9: 情報通信 | DG9: 公務 | DH9: 教育・研究 | DI9: 医療・福祉 | DJ9: 他に分類されない会員制団体 | DK9: 対事業所サービス | DL9: 対個人サービス | DM9: 事務用品 | DN9: 分類不明 | DO9: 本社 | DP9: 内生部門計 | DQ9: 家計外消費支出（列） | DR9: 民間消費支出 | DS9: 一般政府消費支出 | DT9: 国内総固定資本形成（公的） | DU9: 国内総固定資本形成（民間） | DV9: 在庫純増 | DW9: 域内最終需要計 | DX9: 家計外消費支出（列） | DY9: 民間消費支出 | DZ9: 一般政府消費支出 | EA9: 国内総固定資本形成（公的） | EB9: 国内総固定資本形成（民間） | EC9: 在庫純増 | ED9: 域内最終需要計 | EE9: 家計外消費支出（列） | EF9: 民間消費支出 | EG9: 一般政府消費支出 | EH9: 国内総固定資本形成（公的） | EI9: 国内総固定資本形成（民間） | EJ9: 在庫純増 | EK9: 域内最終需要計 | EL9: 輸出計 | EM9: 最終需要計 | EN9: 需要合計 | EO9: （控除）輸入計 | EP9: 生産額
B10: 中間投入 | C10: 名古屋市 | D10: 1 | E10: 農林漁業 | F10: 187.7247939 | G10: 0 | H10: 32215.51601 | I10: 29.64595746 | J10: 488.6618487 | K10: 53.01592596 | L10: 0 | M10: 31.05319576 | N10: 3.832994191 | O10: 0.01133907947 | P10: 0.01640593277 | Q10: 0 | R10: 0 | S10: 0 | T10: 0 | U10: 0 | V10: 0 | W10: 0 | X10: 0 | Y10: 52.48457124 | Z10: 270.5159048 | AA10: 0 | AB10: 0 | AC10: 0 | AD10: 68.7780605 | AE10: 0 | AF10: 0.7105386377 | AG10: 0.2083178976 | AH10: 0 | AI10: 2.595583507 | AJ10: 331.6525725 | AK10: 587.2122125 | AL10: 36.10459391 | AM10: 6.381445709 | AN10: 5745.432151 | AO10: 0 | AP10: 0 | AQ10: 0.5048868043 | AR10: 1075.141354 | AS10: 0 | AT10: 377.6860539 | AU10: 0.6027732348 | AV10: 0.0003223181619 | AW10: 0.01463318708 | AX10: 0 | AY10: 0 | AZ10: 0.001321948214 | BA10: 0 | BB10: 0 | BC10: 0 | BD10: 0 | BE10: 0 | BF10: 0 | BG10: 0 | BH10: 0 | BI10: 0 | BJ10: 0 | BK10: 1.784883258 | BL10: 0.009291818675 | BM10: 0 | BN10: 0 | BO10: 0 | BP10: 0 | BQ10: 0 | BR10: 0 | BS10: 0.02360844166 | BT10: 0 | BU10: 0.001632459543 | BV10: 22.79110048 | BW10: 1.189412105 | BX10: 0 | BY10: 0 | BZ10: 16.69070411 | CA10: 0 | CB10: 0 | CC10: 0 | CD10: 23.32498855 | CE10: 0 | CF10: 146.2265704 | CG10: 0.1283858562 | CH10: 0.01096843311 | CI10: 0.1228380393 | CJ10: 0 | CK10: 0.4722586048 | CL10: 0.00275836855 | CM10: 0 | CN10: 0.0003941273292 | CO10: 0 | CP10: 0 | CQ10: 0 | CR10: 0 | CS10: 0 | CT10: 0 | CU10: 0 | CV10: 0 | CW10: 0.5270800164 | CX10: 0.2078303324 | CY10: 0 | CZ10: 0 | DA10: 0 | DB10: 0.03756324215 | DC10: 0 | DD10: 0.0005896036377 | DE10: 0.01347330846 | DF10: 0 | DG10: 0.009248452822 | DH10: 1.020844124 | DI10: 1.162309999 | DJ10: 0.03540018749 | DK10: 0.00290210685 | DL10: 8.020636704 | DM10: 0 | DN10: 0 | DO10: 0.0002425912073 | DP10: 41789.32368 | DQ10: 358.8308079 | DR10: 15801.29286 | DS10: 0 | DT10: 0 | DU10: 80.66975132 | DV10: -3.596726543 | DW10: 16237.19669 | DX10: 0 | DY10: 1814.11127 | DZ10: 0 | EA10: 0 | EB10: 7.815699328 | EC10: 1.366076396 | ED10: 1823.293046 | EE10: 0.2083700627 | EF10: 27.30707944 | EG10: 0 | EH10: 0 | EI10: 2.937609013 | EJ10: 0.1905211304 | EK10: 30.64357965 | EL10: 33.781 | EM10: 18124.91432 | EN10: 59914.238 | EO10: -47180.887 | EP10: 12733.351
D11: 2 | E11: 鉱業 | F11: 0.008907064747 | G11: 0.1238404037 | H11: 120.5622036 | I11: 9.159600268 | J11: 6.093284551 | K11: 1238.363158 | L11: 4047.136761 | M11: 7.83481877 | N11: 2267.37103 | O11: 800.8643723 | P11: 258.4772994 | Q11: 39.79284574 | R11: 4.080144094 | S11: 9.450609322 | T11: 1.912618644 | U11: 4.200274941 | V11: 16.64124807 | W11: 1.564192979 | X11: 71.92247581 | Y11: 30.18579931 | Z11: 192.8701503 | AA11: 133465.1647 | AB11: 0 | AC11: 0.2775339268 | AD11: 9.95689738 | AE11: 1.252335069 | AF11: 2.183005374 | AG11: 12.3095613 | AH11: 0 | AI11: 0.5493084036 | AJ11: 75.72655391 | AK11: 11.05722623 | AL11: 3.857035102 | AM11: 20.77483641 | AN11: 26.97300086 | AO11: 0 | AP11: 12.53733932 | AQ11: 0 | AR11: 0.004889295615 | AS11: 0.1154203558 | AT11: 0.08031734404 | AU11: 0.001217281212 | AV11: 1.039387517 | AW11: 7.02353445 | AX11: 0.4689239651 | AY11: 0.2583478019 | AZ11: 74.1173418 | BA11: 329.4604457 | BB11: 21.3416968 | BC11: 0.1249014087 | BD11: 0.02281594308 | BE11: 0.271649928 | BF11: 0.07838050209 | BG11: 0 | BH11: 0 | BI11: 0 | BJ11: 0 | BK11: 1.240458944 | BL11: 34.68288053 | BM11: -0.04561751571 | BN11: 0 | BO11: 0 | BP11: 0 | BQ11: 0 | BR11: 0 | BS11: 0 | BT11: 0 | BU11: 0.01011929793 | BV11: 0 | BW11: 0 | BX11: 0 | BY11: 0 | BZ11: -0.0001759737406 | CA11: 0 | CB11: 0.1154691907 | CC11: 0 | CD11: 0.0007400517209 | CE11: 0.002192039631 | CF11: 0.0007334632688 | CG11: 4.709182407e-06 | CH11: 0.01399612056 | CI11: 0.1003223971 | CJ11: 0.05087757896 | CK11: 0.000905932614 | CL11: 0.714400703 | CM11: 2.030849242 | CN11: 2.227915638 | CO11: 0.0008160488536 | CP11: 0.0001411834995 | CQ11: 0.0006687523341 | CR11: 0.0006157261853 | CS11: 0 | CT11: 0 | CU11: 0 | CV11: 0 | CW11: 0.006594424743 | CX11: 1.124828156 | CY11: -0.0003512650832 | CZ11: 0 | DA11: 0 | DB11: 0 | DC11: 0 | DD11: 0 | DE11: 0 | DF11: 0 | DG11: 0.001278201551 | DH11: 0 | DI11: 0 | DJ11: 0 | DK11: 0 | DL11: -0.0001501363891 | DM11: 0 | DN11: 0.001777007055 | DO11: 0 | DP11: 143247.9265 | DQ11: -108.7952516 | DR11: -88.53040226 | DS11: 0 | DT11: 0 | DU11: -63.66270916 | DV11: 0.1753806002 | DW11: -260.8129824 | DX11: -0.8067211913 | DY11: -0.8657523897 | DZ11: 0 | EA11: 0 | EB11: 0 | EC11: 4.10395439 | ED11: 2.431480809 | EE11: -0.008871388199 | EF11: -0.01024486701 | EG11: 0 | EH11: 0 | EI11: -0.011457594 | EJ11: -0.04546749461 | EK11: -0.07604134382 | EL11: 81.694 | EM11: -176.7635429 | EN11: 143071.163 | EO11: -143003.238 | EP11: 67.925
D12: 3 | E12: 飲食料品 | F12: 46.99093263 | G12: 0 | H12: 17438.63284 | I12: 23.53293466 | J12: 4.365559126 | K12: 177.939896 | L12: 0.004110818021 | M12: 0.4423597653 | N12: 8.682457503 | O12: 0.07184994976 | P12: 0 | Q12: 0 | R12: 0 | S12: 0 | T12: 0 | U12: 0 | V12: 0 | W12: 0 | X12: 0 | Y12: 50.78455329 | Z12: 1.647309414 | AA12: 0 | AB12: 0 | AC12: 0 | AD12: 47.09876694 | AE12: 0 | AF12: 0 | AG12: 1.246768841 | AH12: 0 | AI12: 34.80737832 | AJ12: 1206.931636 | AK12: 2570.987131 | AL12: 14.01898997 | AM12: 0.8883759687 | AN12: 53496.19369 | AO12: 0 | AP12: 71.11949379 | AQ12: 1.473919962 | AR12: 6528.031966 | AS12: 0 | AT12: 26320.95431 | AU12: 35.48257633 | AV12: 62.14972265 | AW12: 468.8456603 | AX12: 0.2285032404 | AY12: 1.554762471 | AZ12: 19.48423386 | BA12: 0.284136156 | BB12: 0 | BC12: 0 | BD12: 0 | BE12: 0 | BF12: 0 | BG12: 0 | BH12: 0 | BI12: 0 | BJ12: 0 | BK12: 129.4777474 | BL12: 7.334048364 | BM12: 0 | BN12: 0 | BO12: 0 | BP12: 26.36767577 | BQ12: 0 | BR12: 0 | BS12: 57.78479164 | BT12: 0.003267448932 | BU12: 11.21896635 | BV12: 1384.639129 | BW12: 1042.101688 | BX12: 16.8730669 | BY12: 0.1901373655 | BZ12: 12484.45586 | CA12: 0 | CB12: 99.82686596 | CC12: 0.7104171644 | CD12: 19837.20953 | CE12: 0 | CF12: 32234.96406 | CG12: 14.82727573 | CH12: 127.1776976 | CI12: 1376.033867 | CJ12: 0.5847821191 | CK12: 1.738971639 | CL12: 23.07643527 | CM12: 0.1382219345 | CN12: 0 | CO12: 0 | CP12: 0 | CQ12: 0 | CR12: 0 | CS12: 0 | CT12: 0 | CU12: 0 | CV12: 0 | CW12: 44.78009732 | CX12: 21.48174385 | CY12: 0 | CZ12: 0 | DA12: 0 | DB12: 74.20046158 | DC12: 0 | DD12: 0 | DE12: 80.53225175 | DF12: 0.0736603569 | DG12: 58.44246059 | DH12: 1570.574274 | DI12: 2311.769173 | DJ12: 42.06098144 | DK12: 0.8845628309 | DL12: 50288.34402 | DM12: 0 | DN12: 236.5021003 | DO12: 1.14035267 | DP12: 232242.3975 | DQ12: 5770.367486 | DR12: 117591.2525 | DS12: 0 | DT12: 0 | DU12: 0 | DV12: -38.0609684 | DW12: 123323.5591 | DX12: 2903.452396 | DY12: 68681.45124 | DZ12: 0 | EA12: 0 | EB12: 0 | EC12: -170.120651 | ED12: 71414.78298 | EE12: 5275.413038 | EF12: 140339.5193 | EG12: 0 | EH12: 0 | EI12: 0 | EJ12: -150.0158589 | EK12: 145464.9165 | EL12: 4418.229 | EM12: 344621.4875 | EN12: 576863.885 | EO12: -141454.465 | EP12: 435409.42
D13: 4 | E13: 繊維製品 | F13: 36.25825221 | G13: 0.2023421028 | H13: 297.0451752 | I13: 2381.200249 | J13: 258.1805424 | K13: 128.9732612 | L13: 0.4960199126 | M13: 256.3778349 | N13: 214.6367976 | O13: 107.54926 | P13: 148.3336373 | Q13: 123.5475531 | R13: 64.27164281 | S13: 169.9371321 | T13: 209.8003766 | U13: 32.69834465 | V13: 444.4569506 | W13: 18.95673789 | X13: 285.5214393 | Y13: 168.6725065 | Z13: 2494.348155 | AA13: 35.10812037 | AB13: 46.75967139 | AC13: 135.1118956 | AD13: 12442.72572 | AE13: 1100.605334 | AF13: 44.0622165 | AG13: 1848.280415 | AH13: 1315.02049 | AI13: 1728.754671 | AJ13: 377.3167622 | AK13: 2600.905167 | AL13: 1204.106589 | AM13: 3169.394107 | AN13: 3108.774596 | AO13: 345.7549459 | AP13: 24.6316882 | AQ13: 119.3184273 | AR13: 40.18967176 | AS13: 1.316620289 | AT13: 38.72438686 | AU13: 696.463768 | AV13: 29.2581824 | AW13: 32.12379527 | AX13: 0.4205713908 | AY13: 51.96965279 | AZ13: 56.35051467 | BA13: 25.58672328 | BB13: 11.48427205 | BC13: 20.27823766 | BD13: 22.42328197 | BE13: 36.92485827 | BF13: 24.56295258 | BG13: 25.84504704 | BH13: 90.96595083 | BI13: 9.470300894 | BJ13: 776.9383831 | BK13: 40.0219238 | BL13: 181.9152413 | BM13: 4.104431123 | BN13: 5.127958774 | BO13: 9.809779711 | BP13: 277.2963566 | BQ13: 21.66018686 | BR13: 1.933862466 | BS13: 56.65882677 | BT13: 7.323205961 | BU13: 92.22618243 | BV13: 21.78796606 | BW13: 247.191815 | BX13: 72.65474144 | BY13: 74.78867624 | BZ13: 168.5883493 | CA13: 9.333742033 | CB13: 2.011239866 | CC13: 8.037230195 | CD13: 182.9029693 | CE13: 3.119382032 | CF13: 35.58783725 | CG13: 2759.492401 | CH13: 231.4780266 | CI13: 50.34834451 | CJ13: 0.416498689 | CK13: 181.1971404 | CL13: 38.78736639 | CM13: 7.150800292 | CN13: 12.62652098 | CO13: 19.99419223 | CP13: 10.92075987 | CQ13: 45.57597882 | CR13: 9.200033273 | CS13: 79.54813933 | CT13: 87.79211117 | CU13: 10.61539493 | CV13: 241.1723624 | CW13: 130.3870025 | CX13: 712.2488027 | CY13: 3.754105686 | CZ13: 7.157559178 | DA13: 9.195446333 | DB13: 656.2556952 | DC13: 55.2831865 | DD13: 4.869959029 | DE13: 182.7866959 | DF13: 72.39541442 | DG13: 297.3967986 | DH13: 40.57171594 | DI13: 611.1080506 | DJ13: 102.280119 | DK13: 300.7964821 | DL13: 593.905014 | DM13: 106.2298453 | DN13: 6.324082475 | DO13: 12.00794674 | DP13: 48694.74409 | DQ13: 1833.256604 | DR13: 65255.63515 | DS13: 0 | DT13: 7.348786886 | DU13: 3971.402563 | DV13: 2345.836874 | DW13: 73413.47997 | DX13: 206.9775224 | DY13: 4582.631256 | DZ13: 0 | EA13: 0.4485986306 | EB13: 439.0305603 | EC13: 282.9974195 | ED13: 5512.085357 | EE13: 391.0618065 | EF13: 6960.089716 | EG13: 0 | EH13: 3.349181046 | EI13: 875.4300613 | EJ13: 405.2548104 | EK13: 8635.185575 | EL13: 2696.344 | EM13: 90257.09491 | EN13: 138951.839 | EO13: -109829.321 | EP13: 29122.518
D14: 5 | E14: パルプ・紙・木製品 | F14: 19.29583003 | G14: 0.04866354099 | H14: 722.0780139 | I14: 27.76264626 | J14: 3252.85999 | K14: 421.725966 | L14: 0.1236115304 | M14: 132.2925697 | N14: 471.7692059 | O14: 32.47102814 | P14: 94.84134748 | Q14: 83.85068572 | R14: 18.84013249 | S14: 69.36718968 | T14: 464.0598382 | U14: 15.49497916 | V14: 304.9625094 | W14: 18.38123622 | X14: 107.4458934 | Y14: 982.8595803 | Z14: 23802.08617 | AA14: 419.0128555 | AB14: 69.06495679 | AC14: 99.28289527 | AD14: 4532.503181 | AE14: 1023.019684 | AF14: 280.7272675 | AG14: 944.287695 | AH14: 2003.900773 | AI14: 262.9384086 | AJ14: 1637.400478 | AK14: 1874.907395 | AL14: 374.6838589 | AM14: 1726.937956 | AN14: 2150.273244 | AO14: 1547.236741 | AP14: 14.7663347 | AQ14: 301.6661618 | AR14: 618.3457541 | AS14: 1.028420749 | AT14: 1797.683383 | AU14: 52.04600976 | AV14: 9630.633395 | AW14: 999.0767748 | AX14: 0.2452013829 | AY14: 219.2330351 | AZ14: 482.5260041 | BA14: 41.85791489 | BB14: 28.43647094 | BC14: 242.3174674 | BD14: 39.3451382 | BE14: 116.0312031 | BF14: 137.566835 | BG14: 49.03097886 | BH14: 349.3058409 | BI14: 41.74528171 | BJ14: 460.2245989 | BK14: 372.6102509 | BL14: 3100.617042 | BM14: 120.45902 | BN14: 26.91539865 | BO14: 24.73298743 | BP14: 654.4827465 | BQ14: 104.9840649 | BR14: 33.72431389 | BS14: 128.9327067 | BT14: 3.536201619 | BU14: 28.27400437 | BV14: 295.910515 | BW14: 305.4746002 | BX14: 69.63358149 | BY14: 87.46496248 | BZ14: 191.6118426 | CA14: 349.8040996 | CB14: 3.867504657 | CC14: 41.81425951 | CD14: 911.7325597 | CE14: 14.78020554 | CF14: 2081.178356 | CG14: 65.09859642 | CH14: 2165.447421 | CI14: 1260.275169 | CJ14: 1.384023493 | CK14: 202.0675189 | CL14: 284.5429058 | CM14: 42.2929424 | CN14: 53.3173026 | CO14: 113.5114503 | CP14: 50.93909332 | CQ14: 73.89691403 | CR14: 102.1852834 | CS14: 243.4068208 | CT14: 281.3859479 | CU14: 160.3370654 | CV14: 290.408659 | CW14: 506.0722804 | CX14: 9084.282157 | CY14: 165.2553758 | CZ14: 106.4022851 | DA14: 119.9118038 | DB14: 3408.892337 | DC14: 958.7265788 | DD14: 257.5628408 | DE14: 753.4419221 | DF14: 1382.222685 | DG14: 337.4332938 | DH14: 1133.933544 | DI14: 2159.710181 | DJ14: 567.2465754 | DK14: 1160.315025 | DL14: 1901.697332 | DM14: 1985.548972 | DN14: 20.46957308 | DO14: 245.2238929 | DP14: 106209.2937 | DQ14: -929.8483955 | DR14: -1145.682128 | DS14: 4.897102039 | DT14: 111.2415551 | DU14: 3231.013162 | DV14: -855.3122653 | DW14: 416.3090297 | DX14: -383.0288997 | DY14: -858.5912829 | DZ14: 2.673170337 | EA14: 12.55066834 | EB14: 837.0234693 | EC14: -50.20094991 | ED14: -439.5738246 | EE14: 550.9771536 | EF14: 2426.910505 | EG14: 7.901901741 | EH14: 117.327388 | EI14: 3593.562097 | EJ14: -234.4039207 | EK14: 6462.275124 | EL14: 2949.37 | EM14: 9388.380329 | EN14: 115597.674 | EO14: -49399.058 | EP14: 66198.616
D15: 6 | E15: 化学製品 | F15: 272.2523739 | G15: 0.4379349921 | H15: 1278.521049 | I15: 1006.549718 | J15: 442.6304083 | K15: 21922.58841 | L15: 9.971411459 | M15: 7860.812411 | N15: 641.3315513 | O15: 336.3620878 | P15: 92.18530429 | Q15: 179.1564441 | R15: 60.36441715 | S15: 145.7573699 | T15: 635.5274865 | U15: 41.23478334 | V15: 769.0424143 | W15: 59.06872353 | X15: 1131.046226 | Y15: 737.6249681 | Z15: 998.3303365 | AA15: 73.41855497 | AB15: 193.576388 | AC15: 468.5747656 | AD15: 7.511507207 | AE15: 6.391423796 | AF15: 4.086978485 | AG15: 111.2626569 | AH15: 439.9613276 | AI15: 155.4876465 | AJ15: 4830.813932 | AK15: 57667.47055 | AL15: 47.83343857 | AM15: 2006.552278 | AN15: 1805.002573 | AO15: 127.345906 | AP15: 166.4122811 | AQ15: 0 | AR15: 2629.354566 | AS15: 0.994204058 | AT15: 415.1440036 | AU15: 300.2239409 | AV15: 527.0626889 | AW15: 11013.29714 | AX15: -30.04688191 | AY15: 21657.31949 | AZ15: 479.3217451 | BA15: 127.650292 | BB15: 180.7577977 | BC15: 244.0546298 | BD15: 124.79157 | BE15: 243.4382156 | BF15: 252.8188213 | BG15: 244.7388885 | BH15: 814.2401332 | BI15: 159.9726235 | BJ15: 5086.820726 | BK15: 448.9942664 | BL15: 319.7303286 | BM15: 63.35363767 | BN15: 134.6634671 | BO15: 132.7869717 | BP15: 0.07714072321 | BQ15: 0.04251245759 | BR15: 4.215595462 | BS15: 11.00526688 | BT15: 4.815254106 | BU15: 15.95810154 | BV15: 546.6624072 | BW15: 12078.66018 | BX15: 2.282295899 | BY15: 127.2599952 | BZ15: 255.5878074 | CA15: 1.526705351 | CB15: 106.7191067 | CC15: 0 | CD15: 2163.187336 | CE15: 34.36543715 | CF15: 1196.43116 | CG15: 2545.544027 | CH15: 1936.635375 | CI15: 23980.45012 | CJ15: 49.02632889 | CK15: 23604.56457 | CL15: 709.5462823 | CM15: 412.8035491 | CN15: 547.8537253 | CO15: 665.9005787 | CP15: 196.7462068 | CQ15: 365.2612589 | CR15: 526.5414867 | CS15: 1282.946536 | CT15: 1437.446193 | CU15: 362.0448233 | CV15: 2473.5602 | CW15: 2145.891882 | CX15: 2138.853112 | CY15: 54.62925713 | CZ15: 231.9867392 | DA15: 259.9579875 | DB15: 1.415018667 | DC15: 1.852098894 | DD15: 19.88410077 | DE15: 58.70184598 | DF15: 330.5285483 | DG15: 117.3712241 | DH15: 936.7249785 | DI15: 19563.5816 | DJ15: 36.00439732 | DK15: 1259.820258 | DL15: 621.5391738 | DM15: 37.5476447 | DN15: 197.5842277 | DO15: 0 | DP15: 257963.523 | DQ15: 1302.544801 | DR15: 10990.63353 | DS15: 0 | DT15: 0 | DU15: 0 | DV15: 313.9206361 | DW15: 12607.09897 | DX15: 173.4072707 | DY15: 1097.649564 | DZ15: 0 | EA15: 0 | EB15: 0 | EC15: 34.81061779 | ED15: 1305.867453 | EE15: 300.0736318 | EF15: 3379.059231 | EG15: 0 | EH15: 0 | EI15: 0 | EJ15: -164.9102362 | EK15: 3514.222627 | EL15: 21853.264 | EM15: 39280.45304 | EN15: 297243.976 | EO15: -108176.366 | EP15: 189067.61
D16: 7 | E16: 石油・石炭製品 | F16: 5.202848772 | G16: 0.2243928675 | H16: 250.0746149 | I16: 17.23504541 | J16: 15.95888438 | K16: 147.6269878 | L16: 77.97266231 | M16: 21.84770086 | N16: 262.9104737 | O16: 107.7213255 | P16: 59.72450905 | Q16: 47.89125872 | R16: 7.770944197 | S16: 37.85964848 | T16: 16.77511141 | U16: 2.10008286 | V16: 40.04611273 | W16: 0.7720992821 | X16: 278.0782717 | Y16: 44.07337956 | Z16: 755.1879347 | AA16: 1844.295394 | AB16: 91.23676359 | AC16: 121.4757709 | AD16: 713.3958337 | AE16: 50.75444762 | AF16: 111.7372483 | AG16: 11114.98542 | AH16: 178.9443175 | AI16: 700.0607961 | AJ16: 481.1296521 | AK16: 358.3240233 | AL16: 26.66292251 | AM16: 629.3722944 | AN16: 835.4911815 | AO16: 0 | AP16: 184.0748716 | AQ16: 170.5065877 | AR16: 0.05728821346 | AS16: 0.1130699957 | AT16: 0.5457384453 | AU16: 0.02360667372 | AV16: 0.221394237 | AW16: 42.70242997 | AX16: 56.41368352 | AY16: 1.933739872 | AZ16: 39.03057492 | BA16: 1307.08957 | BB16: 9.172736775 | BC16: 1.150930802 | BD16: 0.4442853774 | BE16: 0.5021100432 | BF16: 0.2910259531 | BG16: 0.006283074622 | BH16: 0.1332578499 | BI16: 0.04887070715 | BJ16: 15.23614942 | BK16: 0.4263863193 | BL16: 454.9485437 | BM16: 688.9307568 | BN16: 0.03653655557 | BO16: 1.296054956 | BP16: -0.3390482233 | BQ16: 0.003796923442 | BR16: 0.009386136168 | BS16: 2.477339941 | BT16: 0.01444716448 | BU16: 0.05632245505 | BV16: 0.07254606946 | BW16: 0.3637639169 | BX16: 0.8018694503 | BY16: 0.1710358259 | BZ16: 7.416223909 | CA16: 0 | CB16: 0.08278062248 | CC16: 0.02205262233 | CD16: 39.30368017 | CE16: 4.794310238 | CF16: 36.70047481 | CG16: 4.84618039 | CH16: 11.24166509 | CI16: 555.7548903 | CJ16: 261.172825 | CK16: 6.070567139 | CL16: 32.30192382 | CM16: 226.8835037 | CN16: 6.101208574 | CO16: 8.164102794 | CP16: 3.185629427 | CQ16: 3.83965058 | CR16: 1.350723205 | CS16: 4.478054032 | CT16: 3.741359968 | CU16: 0.5724866448 | CV16: 19.35012601 | CW16: 4.476400241 | CX16: 254.7728504 | CY16: 352.9403128 | CZ16: 12.41878855 | DA16: 13.77415179 | DB16: 35.95354164 | DC16: 3.470802199 | DD16: 7.793413935 | DE16: 1325.767536 | DF16: 9.538991872 | DG16: 107.6653391 | DH16: 35.61241181 | DI16: 36.35233509 | DJ16: 3.964193629 | DK16: 37.10430634 | DL16: 66.95255425 | DM16: 0 | DN16: 22.37160444 | DO16: 11.99000912 | DP16: 26014.18226 | DQ16: 51.55379582 | DR16: 7840.162394 | DS16: 0 | DT16: 0 | DU16: 0 | DV16: -25.39600452 | DW16: 7866.320186 | DX16: 0.1775349618 | DY16: 0.9430135198 | DZ16: 0 | EA16: 0 | EB16: 0 | EC16: -33.15589931 | ED16: -32.03535083 | EE16: 3.842015025 | EF16: 1232.799048 | EG16: 0 | EH16: 0 | EI16: 0 | EJ16: -0.8241589384 | EK16: 1235.816904 | EL16: 471.197 | EM16: 9541.298739 | EN16: 35555.481 | EO16: -27119.45 | EP16: 8436.031
D17: 8 | E17: プラスチック・ゴム製品 | F17: 45.91016778 | G17: 0.113000591 | H17: 1357.939085 | I17: 96.27681875 | J17: 357.2117415 | K17: 508.5739668 | L17: 0.4810406868 | M17: 6452.739252 | N17: 83.64716005 | O17: 69.63266288 | P17: 62.71198218 | Q17: 164.7368284 | R17: 238.3697725 | S17: 754.3519719 | T17: 3162.454449 | U17: 38.69737864 | V17: 2407.808248 | W17: 173.664634 | X17: 4510.340738 | Y17: 1704.800309 | Z17: 3983.924702 | AA17: 0 | AB17: 560.6541678 | AC17: 497.1513174 | AD17: 3127.088426 | AE17: 497.0351522 | AF17: 216.5444545 | AG17: 719.6065035 | AH17: 1551.303689 | AI17: 358.8113487 | AJ17: 1370.682099 | AK17: 869.6890635 | AL17: 166.2581664 | AM17: 3852.276108 | AN17: 904.5596913 | AO17: 455.9627923 | AP17: 63.76445239 | AQ17: 16.85044771 | AR17: 173.6440422 | AS17: 1.632796655 | AT17: 916.9186652 | AU17: 78.71847371 | AV17: 278.0385075 | AW17: 441.7759221 | AX17: 3.531138601 | AY17: 9954.798547 | AZ17: 141.6424978 | BA17: 60.29186574 | BB17: 46.71593286 | BC17: 192.2622855 | BD17: 437.7078035 | BE17: 382.137348 | BF17: 725.6773349 | BG17: 254.0188147 | BH17: 1592.880998 | BI17: 334.1452132 | BJ17: 16111.40053 | BK17: 970.9542426 | BL17: 623.633631 | BM17: 0 | BN17: 262.3471645 | BO17: 88.00883731 | BP17: 402.2506982 | BQ17: 60.42136844 | BR17: 46.44002547 | BS17: 68.52515075 | BT17: 53.06019506 | BU17: 31.25674057 | BV17: 348.8553605 | BW17: 120.973034 | BX17: 27.0409533 | BY17: 231.48642 | BZ17: 129.4531211 | CA17: 67.96904618 | CB17: 16.64703401 | CC17: 3.491315645 | CD17: 738.7019144 | CE17: 15.72278179 | CF17: 4849.669392 | CG17: 221.3185139 | CH17: 1748.200981 | CI17: 3530.131483 | CJ17: 14.58867238 | CK17: 18617.57097 | CL17: 271.9300807 | CM17: 60.28276823 | CN17: 332.4635093 | CO17: 289.8415136 | CP17: 590.9601119 | CQ17: 1184.183776 | CR17: 1505.705728 | CS17: 1757.633345 | CT17: 3795.345552 | CU17: 1435.160868 | CV17: 6951.812772 | CW17: 3664.45971 | CX17: 5440.111925 | CY17: 0 | CZ17: 1160.702803 | DA17: 244.3296012 | DB17: 3347.526923 | DC17: 706.691609 | DD17: 330.9479094 | DE17: 503.0236476 | DF17: 1389.022177 | DG17: 345.1135754 | DH17: 1047.49021 | DI17: 683.9422064 | DJ17: 157.7513808 | DK17: 1594.554139 | DL17: 904.7850594 | DM17: 424.6385598 | DN17: 124.8462582 | DO17: 20.35764039 | DP17: 147084.8969 | DQ17: 183.0617197 | DR17: 5684.989154 | DS17: 12.12147063 | DT17: 0 | DU17: -1.781276682 | DV17: -3084.487858 | DW17: 2793.903209 | DX17: 30.20934548 | DY17: 985.8522717 | DZ17: 9.429442062 | EA17: 0 | EB17: 0 | EC17: -33.13087394 | ED17: 992.3601853 | EE17: 144.5087545 | EF17: 4288.447996 | EG17: 25.87087498 | EH17: 0 | EI17: -4.970107985 | EJ17: 0.9851791281 | EK17: 4454.842696 | EL17: 20603.783 | EM17: 28844.88909 | EN17: 175929.786 | EO17: -33595.075 | EP17: 142334.711
D18: 9 | E18: 窯業・土石製品 | F18: 3.707753986 | G18: 0.000288324065 | H18: 349.7636633 | I18: 5.232088873 | J18: 107.6142914 | K18: 221.887548 | L18: 3.266443118 | M18: 100.558599 | N18: 924.0520553 | O18: 141.2642549 | P18: 121.7064887 | Q18: 129.7342591 | R18: 162.431806 | S18: 400.0854213 | T18: 320.9560051 | U18: 377.1290643 | V18: 741.5700238 | W18: 11.57872545 | X18: 712.9737743 | Y18: 82.15389599 | Z18: 8803.751479 | AA18: 4.13107429 | AB18: 84.4006885 | AC18: 14.32999902 | AD18: 250.4443765 | AE18: 3.212987077 | AF18: 6.203926571 | AG18: 20.10896309 | AH18: 3.675567901 | AI18: 42.86041219 | AJ18: 382.2080879 | AK18: 436.0650835 | AL18: 9.613262271 | AM18: 234.0782635 | AN18: 781.8480929 | AO18: 52.66794307 | AP18: 105.4413463 | AQ18: 0 | AR18: 42.09836821 | AS18: 0.09327351912 | AT18: 65.93676777 | AU18: 1.421383681 | AV18: 48.99159024 | AW18: 69.26089075 | AX18: 7.686579542 | AY18: 55.57672745 | AZ18: 1271.918139 | BA18: 577.0736602 | BB18: 238.8479121 | BC18: 137.4127396 | BD18: 83.41267288 | BE18: 333.7082892 | BF18: 104.5054098 | BG18: 1286.839947 | BH18: 645.3087526 | BI18: 53.09569324 | BJ18: 1407.334355 | BK18: 75.70858391 | BL18: 5264.224203 | BM18: 1.694019118 | BN18: 32.25556782 | BO18: 11.10314053 | BP18: 30.93336063 | BQ18: 0.3254539819 | BR18: 15.1499239 | BS18: 3.035246983 | BT18: 0.05119585405 | BU18: 8.115268955 | BV18: 58.53605528 | BW18: 122.2175825 | BX18: 3.878153169 | BY18: 16.60934023 | BZ18: 119.7127391 | CA18: 7.227123197 | CB18: 40.85145072 | CC18: 0 | CD18: 197.9364916 | CE18: 3.464022901 | CF18: 242.4219733 | CG18: 3.596817843 | CH18: 180.1678466 | CI18: 611.1823167 | CJ18: 34.97088438 | CK18: 91.69122489 | CL18: 3681.140036 | CM18: 790.4363398 | CN18: 319.8999367 | CO18: 253.4132151 | CP18: 268.0799892 | CQ18: 395.9666401 | CR18: 320.2717617 | CS18: 10183.97902 | CT18: 1271.849511 | CU18: 179.7454169 | CV18: 736.5125884 | CW18: 165.3820829 | CX18: 28916.00949 | CY18: 6.260214337 | CZ18: 132.904044 | DA18: 35.57355039 | DB18: 226.4643776 | DC18: 4.060055445 | DD18: 49.97152493 | DE18: 26.10290245 | DF18: 3.606866122 | DG18: 77.36781027 | DH18: 355.3350887 | DI18: 844.5567066 | DJ18: 26.71260381 | DK18: 92.40788946 | DL18: 1324.370873 | DM18: 48.39781673 | DN18: 248.4216686 | DO18: 0 | DP18: 80745.49116 | DQ18: 96.93462974 | DR18: 662.9733639 | DS18: 0 | DT18: 0 | DU18: 0 | DV18: 235.8010027 | DW18: 995.7089963 | DX18: 24.38402002 | DY18: 240.9275985 | DZ18: 0 | EA18: 0 | EB18: 0 | EC18: -39.1534236 | ED18: 226.1581949 | EE18: 113.2912797 | EF18: 1339.677759 | EG18: 0 | EH18: 0 | EI18: 0 | EJ18: -72.67139146 | EK18: 1380.297648 | EL18: 15182.131 | EM18: 17784.29584 | EN18: 98529.787 | EO18: -11066.127 | EP18: 87463.66
D19: 10 | E19: 鉄鋼 | F19: 0.02991158242 | G19: 0.007398622999 | H19: 0 | I19: 0.4913129331 | J19: 278.0280971 | K19: 2.26717265 | L19: 0 | M19: 41.29820155 | N19: 96.88383088 | O19: 8851.281485 | P19: 26.26358562 | Q19: 4472.290791 | R19: 712.5324434 | S19: 2899.169862 | T19: 1554.569372 | U19: 20.65744097 | V19: 2127.663766 | W19: 18.64389483 | X19: 1721.242906 | Y19: 29.92271061 | Z19: 2483.183742 | AA19: 0 | AB19: 0.1457917999 | AC19: 0 | AD19: 0 | AE19: 0 | AF19: 0 | AG19: 26.58737021 | AH19: 0 | AI19: 3.021578109 | AJ19: 0 | AK19: 0.2576773211 | AL19: 0.02618234996 | AM19: 58.82689334 | AN19: 3.880291777 | AO19: 0.06656920064 | AP19: 39.93726431 | AQ19: 0 | AR19: 0.7664991153 | AS19: 0.07896978452 | AT19: 0 | AU19: 0.7258767123 | AV19: 332.8074816 | AW19: 194.9383288 | AX19: -4.29707916 | AY19: 135.6309149 | AZ19: 67.65769122 | BA19: 187136.328 | BB19: 75.39936812 | BC19: -10175.5854 | BD19: -5419.44622 | BE19: -9198.898355 | BF19: -2505.413469 | BG19: 75.09387025 | BH19: -6454.554587 | BI19: 46.42504429 | BJ19: -24552.77804 | BK19: 25.6368444 | BL19: -1963.614207 | BM19: 0 | BN19: 0.3586138518 | BO19: 0 | BP19: 0 | BQ19: 0 | BR19: 0 | BS19: 4.769726747 | BT19: 0 | BU19: 0.9539507252 | BV19: 0 | BW19: 0.2650141978 | BX19: 0.03009431979 | BY19: 25.91855128 | BZ19: 1.235332969 | CA19: 0.06064194243 | CB19: 26.15792766 | CC19: 0 | CD19: 10.02024586 | CE19: 17.87403125 | CF19: 0 | CG19: 2.696674146 | CH19: 1564.172917 | CI19: 9.952266235 | CJ19: 0 | CK19: 441.9035882 | CL19: 581.2196252 | CM19: 49120.74524 | CN19: 152.6079749 | CO19: 31696.40006 | CP19: 10866.04221 | CQ19: 14705.09611 | CR19: 1407.635321 | CS19: 1119.443628 | CT19: 8818.955409 | CU19: 674.4009572 | CV19: 23822.69396 | CW19: 406.6478879 | CX19: 12446.49517 | CY19: 0 | CZ19: 0.7004656386 | DA19: 0 | DB19: 0 | DC19: 0 | DD19: 0 | DE19: 242.1522358 | DF19: 0 | DG19: 16.69668348 | DH19: 0 | DI19: 1.09498328 | DJ19: 0.1203789339 | DK19: 114.0779728 | DL19: 12.28863688 | DM19: 0.2016137373 | DN19: 203.6137834 | DO19: 0 | DP19: 311801.779 | DQ19: 0 | DR19: -727.851215 | DS19: 0 | DT19: -609.4984807 | DU19: -2398.344953 | DV19: -1372.619894 | DW19: -5108.314543 | DX19: 0 | DY19: -29465.83352 | DZ19: 0 | EA19: -15678.72973 | EB19: 0 | EC19: -526.7371251 | ED19: -45671.30038 | EE19: 0 | EF19: 0.2209011962 | EG19: 0 | EH19: 0 | EI19: 0 | EJ19: -1215.715937 | EK19: -1215.495036 | EL19: 49834.365 | EM19: -2160.744955 | EN19: 309641.034 | EO19: -11560.773 | EP19: 298080.261
D20: 11 | E20: 非鉄金属 | F20: 0 | G20: 0.01153035831 | H20: 146.6261339 | I20: 0.02206025298 | J20: 71.53482884 | K20: 462.8584017 | L20: 0.01179082487 | M20: 83.2384628 | N20: 755.2212069 | O20: 1938.306981 | P20: 67347.16786 | Q20: 2264.52931 | R20: 648.2481148 | S20: 1330.587201 | T20: 1937.286673 | U20: 344.9262672 | V20: 7279.043472 | W20: 144.1486726 | X20: 4233.80051 | Y20: 327.2241968 | Z20: 4997.196826 | AA20: 15.62892854 | AB20: 3.989920689 | AC20: 0.2576591606 | AD20: 12.68464547 | AE20: 0 | AF20: 0 | AG20: 5.871070087 | AH20: 37.82784164 | AI20: 33.6925781 | AJ20: 81.75647945 | AK20: 307.7840791 | AL20: 2.809639462 | AM20: 386.6325683 | AN20: 92.68439855 | AO20: 7.251737645 | AP20: 131.4555261 | AQ20: 0 | AR20: 0 | AS20: 0.005333370898 | AT20: 251.4287744 | AU20: 0.1870183437 | AV20: 96.14509204 | AW20: 72.16139322 | AX20: 0.8691777081 | AY20: 255.9948202 | AZ20: 82.78293906 | BA20: 77.37121586 | BB20: 6740.094965 | BC20: 3286.595368 | BD20: 2082.541585 | BE20: 2044.223843 | BF20: 1824.875704 | BG20: -362.0897626 | BH20: 3684.949127 | BI20: 288.4707634 | BJ20: 17614.30719 | BK20: 399.0929245 | BL20: 130.7809191 | BM20: 20.65401145 | BN20: 3.37894169 | BO20: 0.001373881972 | BP20: 2.53193972 | BQ20: 0 | BR20: 0 | BS20: 0.4656880996 | BT20: 0.5706358909 | BU20: 2.589586801 | BV20: 4.137513608 | BW20: 227.7459947 | BX20: 2.255652468 | BY20: 11.38010724 | BZ20: 28.54776137 | CA20: 3.877253555 | CB20: 7.594229296 | CC20: 0 | CD20: 0 | CE20: 0.2048859659 | CF20: 1859.794684 | CG20: 0.7780867985 | CH20: 975.3882968 | CI20: 864.109083 | CJ20: 6.644616333 | CK20: 844.7550962 | CL20: 279.8721805 | CM20: 561.0570045 | CN20: 5518.107166 | CO20: 19915.96588 | CP20: 10396.13929 | CQ20: 7128.118595 | CR20: 3934.582815 | CS20: 8857.706079 | CT20: 15442.52973 | CU20: 1858.990915 | CV20: 17684.41234 | CW20: 2158.898449 | CX20: 2374.039747 | CY20: 221.5516466 | CZ20: 36.8129712 | DA20: 0.005719780583 | DB20: 42.07998431 | DC20: 0 | DD20: 0 | DE20: 24.9188476 | DF20: 71.58459874 | DG20: 94.65141846 | DH20: 18.49135272 | DI20: 2860.910854 | DJ20: 33.5275407 | DK20: 116.1360655 | DL20: 635.4050954 | DM20: 46.68181392 | DN20: 96.20077362 | DO20: 0 | DP20: 239279.8903 | DQ20: 6.946887769 | DR20: 1722.826597 | DS20: 0 | DT20: 0 | DU20: -1733.891917 | DV20: 831.9478641 | DW20: 827.829431 | DX20: 4.501095811 | DY20: -7.314393439 | DZ20: 0 | EA20: 0 | EB20: 1176.95553 | EC20: -533.4487066 | ED20: 640.6935258 | EE20: 44.02696588 | EF20: 284.5939389 | EG20: 0 | EH20: 0 | EI20: 11631.40948 | EJ20: -1607.877619 | EK20: 10352.15277 | EL20: 32166.773 | EM20: 43987.44872 | EN20: 283267.339 | EO20: -95243.555 | EP20: 188023.784
D21: 12 | E21: 金属製品 | F21: 1.091060082 | G21: 0.2564812989 | H21: 1122.371295 | I21: 14.12574812 | J21: 347.1454636 | K21: 317.7003818 | L21: 0.9352233438 | M21: 158.3385071 | N21: 250.644109 | O21: 78.47658627 | P21: 85.96587586 | Q21: 1667.683193 | R21: 352.0391008 | S21: 1636.243541 | T21: 4970.673697 | U21: 87.84311732 | V21: 2135.84474 | W21: 136.4376992 | X21: 704.5244462 | Y21: 178.4260215 | Z21: 21716.11793 | AA21: 32.10439727 | AB21: 11.59544882 | AC21: 2.96231842 | AD21: 3122.699179 | AE21: 22.26131869 | AF21: 86.00238172 | AG21: 313.329235 | AH21: 164.5195639 | AI21: 471.7522305 | AJ21: 46.400186 | AK21: 100.2060666 | AL21: 32.8498975 | AM21: 547.1328615 | AN21: 757.907817 | AO21: 3.16523084 | AP21: 87.95887291 | AQ21: 9.734520437 | AR21: 40.41801346 | AS21: 27.4785272 | AT21: 2059.707766 | AU21: 17.80670648 | AV21: 673.3347689 | AW21: 1076.152071 | AX21: 39.58288547 | AY21: 1121.928255 | AZ21: 642.863563 | BA21: 469.7393382 | BB21: 166.1765588 | BC21: 6850.633658 | BD21: 2276.436661 | BE21: 5212.69472 | BF21: 3922.503161 | BG21: 689.0054854 | BH21: 4938.150011 | BI21: 749.7996938 | BJ21: 12900.98377 | BK21: 853.054768 | BL21: 9363.267279 | BM21: 72.68546192 | BN21: 16.27776407 | BO21: 3.446583096 | BP21: 649.584855 | BQ21: 8.145881526 | BR21: 83.42209119 | BS21: 160.9731591 | BT21: 9.479904579 | BU21: 189.5880261 | BV21: 41.05643091 | BW21: 69.42223571 | BX21: 29.78790165 | BY21: 246.8564653 | BZ21: 240.1740518 | CA21: 1.818673533 | CB21: 78.91516166 | CC21: 6.530030559 | CD21: 75.92551444 | CE21: 88.22108209 | CF21: 2077.728104 | CG21: 39.942986 | CH21: 663.4268666 | CI21: 1103.755274 | CJ21: 36.35632149 | CK21: 393.697252 | CL21: 271.6285688 | CM21: 85.04066171 | CN21: 60.45005937 | CO21: 4304.472932 | CP21: 1650.911999 | CQ21: 2277.32472 | CR21: 960.4930358 | CS21: 1286.111057 | CT21: 1787.363783 | CU21: 654.8905866 | CV21: 1870.106511 | CW21: 398.7408377 | CX21: 22205.48453 | CY21: 51.16133524 | CZ21: 17.26181103 | DA21: 3.304544474 | DB21: 1214.490647 | DC21: 18.94530147 | DD21: 144.2813716 | DE21: 315.9061591 | DF21: 86.94230433 | DG21: 820.0214941 | DH21: 34.19184811 | DI21: 98.46456679 | DJ21: 49.01658089 | DK21: 366.4244484 | DL21: 621.1689441 | DM21: 2.415766084 | DN21: 118.4962906 | DO21: 7.283686172 | DP21: 144037.1979 | DQ21: 164.3221835 | DR21: 761.742032 | DS21: 0.2817368132 | DT21: 99.41860633 | DU21: 1268.726863 | DV21: 146.2188376 | DW21: 2440.71026 | DX21: 120.4796517 | DY21: 942.5633493 | DZ21: 0.6586414941 | EA21: 46.44823424 | EB21: 1992.141866 | EC21: -34.57318332 | ED21: 3067.718559 | EE21: 146.3124375 | EF21: 1654.691594 | EG21: 0.9567416173 | EH21: 83.74902494 | EI21: 2918.326098 | EJ21: -249.0755721 | EK21: 4554.960323 | EL21: 16623.34 | EM21: 26686.72914 | EN21: 170723.927 | EO21: -25272.082 | EP21: 145451.845
D22: 13 | E22: はん用機械 | F22: 0 | G22: 0.05463607786 | H22: 0 | I22: 0 | J22: 80.52599041 | K22: 0.808917486 | L22: 0 | M22: 17.51354011 | N22: 63.59821583 | O22: 16.91593677 | P22: 2.68566676 | Q22: 54.82411459 | R22: 2494.624009 | S22: 2971.037948 | T22: 1778.393633 | U22: 9.401654864 | V22: 1241.033657 | W22: 10.19727121 | X22: 1064.596792 | Y22: 2.773838279 | Z22: 1439.975695 | AA22: 0 | AB22: 214.2156164 | AC22: 0 | AD22: 5.769266288 | AE22: 0 | AF22: 0 | AG22: 52.82914135 | AH22: 2.399130885 | AI22: 39.52273279 | AJ22: 0 | AK22: 0 | AL22: 0 | AM22: 4177.204214 | AN22: 3.809045228 | AO22: 0 | AP22: 0 | AQ22: 0.3672758567 | AR22: 0.004904898203 | AS22: 0.8427346414 | AT22: 0 | AU22: 0 | AV22: 26.63973406 | AW22: 0.362190312 | AX22: 0 | AY22: 15.49731289 | AZ22: 33.02154806 | BA22: 18.88924843 | BB22: 0.05367534263 | BC22: 35.11766254 | BD22: 3901.666176 | BE22: 1455.854788 | BF22: 310.2062024 | BG22: 19.61254872 | BH22: 520.5325262 | BI22: 22.04331134 | BJ22: 3146.521696 | BK22: 2.779347378 | BL22: 264.2554242 | BM22: 0 | BN22: 73.75292739 | BO22: 0 | BP22: 0.26439228 | BQ22: 0.0004579267451 | BR22: 0 | BS22: 4.171743857 | BT22: 0.0626608257 | BU22: 1.918625625 | BV22: 0 | BW22: 0.01512715411 | BX22: 0 | BY22: 435.3713984 | BZ22: 0.2682145027 | CA22: 0 | CB22: 0 | CC22: 0.04306656859 | CD22: 0.139990368 | CE22: 11.25485091 | CF22: 0 | CG22: 0 | CH22: 73.70911271 | CI22: 3.075788098 | CJ22: 0 | CK22: 25.93191082 | CL22: 71.28135882 | CM22: 14.87102164 | CN22: 0.7528937609 | CO22: 63.5910834 | CP22: 5450.623393 | CQ22: 2638.070659 | CR22: 200.1112939 | CS22: 177.7441059 | CT22: 783.5790512 | CU22: 65.23499924 | CV22: 1541.920437 | CW22: 29.23672125 | CX22: 993.5092805 | CY22: 0 | CZ22: 263.8790795 | DA22: 0 | DB22: 2.276629889 | DC22: 0.006025453347 | DD22: 0 | DE22: 26.31211266 | DF22: 1.719510859 | DG22: 42.39808251 | DH22: 0 | DI22: 0.05741760291 | DJ22: 0 | DK22: 1784.71278 | DL22: 2.222468451 | DM22: 0 | DN22: 0 | DO22: 0.2359696971 | DP22: 40303.30561 | DQ22: 0 | DR22: 66.67959753 | DS22: 0 | DT22: 566.9299289 | DU22: 9215.695677 | DV22: 43.33385756 | DW22: 9892.639061 | DX22: 0 | DY22: 18.2371017 | DZ22: 0 | EA22: 114.015914 | EB22: 6799.91265 | EC22: 46.92738592 | ED22: 6979.093052 | EE22: 0 | EF22: 27.34915484 | EG22: 0 | EH22: 421.6041086 | EI22: 8497.847759 | EJ22: 59.0412523 | EK22: 9005.842275 | EL22: 18833.31 | EM22: 44710.88439 | EN22: 85014.19 | EO22: -21902.931 | EP22: 63111.259
D23: 14 | E23: 生産用機械 | F23: 0 | G23: 0.02860461644 | H23: 0 | I23: 0 | J23: 3.214735116 | K23: 0 | L23: 0.04068212116 | M23: 82.41011186 | N23: 40.25135683 | O23: 15.35389868 | P23: 14.46122276 | Q23: 25.22193019 | R23: 127.0886184 | S23: 8081.221121 | T23: 226.5173293 | U23: 6.841069429 | V23: 180.3372375 | W23: 4.21260952 | X23: 82.9063773 | Y23: 0.6842829811 | Z23: 19.19899478 | AA23: 0.2991830994 | AB23: 3.578755346 | AC23: 0 | AD23: 3.539768313 | AE23: 0 | AF23: 0 | AG23: 17.19540032 | AH23: 0.9526396706 | AI23: 1.73110901 | AJ23: 0 | AK23: 0 | AL23: 0 | AM23: 6796.770353 | AN23: 2.982719894 | AO23: 0 | AP23: 0 | AQ23: 0 | AR23: 0.03973066733 | AS23: 1.257029678 | AT23: 0 | AU23: 0 | AV23: 2.087079243 | AW23: 0 | AX23: 0.5088540502 | AY23: 162.6669961 | AZ23: 43.07040079 | BA23: 31.78254735 | BB23: 9.272927245 | BC23: 25.51314526 | BD23: 255.318689 | BE23: 8776.052644 | BF23: 100.1274244 | BG23: 55.26293813 | BH23: 133.8891669 | BI23: 13.26012641 | BJ23: 542.1931738 | BK23: 1.353933783 | BL23: 4.687138067 | BM23: 0.4418359075 | BN23: 2.781999672 | BO23: 0 | BP23: 0.3122343076 | BQ23: 0 | BR23: 0 | BS23: 2.892352429 | BT23: 0.02426698912 | BU23: 0.2847447904 | BV23: 0 | BW23: 0 | BX23: 0 | BY23: 1050.135957 | BZ23: 0.375269072 | CA23: 0 | CB23: 0 | CC23: 0 | CD23: 2.400129543 | CE23: 34.32434409 | CF23: 0 | CG23: 0 | CH23: 21.68623792 | CI23: 0 | CJ23: 4.433183723 | CK23: 608.9282446 | CL23: 141.6600118 | CM23: 57.59826048 | CN23: 16.10442458 | CO23: 98.90225446 | CP23: 626.2547805 | CQ23: 20775.51939 | CR23: 163.3281784 | CS23: 778.9657315 | CT23: 643.6215299 | CU23: 90.49931165 | CV23: 570.6748111 | CW23: 23.19430949 | CX23: 80.66263005 | CY23: 2.38028364 | CZ23: 20.5548401 | DA23: 0 | DB23: 5.81553803 | DC23: 0 | DD23: 0 | DE23: 45.33582049 | DF23: 2.775390894 | DG23: 12.31605525 | DH23: 0 | DI23: 0 | DJ23: 0 | DK23: 9884.233122 | DL23: 8.632682858 | DM23: 0 | DN23: 0 | DO23: 0 | DP23: 61673.43421 | DQ23: 0 | DR23: 52.80999543 | DS23: 0 | DT23: 578.5738985 | DU23: 22745.79293 | DV23: -4125.157934 | DW23: 19252.01889 | DX23: 0 | DY23: 14.8464387 | DZ23: 0 | EA23: 73.86725045 | EB23: 41233.45899 | EC23: 124.669724 | ED23: 41446.8424 | EE23: 0 | EF23: 16.21709942 | EG23: 0 | EH23: 818.6455502 | EI23: 81243.68309 | EJ23: 220.3117617 | EK23: 82298.8575 | EL23: 78102.559 | EM23: 221100.2778 | EN23: 282773.712 | EO23: -23556.373 | EP23: 259217.339
D24: 15 | E24: 業務用機械 | F24: 32.93641953 | G24: 0 | H24: 0 | I24: 0 | J24: 0 | K24: 0 | L24: 0 | M24: 0 | N24: 0 | O24: 0 | P24: 0 | Q24: 0.8168569463 | R24: 57.61428244 | S24: 496.7070299 | T24: 14982.59915 | U24: 0 | V24: 144.54303 | W24: 33.18851505 | X24: 119.0098409 | Y24: 11.82889303 | Z24: 99.74558873 | AA24: 0 | AB24: 2.454442199 | AC24: 1.008313292 | AD24: 2299.067983 | AE24: 4.270110008 | AF24: 0 | AG24: 4.750510582 | AH24: 169.943444 | AI24: 240.0691701 | AJ24: 0 | AK24: 7389.100854 | AL24: 0 | AM24: 3450.67972 | AN24: 389.713569 | AO24: 141.2208476 | AP24: 0 | AQ24: 6.218423442 | AR24: 1.319081179 | AS24: 0 | AT24: 0 | AU24: 0 | AV24: 0 | AW24: 0 | AX24: 0 | AY24: 0 | AZ24: 0 | BA24: 0 | BB24: 0 | BC24: 0 | BD24: 0 | BE24: 0.05762748875 | BF24: 7701.199176 | BG24: 0.007363768233 | BH24: 0.00179452983 | BI24: 0.07174239471 | BJ24: 0.0006140038991 | BK24: 0.02987016018 | BL24: 0 | BM24: 0 | BN24: 0 | BO24: 0 | BP24: 0 | BQ24: 0 | BR24: 0 | BS24: 0.3033891488 | BT24: 0.005110012907 | BU24: 0.6627612935 | BV24: 0 | BW24: 185.7617015 | BX24: 0 | BY24: 180.5275555 | BZ24: 165.5558281 | CA24: 0.187869486 | CB24: 0 | CC24: 0.00486798392 | CD24: 6.673703399 | CE24: 0 | CF24: 0.1077459814 | CG24: 0 | CH24: 0 | CI24: 0.2480828983 | CJ24: 0 | CK24: 0 | CL24: 0 | CM24: 0 | CN24: 0 | CO24: 2.248628269 | CP24: 283.7647293 | CQ24: 933.3883201 | CR24: 23218.40762 | CS24: 0.1783639768 | CT24: 148.3925906 | CU24: 13.5689306 | CV24: 179.6264807 | CW24: 1.191565404 | CX24: 137.1244378 | CY24: 0 | CZ24: 4.907082808 | DA24: 1.51148296 | DB24: 1149.287865 | DC24: 4.803279689 | DD24: 0 | DE24: 9.234455736 | DF24: 7.792939828 | DG24: 111.601236 | DH24: 0 | DI24: 1162.83883 | DJ24: 0 | DK24: 3947.089644 | DL24: 4393.745164 | DM24: 20.33911935 | DN24: 0 | DO24: 3.645312337 | DP24: 74054.90096 | DQ24: 10.36369729 | DR24: 844.525064 | DS24: 1.018903095 | DT24: 1951.161948 | DU24: 32997.02728 | DV24: -1161.387889 | DW24: 34642.70901 | DX24: 0.01362557986 | DY24: 0.3443751554 | DZ24: 0.5913980461 | EA24: 55.03920797 | EB24: 8743.939459 | EC24: -11.40569791 | ED24: 8788.522368 | EE24: 3.405729272 | EF24: 574.0469323 | EG24: 8.627832496 | EH24: 1721.360744 | EI24: 244603.713 | EJ24: -179.5195476 | EK24: 246731.6347 | EL24: 14503.644 | EM24: 304666.51 | EN24: 378721.411 | EO24: -44664.179 | EP24: 334057.232
D25: 16 | E25: 電子部品 | F25: 0 | G25: 0.00145865362 | H25: 0.2249243881 | I25: 0 | J25: 0.3576618675 | K25: 0.1852490097 | L25: 0 | M25: 0.02012941995 | N25: 0 | O25: 0.07176575808 | P25: 0.2144220821 | Q25: 162.0443824 | R25: 166.8353159 | S25: 841.6864304 | T25: 20095.21642 | U25: 1143.851089 | V25: 10937.67519 | W25: 2161.802523 | X25: 2555.181963 | Y25: 74.43949483 | Z25: 132.2593327 | AA25: 0.5872539472 | AB25: 0.4270937798 | AC25: 0 | AD25: 25.7472785 | AE25: 13.20110699 | AF25: 0 | AG25: 2.759189187 | AH25: 647.2279495 | AI25: 297.2946123 | AJ25: 875.301811 | AK25: 1.105367713 | AL25: 0 | AM25: 9482.976513 | AN25: 6.561315712 | AO25: 424.8684579 | AP25: 0 | AQ25: 14.4745116 | AR25: 0.002717278937 | AS25: 0.007098024357 | AT25: 0.03034620161 | AU25: 0.0007696845367 | AV25: 0.0941445711 | AW25: 0.0465208154 | AX25: 0 | AY25: 0.007571568271 | AZ25: 0 | BA25: 0.02741575707 | BB25: 0.3881977436 | BC25: 99.46415339 | BD25: 158.67161 | BE25: 131.3926443 | BF25: 312.2505898 | BG25: 705.279249 | BH25: 478.6595376 | BI25: 305.7060114 | BJ25: 1290.72053 | BK25: 5.212799544 | BL25: 6.764879605 | BM25: 0.06417738243 | BN25: 0.07633345046 | BO25: 0 | BP25: 0.8041900705 | BQ25: 0.3183249785 | BR25: 0 | BS25: 0.1397900514 | BT25: 5.896833443 | BU25: 10.38224575 | BV25: 70.03677826 | BW25: 0.1771353268 | BX25: 0 | BY25: 298.1422763 | BZ25: 0.2241705496 | CA25: 24.81670159 | CB25: 0 | CC25: 0.9485079329 | CD25: 0.009857013295 | CE25: 0.0174979469 | CF25: 0.04430254564 | CG25: 0.002469705974 | CH25: 0.09166331766 | CI25: 0.1128466254 | CJ25: 0 | CK25: 0.003393023601 | CL25: 0 | CM25: 0.01341811078 | CN25: 1.012591765 | CO25: 16.96221228 | CP25: 46.94017787 | CQ25: 64.5517386 | CR25: 197.1502349 | CS25: 1913.525799 | CT25: 514.0695656 | CU25: 449.7930375 | CV25: 140.1604531 | CW25: 11.62556991 | CX25: 15.59976711 | CY25: 0.07270932848 | CZ25: 0.07619633015 | DA25: 0 | DB25: 1.726882424 | DC25: 1.135491094 | DD25: 0 | DE25: 0.2149275798 | DF25: 58.00229056 | DG25: 74.95420633 | DH25: 47.81653327 | DI25: 0.1769530125 | DJ25: 0 | DK25: 425.66899 | DL25: 0.5221990069 | DM25: 42.84317092 | DN25: 0 | DO25: 1.373385894 | DP25: 57997.62499 | DQ25: 4.386171434 | DR25: 862.7562554 | DS25: 0 | DT25: 0 | DU25: 0 | DV25: -142.5216372 | DW25: 724.6207896 | DX25: 0.3130100472 | DY25: 82.12832783 | DZ25: 0 | EA25: 0 | EB25: 0 | EC25: 3.939365187 | ED25: 86.38070307 | EE25: 0.4353431874 | EF25: 126.618243 | EG25: 0 | EH25: 0 | EI25: 0 | EJ25: 4.715928382 | EK25: 131.7695146 | EL25: 4662.428 | EM25: 5605.199007 | EN25: 63602.824 | EO25: -49259.962 | EP25: 14342.862
D26: 17 | E26: 電気機械 | F26: 0.03961801853 | G26: 0.01289053554 | H26: 0 | I26: 0 | J26: 9.23469135 | K26: 0.06850537423 | L26: 0 | M26: 1.083508922 | N26: 0.7846278624 | O26: 0 | P26: 0.02559856056 | Q26: 27.19416426 | R26: 288.1493875 | S26: 3203.888674 | T26: 3510.672884 | U26: 52.97064316 | V26: 18982.87534 | W26: 106.8479603 | X26: 3588.060423 | Y26: 17.70182629 | Z26: 4035.433527 | AA26: 0.4076408902 | AB26: 4.202228178 | AC26: 0 | AD26: 367.7846864 | AE26: 0.8661521078 | AF26: 10.08419457 | AG26: 121.4176287 | AH26: 110.0696898 | AI26: 473.1334587 | AJ26: 99.07504963 | AK26: 52.06369558 | AL26: 0 | AM26: 5771.519657 | AN26: 72.65372606 | AO26: 0 | AP26: 30.59363215 | AQ26: 108.090674 | AR26: 0.8804476357 | AS26: 0.1126713271 | AT26: 0 | AU26: 0 | AV26: 1.006761973 | AW26: 0.002952750688 | AX26: 0 | AY26: 0.3219239402 | AZ26: 0.07403516235 | BA26: 0 | BB26: 0.09340028869 | BC26: 18.9036144 | BD26: 844.003024 | BE26: 2339.440739 | BF26: 439.1547324 | BG26: 35.2127866 | BH26: 8507.075667 | BI26: 94.12125603 | BJ26: 14237.74917 | BK26: 2.469368863 | BL26: 305.6730696 | BM26: 0.01422224334 | BN26: 0.1961230566 | BO26: 0 | BP26: 1.931035033 | BQ26: 0.005022727285 | BR26: 0.09654311549 | BS26: 3.853343735 | BT26: 0.8194249612 | BU26: 39.40699514 | BV26: 2.004768258 | BW26: 8.951772225 | BX26: 0 | BY26: 594.9123528 | BZ26: 3.512832792 | CA26: 0 | CB26: 0.9669281611 | CC26: 15.06465412 | CD26: 28.18431132 | CE26: 2.539344399 | CF26: 0.002054064405 | CG26: 0 | CH26: 8.770250097 | CI26: 0.0106529723 | CJ26: 0 | CK26: 1.206703882 | CL26: 0.6242691732 | CM26: 0 | CN26: 2.456809128 | CO26: 152.9471336 | CP26: 4737.639288 | CQ26: 6817.369031 | CR26: 1598.771037 | CS26: 247.5992464 | CT26: 22022.80154 | CU26: 1078.620321 | CV26: 21267.01103 | CW26: 34.9099378 | CX26: 3690.109637 | CY26: 0.009885034297 | CZ26: 0.1052490693 | DA26: 0 | DB26: 2.86540278 | DC26: 0.01100727524 | DD26: 0.1267667089 | DE26: 15.28495336 | DF26: 6.563475935 | DG26: 587.3358257 | DH26: 2.640974983 | DI26: 51.48541803 | DJ26: 0 | DK26: 5464.447166 | DL26: 5.342057696 | DM26: 0 | DN26: 8.299019744 | DO26: 9.568471444 | DP26: 136390.6963 | DQ26: 538.7561505 | DR26: 17098.07543 | DS26: 0 | DT26: 3686.231582 | DU26: 28691.70156 | DV26: 7426.426895 | DW26: 57441.19162 | DX26: 110.9253669 | DY26: 4490.553136 | DZ26: 0 | EA26: 337.2694643 | EB26: 12227.50597 | EC26: 45.90670122 | ED26: 17212.16064 | EE26: 67.8762331 | EF26: 3171.306521 | EG26: 0 | EH26: 3600.295697 | EI26: 72542.82741 | EJ26: 75.42059806 | EK26: 79457.72646 | EL26: 108680.778 | EM26: 262791.8567 | EN26: 399182.553 | EO26: -74982.409 | EP26: 324200.144
D27: 18 | E27: 情報通信機器 | F27: 0.3106035737 | G27: 0 | H27: 5.30266296 | I27: 0.008476510784 | J27: 0.1767957964 | K27: 2.997052027 | L27: 0.006660115616 | M27: 0.00302732528 | N27: 0.4056615875 | O27: 0.08294871267 | P27: 0 | Q27: 3.24771456 | R27: 47.25477356 | S27: 70.88506626 | T27: 1.29391951 | U27: 0.2942560172 | V27: 9.166135483 | W27: 642.9527837 | X27: 33.03147777 | Y27: 2.026491542 | Z27: 1274.971646 | AA27: 3.897984031 | AB27: 0.5019305314 | AC27: 1.030501525 | AD27: 934.7581251 | AE27: 87.08040621 | AF27: 96.15572194 | AG27: 90.60405367 | AH27: 287.7734811 | AI27: 451.0399979 | AJ27: 125.7345063 | AK27: 21.73801191 | AL27: 3.242265375 | AM27: 2457.972118 | AN27: 140.2735751 | AO27: 0 | AP27: 0 | AQ27: 623.8230811 | AR27: 0.003939937967 | AS27: 0.0001922750632 | AT27: 0.0275844818 | AU27: 0.001790435231 | AV27: 0.002144781883 | AW27: 0.01599212176 | AX27: 0.00183814979 | AY27: 0.01065144361 | AZ27: 0.004132152163 | BA27: 0.0009056361947 | BB27: 0.0004191101672 | BC27: 0.03078157914 | BD27: 1.175997284 | BE27: 0.01805231009 | BF27: 0.02038584193 | BG27: 0.02737267154 | BH27: 0.05352546333 | BI27: 0.162695246 | BJ27: 41.09766212 | BK27: 0.02025953364 | BL27: 1.863034195 | BM27: 0.01432350898 | BN27: 0.001795559539 | BO27: 0.003624750984 | BP27: 0.6184729333 | BQ27: 0.07322910383 | BR27: 0.112804939 | BS27: 0.1461340882 | BT27: 0.0695836602 | BU27: 0.4475902322 | BV27: 0.3072830951 | BW27: 0.0592453631 | BX27: 0.007414388492 | BY27: 0.5657482204 | BZ27: 0.1091350656 | CA27: 0 | CB27: 0 | CC27: 0.4355718343 | CD27: 0.01026558258 | CE27: 0.0006263269486 | CF27: 0.03580967369 | CG27: 0.001043555061 | CH27: 0.003514234359 | CI27: 0.05253629255 | CJ27: 0.002449610054 | CK27: 0.005456898011 | CL27: 0.002577494412 | CM27: 0.0004997699489 | CN27: 0.001140578256 | CO27: 0.03500770138 | CP27: 0.4465813285 | CQ27: 5.017268802 | CR27: 0.05268728673 | CS27: 0.04652480009 | CT27: 0.04051906027 | CU27: 216.1990121 | CV27: 119.7546132 | CW27: 0.02394839572 | CX27: 17.21765601 | CY27: 0.01880253531 | CZ27: 0.003079055826 | DA27: 0.006026973459 | DB27: 1.698480159 | DC27: 0.306669601 | DD27: 0.3171591286 | DE27: 0.7662584699 | DF27: 4.431962737 | DG27: 4.88081466 | DH27: 0.292204955 | DI27: 0.09876026329 | DJ27: 0.0183464347 | DK27: 120.397052 | DL27: 1.856926618 | DM27: 0 | DN27: 0 | DO27: 34.75976261 | DP27: 7996.357271 | DQ27: 690.0263917 | DR27: 35351.59241 | DS27: 0 | DT27: 16986.65024 | DU27: 68838.34378 | DV27: -1907.579739 | DW27: 119959.0331 | DX27: 0.7327313827 | DY27: 71.15419088 | DZ27: 0 | EA27: 11.65560552 | EB27: 65.49493146 | EC27: 0.4555107355 | ED27: 149.49297 | EE27: 17.80736895 | EF27: 1745.772908 | EG27: 0 | EH27: 979.8048809 | EI27: 5587.564071 | EJ27: 35.07044279 | EK27: 8366.019671 | EL27: 9460.151 | EM27: 137934.6967 | EN27: 145931.054 | EO27: -126633.918 | EP27: 19297.136
D28: 19 | E28: 輸送機械 | F28: 0 | G28: 0.0006053924001 | H28: 0 | I28: 0 | J28: 0 | K28: 0 | L28: 0 | M28: 0 | N28: 0 | O28: 0 | P28: 0 | Q28: 0 | R28: 0 | S28: 3.808138925 | T28: 0 | U28: 0 | V28: 0 | W28: 0 | X28: 66914.13215 | Y28: 0 | Z28: 0 | AA28: 0 | AB28: 0 | AC28: 0 | AD28: 0 | AE28: 0 | AF28: 0 | AG28: 1364.910683 | AH28: 0 | AI28: 1254.934192 | AJ28: 3.732849539 | AK28: 0 | AL28: 0 | AM28: 3463.598563 | AN28: 7.155676498 | AO28: 0 | AP28: 0 | AQ28: 0 | AR28: 0.2413042434 | AS28: 0.0001321727037 | AT28: 0 | AU28: 0 | AV28: 0 | AW28: 0 | AX28: 0 | AY28: 0 | AZ28: 0 | BA28: 0 | BB28: 0 | BC28: 0 | BD28: 0 | BE28: 3.301604132 | BF28: 0 | BG28: 0 | BH28: 0 | BI28: 0 | BJ28: 180314.9792 | BK28: 0 | BL28: 0 | BM28: 0 | BN28: 0 | BO28: 0 | BP28: 0 | BQ28: 0 | BR28: 0 | BS28: 1872.936416 | BT28: 0 | BU28: 111.3427532 | BV28: 0.007150563858 | BW28: 0 | BX28: 0 | BY28: 1584.235853 | BZ28: 0.4444698189 | CA28: 0 | CB28: 0 | CC28: 0 | CD28: 13.04961248 | CE28: 0.005580255304 | CF28: 0 | CG28: 0 | CH28: 0 | CI28: 0 | CJ28: 0 | CK28: 0 | CL28: 0 | CM28: 0 | CN28: 0 | CO28: 0 | CP28: 0 | CQ28: 32.88430003 | CR28: 0 | CS28: 0 | CT28: 0 | CU28: 0 | CV28: 84759.57201 | CW28: 0 | CX28: 0 | CY28: 0 | CZ28: 0 | DA28: 0 | DB28: 0 | DC28: 0 | DD28: 0 | DE28: 12455.27302 | DF28: 0 | DG28: 4952.963643 | DH28: 0.5278796347 | DI28: 0 | DJ28: 0 | DK28: 6746.55768 | DL28: 9.030710523 | DM28: 0 | DN28: 0 | DO28: 0 | DP28: 365869.6262 | DQ28: 0 | DR28: 16740.13517 | DS28: 0 | DT28: 4793.533276 | DU28: 17785.52092 | DV28: -1666.772221 | DW28: 37652.41715 | DX28: 0 | DY28: 133.64237 | DZ28: 0 | EA28: 1002.15834 | EB28: 4139.060462 | EC28: 291.576835 | ED28: 5566.438008 | EE28: 0 | EF28: 1116.502912 | EG28: 0 | EH28: 12166.60168 | EI28: 35693.25534 | EJ28: 111.924756 | EK28: 49088.28469 | EL28: 181155.507 | EM28: 273462.6468 | EN28: 639332.273 | EO28: -100741.854 | EP28: 538590.419
D29: 20 | E29: その他の製造工業製品 | F29: 1.283038154 | G29: 0.1816587372 | H29: 810.7596086 | I29: 215.3229661 | J29: 237.6129934 | K29: 112.1744566 | L29: 0.8491684073 | M29: 80.25298369 | N29: 274.0598872 | O29: 381.7849266 | P29: 1392.571035 | Q29: 104.4429079 | R29: 13.23302439 | S29: 363.212261 | T29: 260.9486041 | U29: 13.59410107 | V29: 206.0537648 | W29: 29.73836325 | X29: 279.8504489 | Y29: 1523.526467 | Z29: 1772.670321 | AA29: 919.9365419 | AB29: 60.17204283 | AC29: 92.36653253 | AD29: 4643.455726 | AE29: 2727.71129 | AF29: 30.94041961 | AG29: 757.3611529 | AH29: 10653.09145 | AI29: 1325.279591 | AJ29: 6849.442087 | AK29: 1592.498259 | AL29: 714.7189631 | AM29: 7020.203186 | AN29: 3494.8998 | AO29: 2416.201174 | AP29: 85.99390199 | AQ29: 1113.600326 | AR29: 103.5055885 | AS29: 0.8534271043 | AT29: 2536.168446 | AU29: 45.10426634 | AV29: 1169.590534 | AW29: 553.9211968 | AX29: 185.2274094 | AY29: 615.9955241 | AZ29: 1093.863173 | BA29: 6064.338659 | BB29: 4286.627979 | BC29: 974.3852075 | BD29: 201.3116052 | BE29: 315.5493553 | BF29: 358.1044658 | BG29: 285.8022748 | BH29: 575.9223902 | BI29: 367.2073464 | BJ29: 2723.532213 | BK29: 1693.258358 | BL29: 155.9579417 | BM29: 3083.800539 | BN29: 109.9500536 | BO29: 117.3015296 | BP29: 2305.929948 | BQ29: 1914.19741 | BR29: 13.66873202 | BS29: 476.3212113 | BT29: 739.9492731 | BU29: 774.0135604 | BV29: 4710.442106 | BW29: 1140.131833 | BX29: 817.9554764 | BY29: 992.6661964 | BZ29: 490.5850339 | CA29: 0 | CB29: 2.658329707 | CC29: 698.8963192 | CD29: 49.18236693 | CE29: 11.45973657 | CF29: 4207.727894 | CG29: 316.3587701 | CH29: 893.8311411 | CI29: 1037.574818 | CJ29: 2.67153304 | CK29: 102.0003075 | CL29: 164.8962231 | CM29: 135.8054733 | CN29: 74.23706071 | CO29: 338.6442415 | CP29: 183.1259617 | CQ29: 376.1328501 | CR29: 402.9398703 | CS29: 953.7900017 | CT29: 779.6389687 | CU29: 519.3106757 | CV29: 632.2251482 | CW29: 4825.831773 | CX29: 1261.494146 | CY29: 601.5894051 | CZ29: 213.5965278 | DA29: 253.2501289 | DB29: 8479.784432 | DC29: 8844.754682 | DD29: 69.31936315 | DE29: 1666.43508 | DF29: 14508.16405 | DG29: 4833.258249 | DH29: 8154.288154 | DI29: 3308.969941 | DJ29: 2894.977961 | DK29: 8257.700713 | DL29: 2543.121064 | DM29: 888.6748089 | DN29: 10.17865758 | DO29: 1866.255048 | DP29: 179929.8876 | DQ29: 2946.865934 | DR29: 36392.81161 | DS29: 0.03740426346 | DT29: 866.3613148 | DU29: 9185.50427 | DV29: 596.7580376 | DW29: 49988.33857 | DX29: 130.6662334 | DY29: 1754.824118 | DZ29: 0 | EA29: 0.656364964 | EB29: 19.8996838 | EC29: 3.231915514 | ED29: 1909.278316 | EE29: 864.5521596 | EF29: 6799.555333 | EG29: 0.04093391842 | EH29: 455.8114355 | EI29: 4058.208173 | EJ29: 163.2565084 | EK29: 12341.42454 | EL29: 4613.164 | EM29: 68852.20543 | EN29: 248782.093 | EO29: -75074.27 | EP29: 173707.823
D30: 21 | E30: 建設 | F30: 2.629 | G30: 0.029 | H30: 27.42 | I30: 7.438 | J30: 18.508 | K30: 85.243 | L30: 1.124 | M30: 57.43 | N30: 57.428 | O30: 116.086 | P30: 74.269 | Q30: 59.58 | R30: 15.414 | S30: 57.52 | T30: 8.033 | U30: 8.097 | V30: 77.79 | W30: 2.462 | X30: 68.519 | Y30: 30.182 | Z30: 116.824 | AA30: 733.895 | AB30: 268.475 | AC30: 31.166 | AD30: 1481.901 | AE30: 331.441 | AF30: 1798.578 | AG30: 1417.096 | AH30: 883.679 | AI30: 780.035 | AJ30: 699.754 | AK30: 423.347 | AL30: 13.879 | AM30: 363.774 | AN30: 393.57 | AO30: 0 | AP30: 0 | AQ30: 11077.406 | AR30: 0 | AS30: 0 | AT30: 0 | AU30: 0 | AV30: 0 | AW30: 0 | AX30: 0 | AY30: 0 | AZ30: 0 | BA30: 0 | BB30: 0 | BC30: 0 | BD30: 0 | BE30: 0 | BF30: 0 | BG30: 0 | BH30: 0 | BI30: 0 | BJ30: 0 | BK30: 0 | BL30: 0 | BM30: 0 | BN30: 0 | BO30: 0 | BP30: 0 | BQ30: 0 | BR30: 0 | BS30: 0 | BT30: 0 | BU30: 0 | BV30: 0 | BW30: 0 | BX30: 0 | BY30: 0 | BZ30: 0 | CA30: 0 | CB30: 0 | CC30: 0 | CD30: 0 | CE30: 0 | CF30: 0 | CG30: 0 | CH30: 0 | CI30: 0 | CJ30: 0 | CK30: 0 | CL30: 0 | CM30: 0 | CN30: 0 | CO30: 0 | CP30: 0 | CQ30: 0 | CR30: 0 | CS30: 0 | CT30: 0 | CU30: 0 | CV30: 0 | CW30: 0 | CX30: 0 | CY30: 0 | CZ30: 0 | DA30: 0 | DB30: 0 | DC30: 0 | DD30: 0 | DE30: 0 | DF30: 0 | DG30: 0 | DH30: 0 | DI30: 0 | DJ30: 0 | DK30: 0 | DL30: 0 | DM30: 0 | DN30: 0 | DO30: 0 | DP30: 21590.021 | DQ30: 0 | DR30: 0 | DS30: 0 | DT30: 417929.731 | DU30: 914735.197 | DV30: 0 | DW30: 1332664.928 | DX30: 0 | DY30: 0 | DZ30: 0 | EA30: 0 | EB30: 0 | EC30: 0 | ED30: 0 | EE30: 0 | EF30: 0 | EG30: 0 | EH30: 0 | EI30: 0 | EJ30: 0 | EK30: 0 | EL30: 0 | EM30: 1332664.928 | EN30: 1354254.949 | EO30: 0 | EP30: 1354254.949
D31: 22 | E31: 電力・ガス・熱供給 | F31: 195.3757877 | G31: 2.357682068 | H31: 4880.529709 | I31: 703.2492619 | J31: 947.621927 | K31: 6486.571576 | L31: 76.62726895 | M31: 4650.797032 | N31: 3439.648258 | O31: 11714.66336 | P31: 4794.080066 | Q31: 3209.070759 | R31: 735.2207776 | S31: 2710.953595 | T31: 1137.47092 | U31: 379.0861649 | V31: 2253.451152 | W31: 120.3961591 | X31: 7396.653022 | Y31: 3545.505738 | Z31: 3679.946179 | AA31: 36191.69882 | AB31: 2883.704306 | AC31: 6357.47237 | AD31: 59355.02275 | AE31: 4703.935704 | AF31: 8954.857064 | AG31: 23481.91735 | AH31: 11405.74378 | AI31: 7118.092943 | AJ31: 13817.50615 | AK31: 15055.7844 | AL31: 259.2864414 | AM31: 11273.57101 | AN31: 41372.71745 | AO31: 0 | AP31: 358.874232 | AQ31: 6764.909794 | AR31: 0 | AS31: 0 | AT31: 0 | AU31: 0 | AV31: 0 | AW31: 0 | AX31: 0 | AY31: 0 | AZ31: 0 | BA31: 0 | BB31: 0 | BC31: 0 | BD31: 0 | BE31: 0 | BF31: 0 | BG31: 0 | BH31: 0 | BI31: 0 | BJ31: 0 | BK31: 0 | BL31: 0 | BM31: 0 | BN31: 0 | BO31: 0 | BP31: 0 | BQ31: 0 | BR31: 0 | BS31: 0 | BT31: 0 | BU31: 0 | BV31: 0 | BW31: 0 | BX31: 0 | BY31: 0 | BZ31: 0 | CA31: 0 | CB31: 0 | CC31: 0 | CD31: 0 | CE31: 0 | CF31: 0 | CG31: 0 | CH31: 0 | CI31: 0 | CJ31: 0 | CK31: 0 | CL31: 0 | CM31: 0 | CN31: 0 | CO31: 0 | CP31: 0 | CQ31: 0 | CR31: 0 | CS31: 0 | CT31: 0 | CU31: 0 | CV31: 0 | CW31: 0 | CX31: 0 | CY31: 0 | CZ31: 0 | DA31: 0 | DB31: 0 | DC31: 0 | DD31: 0 | DE31: 0 | DF31: 0 | DG31: 0 | DH31: 0 | DI31: 0 | DJ31: 0 | DK31: 0 | DL31: 0 | DM31: 0 | DN31: 0 | DO31: 0 | DP31: 312414.371 | DQ31: 160.6734143 | DR31: 112698.3826 | DS31: 0 | DT31: 0 | DU31: 0 | DV31: 0 | DW31: 112859.056 | DX31: 0 | DY31: 0 | DZ31: 0 | EA31: 0 | EB31: 0 | EC31: 0 | ED31: 0 | EE31: 0 | EF31: 0 | EG31: 0 | EH31: 0 | EI31: 0 | EJ31: 0 | EK31: 0 | EL31: 0 | EM31: 112859.056 | EN31: 425273.427 | EO31: 0 | EP31: 425273.427
D32: 23 | E32: 水道 | F32: 47.243 | G32: 6.085 | H32: 986.611 | I32: 109.699 | J32: 98.557 | K32: 731.26 | L32: 74.134 | M32: 368.553 | N32: 167.161 | O32: 761.863 | P32: 196.676 | Q32: 161.543 | R32: 120.777 | S32: 273.409 | T32: 74.745 | U32: 45.692 | V32: 220.737 | W32: 13.025 | X32: 687.935 | Y32: 188.358 | Z32: 598.002 | AA32: 284.287 | AB32: 4137.494 | AC32: 814.526 | AD32: 5186.237 | AE32: 742.695 | AF32: 411.802 | AG32: 4050.065 | AH32: 1828.931 | AI32: 1481.178 | AJ32: 5608.233 | AK32: 3955.922 | AL32: 120.269 | AM32: 976.65 | AN32: 6942.366 | AO32: 0 | AP32: 89.511 | AQ32: 876.819 | AR32: 3.191575413 | AS32: 0.4328178576 | AT32: 43.56009491 | AU32: 5.958600247 | AV32: 12.6816561 | AW32: 27.28534315 | AX32: 5.103954871 | AY32: 19.48554472 | AZ32: 8.617903977 | BA32: 34.71665245 | BB32: 4.620524154 | BC32: 7.233706059 | BD32: 7.115654641 | BE32: 13.68168736 | BF32: 9.738731929 | BG32: 9.411611858 | BH32: 9.186992025 | BI32: 0.6565531612 | BJ32: 59.69546908 | BK32: 5.814645493 | BL32: 16.63291124 | BM32: 12.44970799 | BN32: 215.5310851 | BO32: 28.70636411 | BP32: 83.52807195 | BQ32: 12.17716878 | BR32: 10.96050025 | BS32: 97.95691318 | BT32: 3.55418685 | BU32: 39.63594857 | BV32: 203.6809377 | BW32: 126.0475258 | BX32: 3.847332262 | BY32: 14.10576595 | BZ32: 150.1663594 | CA32: 0 | CB32: 2.760937502 | CC32: 24.38159431 | CD32: 0 | CE32: 0 | CF32: 0 | CG32: 0 | CH32: 0 | CI32: 0 | CJ32: 0 | CK32: 0 | CL32: 0 | CM32: 0 | CN32: 0 | CO32: 0 | CP32: 0 | CQ32: 0 | CR32: 0 | CS32: 0 | CT32: 0 | CU32: 0 | CV32: 0 | CW32: 0 | CX32: 0 | CY32: 0 | CZ32: 0 | DA32: 0 | DB32: 0 | DC32: 0 | DD32: 0 | DE32: 0 | DF32: 0 | DG32: 0 | DH32: 0 | DI32: 0 | DJ32: 0 | DK32: 0 | DL32: 0 | DM32: 0 | DN32: 0 | DO32: 0 | DP32: 44773.36303 | DQ32: 74.785 | DR32: 22585.602 | DS32: -2602.357 | DT32: 0 | DU32: 0 | DV32: 0 | DW32: 20058.03 | DX32: 1.527342163 | DY32: 926.9143832 | DZ32: -107.4557558 | EA32: 0 | EB32: 0 | EC32: 0 | ED32: 820.9859696 | EE32: 0 | EF32: 0 | EG32: 0 | EH32: 0 | EI32: 0 | EJ32: 0 | EK32: 0 | EL32: 0 | EM32: 20879.01597 | EN32: 65652.379 | EO32: 0 | EP32: 65652.379
D33: 24 | E33: 廃棄物処理 | F33: 8.827050493 | G33: 0.08065151112 | H33: 174.2541677 | I33: 2.787339104 | J33: 13.91839163 | K33: 262.8186789 | L33: 0.1733149494 | M33: 0.7207156313 | N33: 95.42274958 | O33: 3.383359491 | P33: 0.542252713 | Q33: 6.20787837 | R33: 8.5124524 | S33: 4.561100352 | T33: 26.02469825 | U33: 4.391789378 | V33: 29.61855246 | W33: 2.775327177 | X33: 41.89417005 | Y33: 43.33445732 | Z33: 1104.901106 | AA33: 1805.759306 | AB33: 80.58401553 | AC33: 0 | AD33: 3219.356645 | AE33: 1675.435044 | AF33: 17.82855993 | AG33: 6174.738035 | AH33: 4728.001504 | AI33: 12736.0891 | AJ33: 2455.881985 | AK33: 2961.725975 | AL33: 1.350483814 | AM33: 435.5919476 | AN33: 14478.47805 | AO33: 0 | AP33: 636.5749413 | AQ33: 497.0461111 | AR33: 11.26191381 | AS33: 2.472255662 | AT33: 112.3880885 | AU33: 3.162241707 | AV33: 29.70517838 | AW33: 176.4304902 | AX33: 0.5694283949 | AY33: 5.297359476 | AZ33: 66.32629305 | BA33: 23.78202586 | BB33: 3.165089146 | BC33: 5.937100007 | BD33: 22.8974813 | BE33: 3.475401397 | BF33: 79.49482799 | BG33: 25.55313553 | BH33: 21.16820605 | BI33: 3.219928879 | BJ33: 160.9446493 | BK33: 8.073123034 | BL33: 296.6459184 | BM33: 830.2262949 | BN33: 29.36642014 | BO33: 0 | BP33: 279.8609531 | BQ33: 191.0956729 | BR33: 1.856895702 | BS33: 599.8310949 | BT33: 43.82708164 | BU33: 2018.96683 | BV33: 694.9349174 | BW33: 683.9234172 | BX33: 0.2094986924 | BY33: 46.11011187 | BZ33: 1821.362959 | CA33: 0 | CB33: 180.4795508 | CC33: 103.8077423 | CD33: 3.850151018 | CE33: 1.525103911 | CF33: 21.29546433 | CG33: 0.2256602449 | CH33: 6.668353341 | CI33: 47.81841255 | CJ33: 0.1543467428 | CK33: 0.3490897566 | CL33: 9.355809596 | CM33: 2.612081023 | CN33: 1.163089971 | CO33: 0.7049841463 | CP33: 1.934582006 | CQ33: 0.2169563834 | CR33: 1.8079327 | CS33: 7.845883447 | CT33: 2.620061733 | CU33: 0.7063785796 | CV33: 13.37713741 | CW33: 2.090353981 | CX33: 89.17030305 | CY33: 191.1595715 | CZ33: 6.824994445 | DA33: 0 | DB33: 93.6622412 | DC33: 88.10385617 | DD33: 0.732247312 | DE33: 197.9071299 | DF33: 139.2489142 | DG33: 836.4559817 | DH33: 154.1632805 | DI33: 179.6100722 | DJ33: 0.06509397673 | DK33: 16.10194043 | DL33: 724.9728797 | DM33: 0 | DN33: 51.65538897 | DO33: 22.32761909 | DP33: 65245.90483 | DQ33: 0 | DR33: 1063.483982 | DS33: 17263.15411 | DT33: 0 | DU33: 0 | DV33: 0 | DW33: 18326.63809 | DX33: 0 | DY33: 1227.026548 | DZ33: 1428.071793 | EA33: 0 | EB33: 0 | EC33: 0 | ED33: 2655.098341 | EE33: 0 | EF33: 222.594595 | EG33: 490.2371409 | EH33: 0 | EI33: 0 | EJ33: 0 | EK33: 712.8317359 | EL33: 0 | EM33: 21694.56817 | EN33: 86940.473 | EO33: 0 | EP33: 86940.473
D34: 25 | E34: 商業 | F34: 523.9834851 | G34: 1.107580235 | H34: 20564.73431 | I34: 1518.152112 | J34: 3471.679001 | K34: 5045.492384 | L34: 93.95935941 | M34: 5250.128664 | N34: 2347.200954 | O34: 7081.931334 | P34: 8342.950844 | Q34: 4344.317273 | R34: 1788.065877 | S34: 7180.561355 | T34: 11688.4598 | U34: 350.6034587 | V34: 11308.98788 | W34: 520.4620366 | X34: 13574.87913 | Y34: 7417.881512 | Z34: 54786.74418 | AA34: 5209.010204 | AB34: 889.4120746 | AC34: 999.3813992 | AD34: 35917.43478 | AE34: 3634.07291 | AF34: 1782.512506 | AG34: 19722.37512 | AH34: 15840.00255 | AI34: 4709.484484 | AJ34: 19658.81093 | AK34: 45180.47738 | AL34: 1864.309403 | AM34: 31639.97429 | AN34: 87838.17745 | AO34: 6472.789 | AP34: 534.0887005 | AQ34: 1129.032355 | AR34: 9501.233611 | AS34: 140.3260511 | AT34: 60706.21738 | AU34: 7386.736593 | AV34: 22743.57031 | AW34: 20649.45075 | AX34: 4416.957926 | AY34: 43958.65842 | AZ34: 9683.127516 | BA34: 37978.65579 | BB34: 13415.54028 | BC34: 19573.35342 | BD34: 16328.07809 | BE34: 28697.60845 | BF34: 18088.3127 | BG34: 7865.363496 | BH34: 37761.94417 | BI34: 5410.584193 | BJ34: 299893.5438 | BK34: 15163.953 | BL34: 42107.16028 | BM34: 13425.36877 | BN34: 1977.243852 | BO34: 1355.136545 | BP34: 10063.88041 | BQ34: 1499.839035 | BR34: 967.1460813 | BS34: 20123.03798 | BT34: 1567.567736 | BU34: 2170.948737 | BV34: 17673.96559 | BW34: 49244.06823 | BX34: 1688.67122 | BY34: 17140.34296 | BZ34: 29389.11521 | CA34: 4312.183541 | CB34: 678.3838737 | CC34: 376.0544439 | CD34: 12524.4733 | CE34: 352.7744639 | CF34: 61364.29248 | CG34: 5069.583712 | CH34: 21219.56028 | CI34: 24881.834 | CJ34: 4155.092189 | CK34: 16811.7576 | CL34: 4785.104385 | CM34: 12649.97663 | CN34: 7186.177322 | CO34: 11491.92605 | CP34: 9739.475388 | CQ34: 12757.19043 | CR34: 6207.096802 | CS34: 12877.01633 | CT34: 16891.21744 | CU34: 5089.318509 | CV34: 34939.40566 | CW34: 14267.45139 | CX34: 74795.09665 | CY34: 9818.93411 | CZ34: 1649.906547 | DA34: 1271.569379 | DB34: 17620.12199 | DC34: 3214.990307 | DD34: 1159.794202 | DE34: 21472.02202 | DF34: 11216.3902 | DG34: 5928.82325 | DH34: 12491.40847 | DI34: 74039.3304 | DJ34: 2561.645228 | DK34: 25348.47536 | DL34: 69116.70672 | DM34: 5518.212271 | DN34: 1047.42618 | DO34: 201.4999911 | DP34: 1979080.036 | DQ34: 34104.44044 | DR34: 672698.1055 | DS34: 270.5916085 | DT34: 8198.25027 | DU34: 78518.88997 | DV34: 2165.592085 | DW34: 795955.8699 | DX34: 17735.67353 | DY34: 485726.6538 | DZ34: 120.8236453 | EA34: 5362.914489 | EB34: 154642.6407 | EC34: 1748.511406 | ED34: 665337.2176 | EE34: 14299.34838 | EF34: 436881.8288 | EG34: 94.25481301 | EH34: 9645.62381 | EI34: 121188.0875 | EJ34: 4350.062076 | EK34: 586459.2054 | EL34: 339596.258 | EM34: 2387348.551 | EN34: 4366428.587 | EO34: -3560.288 | EP34: 4362868.299
D35: 26 | E35: 金融・保険 | F35: 85.58073678 | G35: 1.693919781 | H35: 1461.056545 | I35: 267.6412476 | J35: 417.4450362 | K35: 601.3639682 | L35: 15.21875844 | M35: 266.7627128 | N35: 628.9850138 | O35: 742.4520506 | P35: 763.9685229 | Q35: 850.739307 | R35: 220.6914556 | S35: 999.0327421 | T35: 960.5668985 | U35: 49.16714266 | V35: 931.1361874 | W35: 82.89997428 | X35: 1845.504276 | Y35: 1052.85766 | Z35: 8566.443693 | AA35: 3747.31585 | AB35: 884.2773431 | AC35: 1762.076347 | AD35: 44567.42099 | AE35: 25089.68498 | AF35: 72346.71872 | AG35: 22010.74713 | AH35: 6641.362496 | AI35: 7088.627544 | AJ35: 3418.45209 | AK35: 7218.536463 | AL35: 986.3058757 | AM35: 12113.97181 | AN35: 5373.618754 | AO35: 0 | AP35: 115.661538 | AQ35: 9055.775314 | AR35: 973.813484 | AS35: 285.553662 | AT35: 4740.150949 | AU35: 1919.788163 | AV35: 2357.569635 | AW35: 2034.134156 | AX35: 1273.091119 | AY35: 2002.510415 | AZ35: 2626.889324 | BA35: 5599.883148 | BB35: 2297.069163 | BC35: 5155.428437 | BD35: 2200.158016 | BE35: 4972.854444 | BF35: 3724.751537 | BG35: 1079.604636 | BH35: 3091.416452 | BI35: 660.2760032 | BJ35: 22234.38094 | BK35: 4713.044301 | BL35: 9923.746709 | BM35: 10439.85955 | BN35: 2978.155252 | BO35: 3737.991155 | BP35: 18655.32901 | BQ35: 12948.0898 | BR35: 99962.97938 | BS35: 15253.86046 | BT35: 712.3361001 | BU35: 6213.416178 | BV35: 6064.444372 | BW35: 6624.388268 | BX35: 1540.371493 | BY35: 5748.168305 | BZ35: 3072.458994 | CA35: 0 | CB35: 202.0166375 | CC35: 8776.155911 | CD35: 3.156546146 | CE35: 0.7949394672 | CF35: 3.120615905 | CG35: 1.229727733 | CH35: 2.030026254 | CI35: 2.669738825 | CJ35: 1.450431804 | CK35: 0.04879146443 | CL35: 1.177959148 | CM35: 2.012294888 | CN35: 0.936144311 | CO35: 1.36371691 | CP35: 0.3165743479 | CQ35: 1.935666908 | CR35: 0.8645846709 | CS35: 0.7130014897 | CT35: 2.162613848 | CU35: 1.218459179 | CV35: 2.286427959 | CW35: 1.314090003 | CX35: 5.523671173 | CY35: 1.963641276 | CZ35: 0.1630390391 | DA35: 0.1078611125 | DB35: 10.18820596 | DC35: 8.695557039 | DD35: 115.3159791 | DE35: 104.4560511 | DF35: 10.34860796 | DG35: 0.04762879729 | DH35: 0.0442323651 | DI35: 1.322749167 | DJ35: 0.6396066688 | DK35: 14.80569844 | DL35: 9.662568704 | DM35: 0 | DN35: 0 | DO35: 52.86583861 | DP35: 530394.85 | DQ35: 4.833083725 | DR35: 184909.8378 | DS35: 0 | DT35: 0 | DU35: 0 | DV35: 0 | DW35: 184914.6709 | DX35: 4.166165152 | DY35: 273973.4063 | DZ35: 0 | EA35: 0 | EB35: 0 | EC35: 0 | ED35: 273977.5724 | EE35: 0.04469490929 | EF35: 1984.271017 | EG35: 0 | EH35: 0 | EI35: 0 | EJ35: 0 | EK35: 1984.315712 | EL35: 53194.992 | EM35: 514071.551 | EN35: 1044466.401 | EO35: -34628.041 | EP35: 1009838.36
D36: 27 | E36: 不動産 | F36: 175.351671 | G36: 0.2342049182 | H36: 654.4997714 | I36: 68.6113668 | J36: 126.4348658 | K36: 265.9092316 | L36: 2.748925286 | M36: 283.7339212 | N36: 177.6604417 | O36: 248.7783663 | P36: 207.2813989 | Q36: 337.7542588 | R36: 141.7812529 | S36: 477.8508689 | T36: 254.7446267 | U36: 13.6039779 | V36: 416.9362417 | W36: 30.14211018 | X36: 199.0917615 | Y36: 389.8017497 | Z36: 4050.128254 | AA36: 1343.312761 | AB36: 63.28995479 | AC36: 125.373095 | AD36: 89929.75017 | AE36: 9700.866289 | AF36: 39718.68586 | AG36: 25075.09745 | AH36: 26915.85517 | AI36: 528.9879116 | AJ36: 9178.210073 | AK36: 13692.47659 | AL36: 786.6365537 | AM36: 13859.94567 | AN36: 12755.64373 | AO36: 0 | AP36: 1533.576316 | AQ36: 26905.34107 | AR36: 265.0519706 | AS36: 14.46698736 | AT36: 686.1362315 | AU36: 110.5519886 | AV36: 158.6965606 | AW36: 98.23032351 | AX36: 10.2429374 | AY36: 335.7504783 | AZ36: 87.96701733 | BA36: 221.1559654 | BB36: 140.5576878 | BC36: 686.8379597 | BD36: 395.422578 | BE36: 692.5822325 | BF36: 38.97907318 | BG36: 44.42324928 | BH36: 503.7697737 | BI36: 29.13656605 | BJ36: 922.8059252 | BK36: 163.2868465 | BL36: 1600.482966 | BM36: 1000.740158 | BN36: 66.09582342 | BO36: 119.7523115 | BP36: 14677.67874 | BQ36: 2708.158038 | BR36: 18113.77625 | BS36: 8450.915176 | BT36: 1944.726145 | BU36: 179.1295865 | BV36: 5638.399227 | BW36: 8581.616236 | BX36: 505.6676947 | BY36: 2395.250379 | BZ36: 3197.999492 | CA36: 0 | CB36: 1176.269013 | CC36: 15202.28939 | CD36: 95.35448265 | CE36: 27.65435317 | CF36: 244.5108011 | CG36: 40.40989668 | CH36: 58.09819125 | CI36: 75.97785742 | CJ36: 4.140012844 | CK36: 47.44464449 | CL36: 25.50164025 | CM36: 23.375008 | CN36: 9.809060675 | CO36: 168.2639942 | CP36: 74.27160603 | CQ36: 107.6844868 | CR36: 3.240525547 | CS36: 36.08629151 | CT36: 115.9259715 | CU36: 15.14192163 | CV36: 49.92017398 | CW36: 76.44449164 | CX36: 1089.803461 | CY36: 358.6612444 | CZ36: 29.52937649 | DA36: 41.47754036 | DB36: 10930.86967 | DC36: 2323.621243 | DD36: 11041.33206 | DE36: 4690.363111 | DF36: 4864.944858 | DG36: 309.5528915 | DH36: 1256.665676 | DI36: 4685.039987 | DJ36: 331.9758131 | DK36: 2076.991729 | DL36: 2411.545046 | DM36: 0 | DN36: 702.150153 | DO36: 6819.579812 | DP36: 427064.486 | DQ36: 0 | DR36: 1230132.167 | DS36: 591.16 | DT36: 0 | DU36: 0 | DV36: 0 | DW36: 1230723.327 | DX36: 0 | DY36: 5597.477741 | DZ36: 0 | EA36: 0 | EB36: 0 | EC36: 0 | ED36: 5597.477741 | EE36: 0 | EF36: 2588.495031 | EG36: 0 | EH36: 0 | EI36: 14258.54917 | EJ36: 0 | EK36: 16847.0442 | EL36: 4.062 | EM36: 1253171.911 | EN36: 1680236.397 | EO36: -12.463 | EP36: 1680223.934
D37: 28 | E37: 運輸・郵便 | F37: 200.0132648 | G37: 7.820782007 | H37: 6203.126473 | I37: 329.7919048 | J37: 1088.489855 | K37: 2021.144987 | L37: 104.5008044 | M37: 1109.287075 | N37: 1958.219607 | O37: 2955.112875 | P37: 2941.472275 | Q37: 1972.385017 | R37: 657.1045792 | S37: 2487.698164 | T37: 3156.972437 | U37: 113.0560191 | V37: 2843.209092 | W37: 201.8524844 | X37: 2129.711987 | Y37: 7566.159762 | Z37: 28354.2857 | AA37: 7591.536875 | AB37: 644.1950114 | AC37: 2841.666926 | AD37: 125256.6372 | AE37: 22006.54497 | AF37: 3078.527923 | AG37: 197042.657 | AH37: 27348.47135 | AI37: 13040.68337 | AJ37: 15060.28561 | AK37: 10076.81071 | AL37: 1433.536943 | AM37: 20878.47447 | AN37: 26916.96489 | AO37: 843.4407224 | AP37: 4084.901388 | AQ37: 38833.33101 | AR37: 452.1308035 | AS37: 41.07903037 | AT37: 1239.434988 | AU37: 243.5079171 | AV37: 1019.083578 | AW37: 1405.988213 | AX37: 2538.989203 | AY37: 1900.785147 | AZ37: 1631.750118 | BA37: 5537.794093 | BB37: 747.4593121 | BC37: 1899.752385 | BD37: 1096.308035 | BE37: 2630.542991 | BF37: 991.7992706 | BG37: 902.7405689 | BH37: 2657.865818 | BI37: 1092.235126 | BJ37: 15375.97068 | BK37: 4092.113641 | BL37: 2019.571451 | BM37: 4181.398245 | BN37: 357.7082387 | BO37: 1739.790084 | BP37: 8267.804655 | BQ37: 5662.748505 | BR37: 147.5083006 | BS37: 41342.17577 | BT37: 411.2260801 | BU37: 2903.714883 | BV37: 4372.306778 | BW37: 1843.446181 | BX37: 375.9899782 | BY37: 1424.501382 | BZ37: 3445.552903 | CA37: 68.00795634 | CB37: 2384.308207 | CC37: 10313.81433 | CD37: 2771.546833 | CE37: 51.38725078 | CF37: 4730.001461 | CG37: 285.2378553 | CH37: 2487.907326 | CI37: 3125.020026 | CJ37: 3654.452699 | CK37: 671.0948649 | CL37: 1879.034177 | CM37: 3398.929493 | CN37: 2725.864599 | CO37: 1478.129174 | CP37: 898.7646026 | CQ37: 1228.569925 | CR37: 545.0745653 | CS37: 1191.638171 | CT37: 1272.753655 | CU37: 591.1616776 | CV37: 3907.68826 | CW37: 6364.269054 | CX37: 10717.90769 | CY37: 6289.35839 | CZ37: 348.6790016 | DA37: 1224.609657 | DB37: 4410.916491 | DC37: 4581.331881 | DD37: 270.9649914 | DE37: 64962.03329 | DF37: 2991.057197 | DG37: 3918.833978 | DH37: 3419.146649 | DI37: 3882.262673 | DJ37: 425.9242228 | DK37: 2921.097866 | DL37: 10374.4597 | DM37: 525.5715366 | DN37: 2560.87665 | DO37: 12355.16924 | DP37: 903577.7131 | DQ37: 6031.686059 | DR37: 195303.0393 | DS37: 61.28152535 | DT37: 469.7476232 | DU37: 4789.591174 | DV37: 351.9918509 | DW37: 207007.3375 | DX37: 862.8954688 | DY37: 133420.1625 | DZ37: 304.5406823 | EA37: 24.03573559 | EB37: 875.6458335 | EC37: 19.38474975 | ED37: 135506.665 | EE37: 2130.65443 | EF37: 92207.12979 | EG37: 515.9051109 | EH37: 409.9926415 | EI37: 5240.853371 | EJ37: 368.8580233 | EK37: 100873.3934 | EL37: 338567.469 | EM37: 781954.8649 | EN37: 1685532.578 | EO37: -175788.647 | EP37: 1509743.931
D38: 29 | E38: 情報通信 | F38: 63.3590458 | G38: 0.3195037597 | H38: 1302.05651 | I38: 112.0439865 | J38: 280.2952217 | K38: 1478.465931 | L38: 5.694894136 | M38: 509.9844422 | N38: 464.2038247 | O38: 569.4995641 | P38: 627.6692067 | Q38: 534.69932 | R38: 258.68887 | S38: 1706.245085 | T38: 1715.2306 | U38: 98.80794101 | V38: 3186.019474 | W38: 305.3866874 | X38: 1021.857816 | Y38: 768.3624795 | Z38: 9306.353152 | AA38: 2783.527024 | AB38: 1846.253655 | AC38: 623.3585634 | AD38: 112266.6705 | AE38: 38457.54576 | AF38: 5729.083723 | AG38: 11952.30966 | AH38: 236710.3576 | AI38: 13682.63756 | AJ38: 33075.11821 | AK38: 11801.79705 | AL38: 3128.309569 | AM38: 127675.1126 | AN38: 19815.60861 | AO38: 0 | AP38: 4313.375974 | AQ38: 30676.42164 | AR38: 251.2191525 | AS38: 15.24561629 | AT38: 1093.865076 | AU38: 200.298025 | AV38: 444.7777665 | AW38: 1542.696432 | AX38: 72.26709799 | AY38: 944.3351486 | AZ38: 563.7255204 | BA38: 1063.645636 | BB38: 338.1492331 | BC38: 723.4299364 | BD38: 1065.113339 | BE38: 2016.052666 | BF38: 1038.429134 | BG38: 370.3027049 | BH38: 3420.857954 | BI38: 583.3808244 | BJ38: 5323.975686 | BK38: 447.6807968 | BL38: 2801.082247 | BM38: 1505.351985 | BN38: 1692.600038 | BO38: 454.3755815 | BP38: 17673.72575 | BQ38: 8004.754669 | BR38: 1421.463822 | BS38: 2788.772023 | BT38: 8971.670071 | BU38: 3777.382555 | BV38: 15702.35578 | BW38: 5835.706441 | BX38: 1543.231685 | BY38: 12998.16437 | BZ38: 4618.837136 | CA38: 0 | CB38: 2665.239726 | CC38: 11618.11865 | CD38: 666.6971433 | CE38: 98.49537062 | CF38: 1789.480032 | CG38: 214.1209448 | CH38: 765.4009736 | CI38: 4607.58301 | CJ38: 105.0596117 | CK38: 620.8050925 | CL38: 419.3719524 | CM38: 637.4030438 | CN38: 309.6252168 | CO38: 895.6633072 | CP38: 964.1070516 | CQ38: 2373.422069 | CR38: 496.628043 | CS38: 1330.861399 | CT38: 2631.92363 | CU38: 1526.076628 | CV38: 1042.689265 | CW38: 660.7934929 | CX38: 8094.719858 | CY38: 2953.732846 | CZ38: 2996.103789 | DA38: 739.1089179 | DB38: 52201.83157 | DC38: 32143.51977 | DD38: 3752.816428 | DE38: 7838.477473 | DF38: 116020.687 | DG38: 19586.11005 | DH38: 17364.04967 | DI38: 11772.25684 | DJ38: 4324.81309 | DK38: 57703.72176 | DL38: 13739.0617 | DM38: 0 | DN38: 5433.907656 | DO38: 25118.54099 | DP38: 1208384.678 | DQ38: 3581.631823 | DR38: 190257.1393 | DS38: 626.5022089 | DT38: 14337.19837 | DU38: 73597.95404 | DV38: -466.3020115 | DW38: 281934.1238 | DX38: 1720.296497 | DY38: 134717.7889 | DZ38: 114.4121357 | EA38: 4568.584449 | EB38: 84275.41879 | EC38: -25.44527702 | ED38: 225371.0555 | EE38: 2488.431443 | EF38: 210006.5177 | EG38: 352.068568 | EH38: 18541.55682 | EI38: 141314.3727 | EJ38: -215.4107162 | EK38: 372487.5365 | EL38: 27557.913 | EM38: 907350.6288 | EN38: 2115735.307 | EO38: -68294.519 | EP38: 2047440.788
D39: 30 | E39: 公務 | F39: 0 | G39: 0 | H39: 0 | I39: 0 | J39: 0 | K39: 0 | L39: 0 | M39: 0 | N39: 0 | O39: 0 | P39: 0 | Q39: 0 | R39: 0 | S39: 0 | T39: 0 | U39: 0 | V39: 0 | W39: 0 | X39: 0 | Y39: 0 | Z39: 0 | AA39: 0 | AB39: 0 | AC39: 0 | AD39: 0 | AE39: 0 | AF39: 0 | AG39: 0 | AH39: 0 | AI39: 0 | AJ39: 0 | AK39: 0 | AL39: 0 | AM39: 0 | AN39: 0 | AO39: 0 | AP39: 44855.189 | AQ39: 0 | AR39: 0 | AS39: 0 | AT39: 0 | AU39: 0 | AV39: 0 | AW39: 0 | AX39: 0 | AY39: 0 | AZ39: 0 | BA39: 0 | BB39: 0 | BC39: 0 | BD39: 0 | BE39: 0 | BF39: 0 | BG39: 0 | BH39: 0 | BI39: 0 | BJ39: 0 | BK39: 0 | BL39: 0 | BM39: 0 | BN39: 0 | BO39: 0 | BP39: 0 | BQ39: 0 | BR39: 0 | BS39: 0 | BT39: 0 | BU39: 0 | BV39: 0 | BW39: 0 | BX39: 0 | BY39: 0 | BZ39: 0 | CA39: 0 | CB39: 0 | CC39: 0 | CD39: 0 | CE39: 0 | CF39: 0 | CG39: 0 | CH39: 0 | CI39: 0 | CJ39: 0 | CK39: 0 | CL39: 0 | CM39: 0 | CN39: 0 | CO39: 0 | CP39: 0 | CQ39: 0 | CR39: 0 | CS39: 0 | CT39: 0 | CU39: 0 | CV39: 0 | CW39: 0 | CX39: 0 | CY39: 0 | CZ39: 0 | DA39: 0 | DB39: 0 | DC39: 0 | DD39: 0 | DE39: 0 | DF39: 0 | DG39: 0 | DH39: 0 | DI39: 0 | DJ39: 0 | DK39: 0 | DL39: 0 | DM39: 0 | DN39: 0 | DO39: 0 | DP39: 44855.189 | DQ39: 0 | DR39: 20270.467 | DS39: 584518.34 | DT39: 0 | DU39: 0 | DV39: 0 | DW39: 604788.807 | DX39: 0 | DY39: 0 | DZ39: 0 | EA39: 0 | EB39: 0 | EC39: 0 | ED39: 0 | EE39: 0 | EF39: 0 | EG39: 0 | EH39: 0 | EI39: 0 | EJ39: 0 | EK39: 0 | EL39: 0 | EM39: 604788.807 | EN39: 649643.996 | EO39: 0 | EP39: 649643.996
D40: 31 | E40: 教育・研究 | F40: 5.564848585 | G40: 0.03334403201 | H40: 67.56221836 | I40: 0 | J40: 11.16754715 | K40: 30.40164648 | L40: 0 | M40: 0 | N40: 47.65042412 | O40: 24.60789562 | P40: 0 | Q40: 42.05313269 | R40: 39.01792459 | S40: 75.73150621 | T40: 88.3445622 | U40: 20.32814405 | V40: 288.5484387 | W40: 9.334526582 | X40: 49.53210895 | Y40: 1.734790854 | Z40: 179.6378183 | AA40: 171.888485 | AB40: 6.801281339 | AC40: 12.09397053 | AD40: 796.4988056 | AE40: 96.24890017 | AF40: 0 | AG40: 2440.823696 | AH40: 7738.293698 | AI40: 50.77214646 | AJ40: 0.8164781891 | AK40: 107.1884462 | AL40: 0 | AM40: 1265.227579 | AN40: 557.5852115 | AO40: 0 | AP40: 10.91521394 | AQ40: 5251.976125 | AR40: 0.2171630773 | AS40: 0.09652795603 | AT40: 4.637643138 | AU40: 0 | AV40: 0.2840654293 | AW40: 0.7393418915 | AX40: 0 | AY40: 0 | AZ40: 3.726067938 | BA40: 3.336060558 | BB40: 0 | BC40: 2.802286807 | BD40: 3.465680145 | BE40: 2.155498713 | BF40: 1.320419685 | BG40: 6.258526391 | BH40: 14.37703745 | BI40: 5.915019878 | BJ40: 14.72185029 | BK40: -2.799644491e-09 | BL40: 0.4501351259 | BM40: 4.203932373 | BN40: 0.4060191896 | BO40: 0.7144972217 | BP40: 0.8010522659 | BQ40: 1.2054967 | BR40: 0 | BS40: 23.63772858 | BT40: 23.11903571 | BU40: 0.8845971533 | BV40: 0.009330837093 | BW40: 2.106523746 | BX40: 0 | BY40: 9.43818777 | BZ40: 2.753307089 | CA40: 0 | CB40: 0.5097219353 | CC40: 179.7180248 | CD40: 0.2191125474 | CE40: 0.1585262522 | CF40: 3.766702174 | CG40: 0 | CH40: 0.3120316478 | CI40: 0.6539459496 | CJ40: 0 | CK40: 0 | CL40: 0.8072346241 | CM40: 0.6190775388 | CN40: 0 | CO40: 1.857507107 | CP40: 0.9538700865 | CQ40: 1.579868388 | CR40: 0.1197645427 | CS40: 9.545426501 | CT40: 8.40960907 | CU40: 4.607901406 | CV40: 2.49810522 | CW40: 0.06276791773 | CX40: 0.676893622 | CY40: 4.150267294 | CZ40: 0.4315397645 | DA40: 0.631008916 | DB40: 0.6546171866 | DC40: 2.745888332 | DD40: 0 | DE40: 42.1552846 | DF40: 142.5403355 | DG40: 4.783177776 | DH40: 0.01109482696 | DI40: 1.739059828 | DJ40: 0 | DK40: 19.73818305 | DL40: 4.747727176 | DM40: 0 | DN40: 0.6672443867 | DO40: 176.7781694 | DP40: 20241.01364 | DQ40: 0 | DR40: 160237.3122 | DS40: 240114.2055 | DT40: 44791.16075 | DU40: 119276.7147 | DV40: 0 | DW40: 564419.3931 | DX40: 0 | DY40: 7163.754758 | DZ40: 7712.441298 | EA40: 9125.386288 | EB40: 458334.928 | EC40: 0 | ED40: 482336.5104 | EE40: 0 | EF40: 6591.667302 | EG40: 9463.137604 | EH40: 0 | EI40: 0 | EJ40: 0 | EK40: 16054.80491 | EL40: 29490.898 | EM40: 1092301.606 | EN40: 1112542.62 | EO40: -25392.118 | EP40: 1087150.502
D41: 32 | E41: 医療・福祉 | F41: 67.04379022 | G41: 0 | H41: 0 | I41: 0 | J41: 0 | K41: 2.263313741 | L41: 0 | M41: 0 | N41: 0 | O41: 0.6939567589 | P41: 0 | Q41: 0 | R41: 0 | S41: 0 | T41: 0 | U41: 0 | V41: 0 | W41: 0 | X41: 0 | Y41: 2.452496501 | Z41: 0.53143157 | AA41: 0.2803344528 | AB41: 18.02739714 | AC41: 0 | AD41: 93.15445072 | AE41: 122.3487902 | AF41: 13.04845088 | AG41: 851.2802818 | AH41: 1115.09306 | AI41: 13.99350475 | AJ41: 25.15356772 | AK41: 19611.61307 | AL41: 0.8736803804 | AM41: 85.009273 | AN41: 108.5195305 | AO41: 0 | AP41: 162.7711265 | AQ41: 286.2378148 | AR41: 37.57331889 | AS41: 0 | AT41: 0 | AU41: 0 | AV41: 0.1336613149 | AW41: 1.47562001 | AX41: 0 | AY41: 0 | AZ41: 0 | BA41: 0.8720020974 | BB41: 0 | BC41: 0 | BD41: 0 | BE41: 0 | BF41: 0 | BG41: 0 | BH41: 0 | BI41: 0 | BJ41: 0 | BK41: 0.7151682402 | BL41: 0.2951930996 | BM41: 1.237844994 | BN41: 9.641752031 | BO41: 0 | BP41: 11.29263385 | BQ41: 19.24146434 | BR41: 2.788742627 | BS41: 567.7478885 | BT41: 27.863221 | BU41: 2.813563759 | BV41: 8.501173403 | BW41: 4544.926301 | BX41: 0.182313904 | BY41: 9.953699737 | BZ41: 13.33177214 | CA41: 0 | CB41: 67.55812195 | CC41: 87.57833202 | CD41: 0 | CE41: 0 | CF41: 0 | CG41: 0 | CH41: 0 | CI41: 0 | CJ41: 0 | CK41: 0 | CL41: 0 | CM41: 0 | CN41: 0 | CO41: 0 | CP41: 0 | CQ41: 0 | CR41: 0 | CS41: 0 | CT41: 0 | CU41: 0 | CV41: 0 | CW41: 0 | CX41: 0 | CY41: 0 | CZ41: 0 | DA41: 0 | DB41: 0 | DC41: 0 | DD41: 0 | DE41: 0 | DF41: 0 | DG41: 0 | DH41: 0 | DI41: 51.98856167 | DJ41: 0 | DK41: 0 | DL41: 0 | DM41: 0 | DN41: 0 | DO41: 0 | DP41: 28048.10167 | DQ41: 20036.45342 | DR41: 281663.2444 | DS41: 968814.7879 | DT41: 0 | DU41: 0 | DV41: 0 | DW41: 1270514.486 | DX41: 4210.943853 | DY41: 27865.99179 | DZ41: 42413.17005 | EA41: 0 | EB41: 0 | EC41: 0 | ED41: 74490.1057 | EE41: 30.66697775 | EF41: 1376.313315 | EG41: 6066.495656 | EH41: 0 | EI41: 0 | EJ41: 0 | EK41: 7473.475949 | EL41: 5.289 | EM41: 1352483.356 | EN41: 1380531.458 | EO41: -32.596 | EP41: 1380498.862
D42: 33 | E42: 他に分類されない会員制団体 | F42: 5.649732713 | G42: 0.05756414083 | H42: 130.2354273 | I42: 4.867611234 | J42: 34.52221637 | K42: 87.3883099 | L42: 0.5018091407 | M42: 17.79013515 | N42: 22.75472945 | O42: 49.95910442 | P42: 24.71128454 | Q42: 38.84359396 | R42: 40.62589239 | S42: 193.1902622 | T42: 306.4217428 | U42: 2.704888922 | V42: 59.08364643 | W42: 2.013180686 | X42: 35.10129911 | Y42: 43.65739524 | Z42: 489.0442924 | AA42: 154.3529252 | AB42: 204.1978399 | AC42: 56.42881329 | AD42: 687.723796 | AE42: 924.0230299 | AF42: 235.5690452 | AG42: 525.7611417 | AH42: 774.5955929 | AI42: 0.3641557604 | AJ42: 1022.236527 | AK42: 414.422395 | AL42: 0 | AM42: 1637.688231 | AN42: 1241.255256 | AO42: 0 | AP42: 116.8495746 | AQ42: 2574.2543 | AR42: 47.17442381 | AS42: 6.699097697 | AT42: 268.8909709 | AU42: 13.18665839 | AV42: 135.59893 | AW42: 215.0782693 | AX42: 7.063430217 | AY42: 131.6444055 | AZ42: 37.61365258 | BA42: 377.2073332 | BB42: 27.98500321 | BC42: 156.2523974 | BD42: 489.0061946 | BE42: 683.3851749 | BF42: 356.0096284 | BG42: 60.18848716 | BH42: 148.7707358 | BI42: 32.7337657 | BJ42: 273.1193907 | BK42: 79.45230532 | BL42: 265.3490108 | BM42: 397.1351103 | BN42: 435.5753332 | BO42: 120.0094769 | BP42: 186.572362 | BQ42: 636.064212 | BR42: 143.1345119 | BS42: 505.1419981 | BT42: 70.71655226 | BU42: 0.237272806 | BV42: 1321.878029 | BW42: 475.1264292 | BX42: 0 | BY42: 678.6730238 | BZ42: 813.9388837 | CA42: 0 | CB42: 193.8678501 | CC42: 3145.600103 | CD42: 0 | CE42: 0 | CF42: 0 | CG42: 0 | CH42: 0 | CI42: 0 | CJ42: 0 | CK42: 0 | CL42: 0 | CM42: 0 | CN42: 0 | CO42: 0 | CP42: 0 | CQ42: 0 | CR42: 0 | CS42: 0 | CT42: 0 | CU42: 0 | CV42: 0 | CW42: 0 | CX42: 0 | CY42: 0 | CZ42: 0 | DA42: 0 | DB42: 0 | DC42: 0 | DD42: 0 | DE42: 0 | DF42: 0 | DG42: 0 | DH42: 0 | DI42: 0 | DJ42: 0 | DK42: 0 | DL42: 0 | DM42: 0 | DN42: 0 | DO42: 0 | DP42: 25094.92715 | DQ42: 0 | DR42: 19728.86726 | DS42: 0 | DT42: 0 | DU42: 0 | DV42: 0 | DW42: 19728.86726 | DX42: 0 | DY42: 32566.82859 | DZ42: 0 | EA42: 0 | EB42: 0 | EC42: 0 | ED42: 32566.82859 | EE42: 0 | EF42: 0 | EG42: 0 | EH42: 0 | EI42: 0 | EJ42: 0 | EK42: 0 | EL42: 421.683 | EM42: 52717.37885 | EN42: 77812.306 | EO42: -4064.003 | EP42: 73748.303
D43: 34 | E43: 対事業所サービス | F43: 322.8911562 | G43: 1.807997541 | H43: 10599.26884 | I43: 729.6162511 | J43: 1338.697379 | K43: 4626.468394 | L43: 46.15656303 | M43: 3721.330326 | N43: 3139.6322 | O43: 2222.579288 | P43: 3194.900341 | Q43: 3028.322252 | R43: 1960.071439 | S43: 5943.710036 | T43: 7156.178845 | U43: 437.8690895 | V43: 9474.404029 | W43: 505.9542877 | X43: 16831.52175 | Y43: 5425.780314 | Z43: 85764.89862 | AA43: 14374.64015 | AB43: 7296.156898 | AC43: 3861.194786 | AD43: 280142.4721 | AE43: 86384.84792 | AF43: 50373.13875 | AG43: 79844.74344 | AH43: 253033.2779 | AI43: 45207.2459 | AJ43: 70092.409 | AK43: 50175.73894 | AL43: 4056.094777 | AM43: 263206.5869 | AN43: 39300.33797 | AO43: 0 | AP43: 2339.181608 | AQ43: 80411.40621 | AR43: 2175.337022 | AS43: 198.8394097 | AT43: 21001.01382 | AU43: 2076.035363 | AV43: 4055.165496 | AW43: 15158.58587 | AX43: 1535.966536 | AY43: 19943.36252 | AZ43: 9054.390027 | BA43: 12582.70274 | BB43: 4494.801293 | BC43: 8063.722489 | BD43: 13280.99824 | BE43: 18047.48698 | BF43: 8310.194079 | BG43: 6947.128679 | BH43: 19942.18241 | BI43: 2950.028277 | BJ43: 132070.1101 | BK43: 6001.971754 | BL43: 52509.10081 | BM43: 26238.28466 | BN43: 12617.5331 | BO43: 5103.02708 | BP43: 69785.52352 | BQ43: 29888.69753 | BR43: 19516.88763 | BS43: 112017.9576 | BT43: 21322.71824 | BU43: 21044.89432 | BV43: 49823.98596 | BW43: 33017.00088 | BX43: 3111.264468 | BY43: 66622.70118 | BZ43: 13904.14398 | CA43: 0 | CB43: 2260.949902 | CC43: 71106.43552 | CD43: 1032.187867 | CE43: 80.47917177 | CF43: 1335.484041 | CG43: 168.9581629 | CH43: 450.6425439 | CI43: 1547.275653 | CJ43: 255.6630513 | CK43: 820.1213858 | CL43: 568.3211268 | CM43: 772.0796228 | CN43: 327.0528475 | CO43: 615.4277207 | CP43: 585.3709545 | CQ43: 700.7545656 | CR43: 291.1026706 | CS43: 1041.00953 | CT43: 680.987083 | CU43: 222.5518087 | CV43: 1253.691867 | CW43: 346.8984182 | CX43: 5410.39606 | CY43: 4227.885403 | CZ43: 1056.604597 | DA43: 707.8441458 | DB43: 5686.440682 | DC43: 2882.497422 | DD43: 1515.085302 | DE43: 16601.08214 | DF43: 7974.967481 | DG43: 3603.038657 | DH43: 3758.414754 | DI43: 2833.679428 | DJ43: 434.7979661 | DK43: 14344.29183 | DL43: 1986.961194 | DM43: 0 | DN43: 299.31438 | DO43: 3206.98216 | DP43: 2503979.006 | DQ43: 1658.85164 | DR43: 33987.20697 | DS43: 0 | DT43: 4220.234779 | DU43: 7675.078895 | DV43: 0 | DW43: 47541.37229 | DX43: 1220.26381 | DY43: 80207.40565 | DZ43: 0 | EA43: 1446.811227 | EB43: 34605.39214 | EC43: 0 | ED43: 117479.8728 | EE43: 83.129263 | EF43: 2813.640227 | EG43: 0 | EH43: 150.6637375 | EI43: 1533.772751 | EJ43: 0 | EK43: 4581.205979 | EL43: 99182.038 | EM43: 268784.4891 | EN43: 2772763.495 | EO43: -111978.916 | EP43: 2660784.579
D44: 35 | E44: 対個人サービス | F44: 9.473446815 | G44: 0.002629878803 | H44: 46.54714616 | I44: 3.302163189 | J44: 4.32445604 | K44: 11.39529581 | L44: 0.09170493428 | M44: 8.189524377 | N44: 4.083031869 | O44: 13.52459604 | P44: 13.17941029 | Q44: 9.9769645 | R44: 6.421881038 | S44: 19.58279039 | T44: 19.92047378 | U44: 1.458108178 | V44: 23.72506453 | W44: 1.528716099 | X44: 29.42223675 | Y44: 14.34398696 | Z44: 212.7181435 | AA44: 22.5028879 | AB44: 13.39025735 | AC44: 3.682999879 | AD44: 2788.703335 | AE44: 136.4277286 | AF44: 692.2900893 | AG44: 1045.318247 | AH44: 10097.35258 | AI44: 205.248202 | AJ44: 1979.381593 | AK44: 11551.42216 | AL44: 119.4385149 | AM44: 2614.445147 | AN44: 14404.97137 | AO44: 0 | AP44: 91.79915527 | AQ44: 651.7101654 | AR44: 29.41933176 | AS44: 1.055100828 | AT44: 84.951398 | AU44: 9.223611582 | AV44: 15.89189007 | AW44: 24.80579142 | AX44: 3.472524268 | AY44: 42.02573098 | AZ44: 15.19975612 | BA44: 60.11656747 | BB44: 20.47199058 | BC44: 27.46159052 | BD44: 35.1446479 | BE44: 58.7394748 | BF44: 26.04559269 | BG44: 21.71186629 | BH44: 56.12105275 | BI44: 10.85773994 | BJ44: 438.4141845 | BK44: 15.88673124 | BL44: 174.0891401 | BM44: 22.60641785 | BN44: 28.01711829 | BO44: 2.268004633 | BP44: 819.8484332 | BQ44: 58.45258807 | BR44: 554.4011987 | BS44: 246.3291277 | BT44: 359.165515 | BU44: 107.4732045 | BV44: 2239.213741 | BW44: 5035.859157 | BX44: 140.0720866 | BY44: 645.6972824 | BZ44: 4806.325054 | CA44: 0 | CB44: 56.35796438 | CC44: 369.7991971 | CD44: 1.474613791 | CE44: 0.1132453932 | CF44: 7.577612891 | CG44: 0.7381657647 | CH44: 1.514930354 | CI44: 2.191183162 | CJ44: 0.100493743 | CK44: 1.406416933 | CL44: 0.1431281473 | CM44: 1.108827814 | CN44: 0.395656583 | CO44: 1.233082104 | CP44: 1.208666338 | CQ44: 1.13304155 | CR44: 0.4080644783 | CS44: 3.587505056 | CT44: 1.051654499 | CU44: 0.8004860072 | CV44: 4.227185689 | CW44: 3.757549386 | CX44: 8.177300389 | CY44: 2.818955343 | CZ44: 0.7680237233 | DA44: 0.6135473092 | DB44: 35.94475101 | DC44: 6.977557188 | DD44: 12.85727914 | DE44: 67.31917958 | DF44: 409.7072524 | DG44: 16.0005938 | DH44: 606.44972 | DI44: 2965.638972 | DJ44: 3.914083202 | DK44: 62.11326886 | DL44: 3101.969012 | DM44: 0 | DN44: 11.88557805 | DO44: 111.5419473 | DP44: 70993.15654 | DQ44: 121296.6274 | DR44: 546576.1474 | DS44: 0 | DT44: 0 | DU44: 0 | DV44: 0 | DW44: 667872.7748 | DX44: 75806.61285 | DY44: 400828.023 | DZ44: 0 | EA44: 0 | EB44: 0 | EC44: 0 | ED44: 476634.6359 | EE44: 85256.44097 | EF44: 220031.0268 | EG44: 0 | EH44: 0 | EI44: 0 | EJ44: 0 | EK44: 305287.4678 | EL44: 31331.176 | EM44: 1481126.054 | EN44: 1552119.211 | EO44: -19050.254 | EP44: 1533068.957
D45: 36 | E45: 事務用品 | F45: 29.88 | G45: 0.069 | H45: 282.741 | I45: 35.028 | J45: 62.431 | K45: 119.92 | L45: 0.555 | M45: 22.221 | N45: 99.208 | O45: 65.672 | P45: 59.905 | Q45: 56.584 | R45: 54.187 | S45: 250.228 | T45: 155.57 | U45: 15.896 | V45: 300.574 | W45: 16.702 | X45: 248.15 | Y45: 160.895 | Z45: 1005.042 | AA45: 18.706 | AB45: 69.758 | AC45: 282.975 | AD45: 8508.172 | AE45: 3544.464 | AF45: 769.704 | AG45: 2626.783 | AH45: 3855.566 | AI45: 2005.2 | AJ45: 5301.882 | AK45: 3408.347 | AL45: 364.664 | AM45: 4082.74 | AN45: 2563.657 | AO45: 0 | AP45: 24.787 | AQ45: 0 | AR45: 0 | AS45: 0 | AT45: 0 | AU45: 0 | AV45: 0 | AW45: 0 | AX45: 0 | AY45: 0 | AZ45: 0 | BA45: 0 | BB45: 0 | BC45: 0 | BD45: 0 | BE45: 0 | BF45: 0 | BG45: 0 | BH45: 0 | BI45: 0 | BJ45: 0 | BK45: 0 | BL45: 0 | BM45: 0 | BN45: 0 | BO45: 0 | BP45: 0 | BQ45: 0 | BR45: 0 | BS45: 0 | BT45: 0 | BU45: 0 | BV45: 0 | BW45: 0 | BX45: 0 | BY45: 0 | BZ45: 0 | CA45: 0 | CB45: 0 | CC45: 0 | CD45: 0 | CE45: 0 | CF45: 0 | CG45: 0 | CH45: 0 | CI45: 0 | CJ45: 0 | CK45: 0 | CL45: 0 | CM45: 0 | CN45: 0 | CO45: 0 | CP45: 0 | CQ45: 0 | CR45: 0 | CS45: 0 | CT45: 0 | CU45: 0 | CV45: 0 | CW45: 0 | CX45: 0 | CY45: 0 | CZ45: 0 | DA45: 0 | DB45: 0 | DC45: 0 | DD45: 0 | DE45: 0 | DF45: 0 | DG45: 0 | DH45: 0 | DI45: 0 | DJ45: 0 | DK45: 0 | DL45: 0 | DM45: 0 | DN45: 0 | DO45: 0 | DP45: 40468.863 | DQ45: 0 | DR45: 0 | DS45: 0 | DT45: 0 | DU45: 0 | DV45: 0 | DW45: 0 | DX45: 0 | DY45: 0 | DZ45: 0 | EA45: 0 | EB45: 0 | EC45: 0 | ED45: 0 | EE45: 0 | EF45: 0 | EG45: 0 | EH45: 0 | EI45: 0 | EJ45: 0 | EK45: 0 | EL45: 0 | EM45: 0 | EN45: 40468.863 | EO45: 0 | EP45: 40468.863
D46: 37 | E46: 分類不明 | F46: 14.97570641 | G46: 0.4603692804 | H46: 1102.983264 | I46: 39.57889238 | J46: 124.4686383 | K46: 156.2234904 | L46: 9.442884352 | M46: 150.1234576 | N46: 251.1837444 | O46: 610.1660604 | P46: 225.0137366 | Q46: 320.6295833 | R46: 274.8734638 | S46: 797.7841626 | T46: 542.2098489 | U46: 3.553178213 | V46: 398.2513122 | W46: 13.70927135 | X46: 671.0858379 | Y46: 188.7139265 | Z46: 11414.486 | AA46: 654.7318205 | AB46: 314.5860478 | AC46: 844.2070625 | AD46: 15551.08354 | AE46: 2481.633192 | AF46: 2435.273502 | AG46: 7640.52016 | AH46: 2852.224869 | AI46: 315.48553 | AJ46: 6135.396778 | AK46: 3315.538723 | AL46: 155.6299888 | AM46: 4973.178028 | AN46: 2615.327116 | AO46: 11.28827713 | AP46: 0 | AQ46: 0 | AR46: 440.6294044 | AS46: 56.70759381 | AT46: 1997.470142 | AU46: 144.1665703 | AV46: 454.4662015 | AW46: 377.4975621 | AX46: 91.54289649 | AY46: 1021.490278 | AZ46: 1150.512906 | BA46: 3756.115347 | BB46: 446.3807199 | BC46: 1211.169879 | BD46: 1998.900132 | BE46: 2420.515535 | BF46: 571.3783129 | BG46: 60.17756755 | BH46: 1283.20502 | BI46: 97.7639307 | BJ46: 3088.624486 | BK46: 224.2691986 | BL46: 6547.342158 | BM46: 1011.489454 | BN46: 621.4104852 | BO46: 1253.074738 | BP46: 5006.568519 | BQ46: 1270.613633 | BR46: 916.9022024 | BS46: 4307.486413 | BT46: 255.4684884 | BU46: 166.2550502 | BV46: 6142.184806 | BW46: 2156.071258 | BX46: 166.5964131 | BY46: 1268.860656 | BZ46: 1293.37919 | CA46: 7.395051299 | CB46: -36836.38912 | CC46: 16.69174918 | CD46: 0 | CE46: 0 | CF46: 0 | CG46: 0 | CH46: 0 | CI46: 0 | CJ46: 0 | CK46: 0 | CL46: 0 | CM46: 0 | CN46: 0 | CO46: 0 | CP46: 0 | CQ46: 0 | CR46: 0 | CS46: 0 | CT46: 0 | CU46: 0 | CV46: 0 | CW46: 0 | CX46: 0 | CY46: 0 | CZ46: 0 | DA46: 0 | DB46: 0 | DC46: 0 | DD46: 0 | DE46: 0 | DF46: 0 | DG46: 0 | DH46: 0 | DI46: 0 | DJ46: 0 | DK46: 0 | DL46: 0 | DM46: 0 | DN46: 0 | DO46: 0 | DP46: 84070.40629 | DQ46: 0 | DR46: 111.2555365 | DS46: 0 | DT46: 0 | DU46: 0 | DV46: 0 | DW46: 111.2555365 | DX46: 0 | DY46: 36953.04517 | DZ46: 0 | EA46: 0 | EB46: 0 | EC46: 0 | ED46: 36953.04517 | EE46: 0 | EF46: 0 | EG46: 0 | EH46: 0 | EI46: 0 | EJ46: 0 | EK46: 0 | EL46: 0.309 | EM46: 37064.60971 | EN46: 121135.016 | EO46: -261.387 | EP46: 120873.629
D47: 38 | E47: 本社 | F47: 155.1267679 | G47: 1.211359082 | H47: 10022.17316 | I47: 544.5528951 | J47: 1220.555806 | K47: 5685.470476 | L47: 35.95867282 | M47: 4332.035394 | N47: 1962.371247 | O47: 2774.496634 | P47: 2063.756219 | Q47: 2302.846798 | R47: 1358.498418 | S47: 4581.227344 | T47: 5900.046265 | U47: 230.5315471 | V47: 5657.029355 | W47: 336.6024031 | X47: 7713.534459 | Y47: 3715.176341 | Z47: 14047.94177 | AA47: 7097.614648 | AB47: 0 | AC47: 0 | AD47: 65462.23099 | AE47: 24042.9683 | AF47: 11994.98761 | AG47: 22947.30176 | AH47: 56999.28248 | AI47: 0 | AJ47: 25592.21447 | AK47: 46440.65228 | AL47: 1580.307251 | AM47: 46004.28728 | AN47: 37969.63681 | AO47: 0 | AP47: 0 | AQ47: 0 | AR47: 952.1659124 | AS47: 63.72973419 | AT47: 8977.422282 | AU47: 1104.236298 | AV47: 2940.822451 | AW47: 6200.033173 | AX47: 939.8979186 | AY47: 12236.09768 | AZ47: 2780.957146 | BA47: 6789.268079 | BB47: 1651.536439 | BC47: 3580.833914 | BD47: 4574.844901 | BE47: 7096.898527 | BF47: 3543.751497 | BG47: 1589.95726 | BH47: 6428.471549 | BI47: 1155.192048 | BJ47: 54428.5499 | BK47: 2733.384561 | BL47: 4233.117699 | BM47: 7379.862839 | BN47: 0 | BO47: 0 | BP47: 10659.26004 | BQ47: 3950.249313 | BR47: 2815.760674 | BS47: 5934.957473 | BT47: 2259.355027 | BU47: 0 | BV47: 11459.70875 | BW47: 18596.97223 | BX47: 671.5122204 | BY47: 7072.192063 | BZ47: 8267.320409 | CA47: 0 | CB47: 0 | CC47: 0 | CD47: 2790.53215 | CE47: 311.0149791 | CF47: 15668.96512 | CG47: 1296.440115 | CH47: 4775.80851 | CI47: 15474.91353 | CJ47: 1419.3711 | CK47: 7752.80166 | CL47: 2673.883549 | CM47: 4724.226467 | CN47: 2185.280452 | CO47: 3530.461441 | CP47: 4279.656753 | CQ47: 5464.255955 | CR47: 2119.093612 | CS47: 4464.633558 | CT47: 5189.106797 | CU47: 1887.495414 | CV47: 11907.00679 | CW47: 4165.297612 | CX47: 12572.2964 | CY47: 8705.367905 | CZ47: 0 | DA47: 0 | DB47: 31949.56027 | DC47: 16545.06678 | DD47: 8346.552129 | DE47: 15132.64712 | DF47: 27807.76897 | DG47: 0 | DH47: 15912.85824 | DI47: 47590.69061 | DJ47: 1906.473997 | DK47: 25010.79039 | DL47: 27009.18735 | DM47: 0 | DN47: 0 | DO47: 0 | DP47: 974410.453 | DQ47: 0 | DR47: 0 | DS47: 0 | DT47: 0 | DU47: 0 | DV47: 0 | DW47: 0 | DX47: 0 | DY47: 0 | DZ47: 0 | EA47: 0 | EB47: 0 | EC47: 0 | ED47: 0 | EE47: 0 | EF47: 0 | EG47: 0 | EH47: 0 | EI47: 0 | EJ47: 0 | EK47: 0 | EL47: 0 | EM47: 0 | EN47: 974410.453 | EO47: 0 | EP47: 974410.453
C48: 県内市外 | D48: 1 | E48: 農林漁業 | F48: 92.80903588 | G48: 0 | H48: 10645.02928 | I48: 33.11112058 | J48: 68.73835312 | K48: 47.55263729 | L48: 0 | M48: 28.31601692 | N48: 3.562909433 | O48: 0.003259647732 | P48: 0.01495983452 | Q48: 0 | R48: 0 | S48: 0 | T48: 0 | U48: 0 | V48: 0 | W48: 0 | X48: 0 | Y48: 34.34413481 | Z48: 238.5502236 | AA48: 0 | AB48: 0 | AC48: 0 | AD48: 62.71562965 | AE48: 0 | AF48: 0.6479083261 | AG48: 0.5796833205 | AH48: 0 | AI48: 7.913478739 | AJ48: 895.4180078 | AK48: 1533.393781 | AL48: 42.84885884 | AM48: 5.818954225 | AN48: 13650.44343 | AO48: 0 | AP48: 0 | AQ48: 0.4603836398 | AR48: 30853.54585 | AS48: 0.1710407334 | AT48: 153974.7392 | AU48: 2583.634239 | AV48: 4593.371412 | AW48: 771.3082963 | AX48: 0 | AY48: 15651.90243 | AZ48: 93.54333784 | BA48: 0.1038194478 | BB48: 2.200521245 | BC48: 0 | BD48: 0 | BE48: 0 | BF48: 0 | BG48: 0 | BH48: 0 | BI48: 0 | BJ48: 0.1036599146 | BK48: 654.1971216 | BL48: 1476.135335 | BM48: 0 | BN48: 0 | BO48: 0 | BP48: 272.6137947 | BQ48: 0 | BR48: 5.706136915 | BS48: 70.01315466 | BT48: 0 | BU48: 7.639912955 | BV48: 2814.874802 | BW48: 3243.830544 | BX48: 185.072729 | BY48: 10.69073418 | BZ48: 12680.52194 | CA48: 0 | CB48: 0 | CC48: 2.457646972 | CD48: 25162.68039 | CE48: 0.3646137972 | CF48: 49428.25942 | CG48: 1191.820845 | CH48: 2149.218956 | CI48: 1677.366516 | CJ48: 0 | CK48: 6814.346641 | CL48: 39.2597497 | CM48: 0.001339491277 | CN48: 5.686969416 | CO48: 0 | CP48: 0 | CQ48: 0 | CR48: 0 | CS48: 0 | CT48: 0 | CU48: 0 | CV48: 0.07978940004 | CW48: 584.5484174 | CX48: 2943.602814 | CY48: 0 | CZ48: 0 | DA48: 0 | DB48: 542.0101411 | DC48: 0 | DD48: 8.507549736 | DE48: 17.34550254 | DF48: 0 | DG48: 18.07600676 | DH48: 789.3479468 | DI48: 1925.971722 | DJ48: 234.0136671 | DK48: 41.87528161 | DL48: 17018.42195 | DM48: 0 | DN48: 0 | DO48: 3.500413887 | DP48: 367936.9564 | DQ48: 559.0288008 | DR48: 26327.24179 | DS48: 0 | DT48: 0 | DU48: 582.4896412 | DV48: 0.5406139208 | DW48: 27469.30084 | DX48: 1740.041974 | DY48: 87228.81096 | DZ48: 0 | EA48: 0 | EB48: 2759.058021 | EC48: 962.8695078 | ED48: 92690.78046 | EE48: 1260.575257 | EF48: 37768.95406 | EG48: 0 | EH48: 0 | EI48: 1755.627571 | EJ48: -700.6645263 | EK48: 40084.49236 | EL48: 3281.115805 | EM48: 163525.6895 | EN48: 531462.6458 | EO48: -138694.9968 | EP48: 392767.649
D49: 2 | E49: 鉱業 | F49: 0.001329585396 | G49: 0.02431389136 | H49: 0.4481894764 | I49: 0.002993109436 | J49: 0.08566303971 | K49: 75.92899397 | L49: 32.15394302 | M49: 0.397788658 | N49: 1018.178793 | O49: 40.87569653 | P49: 22.51153622 | Q49: 0.7871826552 | R49: 0.1553981285 | S49: 1.564440485 | T49: 0.2136599809 | U49: 0.001372536158 | V49: 0.005437909425 | W49: 0.0005111359262 | X49: 0.0235023183 | Y49: 4.781590642 | Z49: 2887.079525 | AA49: 42.96955748 | AB49: 0 | AC49: 9.0690575e-05 | AD49: 0.003253644551 | AE49: 0.0004092292024 | AF49: 0.000713347067 | AG49: 0.00402243144 | AH49: 0 | AI49: 2.138741782 | AJ49: 0.02474538806 | AK49: 0.003613202237 | AL49: 0.00126037467 | AM49: 0.006788654208 | AN49: 0.1930064968 | AO49: 0 | AP49: 2.584703631 | AQ49: 0 | AR49: 3.816682285 | AS49: 32.26456699 | AT49: 618.7382372 | AU49: 137.3921836 | AV49: 2286.806618 | AW49: 4561.345035 | AX49: 541948.2343 | AY49: 205.0102949 | AZ49: 22705.80369 | BA49: 101759.3526 | BB49: 6388.119613 | BC49: 250.560544 | BD49: 41.38539431 | BE49: 85.14555417 | BF49: 22.96200866 | BG49: 60.4573864 | BH49: 65.32599761 | BI49: 6.324039524 | BJ49: 2070.826489 | BK49: 374.7721886 | BL49: 5652.535593 | BM49: 514673.7598 | BN49: 0 | BO49: 0.462875858 | BP49: 7.448654132 | BQ49: 0.6935082733 | BR49: 1.890387142 | BS49: 8.417809347 | BT49: 0.05797671042 | BU49: 1.898429953 | BV49: 140.987536 | BW49: 19.43231218 | BX49: 8.146713748 | BY49: 10.51406307 | BZ49: 67.78824513 | CA49: 0 | CB49: 32.07385224 | CC49: 0 | CD49: 0.3772330542 | CE49: 0.2796717572 | CF49: 0.09357903858 | CG49: 0.0006008218556 | CH49: 1.785697473 | CI49: 12.79965047 | CJ49: 37.65642673 | CK49: 0.11558357 | CL49: 247.8865357 | CM49: 214.3967338 | CN49: 284.2490038 | CO49: 0.1041157348 | CP49: 0.01801292132 | CQ49: 0.08532288274 | CR49: 0.07855753234 | CS49: 0 | CT49: 0 | CU49: 0 | CV49: 0 | CW49: 0.8413508266 | CX49: 572.3782584 | CY49: -0.04481621667 | CZ49: 0 | DA49: 0 | DB49: 0 | DC49: 0 | DD49: 0 | DE49: 0 | DF49: 0 | DG49: 0.6222202725 | DH49: 0 | DI49: 0 | DJ49: 0 | DK49: 0 | DL49: -0.01915517729 | DM49: 0 | DN49: 0.2482880591 | DO49: 0 | DP49: 1209757.857 | DQ49: -21.36003961 | DR49: -17.34824887 | DS49: 0 | DT49: 0 | DU49: -12.49905644 | DV49: -93.52137409 | DW49: -144.728719 | DX49: -225.5105673 | DY49: -241.5634796 | DZ49: 0 | EA49: 0 | EB49: 0 | EC49: 1258.504934 | ED49: 791.4308871 | EE49: -1.131857605 | EF49: -1.291388862 | EG49: 0 | EH49: 0 | EI49: -1.461819121 | EJ49: -11.7958058 | EK49: -15.68087139 | EL49: 2973.204634 | EM49: 3604.225931 | EN49: 1213362.083 | EO49: -1197869.689 | EP49: 15492.075
D50: 3 | E50: 飲食料品 | F50: 210.461614 | G50: 0 | H50: 20711.52658 | I50: 19.72136255 | J50: 6.354720912 | K50: 160.4115412 | L50: 0.003869942703 | M50: 0.4164394866 | N50: 8.468240359 | O50: 0.06763986812 | P50: 0 | Q50: 0 | R50: 0 | S50: 0 | T50: 0 | U50: 0 | V50: 0 | W50: 0 | X50: 0 | Y50: 42.52756174 | Z50: 7.489247545 | AA50: 0 | AB50: 0 | AC50: 0 | AD50: 182.8714357 | AE50: 0 | AF50: 0 | AG50: 1.705122635 | AH50: 0 | AI50: 50.92670883 | AJ50: 2604.754491 | AK50: 2895.880294 | AL50: 32.58131991 | AM50: 3.204484388 | AN50: 62143.71516 | AO50: 0 | AP50: 94.22704099 | AQ50: 2.766589834 | AR50: 30434.17463 | AS50: 0 | AT50: 178283.5528 | AU50: 330.751256 | AV50: 404.3069546 | AW50: 3291.545365 | AX50: 1.485760776 | AY50: 10.10928813 | AZ50: 124.4721728 | BA50: 1.847493957 | BB50: 0 | BC50: 0 | BD50: 0 | BE50: 0 | BF50: 0 | BG50: 0 | BH50: 0 | BI50: 0 | BJ50: 0 | BK50: 1238.561911 | BL50: 33.70927586 | BM50: 0 | BN50: 0 | BO50: 0 | BP50: 157.1721243 | BQ50: 0 | BR50: 0 | BS50: 197.8998871 | BT50: 0.01964228673 | BU50: 73.58759784 | BV50: 8228.066915 | BW50: 7919.543379 | BX50: 77.78974525 | BY50: 1.950767646 | BZ50: 58454.10789 | CA50: 0 | CB50: 171.2060685 | CC50: 5.978666628 | CD50: 59323.80301 | CE50: 0 | CF50: 165001.4548 | CG50: 88.97617807 | CH50: 806.3261784 | CI50: 9334.188397 | CJ50: 4.017810838 | CK50: 11.9477988 | CL50: 157.840184 | CM50: 0.9496692326 | CN50: 0 | CO50: 0 | CP50: 0 | CQ50: 0 | CR50: 0 | CS50: 0 | CT50: 0 | CU50: 0 | CV50: 0 | CW50: 254.8107862 | CX50: 63.20686667 | CY50: 0 | CZ50: 0 | DA50: 0 | DB50: 339.1974845 | DC50: 0 | DD50: 0 | DE50: 249.3164558 | DF50: 0.3087420865 | DG50: 253.0605925 | DH50: 5748.2384 | DI50: 10473.72591 | DJ50: 168.0477937 | DK50: 8.394805138 | DL50: 167810.0805 | DM50: 0 | DN50: 501.7727272 | DO50: 6.589084357 | DP50: 799228.1753 | DQ50: 5881.677146 | DR50: 133254.9099 | DS50: 0 | DT50: 0 | DU50: 0 | DV50: -193.8472108 | DW50: 138942.7399 | DX50: 15456.91719 | DY50: 468338.2659 | DZ50: 0 | EA50: 0 | EB50: 0 | EC50: -536.9530777 | ED50: 483258.23 | EE50: 19156.62127 | EF50: 591976.9299 | EG50: 0 | EH50: 0 | EI50: 0 | EJ50: -480.7755007 | EK50: 610652.7757 | EL50: 27759.85463 | EM50: 1260613.6 | EN50: 2059841.775 | EO50: -290535.9354 | EP50: 1769305.58
D51: 4 | E51: 繊維製品 | F51: 15.11235176 | G51: 0.01170624215 | H51: 16.6023379 | I51: 1105.613786 | J51: 51.59272274 | K51: 23.41718366 | L51: 0.02520502578 | M51: 67.03638864 | N51: 16.96796851 | O51: 5.664821816 | P51: 9.344820862 | Q51: 9.844339356 | R51: 3.987887116 | S51: 9.190623691 | T51: 12.63735565 | U51: 1.740768318 | V51: 38.32245925 | W51: 1.14832633 | X51: 43.82602944 | Y51: 37.7358687 | Z51: 913.8214286 | AA51: 1.73430754 | AB51: 4.536823655 | AC51: 7.583459403 | AD51: 1740.296741 | AE51: 68.07566541 | AF51: 9.32967447 | AG51: 300.0654238 | AH51: 103.4311952 | AI51: 322.8751143 | AJ51: 42.25058219 | AK51: 779.6850503 | AL51: 67.97926998 | AM51: 485.259355 | AN51: 818.5891597 | AO51: 106.8091678 | AP51: 4.801067098 | AQ51: 19.79323152 | AR51: 1307.985138 | AS51: 46.03708325 | AT51: 1381.881162 | AU51: 34563.48902 | AV51: 1955.282512 | AW51: 882.4149161 | AX51: 15.29656781 | AY51: 6481.79526 | AZ51: 1816.441292 | BA51: 922.0604089 | BB51: 498.5580864 | BC51: 861.1816217 | BD51: 840.7842823 | BE51: 1451.02219 | BF51: 818.3886126 | BG51: 1224.980579 | BH51: 2637.366682 | BI51: 366.0894824 | BJ51: 18710.5926 | BK51: 1503.292892 | BL51: 3383.81789 | BM51: 156.9180241 | BN51: 182.9764211 | BO51: 356.2069348 | BP51: 8301.675959 | BQ51: 754.1779762 | BR51: 41.11162641 | BS51: 1881.948213 | BT51: 295.1726657 | BU51: 2150.850879 | BV51: 647.3696918 | BW51: 4485.530681 | BX51: 2554.90016 | BY51: 2156.745231 | BZ51: 3746.299115 | CA51: 577.7013648 | CB51: 57.72405311 | CC51: 195.3842045 | CD51: 2082.46251 | CE51: 3.770065962 | CF51: 111.6088567 | CG51: 73098.83401 | CH51: 4190.870725 | CI51: 504.1266947 | CJ51: 0.4031454019 | CK51: 4311.835769 | CL51: 474.0123125 | CM51: 7.379970045 | CN51: 249.9139285 | CO51: 194.9133081 | CP51: 41.76565593 | CQ51: 645.3636559 | CR51: 89.72436788 | CS51: 878.2641134 | CT51: 855.6709996 | CU51: 66.46997945 | CV51: 3115.364851 | CW51: 1983.553627 | CX51: 6999.582839 | CY51: 3.705174258 | CZ51: 49.88414348 | DA51: 21.04077124 | DB51: 4184.145012 | DC51: 101.3290183 | DD51: 31.13848309 | DE51: 1874.625225 | DF51: 611.4698898 | DG51: 1926.39887 | DH51: 207.3136352 | DI51: 4679.117756 | DJ51: 143.110941 | DK51: 2400.756983 | DL51: 5230.876883 | DM51: 1730.382994 | DN51: 79.67862898 | DO51: 65.54612425 | DP51: 240724.6031 | DQ51: 625.6423899 | DR51: 6581.672441 | DS51: 0 | DT51: 3.21600521 | DU51: 1196.769667 | DV51: 585.3076505 | DW51: 8992.608154 | DX51: 3632.812344 | DY51: 136262.7122 | DZ51: 0 | EA51: 13.17229557 | EB51: 8766.50044 | EC51: 3617.65592 | ED51: 152292.8532 | EE51: 2814.920931 | EF51: 31926.47485 | EG51: 0 | EH51: 45.17155747 | EI51: 7628.651355 | EJ51: -94.55061097 | EK51: 42320.66808 | EL51: 28469.34488 | EM51: 232075.4743 | EN51: 472800.0774 | EO51: -219832.5954 | EP51: 252967.482
D52: 5 | E52: パルプ・紙・木製品 | F52: 113.9961468 | G52: 0.02533778355 | H52: 3977.247592 | I52: 73.54460474 | J52: 3351.457492 | K52: 945.4369811 | L52: 0.06395664174 | M52: 252.2875354 | N52: 1050.868912 | O52: 43.32838731 | P52: 88.66303334 | Q52: 261.8375547 | R52: 32.96011863 | S52: 133.1164378 | T52: 426.2102369 | U52: 31.91650552 | V52: 698.920146 | W52: 23.24732387 | X52: 129.4249271 | Y52: 2826.660318 | Z52: 18334.01684 | AA52: 254.3305575 | AB52: 32.52485311 | AC52: 52.04810245 | AD52: 18044.055 | AE52: 834.2145383 | AF52: 152.448841 | AG52: 1153.14562 | AH52: 3914.408465 | AI52: 159.1102103 | AJ52: 1534.705398 | AK52: 1285.383323 | AL52: 215.0784324 | AM52: 1284.83348 | AN52: 1683.800835 | AO52: 2132.67696 | AP52: 19.17206661 | AQ52: 144.8207768 | AR52: 7169.657062 | AS52: 16.87538306 | AT52: 20936.9128 | AU52: 625.8249135 | AV52: 64527.43028 | AW52: 7899.817997 | AX52: 3.443209613 | AY52: 4288.963548 | AZ52: 8403.079058 | BA52: 640.6945586 | BB52: 491.3337245 | BC52: 3062.651586 | BD52: 706.8375966 | BE52: 1795.581791 | BF52: 2198.371375 | BG52: 896.2354404 | BH52: 5707.441488 | BI52: 660.1475583 | BJ52: 7892.398109 | BK52: 12698.41455 | BL52: 63769.42226 | BM52: 2339.528944 | BN52: 394.1476434 | BO52: 354.4120286 | BP52: 12427.35394 | BQ52: 1446.439284 | BR52: 559.9617037 | BS52: 2191.024066 | BT52: 1036.525656 | BU52: 417.317366 | BV52: 5046.123078 | BW52: 4114.718642 | BX52: 1028.913211 | BY52: 1478.183025 | BZ52: 2796.493286 | CA52: 4292.979479 | CB52: 62.07781221 | CC52: 611.9646601 | CD52: 7405.255219 | CE52: 55.93113446 | CF52: 17150.00074 | CG52: 609.5667701 | CH52: 114519.8544 | CI52: 11493.52026 | CJ52: 5.411712866 | CK52: 2452.813492 | CL52: 3176.632728 | CM52: 232.2067798 | CN52: 598.7883834 | CO52: 934.9338667 | CP52: 484.1803288 | CQ52: 476.0376546 | CR52: 814.4252971 | CS52: 2520.904736 | CT52: 3260.770266 | CU52: 982.2352902 | CV52: 1673.284075 | CW52: 23027.92525 | CX52: 58657.01312 | CY52: 734.291492 | CZ52: 393.4222547 | DA52: 500.6987497 | DB52: 19611.52546 | DC52: 4696.421896 | DD52: 1077.000798 | DE52: 6884.288903 | DF52: 19014.10207 | DG52: 1523.763107 | DH52: 8207.266584 | DI52: 10503.30341 | DJ52: 2458.431878 | DK52: 7520.185308 | DL52: 9324.681229 | DM52: 17586.4503 | DN52: 167.1852452 | DO52: 904.2876004 | DP52: 682320.6838 | DQ52: 491.9462683 | DR52: 1535.352129 | DS52: 4.384463476 | DT52: 55.02811462 | DU52: 1549.034339 | DV52: -324.934133 | DW52: 3310.811182 | DX52: 1589.786473 | DY52: 6410.676595 | DZ52: 52.35971578 | EA52: 187.3778446 | EB52: 12574.83677 | EC52: -1350.812438 | ED52: 19464.22496 | EE52: 251.0479514 | EF52: 4998.175594 | EG52: 60.80897243 | EH52: 443.3913937 | EI52: 13505.78504 | EJ52: -1817.974765 | EK52: 17441.23419 | EL52: 12269.35758 | EM52: 52485.62791 | EN52: 734806.3117 | EO52: -115440.9277 | EP52: 619365.384
D53: 6 | E53: 化学製品 | F53: 131.1351014 | G53: 0.1010839202 | H53: 427.416717 | I53: 373.593119 | J53: 423.7683029 | K53: 9083.402095 | L53: 6.127259657 | M53: 3198.563231 | N53: 223.210264 | O53: 219.4764101 | P53: 39.35787832 | Q53: 381.2375601 | R53: 86.74154347 | S53: 313.0597734 | T53: 885.4481084 | U53: 19.04949852 | V53: 583.2863382 | W53: 26.57292344 | X53: 661.5642429 | Y53: 1834.930488 | Z53: 2927.152173 | AA53: 45.01329254 | AB53: 66.80565057 | AC53: 133.3041042 | AD53: 3.727253083 | AE53: 2.204016561 | AF53: 23.27497209 | AG53: 50.8662419 | AH53: 563.1557149 | AI53: 90.92320792 | AJ53: 1479.281912 | AK53: 13211.54818 | AL53: 19.9881489 | AM53: 1946.532512 | AN53: 856.049907 | AO53: 29.06550074 | AP53: 139.091282 | AQ53: 0 | AR53: 7959.821641 | AS53: 92.31280949 | AT53: 8536.245612 | AU53: 15553.62246 | AV53: 7076.254815 | AW53: 128233.3383 | AX53: 435.7024201 | AY53: 112800.7344 | AZ53: 8069.439917 | BA53: 5264.194033 | BB53: 1125.084058 | BC53: 3832.229303 | BD53: 2515.112838 | BE53: 3248.666882 | BF53: 6861.262331 | BG53: 2934.80171 | BH53: 6344.164446 | BI53: 1324.558503 | BJ53: 64680.69419 | BK53: 9617.831513 | BL53: 4839.705309 | BM53: 499.169035 | BN53: 758.627069 | BO53: 1436.865765 | BP53: 5.558355599 | BQ53: 3.666941867 | BR53: 62.29759164 | BS53: 257.532529 | BT53: 132.9796947 | BU53: 248.4706689 | BV53: 10462.94974 | BW53: 133682.8782 | BX53: 106.2413404 | BY53: 2925.432636 | BZ53: 2530.752955 | CA53: 150.0706805 | CB53: 480.2861725 | CC53: 0 | CD53: 2025.673393 | CE53: 335.7237636 | CF53: 12159.13506 | CG53: 30334.11836 | CH53: 13530.61921 | CI53: 197228.6681 | CJ53: 1154.453036 | CK53: 55745.23468 | CL53: 6403.945366 | CM53: 2119.922415 | CN53: 1933.673285 | CO53: 5734.782634 | CP53: 1853.33905 | CQ53: 3560.177204 | CR53: 3344.480381 | CS53: 6304.74305 | CT53: 6710.61181 | CU53: 1944.232599 | CV53: 18159.22911 | CW53: 19384.47694 | CX53: 20695.37644 | CY53: 381.6098139 | CZ53: 470.0116854 | DA53: 844.4891262 | DB53: 32.32952711 | DC53: 25.71352121 | DD53: 204.538873 | DE53: 738.5900417 | DF53: 3266.176578 | DG53: 875.9133632 | DH53: 6313.520743 | DI53: 64724.26383 | DJ53: 341.8889605 | DK53: 14331.54785 | DL53: 11849.57959 | DM53: 343.6893946 | DN53: 642.8323656 | DO53: 0 | DP53: 1111644.894 | DQ53: 392.4577171 | DR53: 2470.509615 | DS53: 0 | DT53: 0 | DU53: 0 | DV53: 127.3404687 | DW53: 2990.307801 | DX53: 2596.088964 | DY53: 27010.78811 | DZ53: 0 | EA53: 0 | EB53: 0 | EC53: -2693.156824 | ED53: 26913.72025 | EE53: 3871.830427 | EF53: 79681.75391 | EG53: 0 | EH53: 0 | EI53: 0 | EJ53: -3116.101046 | EK53: 80437.48329 | EL53: 142860.2279 | EM53: 253201.7393 | EN53: 1364846.633 | EO53: -408369.1335 | EP53: 956477.074
D54: 7 | E54: 石油・石炭製品 | F54: 18.47541716 | G54: 0.8018420336 | H54: 888.7157324 | I54: 61.20198137 | J54: 56.67281803 | K54: 555.3658678 | L54: 276.88244 | M54: 80.18040786 | N54: 996.6781248 | O54: 1108.582824 | P54: 223.1539199 | Q54: 172.5340322 | R54: 28.1794406 | S54: 135.8484828 | T54: 59.96647068 | U54: 7.457435069 | V54: 142.6783643 | W54: 2.745503512 | X54: 994.2435666 | Y54: 158.1966953 | Z54: 5826.79842 | AA54: 9604.998224 | AB54: 323.9835215 | AC54: 438.9166508 | AD54: 2524.694401 | AE54: 180.2300304 | AF54: 396.7811414 | AG54: 39472.06751 | AH54: 636.4949298 | AI54: 2485.929499 | AJ54: 1708.50075 | AK54: 1275.876734 | AL54: 101.2252261 | AM54: 2238.709824 | AN54: 3146.722435 | AO54: 0 | AP54: 654.3276132 | AQ54: 605.4722083 | AR54: 3144.164186 | AS54: 237.5319012 | AT54: 6102.312942 | AU54: 1161.923797 | AV54: 1128.732287 | AW54: 21812.42925 | AX54: 31842.81252 | AY54: 1888.002617 | AZ54: 8669.39388 | BA54: 15585.24375 | BB54: 1070.276571 | BC54: 1381.2722 | BD54: 396.671307 | BE54: 1337.825348 | BF54: 330.5612045 | BG54: 344.8356479 | BH54: 893.9036829 | BI54: 66.13605113 | BJ54: 15929.6849 | BK54: 565.3918663 | BL54: 8558.734546 | BM54: 36733.60698 | BN54: 1944.177112 | BO54: 1515.598942 | BP54: 2404.105976 | BQ54: 208.3875545 | BR54: 515.1417962 | BS54: 131749.611 | BT54: 161.3986375 | BU54: 3091.160212 | BV54: 3981.565137 | BW54: 2696.654996 | BX54: 254.0082003 | BY54: 2232.979582 | BZ54: 4075.230131 | CA54: 0 | CB54: 1697.162095 | CC54: 1210.31991 | CD54: 4091.964651 | CE54: 495.8216405 | CF54: 3817.956728 | CG54: 504.524366 | CH54: 1166.293229 | CI54: 57432.52387 | CJ54: 26046.20714 | CK54: 621.9307622 | CL54: 3079.071244 | CM54: 13357.28052 | CN54: 552.4617081 | CO54: 842.0379966 | CP54: 328.877628 | CQ54: 395.2152936 | CR54: 137.7209598 | CS54: 466.2168714 | CT54: 388.6857483 | CU54: 59.08461409 | CV54: 1969.662346 | CW54: 461.763347 | CX54: 17493.97783 | CY54: 29171.45688 | CZ54: 1292.918894 | DA54: 1416.995213 | DB54: 3752.391166 | DC54: 361.3503836 | DD54: 811.3839263 | DE54: 138025.1283 | DF54: 990.7813484 | DG54: 11209.19872 | DH54: 3707.661207 | DI54: 3777.044439 | DJ54: 394.2630083 | DK54: 3857.364999 | DL54: 6692.913068 | DM54: 0 | DN54: 2328.044363 | DO54: 1248.297698 | DP54: 737255.7113 | DQ54: 184.6523173 | DR54: 27827.78214 | DS54: 0 | DT54: 0 | DU54: 0 | DV54: -4.085206714 | DW54: 28008.34925 | DX54: 396.7888962 | DY54: 148513.463 | DZ54: 0 | EA54: 0 | EB54: 0 | EC54: -14615.59601 | ED54: 134294.6559 | EE54: 397.4145715 | EF54: 128377.1672 | EG54: 0 | EH54: 0 | EI54: 0 | EJ54: 210.4840858 | EK54: 128985.0659 | EL54: 52597.5755 | EM54: 343885.6465 | EN54: 1081141.358 | EO54: -136913.3888 | EP54: 944227.969
D55: 8 | E55: プラスチック・ゴム製品 | F55: 41.65721654 | G55: 0.09563104156 | H55: 1662.053414 | I55: 104.5424387 | J55: 432.8036472 | K55: 603.1820202 | L55: 0.4471951675 | M55: 7795.80906 | N55: 91.52248069 | O55: 58.56236427 | P55: 74.00336846 | Q55: 172.9801265 | R55: 226.7064648 | S55: 808.5304069 | T55: 2962.547299 | U55: 46.48327747 | V55: 2517.290619 | W55: 203.9930361 | X55: 4894.973529 | Y55: 2049.289898 | Z55: 4666.683991 | AA55: 0 | AB55: 677.6628164 | AC55: 423.4680632 | AD55: 3786.805445 | AE55: 612.3906087 | AF55: 267.5666334 | AG55: 850.3346668 | AH55: 1882.227101 | AI55: 350.6759526 | AJ55: 1663.511968 | AK55: 805.2753126 | AL55: 151.1797557 | AM55: 5854.075947 | AN55: 989.8568828 | AO55: 496.2536087 | AP55: 75.23491805 | AQ55: 20.82074822 | AR55: 3564.567574 | AS55: 40.49032863 | AT55: 18300.97195 | AU55: 1652.697694 | AV55: 5572.573551 | AW55: 8860.966595 | AX55: 72.89176679 | AY55: 200720.9523 | AZ55: 2892.742955 | BA55: 1500.059922 | BB55: 951.4018391 | BC55: 4088.838096 | BD55: 9947.170528 | BE55: 9539.372868 | BF55: 16077.25036 | BG55: 5289.460869 | BH55: 33622.92862 | BI55: 6911.506264 | BJ55: 384362.3629 | BK55: 19663.1178 | BL55: 12809.80068 | BM55: 0 | BN55: 5271.426031 | BO55: 2173.18766 | BP55: 8045.672475 | BQ55: 1202.983319 | BR55: 923.9548199 | BS55: 3345.47899 | BT55: 1061.231747 | BU55: 721.5001011 | BV55: 6976.499173 | BW55: 2776.134601 | BX55: 635.3970076 | BY55: 14485.34408 | BZ55: 2721.267963 | CA55: 1429.302099 | CB55: 337.4315219 | CC55: 69.46201871 | CD55: 7441.854421 | CE55: 179.3212961 | CF55: 47702.52636 | CG55: 2227.852461 | CH55: 17229.67709 | CI55: 34835.57933 | CJ55: 145.7705252 | CK55: 183815.64 | CL55: 2733.986266 | CM55: 707.295222 | CN55: 3271.840054 | CO55: 2981.104598 | CP55: 6343.038129 | CQ55: 28756.00244 | CR55: 15289.92911 | CS55: 17519.8524 | CT55: 37937.62792 | CU55: 14306.46084 | CV55: 108993.492 | CW55: 36292.30297 | CX55: 54064.64585 | CY55: 0 | CZ55: 11442.22386 | DA55: 2798.999647 | DB55: 32957.40224 | DC55: 6944.418765 | DD55: 3250.918422 | DE55: 15334.35593 | DF55: 13681.63897 | DG55: 4370.268663 | DH55: 10357.54832 | DI55: 7293.354171 | DJ55: 1713.131105 | DK55: 80037.94666 | DL55: 9263.758728 | DM55: 4274.794158 | DN55: 1235.717258 | DO55: 199.9741539 | DP55: 1674872.147 | DQ55: 189.3343908 | DR55: 5239.859268 | DS55: 14.97753011 | DT55: 0 | DU55: -2.200980884 | DV55: -61.10728069 | DW55: 5380.862927 | DX55: 652.3340601 | DY55: 22814.06464 | DZ55: 187.6049454 | EA55: 0 | EB55: 0 | EC55: -5284.589866 | ED55: 18369.41378 | EE55: 1475.495397 | EF55: 46464.09541 | EG55: 254.1309423 | EH55: 0 | EI55: -48.82162765 | EJ55: 145.4135488 | EK55: 48290.31367 | EL55: 113597.3079 | EM55: 185637.8983 | EN55: 1860510.046 | EO55: -139773.7167 | EP55: 1720736.289
D56: 9 | E56: 窯業・土石製品 | F56: 3.791771969 | G56: 0.00060786545 | H56: 530.8408607 | I56: 8.406610979 | J56: 130.6234565 | K56: 299.4487168 | L56: 3.66436058 | M56: 153.3290723 | N56: 1191.034733 | O56: 160.7195535 | P56: 138.4058307 | Q56: 144.643083 | R56: 315.9994329 | S56: 499.1490874 | T56: 472.5785128 | U56: 79.8085837 | V56: 452.4595239 | W56: 12.9363626 | X56: 1051.992485 | Y56: 115.642388 | Z56: 12907.35544 | AA56: 5.086868129 | AB56: 94.35330349 | AC56: 5.82962331 | AD56: 181.61866 | AE56: 2.452907852 | AF56: 13.07956246 | AG56: 8.557213375 | AH56: 4.288111594 | AI56: 34.50172543 | AJ56: 520.5259986 | AK56: 255.0784999 | AL56: 6.406540946 | AM56: 364.7528863 | AN56: 349.0855974 | AO56: 58.87860046 | AP56: 92.75117418 | AQ56: 0 | AR56: 425.2692775 | AS56: 0.2770221252 | AT56: 2552.98856 | AU56: 87.58078308 | AV56: 860.2749972 | AW56: 2381.30442 | AX56: 103.7660996 | AY56: 2379.332397 | AZ56: 11941.77939 | BA56: 8195.77826 | BB56: 3377.128442 | BC56: 1681.717907 | BD56: 3380.336019 | BE56: 4709.417493 | BF56: 2940.601002 | BG56: 7565.132681 | BH56: 5046.023217 | BI56: 501.3284994 | BJ56: 41124.37409 | BK56: 1964.768466 | BL56: 26436.59949 | BM56: 30.13577238 | BN56: 453.5074964 | BO56: 56.87114786 | BP56: 278.0120344 | BQ56: 3.023284343 | BR56: 44.99523718 | BS56: 23.05507387 | BT56: 0.7987534423 | BU56: 78.14132318 | BV56: 1289.961622 | BW56: 967.3601443 | BX56: 33.49715273 | BY56: 891.5442344 | BZ56: 830.2932176 | CA56: 101.5405154 | CB56: 339.3451551 | CC56: 0 | CD56: 1253.310352 | CE56: 15.42747003 | CF56: 4284.430887 | CG56: 85.59931487 | CH56: 1704.752014 | CI56: 7657.147692 | CJ56: 224.6566816 | CK56: 1575.900359 | CL56: 17287.99743 | CM56: 5235.63542 | CN56: 3068.282213 | CO56: 1838.742163 | CP56: 4690.861583 | CQ56: 3289.514779 | CR56: 5417.242 | CS56: 41319.00413 | CT56: 7666.812223 | CU56: 894.0375325 | CV56: 9431.159661 | CW56: 1783.287839 | CX56: 127009.0018 | CY56: 54.66625896 | CZ56: 869.0577676 | DA56: 138.3320055 | DB56: 1176.799859 | DC56: 21.78024269 | DD56: 130.9457418 | DE56: 120.035362 | DF56: 25.47629608 | DG56: 421.4486174 | DH56: 3435.062416 | DI56: 4148.125644 | DJ56: 138.3024954 | DK56: 1851.080919 | DL56: 5781.885279 | DM56: 316.255572 | DN56: 1318.099968 | DO56: 0 | DP56: 419428.0964 | DQ56: 84.81625822 | DR56: 571.1300858 | DS56: 0 | DT56: 0 | DU56: 0 | DV56: -156.0733594 | DW56: 499.8729846 | DX56: 259.9216516 | DY56: 2266.490735 | DZ56: 0 | EA56: 0 | EB56: 0 | EC56: -5266.961852 | ED56: -2740.549465 | EE56: 662.2122498 | EF56: 7283.831229 | EG56: 0 | EH56: 0 | EI56: 0 | EJ56: -1959.44047 | EK56: 5986.60301 | EL56: 160444.5512 | EM56: 164190.4778 | EN56: 583618.5742 | EO56: -47286.23417 | EP56: 536332.34
D57: 10 | E57: 鉄鋼 | F57: 0.0390740799 | G57: 0.03057132177 | H57: 0 | I57: 1.516780005 | J57: 597.8698191 | K57: 0.3874213086 | L57: 0 | M57: 55.68796444 | N57: 244.8495786 | O57: 77774.26885 | P57: 62.04126622 | Q57: 10418.40451 | R57: 2265.500618 | S57: 8584.100647 | T57: 3977.421759 | U57: 44.31722905 | V57: 4732.835218 | W57: 40.4236896 | X57: 5927.647214 | Y57: 66.7636597 | Z57: 7536.383614 | AA57: 0 | AB57: 0.7474158003 | AC57: 0 | AD57: 0 | AE57: 0 | AF57: 0 | AG57: 34.73159706 | AH57: 0 | AI57: 7.529446854 | AJ57: 0 | AK57: 1.37690364 | AL57: 0.1399058824 | AM57: 128.4891033 | AN57: 14.48248417 | AO57: 0.355713783 | AP57: 114.0579083 | AQ57: 0 | AR57: 6.080658686 | AS57: 8.363731342 | AT57: 0 | AU57: 16.17328742 | AV57: 2769.257204 | AW57: -173.0502476 | AX57: 4.861760736 | AY57: 1049.703118 | AZ57: 1238.551948 | BA57: 741769.3883 | BB57: 625.4903743 | BC57: 117826.079 | BD57: 53249.43637 | BE57: 96679.27751 | BF57: 16449.65754 | BG57: 686.1678472 | BH57: 44649.20303 | BI57: 1691.35013 | BJ57: 436713.869 | BK57: 1297.470557 | BL57: 15822.77169 | BM57: 0 | BN57: 4.332605976 | BO57: 0 | BP57: 0 | BQ57: 0 | BR57: 0 | BS57: 35.21826077 | BT57: 0 | BU57: 8.21092235 | BV57: 0 | BW57: 3.148198144 | BX57: 0.3575011545 | BY57: 209.5188156 | BZ57: 13.8276557 | CA57: 0.7203872554 | CB57: 311.3506806 | CC57: 0 | CD57: 42.62297152 | CE57: 197.4971062 | CF57: 0 | CG57: 38.77137272 | CH57: 6739.805645 | CI57: 52.8824934 | CJ57: 0.02068969712 | CK57: 764.5624655 | CL57: 3233.986312 | CM57: 439383.3249 | CN57: 429.7030773 | CO57: 159895.0304 | CP57: 92784.00232 | CQ57: 105219.4465 | CR57: 8645.72943 | CS57: 4245.807169 | CT57: 37200.88734 | CU57: 2629.944982 | CV57: 163791.0858 | CW57: 1864.177326 | CX57: 108103.3683 | CY57: 0 | CZ57: 11.64863609 | DA57: 0 | DB57: 0 | DC57: 0 | DD57: 0 | DE57: 404.4731817 | DF57: 0 | DG57: 102.9937459 | DH57: 0 | DI57: 19.38600102 | DJ57: 2.131234493 | DK57: 435.7175172 | DL57: 122.1453145 | DM57: 3.56944639 | DN57: 1765.732098 | DO57: 0 | DP57: 2793729.642 | DQ57: 0 | DR57: 42.43331384 | DS57: 0 | DT57: 35.29448066 | DU57: 138.8819534 | DV57: -262.5583968 | DW57: -45.9486489 | DX57: 0 | DY57: 33338.82565 | DZ57: 0 | EA57: 17739.08037 | EB57: 0 | EC57: -18100.90228 | ED57: 32977.00374 | EE57: 0 | EF57: 120.0523746 | EG57: 0 | EH57: 95.42947756 | EI57: 593.8448216 | EJ57: -7293.586433 | EK57: -6484.259759 | EL57: 439031.3147 | EM57: 465478.11 | EN57: 3259207.752 | EO57: -145937.0126 | EP57: 3113270.739
D58: 11 | E58: 非鉄金属 | F58: 0 | G58: 0.001076021893 | H58: 175.373485 | I58: 0.0263853608 | J58: 79.74393669 | K58: 246.9414889 | L58: 0.01410252043 | M58: 74.32795522 | N58: 386.6739056 | O58: 956.0845267 | P58: 31888.12631 | Q58: 1901.526854 | R58: 549.2920003 | S58: 912.4749116 | T58: 929.8494463 | U58: 177.8057234 | V58: 3661.543693 | W58: 61.32570156 | X58: 2737.550428 | Y58: 263.5015843 | Z58: 789.1313305 | AA58: 18.69311829 | AB58: 4.245877562 | AC58: 0.02404495076 | AD58: 15.17158246 | AE58: 0 | AF58: 0 | AG58: 7.022145334 | AH58: 26.21707898 | AI58: 11.19028021 | AJ58: 26.68065828 | AK58: 368.1278715 | AL58: 3.360494142 | AM58: 50.94235321 | AN58: 110.6308672 | AO58: 8.673504984 | AP58: 49.01562488 | AQ58: 0 | AR58: 0 | AS58: 2.515359586 | AT58: 1338.456087 | AU58: 1.270576882 | AV58: 547.3013494 | AW58: 2628.836754 | AX58: 4.626981128 | AY58: 1842.215976 | AZ58: 5108.154457 | BA58: 15446.26742 | BB58: 198924.0457 | BC58: 27921.71416 | BD58: 16471.80377 | BE58: 16142.05816 | BF58: 16151.86424 | BG58: 8402.933945 | BH58: 49714.92895 | BI58: 6769.49413 | BJ58: 197565.0119 | BK58: 5098.374831 | BL58: 6203.074141 | BM58: 110.6449026 | BN58: 20.09789747 | BO58: 0.6479592841 | BP58: 13.47852941 | BQ58: 0 | BR58: 0 | BS58: 2.479044306 | BT58: 5.834057784 | BU58: 36.06510944 | BV58: 183.8317338 | BW58: 1212.383164 | BX58: 12.00774169 | BY58: 521.0908191 | BZ58: 152.4532362 | CA58: 20.64017388 | CB58: 322.0518755 | CC58: 0 | CD58: 0 | CE58: 8.283895037 | CF58: 3233.294221 | CG58: 1.399655153 | CH58: 1712.907248 | CI58: 2621.323971 | CJ58: 11.55181256 | CK58: 1525.042313 | CL58: 938.0368017 | CM58: 2946.077704 | CN58: 34495.89815 | CO58: 36511.06201 | CP58: 19015.25874 | CQ58: 13517.24456 | CR58: 8015.894178 | CS58: 21041.2168 | CT58: 32810.31488 | CU58: 5378.968101 | CV58: 35937.34169 | CW58: 4342.386167 | CX58: 10450.48446 | CY58: 386.6020725 | CZ58: 64.81563934 | DA58: 0.2312606516 | DB58: 73.15698407 | DC58: 0 | DD58: 0 | DE58: 43.32196808 | DF58: 140.225212 | DG58: 237.3725569 | DH58: 69.07242873 | DI58: 4973.75684 | DJ58: 58.28837157 | DK58: 487.7604706 | DL58: 1104.929644 | DM58: 81.15736671 | DN58: 339.8572792 | DO58: 0 | DP58: 867964.5009 | DQ58: 8.308886593 | DR58: 876.892738 | DS58: 0 | DT58: 0 | DU58: -580.0741182 | DV58: -64.82172048 | DW58: 240.3057858 | DX58: 23.96113612 | DY58: 4332.233318 | DZ58: 0 | EA58: 0 | EB58: 6265.405768 | EC58: -1751.373534 | ED58: 8870.226688 | EE58: 76.54185462 | EF58: 2118.203147 | EG58: 0 | EH58: 0 | EI58: 20110.65741 | EJ58: -2831.356842 | EK58: 19474.04557 | EL58: 21165.11053 | EM58: 49749.68857 | EN58: 917714.1895 | EO58: -371885.9735 | EP58: 545828.216
D59: 12 | E59: 金属製品 | F59: 2.824217387 | G59: 0.6639038084 | H59: 2905.266701 | I59: 36.5646073 | J59: 916.3041484 | K59: 822.3698739 | L59: 2.420832795 | M59: 410.1358482 | N59: 649.4385931 | O59: 203.6033814 | P59: 222.5233287 | Q59: 5424.663206 | R59: 920.4415401 | S59: 4256.875201 | T59: 12868.33873 | U59: 227.4633983 | V59: 5531.114643 | W59: 353.1985695 | X59: 1831.987844 | Y59: 489.0483228 | Z59: 74904.12115 | AA59: 83.10247845 | AB59: 30.71048093 | AC59: 7.667983939 | AD59: 8083.130764 | AE59: 57.62359408 | AF59: 264.0371617 | AG59: 822.7469458 | AH59: 425.8601525 | AI59: 1222.975872 | AJ59: 120.1072372 | AK59: 259.3841715 | AL59: 85.03221151 | AM59: 1483.435192 | AN59: 1999.262222 | AO59: 8.193224294 | AP59: 232.7201485 | AQ59: 25.19788078 | AR59: 268.9765995 | AS59: 182.0010523 | AT59: 13642.25157 | AU59: 117.9407941 | AV59: 4533.295349 | AW59: 7127.776821 | AX59: 262.1729598 | AY59: 7433.187115 | AZ59: 4261.86775 | BA59: 3119.004911 | BB59: 1100.65246 | BC59: 58595.23319 | BD59: 15208.81827 | BE59: 34733.14544 | BF59: 25988.96825 | BG59: 4565.060548 | BH59: 32712.32556 | BI59: 4972.940656 | BJ59: 86012.66438 | BK59: 6547.459234 | BL59: 91241.20702 | BM59: 481.4242939 | BN59: 109.2491931 | BO59: 22.82807028 | BP59: 4302.455015 | BQ59: 53.95336507 | BR59: 610.7825014 | BS59: 1071.452344 | BT59: 62.78912245 | BU59: 1256.859463 | BV59: 271.9328287 | BW59: 459.8106682 | BX59: 197.2969441 | BY59: 1696.928832 | BZ59: 1610.779683 | CA59: 12.0457874 | CB59: 545.472361 | CC59: 43.25095099 | CD59: 371.2144528 | CE59: 544.6653948 | CF59: 10087.59978 | CG59: 193.9276154 | CH59: 3537.399203 | CI59: 5358.85395 | CJ59: 176.5139625 | CK59: 1919.730781 | CL59: 1321.911993 | CM59: 419.1308838 | CN59: 293.491725 | CO59: 37271.92122 | CP59: 8320.143595 | CQ59: 11267.86254 | CR59: 4698.729217 | CS59: 6261.952779 | CT59: 8708.424325 | CU59: 3188.096209 | CV59: 10021.6137 | CW59: 2115.528339 | CX59: 210108.2792 | CY59: 248.3939419 | CZ59: 101.4049611 | DA59: 16.04392896 | DB59: 5896.486433 | DC59: 91.9815343 | DD59: 1280.888866 | DE59: 1550.225889 | DF59: 422.1145048 | DG59: 4038.41748 | DH59: 166.0052048 | DI59: 478.0563636 | DJ59: 237.9809223 | DK59: 2422.665263 | DL59: 3369.622577 | DM59: 11.72881156 | DN59: 617.9047577 | DO59: 35.36310206 | DP59: 890799.0925 | DQ59: 441.0433776 | DR59: 2423.988255 | DS59: 0.9803247256 | DT59: 259.5750318 | DU59: 3985.047182 | DV59: -162.2028556 | DW59: 6948.431316 | DX59: 816.7031549 | DY59: 7459.357933 | DZ59: 9.519562453 | EA59: 310.5151315 | EB59: 15080.99559 | EC59: 4861.005266 | ED59: 28538.09664 | EE59: 914.4776837 | EF59: 16065.01419 | EG59: 9.480890944 | EH59: 423.5158617 | EI59: 29993.66852 | EJ59: -4058.84352 | EK59: 43347.31362 | EL59: 70925.92455 | EM59: 149759.7661 | EN59: 1040558.859 | EO59: -72002.70361 | EP59: 968556.155
D60: 13 | E60: はん用機械 | F60: 0 | G60: 0.05209266288 | H60: 0 | I60: 0 | J60: 76.77735 | K60: 0.7712608144 | L60: 0 | M60: 17.74508028 | N60: 60.63759602 | O60: 16.12846724 | P60: 2.560643784 | Q60: 53.71098234 | R60: 2774.1579 | S60: 3082.262282 | T60: 1913.567675 | U60: 8.963989668 | V60: 1225.06703 | W60: 9.773490267 | X60: 1105.197559 | Y60: 2.975112222 | Z60: 2338.520567 | AA60: 0 | AB60: 204.2434656 | AC60: 0 | AD60: 5.500695797 | AE60: 0 | AF60: 0 | AG60: 50.36984276 | AH60: 2.287446708 | AI60: 28.38335846 | AJ60: 0 | AK60: 0 | AL60: 0 | AM60: 3921.487135 | AN60: 3.631726814 | AO60: 0 | AP60: 0 | AQ60: 0.3501784561 | AR60: 0.09207027694 | AS60: 15.81904631 | AT60: 0 | AU60: 0 | AV60: 500.0567985 | AW60: 6.798706304 | AX60: 0 | AY60: 297.2199082 | AZ60: 619.8503922 | BA60: 354.5717489 | BB60: 1.007544592 | BC60: 671.1686856 | BD60: 84246.88753 | BE60: 29461.40009 | BF60: 14197.53699 | BG60: 368.1488825 | BH60: 11261.41311 | BI60: 426.5134599 | BJ60: 61677.61172 | BK60: 54.40728701 | BL60: 6333.937263 | BM60: 0 | BN60: 1384.422707 | BO60: 0 | BP60: 4.962930815 | BQ60: 0.008595783336 | BR60: 0 | BS60: 78.30817202 | BT60: 1.176211888 | BU60: 47.19054586 | BV60: 0 | BW60: 0.2839531446 | BX60: 0 | BY60: 9837.978724 | BZ60: 5.034678095 | CA60: 0 | CB60: 0 | CC60: 0.8084063589 | CD60: 1.116915406 | CE60: 89.79700929 | CF60: 0 | CG60: 0 | CH60: 588.0893432 | CI60: 24.54022489 | CJ60: 0 | CK60: 211.0419828 | CL60: 568.7194697 | CM60: 118.6486858 | CN60: 6.006975001 | CO60: 510.4888908 | CP60: 73535.46363 | CQ60: 26002.42353 | CR60: 5301.527906 | CS60: 1418.134213 | CT60: 10687.63437 | CU60: 554.6669224 | CV60: 15193.75847 | CW60: 234.7441084 | CX60: 27091.76008 | CY60: 0 | CZ60: 2105.363487 | DA60: 0 | DB60: 18.16412825 | DC60: 0.04807417661 | DD60: 0 | DE60: 209.9316148 | DF60: 13.71914509 | DG60: 424.9517413 | DH60: 0 | DI60: 0.4581072699 | DJ60: 0 | DK60: 28161.97323 | DL60: 17.73200034 | DM60: 0 | DN60: 0 | DO60: 1.88268803 | DP60: 431852.526 | DQ60: 0 | DR60: 127.9322296 | DS60: 0 | DT60: 869.2820615 | DU60: 12005.3159 | DV60: 84.04627271 | DW60: 13086.57646 | DX60: 0 | DY60: 416.4472508 | DZ60: 0 | EA60: 2528.796871 | EB60: 165814.0685 | EC60: 2887.381774 | ED60: 171646.6944 | EE60: 0 | EF60: 371.9159665 | EG60: 0 | EH60: 11195.4757 | EI60: 236396.0302 | EJ60: 948.628165 | EK60: 248912.05 | EL60: 175192.7548 | EM60: 608838.0758 | EN60: 1040690.602 | EO60: -129926.8608 | EP60: 910763.741
D61: 14 | E61: 生産用機械 | F61: 0 | G61: 0.04089762922 | H61: 0 | I61: 0 | J61: 4.596287634 | K61: 0 | L61: 0.05816551712 | M61: 117.8263727 | N61: 57.54962912 | O61: 21.95233264 | P61: 20.67602366 | Q61: 35.71249351 | R61: 117.7244091 | S61: 7631.265996 | T61: 274.6576701 | U61: 9.755014625 | V61: 252.167863 | W61: 6.013183191 | X61: 110.8568819 | Y61: 0.9589731114 | Z61: 27.44988284 | AA61: 0.4277589071 | AB61: 5.116747834 | AC61: 0 | AD61: 5.06100588 | AE61: 0 | AF61: 0 | AG61: 24.58523113 | AH61: 1.362042526 | AI61: 2.475063932 | AJ61: 0 | AK61: 0 | AL61: 0 | AM61: 4655.878369 | AN61: 4.264562419 | AO61: 0 | AP61: 0 | AQ61: 0 | AR61: 0.5554068896 | AS61: 17.57239408 | AT61: 0 | AU61: 0 | AV61: 29.17590538 | AW61: 0 | AX61: 7.113423064 | AY61: 2273.970623 | AZ61: 602.0940233 | BA61: 444.2977416 | BB61: 129.6290253 | BC61: 351.8478243 | BD61: 2975.895486 | BE61: 110353.0899 | BF61: 1303.592528 | BG61: 771.7134547 | BH61: 1845.521592 | BI61: 185.0637894 | BJ61: 7267.128247 | BK61: 18.63394261 | BL61: 65.52290586 | BM61: 6.176556389 | BN61: 38.89040605 | BO61: 0 | BP61: 4.364816836 | BQ61: 0 | BR61: 0 | BS61: 40.43306026 | BT61: 0.3392355039 | BU61: 3.954999659 | BV61: 0 | BW61: 0 | BX61: 0 | BY61: 11619.96238 | BZ61: 5.245998673 | CA61: 0 | CB61: 0 | CC61: 0 | CD61: 17.77126165 | CE61: 254.1474903 | CF61: 0 | CG61: 0 | CH61: 160.571253 | CI61: 0 | CJ61: 32.82458987 | CK61: 4508.682955 | CL61: 1048.892191 | CM61: 426.4743795 | CN61: 119.2418734 | CO61: 725.2452712 | CP61: 4156.157266 | CQ61: 115502.4606 | CR61: 1155.533446 | CS61: 5745.161581 | CT61: 4732.423364 | CU61: 669.7919006 | CV61: 3981.101246 | CW61: 171.5205199 | CX61: 597.2497227 | CY61: 17.62431678 | CZ61: 152.1940525 | DA61: 0 | DB61: 43.05994577 | DC61: 0 | DD61: 0 | DE61: 335.6796846 | DF61: 20.54980653 | DG61: 90.87059179 | DH61: 0 | DI61: 0 | DJ61: 0 | DK61: 40468.71743 | DL61: 63.91891065 | DM61: 0 | DN61: 0 | DO61: 0 | DP61: 338948.0842 | DQ61: 0 | DR61: 4.996910815 | DS61: 0 | DT61: 680.7975245 | DU61: 13444.39019 | DV61: 64.61763539 | DW61: 14194.80226 | DX61: 0 | DY61: 126.7951154 | DZ61: 0 | EA61: 835.0528633 | EB61: 438845.8656 | EC61: 7604.642291 | ED61: 447412.3559 | EE61: 0 | EF61: 116.5757997 | EG61: 0 | EH61: 3749.099247 | EI61: 362274.4172 | EJ61: 1300.948148 | EK61: 367441.0404 | EL61: 691760.193 | EM61: 1520808.392 | EN61: 1859756.476 | EO61: -140958.8148 | EP61: 1718797.661
D62: 15 | E62: 業務用機械 | F62: 5.976020191 | G62: 0 | H62: 0 | I62: 0 | J62: 0 | K62: 0 | L62: 0 | M62: 0 | N62: 0 | O62: 0 | P62: 0 | Q62: 0.7231819037 | R62: 51.00722549 | S62: 403.9617465 | T62: 11822.96821 | U62: 0 | V62: 117.6577386 | W62: 0.05826584058 | X62: 105.2683022 | Y62: 0.3779490087 | Z62: 88.3070225 | AA62: 0 | AB62: 2.172973113 | AC62: 0.8926825308 | AD62: 2035.416811 | AE62: 3.780424833 | AF62: 0 | AG62: 4.205734311 | AH62: 6.465708184 | AI62: 889.4729126 | AJ62: 0 | AK62: 1418.773078 | AL62: 0 | AM62: 926.5163282 | AN62: 274.7485242 | AO62: 24.03844527 | AP62: 0 | AQ62: 3.172813645 | AR62: 103.3543421 | AS62: 0 | AT62: 0 | AU62: 0 | AV62: 0 | AW62: 0.007113961763 | AX62: 0 | AY62: 0 | AZ62: 0 | BA62: 0 | BB62: 0 | BC62: 14.27168496 | BD62: 2064.673579 | BE62: 4998.744638 | BF62: 46145.37165 | BG62: 34.38122455 | BH62: 872.849276 | BI62: 351.8771883 | BJ62: 3202.880964 | BK62: 145.8071217 | BL62: 149.3407747 | BM62: 0 | BN62: 16.20824096 | BO62: 4.109719869 | BP62: 1494.445374 | BQ62: 4.194131804 | BR62: 0 | BS62: 36.39157211 | BT62: 23.89867328 | BU62: 913.5799097 | BV62: 0 | BW62: 14806.49535 | BX62: 0 | BY62: 4190.69523 | BZ62: 654.4215058 | CA62: 219.6839893 | CB62: 0 | CC62: 13.05228466 | CD62: 90.47630473 | CE62: 0 | CF62: 0.9032946884 | CG62: 0 | CH62: 0 | CI62: 2.079817376 | CJ62: 0 | CK62: 0 | CL62: 0 | CM62: 0 | CN62: 0 | CO62: 18.8515056 | CP62: 2378.958077 | CQ62: 7946.09676 | CR62: 44029.83398 | CS62: 37.66859814 | CT62: 1260.386977 | CU62: 234.3780063 | CV62: 1506.577438 | CW62: 42.6673289 | CX62: 1149.590683 | CY62: 0 | CZ62: 41.13881352 | DA62: 12.67160512 | DB62: 9635.121516 | DC62: 40.26857404 | DD62: 0 | DE62: 84.01331665 | DF62: 270.0217925 | DG62: 32332.57427 | DH62: 0 | DI62: 15651.90371 | DJ62: 0 | DK62: 11233.6978 | DL62: 5716.859353 | DM62: 608.5566876 | DN62: 0 | DO62: 40.08038104 | DP62: 233012.0742 | DQ62: 3.158626984 | DR62: 289.5648447 | DS62: 0.6207597338 | DT62: 2743.10492 | DU62: 16717.90126 | DV62: -8.420950063 | DW62: 19745.92946 | DX62: 21.08251639 | DY62: 2493.542322 | DZ62: 5.598376951 | EA62: 8830.521964 | EB62: 109430.5739 | EC62: 7148.308769 | ED62: 127929.6279 | EE62: 54.24363604 | EF62: 5757.633735 | EG62: 13.44887395 | EH62: 89439.30572 | EI62: 417211.1862 | EJ62: 8896.234222 | EK62: 521372.0524 | EL62: 59365.68119 | EM62: 728413.291 | EN62: 961425.3652 | EO62: -103357.5972 | EP62: 858067.768
D63: 16 | E63: 電子部品 | F63: 0 | G63: 0.00107073409 | H63: 0.1651071966 | I63: 0 | J63: 0.2625439988 | K63: 0.1359832294 | L63: 0 | M63: 0.01477613044 | N63: 0 | O63: 0.05268011721 | P63: 0.1573979112 | Q63: 116.2609212 | R63: 116.6119157 | S63: 559.1099575 | T63: 12578.03056 | U63: 809.4521344 | V63: 7071.716549 | W63: 1372.406303 | X63: 1658.707903 | Y63: 50.27532137 | Z63: 97.08581553 | AA63: 0.4310775445 | AB63: 0.3135109415 | AC63: 0 | AD63: 18.89995571 | AE63: 9.690357659 | AF63: 0 | AG63: 2.025400604 | AH63: 475.1018473 | AI63: 218.2310261 | AJ63: 640.8430373 | AK63: 0.8114022932 | AL63: 0 | AM63: 6585.978319 | AN63: 4.816376082 | AO63: 311.8774295 | AP63: 0 | AQ63: 10.62510852 | AR63: 0.07777794303 | AS63: 0.2031700634 | AT63: 0.8686134898 | AU63: 0.02203103967 | AV63: 2.694743991 | AW63: 1.331587008 | AX63: 0 | AY63: 0.2167245319 | AZ63: 0 | BA63: 0.784734008 | BB63: 11.11156517 | BC63: 3458.802107 | BD63: 5795.802713 | BE63: 12189.696 | BF63: 69593.16511 | BG63: 59300.66002 | BH63: 75372.72425 | BI63: 50225.63467 | BJ63: 125171.8351 | BK63: 500.1235094 | BL63: 193.6343058 | BM63: 1.836979165 | BN63: 2.184927973 | BO63: 0 | BP63: 23.01870766 | BQ63: 9.111564406 | BR63: 0 | BS63: 5.223094518 | BT63: 168.7878154 | BU63: 297.175865 | BV63: 2051.467072 | BW63: 5.07022712 | BX63: 0 | BY63: 14431.56348 | BZ63: 6.416538249 | CA63: 710.3400303 | CB63: 0 | CC63: 27.14958518 | CD63: 0.07411612016 | CE63: 0.131569259 | CF63: 0.3331164013 | CG63: 0.0185700292 | CH63: 0.6892279906 | CI63: 0.8485079407 | CJ63: 0 | CK63: 0.02551257033 | CL63: 0 | CM63: 0.1008924591 | CN63: 7.613804579 | CO63: 215.6791535 | CP63: 690.9003975 | CQ63: 2540.767558 | CR63: 20123.17592 | CS63: 64398.79462 | CT63: 58812.65672 | CU63: 41442.05288 | CV63: 7853.933324 | CW63: 2003.922391 | CX63: 117.2966069 | CY63: 0.546710567 | CZ63: 0.5729297702 | DA63: 0 | DB63: 12.98464569 | DC63: 8.537900055 | DD63: 0 | DE63: 2.698638378 | DF63: 436.1265028 | DG63: 563.5900853 | DH63: 383.5597385 | DI63: 1.330531911 | DJ63: 0 | DK63: 9579.775696 | DL63: 3.926479877 | DM63: 322.1431796 | DN63: 0 | DO63: 10.32666092 | DP63: 661803.961 | DQ63: 3.219697408 | DR63: 631.7319121 | DS63: 0 | DT63: 0 | DU63: 0 | DV63: 5.809589024 | DW63: 640.7611985 | DX63: 8.959432646 | DY63: 2400.509197 | DZ63: 0 | EA63: 0 | EB63: 0 | EC63: 2199.885181 | ED63: 4609.35381 | EE63: 3.273400068 | EF63: 1009.437066 | EG63: 0 | EH63: 0 | EI63: 0 | EJ63: 764.9799411 | EK63: 1777.690407 | EL63: 39939.1332 | EM63: 46966.93862 | EN63: 708770.8996 | EO63: -291019.7616 | EP63: 417751.138
D64: 17 | E64: 電気機械 | F64: 0.02474670729 | G64: 0.007716629746 | H64: 0 | I64: 0 | J64: 5.702050228 | K64: 0.04343090054 | L64: 0 | M64: 0.6680098454 | N64: 0.4894907782 | O64: 0 | P64: 0.01420681656 | Q64: 16.0666542 | R64: 132.7269204 | S64: 1074.277957 | T64: 1866.517742 | U64: 33.1476689 | V64: 9588.081203 | W64: 58.04831393 | X64: 2015.719005 | Y64: 11.16317779 | Z64: 2071.081397 | AA64: 0.2584353586 | AB64: 2.66412024 | AC64: 0 | AD64: 233.1448171 | AE64: 0.549121386 | AF64: 6.393157562 | AG64: 70.7210945 | AH64: 57.33029498 | AI64: 88.34742608 | AJ64: 62.81140239 | AK64: 10.77287662 | AL64: 0 | AM64: 2512.376864 | AN64: 41.60722208 | AO64: 0 | AP64: 19.23523137 | AQ64: 49.81504392 | AR64: 34.74619128 | AS64: 4.173130437 | AT64: 0 | AU64: 0 | AV64: 58.57738586 | AW64: 0.4632867255 | AX64: 0 | AY64: 17.88869795 | AZ64: 9.582814051 | BA64: 0 | BB64: 1.517644941 | BC64: 483.9006605 | BD64: 13808.57803 | BE64: 28071.12443 | BF64: 10364.63339 | BG64: 4077.354358 | BH64: 142809.223 | BI64: 2928.302358 | BJ64: 284274.9239 | BK64: 303.639339 | BL64: 6810.298209 | BM64: 2.231470666 | BN64: 30.77171704 | BO64: 0 | BP64: 301.8173451 | BQ64: 0.7880661534 | BR64: 15.14761948 | BS64: 218.0293708 | BT64: 32.40813391 | BU64: 470.4833475 | BV64: 314.5482364 | BW64: 107.4658805 | BX64: 0 | BY64: 9062.011354 | BZ64: 127.1853255 | CA64: 0 | CB64: 99.46965516 | CC64: 231.2471266 | CD64: 91.78200328 | CE64: 8.460149886 | CF64: 0.08716313373 | CG64: 0 | CH64: 32.5318018 | CI64: 0.4520532299 | CJ64: 0 | CK64: 4.551160878 | CL64: 3.044441295 | CM64: 0 | CN64: 7.717314701 | CO64: 462.3186525 | CP64: 13756.27263 | CQ64: 17626.24199 | CR64: 4418.918406 | CS64: 2038.211118 | CT64: 70769.8139 | CU64: 3417.190497 | CV64: 63944.19247 | CW64: 161.1797601 | CX64: 15204.59437 | CY64: 0.4194661882 | CZ64: 4.466188442 | DA64: 0 | DB64: 112.3585682 | DC64: 0.4670878875 | DD64: 5.379278066 | DE64: 132.695614 | DF64: 193.0496398 | DG64: 1060.244111 | DH64: 112.0683729 | DI64: 31.37933444 | DJ64: 0 | DK64: 17749.62347 | DL64: 109.5535225 | DM64: 0 | DN64: 50.6719094 | DO64: 285.7706559 | DP64: 736898.0453 | DQ64: 209.989233 | DR64: 7033.984082 | DS64: 0 | DT64: 931.6634553 | DU64: 8116.964859 | DV64: 83.74856209 | DW64: 16376.35019 | DX64: 1179.919094 | DY64: 54679.7957 | DZ64: 0 | EA64: 5161.864351 | EB64: 221398.178 | EC64: 3698.938636 | ED64: 286118.6958 | EE64: 1977.221068 | EF64: 88753.34958 | EG64: 0 | EH64: 6468.627786 | EI64: 208833.2547 | EJ64: 707.2627901 | EK64: 306739.7159 | EL64: 567254.0905 | EM64: 1176488.852 | EN64: 1913386.898 | EO64: -337708.0099 | EP64: 1575678.888
D65: 18 | E65: 情報通信機器 | F65: 0.03549027213 | G65: 0 | H65: 0.6058943534 | I65: 0.0009685454381 | J65: 0.02020109057 | K65: 0.3424499942 | L65: 0.0007609999871 | M65: 0.000345909085 | N65: 0.0463518174 | O65: 0.00947790893 | P65: 0 | Q65: 0.3710912664 | R65: 5.380137671 | S65: 2.2751383 | T65: 0.09346635912 | U65: 0.03362236307 | V65: 1.047343528 | W65: 21.53658572 | X65: 2.551958522 | Y65: 0.2315515415 | Z65: 127.8463413 | AA65: 0.4453925379 | AB65: 0.0573517263 | AC65: 0.1177474525 | AD65: 106.8075935 | AE65: 9.950005649 | AF65: 10.9869719 | AG65: 9.685033318 | AH65: 27.23949366 | AI65: 50.94585823 | AJ65: 14.36671121 | AK65: 2.483834776 | AL65: 0.3704686301 | AM65: 134.2935692 | AN65: 13.12830751 | AO65: 0 | AP65: 0 | AQ65: 37.71752871 | AR65: 3.260635896 | AS65: 0.159124072 | AT65: 22.82851971 | AU65: 1.481738401 | AV65: 1.774990585 | AW65: 13.23484956 | AX65: 1.521226283 | AY65: 8.814981268 | AZ65: 3.419709595 | BA65: 0.7494914666 | BB65: 0.3468495359 | BC65: 25.4743914 | BD65: 975.2699337 | BE65: 243.7448728 | BF65: 18.87939341 | BG65: 22.65322859 | BH65: 44.30947148 | BI65: 3948.263597 | BJ65: 59102.22417 | BK65: 16.78546724 | BL65: 1708.749619 | BM65: 11.85392966 | BN65: 1.485979204 | BO65: 2.99979169 | BP65: 511.8392888 | BQ65: 60.60335126 | BR65: 93.35574222 | BS65: 125.6267206 | BT65: 78.68863299 | BU65: 373.9795004 | BV65: 254.3030623 | BW65: 49.03060891 | BX65: 6.136041092 | BY65: 1602.440439 | BZ65: 120.3289953 | CA65: 0 | CB65: 0 | CC65: 905.2383358 | CD65: 2.136740823 | CE65: 0.1303675023 | CF65: 7.453643383 | CG65: 0.2172119004 | CH65: 0.7314741235 | CI65: 10.93522361 | CJ65: 0.5098767424 | CK65: 1.135831957 | CL65: 0.5364953708 | CM65: 0.1040251582 | CN65: 0.2374068987 | CO65: 7.286715986 | CP65: 82.9775992 | CQ65: 78.04422924 | CR65: 3.238665722 | CS65: 9.683954992 | CT65: 8.249964571 | CU65: 2168.824978 | CV65: 6197.031657 | CW65: 4.474910085 | CX65: 1577.922491 | CY65: 3.913674112 | CZ65: 0.6408934157 | DA65: 1.25449093 | DB65: 353.5319955 | DC65: 63.83207684 | DD65: 66.01543094 | DE65: 82.4372195 | DF65: 155.7364235 | DG65: 880.5627229 | DH65: 60.8213174 | DI65: 20.55656216 | DJ65: 3.818738555 | DK65: 1304.345619 | DL65: 136.0120026 | DM65: 0 | DN65: 0 | DO65: 502.3709766 | DP65: 84740.59534 | DQ65: 46.93345519 | DR65: 2837.194101 | DS65: 0 | DT65: 1301.048694 | DU65: 3303.0936 | DV65: 12.46063452 | DW65: 7500.730485 | DX65: 1029.79408 | DY65: 87251.30913 | DZ65: 0 | EA65: 18409.03359 | EB65: 215601.1489 | EC65: 3124.23831 | ED65: 325415.524 | EE65: 905.7270626 | EF65: 50928.08978 | EG65: 0 | EH65: 12475.80344 | EI65: 56330.53567 | EJ65: 807.3044331 | EK65: 121447.4604 | EL65: 109596.64 | EM65: 563960.3549 | EN65: 648700.9502 | EO65: -365297.0862 | EP65: 283403.864
D66: 19 | E66: 輸送機械 | F66: 0 | G66: 0.0003178839653 | H66: 0 | I66: 0 | J66: 0 | K66: 0 | L66: 0 | M66: 0 | N66: 0 | O66: 0 | P66: 0 | Q66: 0 | R66: 0 | S66: 30.5890194 | T66: 0 | U66: 0 | V66: 0 | W66: 0 | X66: 84270.40983 | Y66: 0 | Z66: 0 | AA66: 0 | AB66: 0 | AC66: 0 | AD66: 0 | AE66: 0 | AF66: 0 | AG66: 6028.489586 | AH66: 0 | AI66: 563.1894103 | AJ66: 1.96007253 | AK66: 0 | AL66: 0 | AM66: 25909.59845 | AN66: 27.79652963 | AO66: 0 | AP66: 0 | AQ66: 0 | AR66: 132.9435936 | AS66: 0.07281891917 | AT66: 0 | AU66: 0 | AV66: 0 | AW66: 0 | AX66: 0 | AY66: 0 | AZ66: 0 | BA66: 0 | BB66: 0 | BC66: 0 | BD66: 0 | BE66: 107.6884347 | BF66: 0 | BG66: 0 | BH66: 0 | BI66: 0 | BJ66: 5630895.869 | BK66: 0 | BL66: 0 | BM66: 0 | BN66: 0 | BO66: 0 | BP66: 0 | BQ66: 0 | BR66: 0 | BS66: 18006.76095 | BT66: 0 | BU66: 1269.595959 | BV66: 3.939514871 | BW66: 0 | BX66: 0 | BY66: 53610.76864 | BZ66: 31.74739711 | CA66: 0 | CB66: 0 | CC66: 0 | CD66: 57.04404341 | CE66: 0.02439308648 | CF66: 0 | CG66: 0 | CH66: 0 | CI66: 0 | CJ66: 0 | CK66: 0 | CL66: 0 | CM66: 0 | CN66: 0 | CO66: 0 | CP66: 0 | CQ66: 981.1392381 | CR66: 0 | CS66: 0 | CT66: 0 | CU66: 0 | CV66: 1914387.745 | CW66: 0 | CX66: 0 | CY66: 0 | CZ66: 0 | DA66: 0 | DB66: 0 | DC66: 0 | DD66: 0 | DE66: 35933.7353 | DF66: 0 | DG66: 10240.70764 | DH66: 2.307531265 | DI66: 0 | DJ66: 0 | DK66: 205056.6298 | DL66: 302.9622795 | DM66: 0 | DN66: 0 | DO66: 0 | DP66: 7987853.715 | DQ66: 0 | DR66: 15296.15971 | DS66: 0 | DT66: 4122.050297 | DU66: 43540.51276 | DV66: 152.3783281 | DW66: 63111.1011 | DX66: 0 | DY66: 82589.53962 | DZ66: 0 | EA66: 12225.09174 | EB66: 115181.0339 | EC66: 6668.256524 | ED66: 216663.9218 | EE66: 0 | EF66: 1514075.062 | EG66: 0 | EH66: 66953.19609 | EI66: 943733.5413 | EJ66: 16185.32506 | EK66: 2540947.124 | EL66: 6699765.282 | EM66: 9520487.429 | EN66: 17508341.14 | EO66: -672989.5632 | EP66: 16835351.58
D67: 20 | E67: その他の製造工業製品 | F67: 2.187173905 | G67: 0.03052907541 | H67: 1309.352213 | I67: 59.84675235 | J67: 161.4002208 | K67: 216.3284662 | L67: 0.3139659505 | M67: 160.1216157 | N67: 512.8917218 | O67: 735.9475259 | P67: 4246.947421 | Q67: 144.0118851 | R67: 15.23882075 | S67: 144.6310841 | T67: 263.0569046 | U67: 8.11308477 | V67: 150.9934957 | W67: 29.81564298 | X67: 319.436872 | Y67: 1571.671289 | Z67: 606.550938 | AA67: 2403.368255 | AB67: 54.1444753 | AC67: 78.80431472 | AD67: 5348.747439 | AE67: 3564.952962 | AF67: 33.37319616 | AG67: 923.6903769 | AH67: 8151.565076 | AI67: 1228.354464 | AJ67: 4618.72975 | AK67: 1203.726592 | AL67: 729.0537486 | AM67: 4862.636492 | AN67: 1342.116896 | AO67: 541.9871646 | AP67: 12.82283118 | AQ67: 855.7079438 | AR67: 433.4506062 | AS67: 46.09824241 | AT67: 6989.902352 | AU67: 923.8416458 | AV67: 4217.344013 | AW67: 1755.098332 | AX67: 574.3872555 | AY67: 2223.844585 | AZ67: 4206.365731 | BA67: 20112.66672 | BB67: 13485.85637 | BC67: 2570.506218 | BD67: 550.6930815 | BE67: 4699.05675 | BF67: 2205.077602 | BG67: 954.780276 | BH67: 2127.979442 | BI67: 1222.591458 | BJ67: 13402.31295 | BK67: 9817.816104 | BL67: 3013.935639 | BM67: 10291.09746 | BN67: 402.6623627 | BO67: 413.4418374 | BP67: 6303.116335 | BQ67: 4870.938219 | BR67: 43.56727092 | BS67: 1382.416971 | BT67: 2739.627262 | BU67: 2505.405823 | BV67: 20379.07339 | BW67: 3884.351597 | BX67: 2543.892005 | BY67: 4935.153229 | BZ67: 4141.230261 | CA67: 4020.913656 | CB67: 192.1874645 | CC67: 2818.173306 | CD67: 418.5953931 | CE67: 87.90629628 | CF67: 5459.521185 | CG67: 2469.144859 | CH67: 2619.363971 | CI67: 1526.774706 | CJ67: 132.8486619 | CK67: 365.7797734 | CL67: 838.4189728 | CM67: 2208.662386 | CN67: 1836.343249 | CO67: 443.4376762 | CP67: 227.7721079 | CQ67: 1344.328588 | CR67: 916.7378031 | CS67: 1636.877466 | CT67: 1558.956331 | CU67: 964.0177733 | CV67: 1659.03584 | CW67: 12808.56864 | CX67: 9499.405311 | CY67: 1605.379914 | CZ67: 363.9795711 | DA67: 385.6685512 | DB67: 10604.11827 | DC67: 9904.386729 | DD67: 106.9714116 | DE67: 2158.396577 | DF67: 24319.20958 | DG67: 7660.804461 | DH67: 17026.26643 | DI67: 5556.573242 | DJ67: 4184.541882 | DK67: 21915.82891 | DL67: 11566.9255 | DM67: 11113.96192 | DN67: 70.26994093 | DO67: 4341.78132 | DP67: 395921.0846 | DQ67: 644.3669086 | DR67: 7491.053552 | DS67: 0.00839029089 | DT67: 185.8333319 | DU67: 1588.018503 | DV67: 45.39734917 | DW67: 9954.678035 | DX67: 5728.495969 | DY67: 86885.48706 | DZ67: 0.3318199019 | EA67: 1577.027569 | EB67: 29330.41463 | EC67: 1335.576891 | ED67: 124857.3339 | EE67: 7671.286455 | EF67: 74800.40824 | EG67: 0.5119285547 | EH67: 5668.170463 | EI67: 49986.3727 | EJ67: 1946.767266 | EK67: 140073.5171 | EL67: 23660.75914 | EM67: 298546.2882 | EN67: 694467.3728 | EO67: -149184.5493 | EP67: 545282.8235
D68: 21 | E68: 建設 | F68: 0 | G68: 0 | H68: 0 | I68: 0 | J68: 0 | K68: 0 | L68: 0 | M68: 0 | N68: 0 | O68: 0 | P68: 0 | Q68: 0 | R68: 0 | S68: 0 | T68: 0 | U68: 0 | V68: 0 | W68: 0 | X68: 0 | Y68: 0 | Z68: 0 | AA68: 0 | AB68: 0 | AC68: 0 | AD68: 0 | AE68: 0 | AF68: 0 | AG68: 0 | AH68: 0 | AI68: 0 | AJ68: 0 | AK68: 0 | AL68: 0 | AM68: 0 | AN68: 0 | AO68: 0 | AP68: 0 | AQ68: 0 | AR68: 898.7643896 | AS68: 40.05283393 | AT68: 291.391919 | AU68: 470.8344295 | AV68: 1819.914521 | AW68: 2493.004924 | AX68: 205.8531825 | AY68: 4071.911714 | AZ68: 2138.641677 | BA68: 12785.04028 | BB68: 1584.226688 | BC68: 2602.369518 | BD68: 858.4125846 | BE68: 1666.218336 | BF68: 547.3122525 | BG68: 744.0100924 | BH68: 2004.692921 | BI68: 266.4378428 | BJ68: 4063.87337 | BK68: 465.6464798 | BL68: 711.7503292 | BM68: 20662.75372 | BN68: 6719.058893 | BO68: 663.5457948 | BP68: 6679.556439 | BQ68: 2014.641257 | BR68: 27810.05057 | BS68: 12933.91081 | BT68: 2336.141797 | BU68: 7336.592673 | BV68: 8812.095659 | BW68: 3709.466717 | BX68: 161.8681131 | BY68: 1179.277255 | BZ68: 2425.674416 | CA68: 0 | CB68: 0 | CC68: 16250.00975 | CD68: 0 | CE68: 0 | CF68: 0 | CG68: 0 | CH68: 0 | CI68: 0 | CJ68: 0 | CK68: 0 | CL68: 0 | CM68: 0 | CN68: 0 | CO68: 0 | CP68: 0 | CQ68: 0 | CR68: 0 | CS68: 0 | CT68: 0 | CU68: 0 | CV68: 0 | CW68: 0 | CX68: 0 | CY68: 0 | CZ68: 0 | DA68: 0 | DB68: 0 | DC68: 0 | DD68: 0 | DE68: 0 | DF68: 0 | DG68: 0 | DH68: 0 | DI68: 0 | DJ68: 0 | DK68: 0 | DL68: 0 | DM68: 0 | DN68: 0 | DO68: 0 | DP68: 160425.0042 | DQ68: 0 | DR68: 0 | DS68: 0 | DT68: 0 | DU68: 0 | DV68: 0 | DW68: 0 | DX68: 0 | DY68: 0 | DZ68: 0 | EA68: 573042.7224 | EB68: 1013235.324 | EC68: 0 | ED68: 1586278.047 | EE68: 0 | EF68: 0 | EG68: 0 | EH68: 0 | EI68: 0 | EJ68: 0 | EK68: 0 | EL68: 0 | EM68: 1586278.047 | EN68: 1746703.051 | EO68: 0 | EP68: 1746703.051
D69: 22 | E69: 電力・ガス・熱供給 | F69: 11.55535417 | G69: 0.002362574968 | H69: 972.6331316 | I69: 71.71891636 | J69: 18.90591553 | K69: 217.4821135 | L69: 0.9025036376 | M69: 355.9508604 | N69: 452.516387 | O69: 1100.237578 | P69: 440.4572138 | Q69: 358.5325642 | R69: 57.82461297 | S69: 151.6034824 | T69: 225.979705 | U69: 11.82173449 | V69: 158.073394 | W69: 6.751648613 | X69: 1056.662836 | Y69: 108.3648167 | Z69: 667.8580076 | AA69: 853.0927447 | AB69: 72.30601624 | AC69: 197.5744662 | AD69: 6787.204185 | AE69: 282.0058078 | AF69: 482.6392179 | AG69: 352.5906882 | AH69: 507.4096351 | AI69: 1104.326014 | AJ69: 1459.892365 | AK69: 2625.65714 | AL69: 64.53846039 | AM69: 2259.199909 | AN69: 10860.51732 | AO69: 0 | AP69: 0 | AQ69: 556.6834987 | AR69: 1074.447833 | AS69: 87.66796874 | AT69: 9304.270388 | AU69: 2822.511752 | AV69: 4001.095593 | AW69: 5860.756877 | AX69: 1275.707002 | AY69: 15274.90969 | AZ69: 7795.595978 | BA69: 40601.52061 | BB69: 4562.870515 | BC69: 6668.261225 | BD69: 2845.174519 | BE69: 4971.357597 | BF69: 1664.912959 | BG69: 2996.5275 | BH69: 3048.900314 | BI69: 436.4396922 | BJ69: 67818.32341 | BK69: 1821.849776 | BL69: 1910.177145 | BM69: 22563.47408 | BN69: 2191.031267 | BO69: 3637.506666 | BP69: 19847.85212 | BQ69: 1252.15162 | BR69: 2058.088026 | BS69: 4365.096309 | BT69: 422.8300062 | BU69: 3005.835057 | BV69: 8721.522789 | BW69: 9884.090068 | BX69: 248.3962308 | BY69: 3625.918022 | BZ69: 17470.90475 | CA69: 0 | CB69: -456.7699724 | CC69: 2909.89564 | CD69: 5584.646836 | CE69: 1648.278259 | CF69: 20874.74191 | CG69: 4574.532709 | CH69: 24407.75269 | CI69: 37217.01353 | CJ69: 6299.305934 | CK69: 17797.04632 | CL69: 15448.67324 | CM69: 48404.689 | CN69: 14379.90481 | CO69: 11884.04552 | CP69: 6355.275232 | CQ69: 7495.260764 | CR69: 2769.192845 | CS69: 18297.33884 | CT69: 6396.197254 | CU69: 1350.4202 | CV69: 20876.35835 | CW69: 8165.427971 | CX69: 8395.625067 | CY69: 100342.1009 | CZ69: 9022.060835 | DA69: 17058.72374 | DB69: 95148.00008 | DC69: 7672.932004 | DD69: 15076.65243 | DE69: 31491.29828 | DF69: 12721.06456 | DG69: 21049.3593 | DH69: 36736.72619 | DI69: 34118.78654 | DJ69: 785.5560955 | DK69: 16394.20413 | DL69: 79472.2683 | DM69: 0 | DN69: 1018.658319 | DO69: 11672.71353 | DP69: 1101905.406 | DQ69: 22.8915795 | DR69: 30230.33981 | DS69: 0 | DT69: 0 | DU69: 0 | DV69: 0 | DW69: 30253.23139 | DX69: 96.14049979 | DY69: 95404.831 | DZ69: 0 | EA69: 0 | EB69: 0 | EC69: 0 | ED69: 95500.9715 | EE69: 293.1759183 | EF69: 299713.9916 | EG69: 0 | EH69: 0 | EI69: 0 | EJ69: 0 | EK69: 300007.1675 | EL69: 3483.791719 | EM69: 429245.1621 | EN69: 1531150.568 | EO69: -90.99523231 | EP69: 1531059.573
D70: 23 | E70: 水道 | F70: 0 | G70: 0 | H70: 0 | I70: 0 | J70: 0 | K70: 0 | L70: 0 | M70: 0 | N70: 0 | O70: 0 | P70: 0 | Q70: 0 | R70: 0 | S70: 0 | T70: 0 | U70: 0 | V70: 0 | W70: 0 | X70: 0 | Y70: 0 | Z70: 0 | AA70: 0 | AB70: 0 | AC70: 0 | AD70: 0 | AE70: 0 | AF70: 0 | AG70: 0 | AH70: 0 | AI70: 0 | AJ70: 0 | AK70: 0 | AL70: 0 | AM70: 0 | AN70: 0 | AO70: 0 | AP70: 0 | AQ70: 0 | AR70: 243.8997419 | AS70: 33.07587949 | AT70: 3328.856294 | AU70: 455.3553885 | AV70: 969.1303665 | AW70: 2085.142066 | AX70: 390.0435097 | AY70: 1489.082573 | AZ70: 658.5790035 | BA70: 2653.041672 | BB70: 353.0998026 | BC70: 552.7987944 | BD70: 543.7773217 | BE70: 1045.552614 | BF70: 744.2325172 | BG70: 719.2340476 | BH70: 702.0686318 | BI70: 50.17369976 | BJ70: 4561.919308 | BK70: 444.3543865 | BL70: 1271.084725 | BM70: 951.4049242 | BN70: 16470.85505 | BO70: 2193.736287 | BP70: 6383.20345 | BQ70: 930.5775169 | BR70: 837.5998797 | BS70: 7485.853457 | BT70: 271.6104566 | BU70: 3028.973586 | BV70: 15565.26846 | BW70: 9632.534105 | BX70: 294.0125876 | BY70: 1077.96064 | BZ70: 11475.69196 | CA70: 0 | CB70: 210.9904536 | CC70: 1863.23799 | CD70: 87.40084182 | CE70: 28.03449109 | CF70: 831.6924787 | CG70: 68.04122578 | CH70: 291.9359858 | CI70: 839.08813 | CJ70: 98.82768882 | CK70: 138.3324052 | CL70: 89.74884922 | CM70: 292.399813 | CN70: 79.52523571 | CO70: 90.56109543 | CP70: 73.47469897 | CQ70: 98.64081282 | CR70: 43.41200629 | CS70: 296.3831401 | CT70: 106.2758205 | CU70: 15.51550913 | CV70: 179.0694029 | CW70: 93.04607383 | CX70: 567.4552343 | CY70: 221.6457988 | CZ70: 5113.174713 | DA70: 545.1697143 | DB70: 2696.205501 | DC70: 562.2943994 | DD70: 405.7938058 | DE70: 2422.407574 | DF70: 1139.845443 | DG70: 2035.322662 | DH70: 4814.40361 | DI70: 3847.474123 | DJ70: 124.620319 | DK70: 678.4513005 | DL70: 5846.504759 | DM70: 0 | DN70: 81.8161808 | DO70: 546.8149178 | DP70: 137458.8189 | DQ70: 0 | DR70: 0 | DS70: 0 | DT70: 0 | DU70: 0 | DV70: 0 | DW70: 0 | DX70: 116.7192722 | DY70: 70834.66612 | DZ70: -1950.364229 | EA70: 0 | EB70: 0 | EC70: 0 | ED70: 69001.02116 | EE70: 32.93086744 | EF70: 23884.33343 | EG70: -3899.338889 | EH70: 0 | EI70: 0 | EJ70: 0 | EK70: 20017.92541 | EL70: 1025.001525 | EM70: 90043.9481 | EN70: 227502.767 | EO70: -61.3776176 | EP70: 227441.621
D71: 24 | E71: 廃棄物処理 | F71: 6.604949507 | G71: 0.06034848888 | H71: 130.3878323 | I71: 2.085660896 | J71: 10.41460837 | K71: 196.6573211 | L71: 0.1296850506 | M71: 0.5392843687 | N71: 71.40125042 | O71: 2.531640509 | P71: 0.405747287 | Q71: 4.64512163 | R71: 6.3695476 | S71: 3.412899648 | T71: 19.47330175 | U71: 3.286210622 | V71: 22.16244754 | W71: 2.076672823 | X71: 31.34782995 | Y71: 32.42554268 | Z71: 826.7558936 | AA71: 1351.181694 | AB71: 60.29798447 | AC71: 0 | AD71: 2408.923355 | AE71: 1253.664956 | AF71: 13.34044007 | AG71: 4620.323965 | AH71: 3537.785496 | AI71: 9529.935902 | AJ71: 1837.644015 | AK71: 2216.148025 | AL71: 1.010516186 | AM71: 325.9370524 | AN71: 10833.69995 | AO71: 0 | AP71: 476.3250587 | AQ71: 371.9208889 | AR71: 113.3113145 | AS71: 24.87450567 | AT71: 1130.788449 | AU71: 31.81677384 | AV71: 298.8775148 | AW71: 1775.148622 | AX71: 5.729281991 | AY71: 53.29917953 | AZ71: 667.3394578 | BA71: 239.2819425 | BB71: 31.84542325 | BC71: 59.73590437 | BD71: 230.3821313 | BE71: 34.96761808 | BF71: 799.8341678 | BG71: 257.1018946 | BH71: 212.9830946 | BI71: 32.39719112 | BJ71: 1619.338426 | BK71: 81.22741827 | BL71: 2984.691549 | BM71: 8353.290075 | BN71: 295.4691117 | BO71: 0 | BP71: 2815.810263 | BQ71: 1922.701796 | BR71: 18.683085 | BS71: 6035.177593 | BT71: 440.9645037 | BU71: 20313.75745 | BV71: 6992.061061 | BW71: 6881.269273 | BX71: 2.107863072 | BY71: 463.9351249 | BZ71: 18325.57367 | CA71: 0 | CB71: 1815.888089 | CC71: 1044.457624 | CD71: 65.97714643 | CE71: 26.13456032 | CF71: 364.9243787 | CG71: 3.86697014 | CH71: 114.2705631 | CI71: 819.4282229 | CJ71: 2.644924213 | CK71: 5.982088983 | CL71: 160.3234826 | CM71: 44.76127075 | CN71: 19.93099932 | CO71: 12.08078385 | CP71: 33.15147891 | CQ71: 3.717818602 | CR71: 30.98118487 | CS71: 134.4490122 | CT71: 44.89803018 | CU71: 12.10467921 | CV71: 229.2339572 | CW71: 35.82082625 | CX71: 1528.044514 | CY71: 3275.75801 | CZ71: 116.954804 | DA71: 0 | DB71: 1605.019484 | DC71: 1509.769615 | DD71: 12.54797225 | DE71: 3391.385852 | DF71: 2386.204063 | DG71: 14333.71796 | DH71: 2641.780357 | DI71: 3077.842914 | DJ71: 1.115466592 | DK71: 275.9268602 | DL71: 12423.31576 | DM71: 0 | DN71: 885.1796061 | DO71: 382.6116397 | DP71: 176629.2888 | DQ71: 0 | DR71: 795.7650185 | DS71: 9614.776889 | DT71: 0 | DU71: 0 | DV71: 0 | DW71: 10410.54191 | DX71: 0 | DY71: 12345.68063 | DZ71: 24059.53891 | EA71: 0 | EB71: 0 | EC71: 0 | ED71: 36405.21954 | EE71: 0 | EF71: 3814.4364 | EG71: 8400.825702 | EH71: 0 | EI71: 0 | EJ71: 0 | EK71: 12215.2621 | EL71: 362.9598488 | EM71: 59393.9834 | EN71: 236023.2722 | EO71: -8.745181825 | EP71: 236014.527
D72: 25 | E72: 商業 | F72: 17.40481847 | G72: 0.03490109116 | H72: 577.6592509 | I72: 47.28474056 | J72: 98.69631462 | K72: 138.4622102 | L72: 2.556696088 | M72: 143.2709278 | N72: 67.50254984 | O72: 194.5850593 | P72: 229.4554661 | Q72: 119.1153509 | R72: 50.71328909 | S72: 221.9435498 | T72: 328.0073391 | U72: 9.919840476 | V72: 316.8225727 | W72: 14.8355503 | X72: 374.5948986 | Y72: 207.5376573 | Z72: 1559.057767 | AA72: 142.2009933 | AB72: 26.5899817 | AC72: 33.06911001 | AD72: 1197.961068 | AE72: 123.9238402 | AF72: 70.22775728 | AG72: 708.6706256 | AH72: 519.1965661 | AI72: 172.3189614 | AJ72: 699.1532237 | AK72: 1313.542242 | AL72: 67.37124178 | AM72: 1025.047957 | AN72: 3062.075796 | AO72: 221.4872166 | AP72: 15.25356119 | AQ72: 52.67447586 | AR72: 15268.55191 | AS72: 154.7432087 | AT72: 52239.10169 | AU72: 6820.005363 | AV72: 19235.31661 | AW72: 17117.00236 | AX72: 3586.223247 | AY72: 36074.27966 | AZ72: 8807.978135 | BA72: 31846.75457 | BB72: 11323.86674 | BC72: 16202.46468 | BD72: 15013.73274 | BE72: 31428.65959 | BF72: 16353.19889 | BG72: 6751.445094 | BH72: 32361.13667 | BI72: 4819.95629 | BJ72: 252741.6322 | BK72: 14381.67546 | BL72: 37972.16395 | BM72: 11034.51307 | BN72: 1984.713054 | BO72: 1689.217818 | BP72: 12992.87488 | BQ72: 2041.783837 | BR72: 2020.936951 | BS72: 34258.39161 | BT72: 2011.84978 | BU72: 3568.221483 | BV72: 26079.08031 | BW72: 44517.33108 | BX72: 2632.21515 | BY72: 17797.95326 | BZ72: 42083.06485 | CA72: 5845.079225 | CB72: 611.126778 | CC72: 1565.544155 | CD72: 720.7870554 | CE72: 13.64247466 | CF72: 1880.247196 | CG72: 194.6424978 | CH72: 635.113231 | CI72: 737.5107899 | CJ72: 120.3612659 | CK72: 491.4230239 | CL72: 149.3663231 | CM72: 377.6799318 | CN72: 211.5211618 | CO72: 339.780311 | CP72: 304.148591 | CQ72: 453.0875182 | CR72: 202.1159108 | CS72: 396.9030698 | CT72: 519.1823937 | CU72: 163.0938966 | CV72: 1055.967321 | CW72: 495.4930959 | CX72: 2384.54078 | CY72: 288.5245288 | CZ72: 57.85036267 | DA72: 56.0010535 | DB72: 805.4715878 | DC72: 155.3236227 | DD72: 92.70654287 | DE72: 1273.572325 | DF72: 465.5485748 | DG72: 340.9380536 | DH72: 656.7804772 | DI72: 2384.773879 | DJ72: 144.7896586 | DK72: 1074.167259 | DL72: 3517.665446 | DM72: 266.8418399 | DN72: 33.41171143 | DO72: 54.0922253 | DP72: 880919.0788 | DQ72: 1439.988402 | DR72: 28220.81537 | DS72: 10.1062843 | DT72: 260.065556 | DU72: 2525.737592 | DV72: 58.27492193 | DW72: 32514.98813 | DX72: 46248.53672 | DY72: 1241402.474 | DZ72: 250.8381197 | EA72: 5968.337316 | EB72: 168904.2571 | EC72: 1400.139027 | ED72: 1464174.582 | EE72: 1593.712033 | EF72: 46357.6627 | EG72: 9.643920871 | EH72: 378.5061631 | EI72: 5343.158868 | EJ72: 124.4183271 | EK72: 53807.10201 | EL72: 127132.4767 | EM72: 1677629.149 | EN72: 2558548.227 | EO72: -11318.76147 | EP72: 2547229.701
D73: 26 | E73: 金融・保険 | F73: 37.36657199 | G73: 0.7848253731 | H73: 683.2106047 | I73: 125.2869621 | J73: 192.9549892 | K73: 275.9158844 | L73: 7.066073304 | M73: 122.7785057 | N73: 294.1809847 | O73: 342.7574661 | P73: 355.7075115 | Q73: 401.0681601 | R73: 102.8348588 | S73: 460.4961069 | T73: 443.8537015 | U73: 22.96236417 | V73: 425.3328406 | W73: 38.10096359 | X73: 832.9763523 | Y73: 500.7483854 | Z73: 4087.48175 | AA73: 1804.178916 | AB73: 426.9661533 | AC73: 851.5758338 | AD73: 21222.07358 | AE73: 12012.29147 | AF73: 34174.65251 | AG73: 9796.387502 | AH73: 3012.052144 | AI73: 3429.754339 | AJ73: 1653.186682 | AK73: 3471.834291 | AL73: 473.4816195 | AM73: 5600.822936 | AN73: 2465.446794 | AO73: 0 | AP73: 55.96596986 | AQ73: 3820.36724 | AR73: 837.4999071 | AS73: 210.7427806 | AT73: 3232.642015 | AU73: 1320.531337 | AV73: 1696.741593 | AW73: 1466.94732 | AX73: 956.1948766 | AY73: 1262.822717 | AZ73: 1882.110422 | BA73: 4174.89985 | BB73: 1556.808869 | BC73: 3433.196663 | BD73: 1430.953754 | BE73: 3700.147053 | BF73: 2542.700699 | BG73: 690.2862572 | BH73: 2248.936641 | BI73: 498.4683435 | BJ73: 15320.7289 | BK73: 3099.594202 | BL73: 6492.22991 | BM73: 6627.25225 | BN73: 1871.945624 | BO73: 2337.89074 | BP73: 12093.9808 | BQ73: 8759.057632 | BR73: 71478.51343 | BS73: 17909.83203 | BT73: 579.1817838 | BU73: 3864.172213 | BV73: 3773.038082 | BW73: 4205.446281 | BX73: 994.330654 | BY73: 4196.984189 | BZ73: 2342.158317 | CA73: 0 | CB73: 125.5910149 | CC73: 10014.64034 | CD73: 105.6946382 | CE73: 42.61358541 | CF73: 230.14805 | CG73: 71.94239563 | CH73: 117.4295138 | CI73: 183.5890889 | CJ73: 67.8494629 | CK73: 32.90287427 | CL73: 71.55886932 | CM73: 115.8044645 | CN73: 71.89518486 | CO73: 134.2261813 | CP73: 64.11647912 | CQ73: 113.3137148 | CR73: 73.63805376 | CS73: 85.38594504 | CT73: 103.8983516 | CU73: 44.56066378 | CV73: 181.2245454 | CW73: 144.702624 | CX73: 800.5606656 | CY73: 409.878968 | CZ73: 106.9418882 | DA73: 129.3367601 | DB73: 1646.534037 | DC73: 1718.195834 | DD73: 7275.879355 | DE73: 2270.818835 | DF73: 360.2323804 | DG73: 859.181813 | DH73: 311.5027355 | DI73: 565.3959864 | DJ73: 119.0615375 | DK73: 770.7526361 | DL73: 434.7752197 | DM73: 0 | DN73: 13.51144819 | DO73: 1060.24134 | DP73: 344163.3995 | DQ73: 1.885160707 | DR73: 77924.21682 | DS73: 0 | DT73: 0 | DU73: 0 | DV73: 0 | DW73: 77926.10198 | DX73: 6.526734556 | DY73: 338869.9097 | DZ73: 0 | EA73: 0 | EB73: 0 | EC73: 0 | ED73: 338876.4365 | EE73: 0.7284444147 | EF73: 37745.99843 | EG73: 0 | EH73: 0 | EI73: 0 | EJ73: 0 | EK73: 37746.72687 | EL73: 27661.82424 | EM73: 482211.0896 | EN73: 826374.489 | EO73: -55326.40624 | EP73: 771048.5735
D74: 27 | E74: 不動産 | F74: 72.02768463 | G74: 0.09620232237 | H74: 268.8431929 | I74: 28.1828959 | J74: 51.93455292 | K74: 109.2252282 | L74: 1.129152191 | M74: 116.5469213 | N74: 72.97603835 | O74: 102.1885312 | P74: 85.14318194 | Q74: 138.7363867 | R74: 58.23825523 | S74: 196.2826558 | T74: 104.6392402 | U74: 5.58798798 | V74: 171.2612829 | W74: 12.3812131 | X74: 81.77919563 | Y74: 160.115483 | Z74: 1663.636046 | AA74: 551.7809288 | AB74: 25.99706565 | AC74: 51.49841853 | AD74: 36939.66329 | AE74: 3984.740685 | AF74: 16314.90001 | AG74: 10299.88024 | AH74: 11055.99232 | AI74: 217.2877752 | AJ74: 3770.053726 | AK74: 5624.33982 | AL74: 323.1198726 | AM74: 5693.129638 | AN74: 5239.525114 | AO74: 0 | AP74: 629.9338385 | AQ74: 11051.67353 | AR74: 611.3974756 | AS74: 33.37111409 | AT74: 1582.715868 | AU74: 255.011146 | AV74: 366.0666106 | AW74: 226.5886636 | AX74: 23.62746466 | AY74: 774.478282 | AZ74: 202.9142142 | BA74: 510.1422135 | BB74: 324.2255295 | BC74: 1584.33455 | BD74: 912.1243861 | BE74: 1597.58491 | BF74: 89.9133362 | BG74: 102.4714602 | BH74: 1162.049719 | BI74: 67.20954721 | BJ74: 2128.643722 | BK74: 376.6550595 | BL74: 3691.846708 | BM74: 2308.415233 | BN74: 152.4637583 | BO74: 276.2336035 | BP74: 33857.11756 | BQ74: 6246.929552 | BR74: 41783.19084 | BS74: 19493.79283 | BT74: 4485.915169 | BU74: 413.1996331 | BV74: 13006.14006 | BW74: 19795.282 | BX74: 1166.427668 | BY74: 5525.142982 | BZ74: 7376.850705 | CA74: 0 | CB74: 2713.309029 | CC74: 35067.2411 | CD74: 43.56068843 | CE74: 12.63330919 | CF74: 111.6996132 | CG74: 18.46041078 | CH74: 26.54093585 | CI74: 34.70888502 | CJ74: 1.891277731 | CK74: 21.67408725 | CL74: 11.6498876 | CM74: 10.67838042 | CN74: 4.481062914 | CO74: 76.86786424 | CP74: 33.92941999 | CQ74: 49.19339132 | CR74: 1.480365891 | CS74: 16.48526275 | CT74: 52.95834012 | CU74: 6.917268198 | CV74: 22.80498079 | CW74: 34.92205705 | CX74: 497.8537738 | CY74: 163.8468406 | CZ74: 13.48987413 | DA74: 18.94814132 | DB74: 4993.53774 | DC74: 1061.497458 | DD74: 5044.00016 | DE74: 2142.693667 | DF74: 2222.447664 | DG74: 141.4127232 | DH74: 574.0812646 | DI74: 2140.26191 | DJ74: 151.656163 | DK74: 948.8299559 | DL74: 1101.663597 | DM74: 0 | DN74: 320.7625189 | DO74: 3115.381503 | DP74: 350811.3937 | DQ74: 0 | DR74: 4478.66301 | DS74: 0 | DT74: 0 | DU74: 0 | DV74: 0 | DW74: 4478.66301 | DX74: 0 | DY74: 2649453.218 | DZ74: 761.2906978 | EA74: 0 | EB74: 0 | EC74: 0 | ED74: 2650214.509 | EE74: 0 | EF74: 1182.499474 | EG74: 0 | EH74: 0 | EI74: 6513.718083 | EJ74: 0 | EK74: 7696.217557 | EL74: 1496.952637 | EM74: 2663886.342 | EN74: 3014697.736 | EO74: -78.669678 | EP74: 3014619.066
D75: 28 | E75: 運輸・郵便 | F75: 20.3743404 | G75: 0.2849490151 | H75: 632.7297716 | I75: 51.92039321 | J75: 118.7037581 | K75: 405.192561 | L75: 27.52864406 | M75: 236.5914976 | N75: 228.2435498 | O75: 442.1559634 | P75: 396.0828721 | Q75: 286.1636048 | R75: 109.283856 | S75: 447.9460982 | T75: 334.4016393 | U75: 22.23432503 | V75: 592.9120266 | W75: 40.41804633 | X75: 401.6274142 | Y75: 956.8569758 | Z75: 1587.956405 | AA75: 1527.710098 | AB75: 106.4053986 | AC75: 551.591808 | AD75: 24187.72115 | AE75: 7170.184165 | AF75: 403.284537 | AG75: 40227.95835 | AH75: 8628.585526 | AI75: 3317.381262 | AJ75: 5082.241723 | AK75: 1740.920868 | AL75: 416.0589773 | AM75: 5288.288676 | AN75: 6308.043644 | AO75: 51.04406581 | AP75: 1115.103913 | AQ75: 8251.153763 | AR75: 14180.06341 | AS75: 3647.801665 | AT75: 25181.57088 | AU75: 3715.634355 | AV75: 11117.5609 | AW75: 8793.841706 | AX75: 6800.381989 | AY75: 7418.290088 | AZ75: 12129.52314 | BA75: 27152.15714 | BB75: 7821.956879 | BC75: 14904.42148 | BD75: 9613.725931 | BE75: 17134.55711 | BF75: 11499.79794 | BG75: 3710.812706 | BH75: 12286.08794 | BI75: 1992.164882 | BJ75: 73880.9609 | BK75: 29343.48486 | BL75: 47288.3517 | BM75: 29826.63864 | BN75: 3256.642513 | BO75: 8880.834345 | BP75: 99643.02956 | BQ75: 16230.29673 | BR75: 5406.805198 | BS75: 100739.5915 | BT75: 6631.253595 | BU75: 16197.37433 | BV75: 31275.2072 | BW75: 20541.98954 | BX75: 3284.7171 | BY75: 16569.16931 | BZ75: 28107.01057 | CA75: 1032.836416 | CB75: 146459.4324 | CC75: 52187.31783 | CD75: 6689.963135 | CE75: 67.83499934 | CF75: 14114.62935 | CG75: 838.119501 | CH75: 6143.395733 | CI75: 6151.566278 | CJ75: 3392.201093 | CK75: 1631.000214 | CL75: 3885.840035 | CM75: 4500.910374 | CN75: 2803.926098 | CO75: 2751.730009 | CP75: 1874.921821 | CQ75: 2525.118002 | CR75: 1282.708249 | CS75: 2491.631705 | CT75: 3142.334991 | CU75: 1103.525469 | CV75: 7067.207285 | CW75: 11775.36389 | CX75: 30153.91644 | CY75: 12806.87036 | CZ75: 907.3913316 | DA75: 2469.837268 | DB75: 3921.701454 | DC75: 5416.572286 | DD75: 597.5830173 | DE75: 26607.45545 | DF75: 7972.673667 | DG75: 7924.261705 | DH75: 5074.509806 | DI75: 10703.19501 | DJ75: 911.2396025 | DK75: 5834.945587 | DL75: 16856.34989 | DM75: 1499.246396 | DN75: 4396.585529 | DO75: 33004.60642 | DP75: 1318889.45 | DQ75: 775.9573081 | DR75: 86214.99955 | DS75: 23.33242451 | DT75: 21.19190195 | DU75: 246.1845157 | DV75: 35.95524089 | DW75: 87317.62094 | DX75: 8657.08563 | DY75: 254144.9638 | DZ75: 763.3771558 | EA75: 613.9269071 | EB75: 18522.45922 | EC75: 1083.400108 | ED75: 283785.2128 | EE75: 6675.945753 | EF75: 114300.5612 | EG75: 331.6289907 | EH75: 1273.38865 | EI75: 15895.54031 | EJ75: 976.3936511 | EK75: 139453.4586 | EL75: 181059.8181 | EM75: 691616.1104 | EN75: 2010505.561 | EO75: -99689.41171 | EP75: 1910816.131
D76: 29 | E76: 情報通信 | F76: 10.82265969 | G76: 0.05320353305 | H76: 278.746854 | I76: 20.42450227 | J76: 58.44868975 | K76: 281.8944206 | L76: 1.045574179 | M76: 117.0970198 | N76: 106.47027 | O76: 131.3421766 | P76: 142.7317482 | Q76: 103.518336 | R76: 53.10807672 | S76: 394.1928781 | T76: 373.928092 | U76: 21.28399251 | V76: 783.8098074 | W76: 78.84341222 | X76: 225.7294184 | Y76: 154.0464423 | Z76: 1435.117679 | AA76: 737.3306978 | AB76: 479.510706 | AC76: 112.4311372 | AD76: 20224.33808 | AE76: 8298.577316 | AF76: 946.3436734 | AG76: 2269.003199 | AH76: 34423.09838 | AI76: 2691.838589 | AJ76: 6452.134059 | AK76: 2280.393267 | AL76: 604.0626821 | AM76: 24148.62113 | AN76: 3473.543086 | AO76: 0 | AP76: 514.0258142 | AQ76: 6596.362654 | AR76: 188.6673725 | AS76: 6.578561083 | AT76: 842.6452877 | AU76: 120.7707435 | AV76: 353.1379699 | AW76: 985.1732602 | AX76: 47.58891587 | AY76: 784.0815662 | AZ76: 503.134578 | BA76: 1001.036292 | BB76: 315.2357644 | BC76: 533.3569853 | BD76: 875.1488495 | BE76: 1772.924711 | BF76: 895.7432025 | BG76: 312.4775216 | BH76: 3581.317307 | BI76: 566.0615277 | BJ76: 4639.609257 | BK76: 288.4726072 | BL76: 1236.490896 | BM76: 1678.265351 | BN76: 1871.555246 | BO76: 260.9939599 | BP76: 10332.03928 | BQ76: 6330.835959 | BR76: 558.7162541 | BS76: 1945.913853 | BT76: 4193.247195 | BU76: 2584.813344 | BV76: 10453.9687 | BW76: 3878.84133 | BX76: 1053.029766 | BY76: 9813.221822 | BZ76: 2675.819072 | CA76: 0 | CB76: 635.8307866 | CC76: 9655.869524 | CD76: 14.61825051 | CE76: 3.219249182 | CF76: 32.76424967 | CG76: 5.213336431 | CH76: 12.57875657 | CI76: 100.4890646 | CJ76: 3.611795389 | CK76: 9.102438659 | CL76: 6.014566501 | CM76: 9.208373769 | CN76: 4.537639083 | CO76: 13.9351392 | CP76: 14.15431548 | CQ76: 26.89121739 | CR76: 8.3566531 | CS76: 19.31364545 | CT76: 30.29392742 | CU76: 17.33803872 | CV76: 16.60169904 | CW76: 14.2832019 | CX76: 241.2653363 | CY76: 24.08260239 | CZ76: 26.17907006 | DA76: 20.69896344 | DB76: 1296.992259 | DC76: 556.1498576 | DD76: 120.0504291 | DE76: 179.4951164 | DF76: 7311.319279 | DG76: 357.6005817 | DH76: 331.0257489 | DI76: 251.039766 | DJ76: 86.18445598 | DK76: 10515.69048 | DL76: 1237.693632 | DM76: 0 | DN76: 209.3893344 | DO76: 408.8154204 | DP76: 230333.0822 | DQ76: 441.0870922 | DR76: 25790.39535 | DS76: 86.6410545 | DT76: 3948.600954 | DU76: 20088.49286 | DV76: -54.83248637 | DW76: 50300.38482 | DX76: 489.6582344 | DY76: 43119.12835 | DZ76: 57.92741581 | EA76: 5466.874652 | EB76: 100647.528 | EC76: -0.8522313295 | ED76: 149780.2644 | EE76: 118.2907779 | EF76: 12571.11945 | EG76: 8.885176542 | EH76: 122.8278304 | EI76: 946.7065889 | EJ76: -7.566723244 | EK76: 13760.2631 | EL76: 5559.146695 | EM76: 219400.059 | EN76: 449733.1413 | EO76: -82263.92929 | EP76: 367469.212
D77: 30 | E77: 公務 | F77: 0 | G77: 0 | H77: 0 | I77: 0 | J77: 0 | K77: 0 | L77: 0 | M77: 0 | N77: 0 | O77: 0 | P77: 0 | Q77: 0 | R77: 0 | S77: 0 | T77: 0 | U77: 0 | V77: 0 | W77: 0 | X77: 0 | Y77: 0 | Z77: 0 | AA77: 0 | AB77: 0 | AC77: 0 | AD77: 0 | AE77: 0 | AF77: 0 | AG77: 0 | AH77: 0 | AI77: 0 | AJ77: 0 | AK77: 0 | AL77: 0 | AM77: 0 | AN77: 0 | AO77: 0 | AP77: 0 | AQ77: 0 | AR77: 0 | AS77: 0 | AT77: 0 | AU77: 0 | AV77: 0 | AW77: 0 | AX77: 0 | AY77: 0 | AZ77: 0 | BA77: 0 | BB77: 0 | BC77: 0 | BD77: 0 | BE77: 0 | BF77: 0 | BG77: 0 | BH77: 0 | BI77: 0 | BJ77: 0 | BK77: 0 | BL77: 0 | BM77: 0 | BN77: 0 | BO77: 0 | BP77: 0 | BQ77: 0 | BR77: 0 | BS77: 0 | BT77: 0 | BU77: 0 | BV77: 0 | BW77: 0 | BX77: 0 | BY77: 0 | BZ77: 0 | CA77: 0 | CB77: 32484.47606 | CC77: 0 | CD77: 0 | CE77: 0 | CF77: 0 | CG77: 0 | CH77: 0 | CI77: 0 | CJ77: 0 | CK77: 0 | CL77: 0 | CM77: 0 | CN77: 0 | CO77: 0 | CP77: 0 | CQ77: 0 | CR77: 0 | CS77: 0 | CT77: 0 | CU77: 0 | CV77: 0 | CW77: 0 | CX77: 0 | CY77: 0 | CZ77: 0 | DA77: 0 | DB77: 0 | DC77: 0 | DD77: 0 | DE77: 0 | DF77: 0 | DG77: 0 | DH77: 0 | DI77: 0 | DJ77: 0 | DK77: 0 | DL77: 0 | DM77: 0 | DN77: 0 | DO77: 0 | DP77: 32484.47606 | DQ77: 0 | DR77: 0 | DS77: 0 | DT77: 0 | DU77: 0 | DV77: 0 | DW77: 0 | DX77: 0 | DY77: 52753.48033 | DZ77: 632058.0476 | EA77: 0 | EB77: 0 | EC77: 0 | ED77: 684811.5279 | EE77: 0 | EF77: 0 | EG77: 0 | EH77: 0 | EI77: 0 | EJ77: 0 | EK77: 0 | EL77: 0 | EM77: 684811.5279 | EN77: 717296.004 | EO77: 0 | EP77: 717296.004
D78: 31 | E78: 教育・研究 | F78: 0.4435831627 | G78: 0.00265790721 | H78: 5.385494689 | I78: 0 | J78: 0.8901834092 | K78: 2.423364857 | L78: 0 | M78: 0 | N78: 3.798293073 | O78: 1.961535521 | P78: 0 | Q78: 3.352123839 | R78: 3.110182447 | S78: 6.036681955 | T78: 7.042089234 | U78: 1.620389539 | V78: 23.00066697 | W78: 0.744070348 | X78: 3.948285242 | Y78: 0.1382830102 | Z78: 14.31922367 | AA78: 13.70151167 | AB78: 0.5421412354 | AC78: 0.9640301284 | AD78: 63.4902197 | AE78: 7.672156913 | AF78: 0 | AG78: 194.5620403 | AH78: 616.8320198 | AI78: 4.047130656 | AJ78: 0.06508280897 | AK78: 8.544165984 | AL78: 0 | AM78: 100.8533552 | AN78: 44.44602721 | AO78: 0 | AP78: 0.8700695168 | AQ78: 418.6435883 | AR78: 7.892400017 | AS78: 3.508134307 | AT78: 168.5467679 | AU78: 0 | AV78: 10.32384523 | AW78: 26.87004637 | AX78: 0 | AY78: 0 | AZ78: 135.4172128 | BA78: 121.2430987 | BB78: 0 | BC78: 101.8440552 | BD78: 125.9538886 | BE78: 78.33770957 | BF78: 47.98826979 | BG78: 227.4548436 | BH78: 522.5074724 | BI78: 214.9707195 | BJ78: 535.0390724 | BK78: -1.01748025e-07 | BL78: 16.35934855 | BM78: 152.7843331 | BN78: 14.75603449 | BO78: 25.96711169 | BP78: 29.11279852 | BQ78: 43.81160138 | BR78: 0 | BS78: 859.0705738 | BT78: 840.2196177 | BU78: 32.14908664 | BV78: 0.3391124299 | BW78: 76.55780279 | BX78: 0 | BY78: 343.0138964 | BZ78: 100.0639758 | CA78: 0 | CB78: 18.52492358 | CC78: 6531.52718 | CD78: 0.9643927605 | CE78: 0.6977307864 | CF78: 16.5786047 | CG78: 0 | CH78: 1.373362985 | CI78: 2.878250229 | CJ78: 0 | CK78: 0 | CL78: 3.552928561 | CM78: 2.72478187 | CN78: 0 | CO78: 8.175553743 | CP78: 4.198323724 | CQ78: 6.953566348 | CR78: 0.5271266265 | CS78: 42.01283918 | CT78: 37.01370006 | CU78: 20.28102366 | CV78: 10.99505537 | CW78: 0.2762640761 | CX78: 2.97925115 | CY78: 18.26681211 | CZ78: 1.89936099 | DA78: 2.777296133 | DB78: 2.881204583 | DC78: 12.08563754 | DD78: 0 | DE78: 185.5404986 | DF78: 627.3710443 | DG78: 21.05247771 | DH78: 0.04883230527 | DI78: 7.654224863 | DJ78: 0 | DK78: 86.87480962 | DL78: 20.89644693 | DM78: 0 | DN78: 2.936781411 | DO78: 778.0640081 | DP78: 14896.13777 | DQ78: 0 | DR78: 5203.901791 | DS78: 5857.338365 | DT78: 1734.081335 | DU78: 5369.30766 | DV78: 0 | DW78: 18164.62915 | DX78: 0 | DY78: 364868.369 | DZ78: 537346.1869 | EA78: 31928.03902 | EB78: 978070.3971 | EC78: 0 | ED78: 1912212.992 | EE78: 0 | EF78: 23144.82405 | EG78: 32674.78375 | EH78: 6756.931319 | EI78: 243322.9807 | EJ78: 0 | EK78: 305899.5198 | EL78: 56220.67927 | EM78: 2292497.82 | EN78: 2307393.958 | EO78: -215163.4655 | EP78: 2092230.493
D79: 32 | E79: 医療・福祉 | F79: 3.06910018 | G79: 0 | H79: 0 | I79: 0 | J79: 0 | K79: 0.1036089485 | L79: 0 | M79: 0 | N79: 0 | O79: 0.03176763734 | P79: 0 | Q79: 0 | R79: 0 | S79: 0 | T79: 0 | U79: 0 | V79: 0 | W79: 0 | X79: 0 | Y79: 0.112269271 | Z79: 0.02432763306 | AA79: 0.01283302326 | AB79: 0.825249999 | AC79: 0 | AD79: 4.264382138 | AE79: 5.600827352 | AF79: 0.5973260582 | AG79: 38.96952212 | AH79: 51.04622368 | AI79: 0.6405883053 | AJ79: 1.1514686 | AK79: 793.1276874 | AL79: 0.03999494366 | AM79: 3.891515891 | AN79: 4.967757781 | AO79: 0 | AP79: 7.451262703 | AQ79: 13.10326469 | AR79: 131.3031554 | AS79: 0 | AT79: 0 | AU79: 0 | AV79: 0.4670908218 | AW79: 5.156679505 | AX79: 0 | AY79: 0 | AZ79: 0 | BA79: 3.047285422 | BB79: 0 | BC79: 0 | BD79: 0 | BE79: 0 | BF79: 0 | BG79: 0 | BH79: 0 | BI79: 0 | BJ79: 0 | BK79: 2.499216182 | BL79: 1.031577369 | BM79: 4.32575451 | BN79: 33.69392172 | BO79: 0 | BP79: 39.46306849 | BQ79: 67.24093205 | BR79: 9.745498063 | BS79: 1984.043237 | BT79: 97.37039326 | BU79: 9.832237621 | BV79: 29.70807279 | BW79: 26948.77988 | BX79: 0.6371114284 | BY79: 34.78404948 | BZ79: 46.58901053 | CA79: 0 | CB79: 236.0875975 | CC79: 306.0499226 | CD79: 12.05708815 | CE79: 0 | CF79: 0 | CG79: 0 | CH79: 0.04156833095 | CI79: 0.8872845847 | CJ79: 0 | CK79: 0 | CL79: 0 | CM79: 0.1094349212 | CN79: 0 | CO79: 0 | CP79: 0 | CQ79: 0 | CR79: 0 | CS79: 0 | CT79: 0 | CU79: 0 | CV79: 0 | CW79: 0.2667897199 | CX79: 0.1530245398 | CY79: 1.696717568 | CZ79: 3.244584814 | DA79: 0 | DB79: 5.433907419 | DC79: 14.20205038 | DD79: 1.320674921 | DE79: 151.6764993 | DF79: 69.92395164 | DG79: 2.739770219 | DH79: 2.504458026 | DI79: 1903.741471 | DJ79: 0.08129572221 | DK79: 7.502204631 | DL79: 9.515410562 | DM79: 0 | DN79: 27.99616598 | DO79: 27.27395693 | DP79: 33163.25498 | DQ79: 904.017502 | DR79: 11429.75851 | DS79: 28798.10368 | DT79: 0 | DU79: 0 | DV79: 0 | DW79: 41131.87969 | DX79: 26181.84326 | DY79: 538022.7603 | DZ79: 1582030.86 | EA79: 0 | EB79: 0 | EC79: 0 | ED79: 2146235.463 | EE79: 1316.483545 | EF79: 12137.85839 | EG79: 26089.99576 | EH79: 0 | EI79: 0 | EJ79: 0 | EK79: 39544.33769 | EL79: 4.568223375 | EM79: 2226916.249 | EN79: 2260079.504 | EO79: -150.1374911 | EP79: 2259929.366
D80: 33 | E80: 他に分類されない会員制団体 | F80: 8.497418181 | G80: 0.08657871119 | H80: 195.8791582 | I80: 7.321076997 | J80: 51.92275882 | K80: 131.4354238 | L80: 0.7547405041 | M80: 26.75705659 | N80: 34.22399989 | O80: 75.14044005 | P80: 37.166735 | Q80: 58.42227913 | R80: 61.10292542 | S80: 290.5656833 | T80: 460.8702431 | U80: 4.068258353 | V80: 88.86410684 | W80: 3.027902209 | X80: 52.79372183 | Y80: 65.66242385 | Z80: 735.5416749 | AA80: 232.1528149 | AB80: 307.1215092 | AC80: 84.87113433 | AD80: 1034.363391 | AE80: 1389.766648 | AF80: 354.3050246 | AG80: 790.765247 | AH80: 1165.021959 | AI80: 0.5477044556 | AJ80: 1537.483575 | AK80: 623.307433 | AL80: 0 | AM80: 2463.146923 | AN80: 1866.896279 | AO80: 0 | AP80: 175.7463141 | AQ80: 3871.77879 | AR80: 88.61177236 | AS80: 12.58349063 | AT80: 505.0810074 | AU80: 24.76963314 | AV80: 254.7071176 | AW80: 403.9999877 | AX80: 13.2678477 | AY80: 247.2789945 | AZ80: 70.6529545 | BA80: 708.5409346 | BB80: 52.56663533 | BC80: 293.5022995 | BD80: 918.5423391 | BE80: 1283.661074 | BF80: 668.7234649 | BG80: 113.0572054 | BH80: 279.4488519 | BI80: 61.48664382 | BJ80: 513.0236115 | BK80: 149.2420897 | BL80: 498.4278394 | BM80: 745.9729901 | BN80: 818.1785626 | BO80: 225.4241089 | BP80: 350.4548933 | BQ80: 1194.774045 | BR80: 268.8618484 | BS80: 948.8516048 | BT80: 132.8329744 | BU80: 0.4456898924 | BV80: 2482.997046 | BW80: 892.4707835 | BX80: 0 | BY80: 1274.809836 | BZ80: 1528.89132 | CA80: 0 | CB80: 364.1586354 | CC80: 5908.650868 | CD80: 12.41212978 | CE80: 1.927802735 | CF80: 22.67049944 | CG80: 1.641559455 | CH80: 7.126825336 | CI80: 32.55571618 | CJ80: 0.5947793547 | CK80: 3.663981297 | CL80: 1.474379489 | CM80: 12.95494092 | CN80: 1.276405228 | CO80: 7.665917651 | CP80: 19.22659061 | CQ80: 22.557583 | CR80: 6.170286002 | CS80: 7.312255361 | CT80: 6.51925687 | CU80: 3.350708022 | CV80: 3.936067646 | CW80: 4.705095186 | CX80: 42.43123031 | CY80: 22.58136654 | CZ80: 41.45560557 | DA80: 9.331873959 | DB80: 23.32106838 | DC80: 85.90407591 | DD80: 19.3202774 | DE80: 51.88147799 | DF80: 52.12389274 | DG80: 0.1163431811 | DH80: 66.29018255 | DI80: 49.52291485 | DJ80: 0 | DK80: 126.7867768 | DL80: 129.1141376 | DM80: 0 | DN80: 22.74945934 | DO80: 277.3910296 | DP80: 43786.39485 | DQ80: 0 | DR80: 29672.98523 | DS80: 0 | DT80: 0 | DU80: 0 | DV80: 0 | DW80: 29672.98523 | DX80: 0 | DY80: 61173.0715 | DZ80: 0 | EA80: 0 | EB80: 0 | EC80: 0 | ED80: 61173.0715 | EE80: 0 | EF80: 3297.026508 | EG80: 0 | EH80: 0 | EI80: 0 | EJ80: 0 | EK80: 3297.026508 | EL80: 1010.174204 | EM80: 95153.25745 | EN80: 138939.6523 | EO80: -5200.955292 | EP80: 133738.697
D81: 34 | E81: 対事業所サービス | F81: 112.1278227 | G81: 0.7062354321 | H81: 2930.542939 | I81: 193.1254749 | J81: 370.9091768 | K81: 1566.032457 | L81: 22.18219937 | M81: 1163.760246 | N81: 965.609012 | O81: 900.8152942 | P81: 1468.496283 | Q81: 962.3875436 | R81: 565.973001 | S81: 1801.8624 | T81: 3042.338866 | U81: 133.6022986 | V81: 2585.351204 | W81: 130.0550864 | X81: 4285.393207 | Y81: 1341.50978 | Z81: 20695.77355 | AA81: 6184.456909 | AB81: 1953.869052 | AC81: 1436.828058 | AD81: 51738.66803 | AE81: 17729.40225 | AF81: 9661.228535 | AG81: 42072.95025 | AH81: 52704.15548 | AI81: 13359.25579 | AJ81: 16638.61898 | AK81: 11097.87148 | AL81: 939.7226562 | AM81: 66261.75136 | AN81: 10690.25729 | AO81: 0 | AP81: 602.3725769 | AQ81: 21294.20377 | AR81: 2440.431112 | AS81: 231.1824261 | AT81: 21512.61042 | AU81: 2560.471606 | AV81: 4955.75934 | AW81: 12561.11834 | AX81: 1887.27302 | AY81: 24300.13728 | AZ81: 11957.56859 | BA81: 15036.40688 | BB81: 5486.09142 | BC81: 10341.59249 | BD81: 17411.41829 | BE81: 20748.41558 | BF81: 10474.52328 | BG81: 7894.71817 | BH81: 22873.33025 | BI81: 3608.230444 | BJ81: 163964.7838 | BK81: 6560.685765 | BL81: 66578.35423 | BM81: 32940.5854 | BN81: 17607.95315 | BO81: 6825.343433 | BP81: 92662.4989 | BQ81: 35011.01472 | BR81: 26175.67716 | BS81: 128440.8768 | BT81: 29346.43492 | BU81: 29384.71739 | BV81: 72475.22544 | BW81: 44164.18341 | BX81: 4453.657523 | BY81: 91835.64103 | BZ81: 15548.17806 | CA81: 0 | CB81: 2746.991583 | CC81: 55205.49501 | CD81: 394.4230053 | CE81: 59.18395221 | CF81: 1455.387562 | CG81: 143.2057914 | CH81: 307.4428754 | CI81: 1568.882852 | CJ81: 114.6903471 | CK81: 581.2307463 | CL81: 425.4623733 | CM81: 378.9925016 | CN81: 163.9938425 | CO81: 416.6084445 | CP81: 473.3656581 | CQ81: 634.8875638 | CR81: 226.6810051 | CS81: 811.8366817 | CT81: 698.1669687 | CU81: 244.3467204 | CV81: 1218.255393 | CW81: 436.7098935 | CX81: 7370.290376 | CY81: 2236.976333 | CZ81: 843.0061728 | DA81: 440.8701464 | DB81: 9878.112385 | DC81: 5155.02223 | DD81: 2778.893204 | DE81: 12488.17987 | DF81: 10555.41442 | DG81: 5056.059313 | DH81: 3928.60209 | DI81: 3910.816842 | DJ81: 437.1288739 | DK81: 14019.19838 | DL81: 2221.58265 | DM81: 0 | DN81: 300.5961727 | DO81: 5280.058899 | DP81: 1585468.306 | DQ81: 417.3733081 | DR81: 30955.18101 | DS81: 0 | DT81: 663.2124828 | DU81: 1206.143354 | DV81: 0 | DW81: 33241.91016 | DX81: 1419.185172 | DY81: 123947.6056 | DZ81: 0 | EA81: 2356.824727 | EB81: 56371.44802 | EC81: 0 | ED81: 184095.0636 | EE81: 105.4244672 | EF81: 6526.647625 | EG81: 0 | EH81: 232.4498063 | EI81: 2366.363564 | EJ81: 0 | EK81: 9230.885462 | EL81: 53001.90824 | EM81: 279569.7674 | EN81: 1865038.073 | EO81: -128014.5012 | EP81: 1737024.008
D82: 35 | E82: 対個人サービス | F82: 3.171888905 | G82: 0.0009114793745 | H82: 15.22747814 | I82: 1.08626999 | J82: 1.432597791 | K82: 3.751722037 | L82: 0.03045287552 | M82: 2.668964009 | N82: 1.414255441 | O82: 4.490605349 | P82: 4.519211233 | Q82: 3.275189037 | R82: 2.144928483 | S82: 6.684652587 | T82: 6.881226134 | U82: 0.4692742496 | V82: 8.07917681 | W82: 0.5045469356 | X82: 9.649614197 | Y82: 4.762834472 | Z82: 72.73786424 | AA82: 7.279224877 | AB82: 4.552519294 | AC82: 1.125820049 | AD82: 950.777618 | AE82: 45.42723754 | AF82: 239.1022223 | AG82: 327.5338235 | AH82: 1504.116153 | AI82: 68.97235518 | AJ82: 555.8311039 | AK82: 3336.764127 | AL82: 41.25017626 | AM82: 766.8919589 | AN82: 3176.906623 | AO82: 0 | AP82: 23.96722307 | AQ82: 187.9554184 | AR82: 26.13411288 | AS82: 0.9471580361 | AT82: 119.6133035 | AU82: 15.39526674 | AV82: 24.25517599 | AW82: 26.64794392 | AX82: 2.862129862 | AY82: 62.71242561 | AZ82: 10.66456398 | BA82: 60.5210449 | BB82: 18.81071651 | BC82: 39.36484335 | BD82: 43.23560006 | BE82: 46.98726893 | BF82: 22.39205088 | BG82: 41.19953412 | BH82: 44.12060978 | BI82: 13.62528705 | BJ82: 627.1830809 | BK82: 19.83006329 | BL82: 142.2261429 | BM82: 44.71879072 | BN82: 23.30279455 | BO82: 7.980091314 | BP82: 649.0689405 | BQ82: 63.44250531 | BR82: 376.9119982 | BS82: 460.800693 | BT82: 967.51154 | BU82: 107.9595293 | BV82: 2508.352491 | BW82: 15738.65314 | BX82: 97.85371174 | BY82: 612.886501 | BZ82: 12248.18816 | CA82: 0 | CB82: 136.5307254 | CC82: 698.5332552 | CD82: 9.087565232 | CE82: 0.8339924207 | CF82: 64.95905075 | CG82: 6.330046471 | CH82: 13.18565494 | CI82: 17.58101901 | CJ82: 0.6529597931 | CK82: 12.14560306 | CL82: 0.696724404 | CM82: 8.594471695 | CN82: 2.750283163 | CO82: 10.43196097 | CP82: 10.03880702 | CQ82: 7.201203886 | CR82: 2.943752392 | CS82: 31.61531776 | CT82: 7.293312903 | CU82: 6.744899386 | CV82: 35.59558512 | CW82: 11.54887599 | CX82: 50.2457059 | CY82: 25.05719895 | CZ82: 5.152566187 | DA82: 5.745726515 | DB82: 188.5977364 | DC82: 56.59472282 | DD82: 42.46155825 | DE82: 610.7008509 | DF82: 694.442819 | DG82: 119.9402356 | DH82: 158.7772519 | DI82: 16074.99078 | DJ82: 15.20105203 | DK82: 298.7205058 | DL82: 5889.286451 | DM82: 0 | DN82: 93.01956785 | DO82: 385.091913 | DP82: 72517.11819 | DQ82: 23997.70879 | DR82: 106320.1018 | DS82: 0 | DT82: 0 | DU82: 0 | DV82: 0 | DW82: 130317.8106 | DX82: 165882.101 | DY82: 786362.7585 | DZ82: 0 | EA82: 0 | EB82: 0 | EC82: 0 | ED82: 952244.8595 | EE82: 12955.77512 | EF82: 132274.0032 | EG82: 0 | EH82: 0 | EI82: 0 | EJ82: 0 | EK82: 145229.7783 | EL82: 22695.93351 | EM82: 1250488.382 | EN82: 1323005.5 | EO82: -52519.45707 | EP82: 1270486.043
D83: 36 | E83: 事務用品 | F83: 0 | G83: 0 | H83: 0 | I83: 0 | J83: 0 | K83: 0 | L83: 0 | M83: 0 | N83: 0 | O83: 0 | P83: 0 | Q83: 0 | R83: 0 | S83: 0 | T83: 0 | U83: 0 | V83: 0 | W83: 0 | X83: 0 | Y83: 0 | Z83: 0 | AA83: 0 | AB83: 0 | AC83: 0 | AD83: 0 | AE83: 0 | AF83: 0 | AG83: 0 | AH83: 0 | AI83: 0 | AJ83: 0 | AK83: 0 | AL83: 0 | AM83: 0 | AN83: 0 | AO83: 0 | AP83: 0 | AQ83: 0 | AR83: 267.1535626 | AS83: 12.66675981 | AT83: 969.5256161 | AU83: 207.9768134 | AV83: 426.457538 | AW83: 374.3031608 | AX83: 8.537403974 | AY83: 109.1431148 | AZ83: 585.7757554 | BA83: 356.1571887 | BB83: 175.9119079 | BC83: 230.6085186 | BD83: 963.1818164 | BE83: 1598.685183 | BF83: 351.8412279 | BG83: 308.1763379 | BH83: 1356.758729 | BI83: 193.443842 | BJ83: 4048.792422 | BK83: 436.5496515 | BL83: 1797.498499 | BM83: 9.900583211 | BN83: 254.9511019 | BO83: 762.9059916 | BP83: 4909.248504 | BQ83: 2333.989972 | BR83: 548.635593 | BS83: 2883.798728 | BT83: 466.4582262 | BU83: 2283.124492 | BV83: 8919.775921 | BW83: 4336.049503 | BX83: 632.1044721 | BY83: 2260.960233 | BZ83: 2144.840796 | CA83: 0 | CB83: -132.6848289 | CC83: 5526.932664 | CD83: 0 | CE83: 0 | CF83: 0 | CG83: 0 | CH83: 0 | CI83: 0 | CJ83: 0 | CK83: 0 | CL83: 0 | CM83: 0 | CN83: 0 | CO83: 0 | CP83: 0 | CQ83: 0 | CR83: 0 | CS83: 0 | CT83: 0 | CU83: 0 | CV83: 0 | CW83: 0 | CX83: 0 | CY83: 0 | CZ83: 0 | DA83: 0 | DB83: 0 | DC83: 0 | DD83: 0 | DE83: 0 | DF83: 0 | DG83: 0 | DH83: 0 | DI83: 0 | DJ83: 0 | DK83: 0 | DL83: 0 | DM83: 0 | DN83: 0 | DO83: 0 | DP83: 52920.137 | DQ83: 0 | DR83: 0 | DS83: 0 | DT83: 0 | DU83: 0 | DV83: 0 | DW83: 0 | DX83: 0 | DY83: 0 | DZ83: 0 | EA83: 0 | EB83: 0 | EC83: 0 | ED83: 0 | EE83: 0 | EF83: 0 | EG83: 0 | EH83: 0 | EI83: 0 | EJ83: 0 | EK83: 0 | EL83: 0 | EM83: 0 | EN83: 52920.137 | EO83: 0 | EP83: 52920.137
D84: 37 | E84: 分類不明 | F84: 0 | G84: 0 | H84: 0 | I84: 0 | J84: 0 | K84: 0 | L84: 0 | M84: 0 | N84: 0 | O84: 0 | P84: 0 | Q84: 0 | R84: 0 | S84: 0 | T84: 0 | U84: 0 | V84: 0 | W84: 0 | X84: 0 | Y84: 0 | Z84: 0 | AA84: 0 | AB84: 0 | AC84: 0 | AD84: 0 | AE84: 0 | AF84: 0 | AG84: 0 | AH84: 0 | AI84: 0 | AJ84: 0 | AK84: 0 | AL84: 0 | AM84: 0 | AN84: 0 | AO84: 0 | AP84: 0 | AQ84: 0 | AR84: 1127.018687 | AS84: 145.0436972 | AT84: 5109.02394 | AU84: 368.7416615 | AV84: 1162.409718 | AW84: 965.543385 | AX84: 234.1435999 | AY84: 2612.71404 | AZ84: 2942.721325 | BA84: 9607.194035 | BB84: 1141.729098 | BC84: 3097.866537 | BD84: 5112.681495 | BE84: 6191.067168 | BF84: 1461.441359 | BG84: 153.9190133 | BH84: 3282.114227 | BI84: 250.0554336 | BJ84: 7899.92106 | BK84: 573.623946 | BL84: 16746.44698 | BM84: 2587.134459 | BN84: 1589.411015 | BO84: 3205.048576 | BP84: 12805.53731 | BQ84: 3249.908639 | BR84: 2345.204169 | BS84: 11017.46191 | BT84: 653.4238466 | BU84: 425.2384123 | BV84: 15710.15684 | BW84: 5514.685523 | BX84: 426.1115324 | BY84: 3245.424966 | BZ84: 3308.137182 | CA84: 18.91467278 | CB84: -94218.17626 | CC84: 42.69327706 | CD84: 198.5371835 | CE84: 42.48520433 | CF84: 857.7204315 | CG84: 37.0299743 | CH84: 136.5151153 | CI84: 152.9975453 | CJ84: 23.27131204 | CK84: 105.9475996 | CL84: 183.3672207 | CM84: 324.5690377 | CN84: 168.4747932 | CO84: 161.9544388 | CP84: 283.5159366 | CQ84: 359.0748743 | CR84: 58.03220042 | CS84: 38.46454026 | CT84: 135.7377658 | CU84: 29.55994249 | CV84: 315.6677043 | CW84: 74.76105474 | CX84: 3379.593917 | CY84: 269.2002249 | CZ84: 159.833639 | DA84: 409.960616 | DB84: 2554.606838 | DC84: 668.4965915 | DD84: 560.9017132 | DE84: 2000.130132 | DF84: 536.9895822 | DG84: 151.2748284 | DH84: 1631.59125 | DI84: 955.2066916 | DJ84: 80.89715331 | DK84: 906.1844139 | DL84: 581.9711018 | DM84: 2.868960142 | DN84: 552.0159693 | DO84: 5.601687062 | DP84: 61206.74566 | DQ84: 0 | DR84: 0 | DS84: 0 | DT84: 0 | DU84: 0 | DV84: 0 | DW84: 0 | DX84: 0 | DY84: 94516.55297 | DZ84: 0 | EA84: 0 | EB84: 0 | EC84: 0 | ED84: 94516.55297 | EE84: 0 | EF84: -512.4391841 | EG84: 0 | EH84: 0 | EI84: 0 | EJ84: 0 | EK84: -512.4391841 | EL84: 158.7334101 | EM84: 94162.8472 | EN84: 155369.5929 | EO84: -970.2218604 | EP84: 154399.371
D85: 38 | E85: 本社 | F85: 16.66310366 | G85: 0.1301193999 | H85: 1076.542189 | I85: 58.49371751 | J85: 131.1072757 | K85: 610.7107444 | L85: 3.862538367 | M85: 465.3301026 | N85: 210.7901554 | O85: 298.0254513 | P85: 221.680528 | Q85: 247.362692 | R85: 145.9245253 | S85: 492.097316 | T85: 633.7596267 | U85: 24.76278671 | V85: 607.6557117 | W85: 36.15649839 | X85: 828.5573536 | Y85: 399.0695437 | Z85: 1508.974325 | AA85: 762.3976844 | AB85: 0 | AC85: 0 | AD85: 7031.693857 | AE85: 2582.600531 | AF85: 1288.454112 | AG85: 2464.908366 | AH85: 6122.63741 | AI85: 0 | AJ85: 2749.014425 | AK85: 4988.471129 | AL85: 169.7503525 | AM85: 4941.598527 | AN85: 4078.548163 | AO85: 0 | AP85: 0 | AQ85: 0 | AR85: 5516.252158 | AS85: 369.2101126 | AT85: 52009.55462 | AU85: 6397.252602 | AV85: 17037.28098 | AW85: 35919.10393 | AX85: 5445.179095 | AY85: 70888.27624 | AZ85: 16111.12166 | BA85: 39332.76145 | BB85: 9567.966386 | BC85: 20745.10602 | BD85: 26503.7823 | BE85: 41114.97933 | BF85: 20530.27375 | BG85: 9211.215245 | BH85: 37242.53262 | BI85: 6692.458264 | BJ85: 315324.8839 | BK85: 15835.51594 | BL85: 24524.0292 | BM85: 42754.2971 | BN85: 0 | BO85: 0 | BP85: 61753.06786 | BQ85: 22885.26717 | BR85: 16312.75148 | BS85: 34383.42156 | BT85: 13089.2861 | BU85: 0 | BV85: 66390.36571 | BW85: 107739.1943 | BX85: 3890.320674 | BY85: 40971.84558 | BZ85: 47895.6697 | CA85: 0 | CB85: 0 | CC85: 0 | CD85: 1422.846958 | CE85: 158.5814794 | CF85: 7989.350473 | CG85: 661.0337288 | CH85: 2435.107084 | CI85: 7890.406721 | CJ85: 723.7142391 | CK85: 3953.027473 | CL85: 1363.369733 | CM85: 2408.80624 | CN85: 1114.23896 | CO85: 1800.124868 | CP85: 2182.127373 | CQ85: 2786.13524 | CR85: 1080.491368 | CS85: 2276.444037 | CT85: 2645.841159 | CU85: 962.4032128 | CV85: 6071.189104 | CW85: 2123.817507 | CX85: 6410.409457 | CY85: 4438.725509 | CZ85: 0 | DA85: 0 | DB85: 16290.56115 | DC85: 8436.060458 | DD85: 4255.771181 | DE85: 7715.890645 | DF85: 14178.72913 | DG85: 0 | DH85: 8113.707607 | DI85: 24265.71912 | DJ85: 972.0800836 | DK85: 12752.59524 | DL85: 13771.54535 | DM85: 0 | DN85: 0 | DO85: 0 | DP85: 1453232.806 | DQ85: 0 | DR85: 0 | DS85: 0 | DT85: 0 | DU85: 0 | DV85: 0 | DW85: 0 | DX85: 0 | DY85: 0 | DZ85: 0 | EA85: 0 | EB85: 0 | EC85: 0 | ED85: 0 | EE85: 0 | EF85: 0 | EG85: 0 | EH85: 0 | EI85: 0 | EJ85: 0 | EK85: 0 | EL85: 0 | EM85: 0 | EN85: 1453232.806 | EO85: 0 | EP85: 1453232.806
C86: 県外 | D86: 1 | E86: 農林漁業 | F86: 144.4521702 | G86: 0 | H86: 18967.40071 | I86: 78.28392195 | J86: 1221.674798 | K86: 143.5344367 | L86: 0 | M86: 75.01978731 | N86: 9.333096377 | O86: 0.0524012728 | P86: 0.03963423271 | Q86: 0 | R86: 0 | S86: 0 | T86: 0 | U86: 0 | V86: 0 | W86: 0 | X86: 0 | Y86: 86.31729395 | Z86: 657.2368716 | AA86: 0 | AB86: 0 | AC86: 0 | AD86: 166.1573099 | AE86: 0 | AF86: 1.716553036 | AG86: 0.5869987819 | AH86: 0 | AI86: 8.689937753 | AJ86: 1018.62242 | AK86: 1730.686006 | AL86: 73.84654724 | AM86: 15.41660007 | AN86: 16009.84642 | AO86: 0 | AP86: 0 | AQ86: 1.219729556 | AR86: 9106.02799 | AS86: 0.3804362345 | AT86: 82330.54099 | AU86: 876.0840178 | AV86: 9976.378542 | AW86: 417.1269208 | AX86: 0 | AY86: 4759.671425 | AZ86: 28.80477634 | BA86: 0.373349881 | BB86: 0.6691683735 | BC86: 0 | BD86: 0 | BE86: 0 | BF86: 0 | BG86: 0 | BH86: 0 | BI86: 0 | BJ86: 0.2305648881 | BK86: 555.3288614 | BL86: 493.0645869 | BM86: 0 | BN86: 0 | BO86: 0 | BP86: 82.90059912 | BQ86: 0 | BR86: 1.735209949 | BS86: 53.44106507 | BT86: 0 | BU86: 6.406080947 | BV86: 2060.314722 | BW86: 2622.810819 | BX86: 93.69214406 | BY86: 3.251003014 | BZ86: 9602.331001 | CA86: 0 | CB86: 0 | CC86: 0.7473591225 | CD86: 1500092.317 | CE86: 62.08390923 | CF86: 7139565.602 | CG86: 24563.68874 | CH86: 343950.9448 | CI86: 38436.9578 | CJ86: 0 | CK86: 128657.2182 | CL86: 743.6590558 | CM86: 1.45449118 | CN86: 107.3719468 | CO86: 0 | CP86: 0 | CQ86: 0 | CR86: 0 | CS86: 0 | CT86: 0 | CU86: 0 | CV86: 13.5859858 | CW86: 68244.56797 | CX86: 57798.72473 | CY86: 0 | CZ86: 0 | DA86: 0 | DB86: 10233.33867 | DC86: 0 | DD86: 160.6254775 | DE86: 2126.788196 | DF86: 0 | DG86: 1676.668118 | DH86: 84662.95758 | DI86: 182430.0764 | DJ86: 8471.744879 | DK86: 790.6197804 | DL86: 1144359.19 | DM86: 0 | DN86: 0 | DO86: 66.08902322 | DP86: 10900698.72 | DQ86: 974.9873913 | DR86: 28958.71935 | DS86: 0 | DT86: 0 | DU86: 738.0606075 | DV86: 0.496112622 | DW86: 30672.26347 | DX86: 1264.161071 | DY86: 55239.85743 | DZ86: 0 | EA86: 0 | EB86: 2089.882983 | EC86: -601.6390724 | ED86: 57992.26241 | EE86: 61826.16633 | EF86: 3568664.705 | EG86: 0 | EH86: 0 | EI86: 185407.4581 | EJ86: 189591.4375 | EK86: 4005489.767 | EL86: 109292.1032 | EM86: 4203446.396 | EN86: 15104145.12 | EO86: -2622024.116 | EP86: 12482121
D87: 2 | E87: 鉱業 | F87: 0.001763349857 | G87: 0.02184570496 | H87: 2.662606946 | I87: 0.1774066221 | J87: 0.1850524089 | K87: 84.49284827 | L87: 115.6662956 | M87: 0.4683925715 | N87: 1141.069176 | O87: 42.06993115 | P87: 22.97416434 | Q87: 1.390971607 | R87: 0.2024577778 | S87: 1.433950193 | T87: 0.2077213751 | U87: 0.08135252274 | V87: 0.3223140225 | W87: 0.03029588461 | X87: 1.393021869 | Y87: 4.407610045 | Z87: 3464.517324 | AA87: 2584.488728 | AB87: 0 | AC87: 0.005375382661 | AD87: 0.1928489758 | AE87: 0.02425570197 | AF87: 0.04228127846 | AG87: 0.2384162656 | AH87: 0 | AI87: 2.541949815 | AJ87: 1.466700701 | AK87: 0.2141605636 | AL87: 0.07470452298 | AM87: 0.4023749339 | AN87: 0.6699926396 | AO87: 0 | AP87: 2.359957047 | AQ87: 0 | AR87: 0.9920755338 | AS87: 1.544020815 | AT87: 8.053139606 | AU87: 1.620286492 | AV87: 37.26768615 | AW87: 124.362273 | AX87: 7091.674265 | AY87: 5.010158451 | AZ87: 3818.812481 | BA87: 2731.864356 | BB87: 290.4378488 | BC87: 4.194685579 | BD87: 0.714930769 | BE87: 3.741735813 | BF87: 1.060831915 | BG87: 0.707569858 | BH87: 0.7645501998 | BI87: 0.07401411167 | BJ87: 24.23615197 | BK87: 16.92195178 | BL87: 6756.666503 | BM87: 6023.081546 | BN87: 0 | BO87: 0.005417319944 | BP87: 0.08717616589 | BQ87: 0.008116552495 | BR87: 0.02212435967 | BS87: 0.09851878354 | BT87: 0.0006785369861 | BU87: 1.759531336 | BV87: 1.65006357 | BW87: 0.227428263 | BX87: 0.09534598555 | BY87: 0.123052526 | BZ87: 0.7915890461 | CA87: 0 | CB87: 1.86219308 | CC87: 0 | CD87: 404.7963798 | CE87: 1466.624128 | CF87: 10280.36099 | CG87: 1179.645707 | CH87: 51012.72261 | CI87: 136689.5842 | CJ87: 9286753.958 | CK87: 1423.903709 | CL87: 375521.0465 | CM87: 1262427.085 | CN87: 1256976.661 | CO87: 2712.043937 | CP87: 586.4207049 | CQ87: 840.3060685 | CR87: 348.4856057 | CS87: 2197.552044 | CT87: 664.9404522 | CU87: 155.0069464 | CV87: 3776.598359 | CW87: 4071.842455 | CX87: 360848.1449 | CY87: 6962020.626 | CZ87: 0 | DA87: 10.24870682 | DB87: 246.3111697 | DC87: 40.02137517 | DD87: 73.8614885 | DE87: 423.9316719 | DF87: 16.94134475 | DG87: 432.4784209 | DH87: 1512.1444 | DI87: 579.0652596 | DJ87: 269.8249403 | DK87: 624.1788844 | DL87: 1024.603647 | DM87: 0 | DN87: 983.2164204 | DO87: 0 | DP87: 19763022.22 | DQ87: -19.19170882 | DR87: -15.56434887 | DS87: 0 | DT87: 0 | DU87: -11.2302344 | DV87: -112.5960065 | DW87: -158.5822986 | DX87: -10.79180793 | DY87: -11.22913754 | DZ87: 0 | EA87: 0 | EB87: 0 | EC87: -71.62385352 | ED87: -93.64479899 | EE87: -4976.403175 | EF87: -5743.596997 | EG87: 0 | EH87: 0 | EI87: -6427.134723 | EJ87: -2824.201762 | EK87: -19971.33666 | EL87: 42020.10137 | EM87: 21796.53761 | EN87: 19784818.75 | EO87: -18952464.07 | EP87: 832355
D88: 3 | E88: 飲食料品 | F88: 95.9794534 | G88: 0 | H88: 46043.03759 | I88: 30.39170279 | J88: 15.42971996 | K88: 451.6955629 | L88: 0.01501923928 | M88: 1.616200748 | N88: 31.66530214 | O88: 0.2625101821 | P88: 0 | Q88: 0 | R88: 0 | S88: 0 | T88: 0 | U88: 0 | V88: 0 | W88: 0 | X88: 0 | Y88: 64.15488497 | Z88: 3.278443041 | AA88: 0 | AB88: 0 | AC88: 0 | AD88: 410.2017974 | AE88: 0 | AF88: 0 | AG88: 2.494108524 | AH88: 0 | AI88: 95.16891285 | AJ88: 2185.521874 | AK88: 5900.340575 | AL88: 57.08669012 | AM88: 10.21613964 | AN88: 98028.72915 | AO88: 0 | AP88: 71.26046523 | AQ88: 7.061490204 | AR88: 5362.73707 | AS88: 0 | AT88: 197095.3673 | AU88: 253.5487853 | AV88: 547.0340572 | AW88: 4453.137446 | AX88: 2.315018155 | AY88: 15.75165122 | AZ88: 192.0929458 | BA88: 2.87864784 | BB88: 0 | BC88: 0 | BD88: 0 | BE88: 0 | BF88: 0 | BG88: 0 | BH88: 0 | BI88: 0 | BJ88: 0 | BK88: 888.3520142 | BL88: 4.597228647 | BM88: 0 | BN88: 0 | BO88: 0 | BP88: 176.8124628 | BQ88: 0 | BR88: 0 | BS88: 241.4910755 | BT88: 0.02885452918 | BU88: 81.68602506 | BV88: 4236.315809 | BW88: 8284.211296 | BX88: 95.64768263 | BY88: 4.916446258 | BZ88: 61432.31237 | CA88: 0 | CB88: 200.3584664 | CC88: 9.891949115 | CD88: 1362328.426 | CE88: 0 | CF88: 6281248.631 | CG88: 7369.767929 | CH88: 17870.85539 | CI88: 179271.4049 | CJ88: 61.34512487 | CK88: 182.4225277 | CL88: 2441.218028 | CM88: 14.49983088 | CN88: 0 | CO88: 0 | CP88: 0 | CQ88: 0 | CR88: 0 | CS88: 0 | CT88: 0 | CU88: 0 | CV88: 0 | CW88: 28324.55044 | CX88: 1370.255837 | CY88: 0 | CZ88: 0 | DA88: 0 | DB88: 12015.07779 | DC88: 0 | DD88: 0 | DE88: 8303.516161 | DF88: 14.12099296 | DG88: 12178.10136 | DH88: 217490.9575 | DI88: 528888.3093 | DJ88: 5733.89373 | DK88: 405.3704765 | DL88: 6662859.59 | DM88: 0 | DN88: 12881.72677 | DO88: 352.2933876 | DP88: 15778693.43 | DQ88: 12644.87637 | DR88: 272599.6135 | DS88: 0 | DT88: 0 | DU88: 0 | DV88: -259.2058208 | DW88: 284985.2841 | DX88: 20200.95991 | DY88: 536077.9459 | DZ88: 0 | EA88: 0 | EB88: 0 | EC88: -1126.187037 | ED88: 555152.7188 | EE88: 785364.7152 | EF88: 25461533.11 | EG88: 0 | EH88: 0 | EI88: 0 | EJ88: -14242.83388 | EK88: 26232654.99 | EL88: 658745.9164 | EM88: 27731538.91 | EN88: 43510232.34 | EO88: -7374298.6 | EP88: 36135934
D89: 4 | E89: 繊維製品 | F89: 12.95939604 | G89: 0.05695165504 | H89: 84.86548691 | I89: 3018.111965 | J89: 186.5167349 | K89: 79.73755515 | L89: 0.1377750616 | M89: 132.4007764 | N89: 72.11723393 | O89: 30.36891822 | P89: 47.46954187 | Q89: 48.68710756 | R89: 20.04147007 | S89: 49.09424417 | T89: 61.71826776 | U89: 9.294887029 | V89: 136.5905902 | W89: 5.981935784 | X89: 154.1295313 | Y89: 93.65662476 | Z89: 1283.137416 | AA89: 9.66557209 | AB89: 16.22050496 | AC89: 39.27664495 | AD89: 4114.75354 | AE89: 312.593001 | AF89: 13.97810903 | AG89: 958.4901608 | AH89: 484.6943146 | AI89: 544.3372151 | AJ89: 110.5216556 | AK89: 930.0997828 | AL89: 341.1161407 | AM89: 1147.478538 | AN89: 1195.453244 | AO89: 336.9368863 | AP89: 10.0012447 | AQ89: 36.01634115 | AR89: 490.0147115 | AS89: 12.19144531 | AT89: 373.6287912 | AU89: 21357.86981 | AV89: 1089.532196 | AW89: 445.3619134 | AX89: 4.01029347 | AY89: 3158.255954 | AZ89: 670.5111275 | BA89: 245.784221 | BB89: 174.9788046 | BC89: 320.7662393 | BD89: 252.2216359 | BE89: 456.2041289 | BF89: 240.0950755 | BG89: 503.5243937 | BH89: 833.8916074 | BI89: 112.237436 | BJ89: 8367.930767 | BK89: 721.1252133 | BL89: 1338.51269 | BM89: 39.7479603 | BN89: 54.81448711 | BO89: 97.00501938 | BP89: 2485.025646 | BQ89: 199.6993871 | BR89: 11.72292672 | BS89: 657.4493985 | BT89: 105.8434812 | BU89: 607.7872942 | BV89: 174.9689873 | BW89: 1378.067307 | BX89: 679.9238192 | BY89: 667.6818684 | BZ89: 1291.605798 | CA89: 445.0754123 | CB89: 18.76414048 | CC89: 53.48300326 | CD89: 70621.05772 | CE89: 3254.064318 | CF89: 34081.8696 | CG89: 706585.143 | CH89: 69467.749 | CI89: 24179.23907 | CJ89: 403.114243 | CK89: 61056.9334 | CL89: 16490.07974 | CM89: 7491.010771 | CN89: 6565.593311 | CO89: 12884.74307 | CP89: 10020.62961 | CQ89: 19254.36651 | CR89: 6169.132787 | CS89: 46388.7003 | CT89: 35028.95537 | CU89: 8634.76909 | CV89: 60207.16854 | CW89: 38529.8528 | CX89: 175435.3211 | CY89: 3105.381698 | CZ89: 3924.52243 | DA89: 8683.770049 | DB89: 372168.1408 | DC89: 52125.93436 | DD89: 1944.01242 | DE89: 82200.16748 | DF89: 51010.15251 | DG89: 123417.373 | DH89: 20497.06334 | DI89: 174047.7083 | DJ89: 106725.262 | DK89: 140158.5292 | DL89: 176611.7025 | DM89: 24882.77564 | DN89: 2182.063855 | DO89: 5500.578049 | DP89: 2828200.653 | DQ89: 621.6250057 | DR89: 19208.29141 | DS89: 0 | DT89: 5.928207904 | DU89: 1835.94677 | DV89: 840.0044753 | DW89: 22511.79587 | DX89: 1048.352727 | DY89: 36984.77292 | DZ89: 0 | EA89: 9.066738619 | EB89: 3049.511004 | EC89: 1492.627655 | ED89: 42584.33105 | EE89: 99466.35067 | EF89: 4086815.72 | EG89: 0 | EH89: 745.2986287 | EI89: 290924.7576 | EJ89: 140854.8658 | EK89: 4618806.993 | EL89: 616665.3111 | EM89: 5300568.431 | EN89: 8128769.083 | EO89: -4824859.084 | EP89: 3303910
D90: 5 | E90: パルプ・紙・木製品 | F90: 50.70102314 | G90: 0.05899867546 | H90: 1778.186394 | I90: 114.940749 | J90: 7971.929518 | K90: 539.8780528 | L90: 0.2264318279 | M90: 572.426895 | N90: 1274.605882 | O90: 72.56358454 | P90: 180.7946192 | Q90: 176.3607596 | R90: 40.82474888 | S90: 159.7283725 | T90: 549.6009249 | U90: 53.53351532 | V90: 1035.612345 | W90: 44.01843991 | X90: 252.9061795 | Y90: 14436.2741 | Z90: 32136.11599 | AA90: 404.5565869 | AB90: 96.9641901 | AC90: 182.9270023 | AD90: 15401.35582 | AE90: 2435.160778 | AF90: 421.2558915 | AG90: 2327.994685 | AH90: 19351.85976 | AI90: 494.9963811 | AJ90: 5413.586123 | AK90: 5220.050282 | AL90: 674.4337087 | AM90: 5361.486564 | AN90: 5052.03792 | AO90: 13799.1583 | AP90: 59.85859869 | AQ90: 414.4620614 | AR90: 2454.617808 | AS90: 13.68342137 | AT90: 7379.377877 | AU90: 906.8506601 | AV90: 116006.6593 | AW90: 4557.920443 | AX90: 4.286281522 | AY90: 6591.855511 | AZ90: 8410.704095 | BA90: 582.0498839 | BB90: 448.1738326 | BC90: 1270.262914 | BD90: 555.0715436 | BE90: 1272.170175 | BF90: 1364.098608 | BG90: 844.9530677 | BH90: 4320.391887 | BI90: 661.6712137 | BJ90: 9136.351236 | BK90: 29683.82997 | BL90: 43947.09504 | BM90: 1280.923923 | BN90: 400.8402794 | BO90: 464.452825 | BP90: 7419.828465 | BQ90: 1978.163882 | BR90: 579.9554599 | BS90: 2415.598148 | BT90: 3103.879651 | BU90: 531.5336798 | BV90: 10474.3602 | BW90: 6913.104681 | BX90: 1303.005764 | BY90: 2744.171915 | BZ90: 3940.440533 | CA90: 18215.31287 | CB90: 121.2886629 | CC90: 609.1912527 | CD90: 257617.52 | CE90: 2006.145182 | CF90: 569860.1136 | CG90: 19181.19662 | CH90: 3092232.787 | CI90: 357434.8286 | CJ90: 159.9872804 | CK90: 75959.58133 | CL90: 99578.52643 | CM90: 7148.87773 | CN90: 18390.39687 | CO90: 34951.63313 | CP90: 14846.25902 | CQ90: 14771.57677 | CR90: 29031.25259 | CS90: 76902.60241 | CT90: 99595.65632 | CU90: 29883.23965 | CV90: 55672.86803 | CW90: 765637.0068 | CX90: 2608954.446 | CY90: 56255.03462 | CZ90: 11441.71814 | DA90: 14921.53361 | DB90: 695170.6796 | DC90: 143334.6044 | DD90: 31386.21616 | DE90: 233225.4739 | DF90: 649662.2313 | DG90: 46026.63355 | DH90: 254094.1307 | DI90: 323069.4662 | DJ90: 73087.55995 | DK90: 234900.01 | DL90: 286572.3317 | DM90: 572186.8323 | DN90: 5222.314202 | DO90: 26273.19231 | DP90: 12328108.02 | DQ90: 2444.039127 | DR90: 6059.366 | DS90: 8.259434485 | DT90: 154.8143303 | DU90: 4460.851499 | DV90: -836.9126017 | DW90: 12290.41779 | DX90: 1977.278865 | DY90: 7840.940955 | DZ90: 45.65069274 | EA90: 186.3146019 | EB90: 12463.14806 | EC90: -2309.887949 | ED90: 20203.44523 | EE90: 66060.80146 | EF90: 317355.8516 | EG90: 1888.064547 | EH90: 12914.9541 | EI90: 392945.7456 | EJ90: -58068.56098 | EK90: 733096.8563 | EL90: 575968.2724 | EM90: 1341558.992 | EN90: 13669667.01 | EO90: -2401602.014 | EP90: 11268065
D91: 6 | E91: 化学製品 | F91: 526.0545247 | G91: 0.7609810877 | H91: 2224.651234 | I91: 1396.893163 | J91: 1049.199289 | K91: 46172.31049 | L91: 35.79332888 | M91: 15039.39836 | N91: 1182.868185 | O91: 634.6185021 | P91: 179.5658174 | Q91: 567.8269958 | R91: 164.0020394 | S91: 579.4778568 | T91: 1955.859405 | U91: 81.25471814 | V91: 1675.177247 | W91: 114.669353 | X91: 2296.871531 | Y91: 2698.949544 | Z91: 4082.66549 | AA91: 134.9491525 | AB91: 380.5639614 | AC91: 747.1131302 | AD91: 23.64823971 | AE91: 15.03355964 | AF91: 29.15104942 | AG91: 294.6471012 | AH91: 1194.542957 | AI91: 363.7611455 | AJ91: 8680.288156 | AK91: 93938.78627 | AL91: 91.79741253 | AM91: 5744.52621 | AN91: 6712.36452 | AO91: 221.4395933 | AP91: 320.5904369 | AQ91: 0 | AR91: 8963.610311 | AS91: 204.7934853 | AT91: 12546.56183 | AU91: 18793.7202 | AV91: 10858.82306 | AW91: 216311.8913 | AX91: 1369.460374 | AY91: 198877.553 | AZ91: 12745.60645 | BA91: 6761.433306 | BB91: 2173.860382 | BC91: 3073.809353 | BD91: 2674.66208 | BE91: 3638.48423 | BF91: 12478.12942 | BG91: 4077.64857 | BH91: 8531.38603 | BI91: 1814.564416 | BJ91: 100339.2826 | BK91: 11927.1671 | BL91: 4217.747393 | BM91: 895.4060189 | BN91: 1265.768514 | BO91: 1857.847886 | BP91: 18.2295632 | BQ91: 9.771765542 | BR91: 43.70574319 | BS91: 493.8798198 | BT91: 201.2736057 | BU91: 360.138293 | BV91: 16596.55431 | BW91: 154011.0407 | BX91: 204.8858812 | BY91: 3918.729883 | BZ91: 8244.813206 | CA91: 342.561552 | CB91: 541.1691016 | CC91: 0 | CD91: 664932.9108 | CE91: 11811.5103 | CF91: 355376.8933 | CG91: 322219.735 | CH91: 382037.0068 | CI91: 8979422.054 | CJ91: 27935.51272 | CK91: 2275216.82 | CL91: 176429.7302 | CM91: 84833.53941 | CN91: 68214.66175 | CO91: 87788.0025 | CP91: 37483.24025 | CQ91: 54271.67721 | CR91: 86778.93256 | CS91: 218325.5822 | CT91: 186714.6454 | CU91: 49334.31604 | CV91: 342149.9311 | CW91: 283107.1333 | CX91: 288671.4394 | CY91: 16341.45124 | CZ91: 36356.99653 | DA91: 63450.06026 | DB91: 755.5033947 | DC91: 742.32416 | DD91: 2418.845096 | DE91: 22003.5145 | DF91: 58032.56632 | DG91: 33811.97635 | DH91: 295195.2038 | DI91: 8240838.77 | DJ91: 9629.078125 | DK91: 276846.5984 | DL91: 305206.3103 | DM91: 12411.75302 | DN91: 31696.31503 | DO91: 0 | DP91: 25421730.58 | DQ91: 3126.822482 | DR91: 35453.68486 | DS91: 0 | DT91: 0 | DU91: 0 | DV91: 807.5428952 | DW91: 39388.05023 | DX91: 4883.892704 | DY91: 74850.40936 | DZ91: 0 | EA91: 0 | EB91: 0 | EC91: -1170.003654 | ED91: 78564.29841 | EE91: 156534.882 | EF91: 2304761.512 | EG91: 0 | EH91: 0 | EI91: 0 | EJ91: -114836.4429 | EK91: 2346459.951 | EL91: 6184786.508 | EM91: 8649198.808 | EN91: 34070929.39 | EO91: -7209542.501 | EP91: 26861387.32
D92: 7 | E92: 石油・石炭製品 | F92: 20.65073407 | G92: 0.8957650989 | H92: 993.2866527 | I92: 68.40797322 | J92: 63.34529759 | K92: 617.7351444 | L92: 309.4828977 | M92: 89.36889128 | N92: 1107.910401 | O92: 1168.68985 | P92: 248.3545711 | Q92: 192.6087091 | R92: 31.4406152 | S92: 151.7068687 | T92: 66.98841792 | U92: 8.335482071 | V92: 159.431523 | W92: 3.068397206 | X92: 1110.649162 | Y92: 176.6589252 | Z92: 6207.816645 | AA92: 10439.52138 | AB92: 362.1297149 | AC92: 489.8625783 | AD92: 2822.787765 | AE92: 201.450522 | AF92: 443.4986104 | AG92: 44119.30807 | AH92: 711.3337527 | AI92: 2778.625704 | AJ92: 1909.661598 | AK92: 1425.764243 | AL92: 112.5088514 | AM92: 2501.929881 | AN92: 3499.775384 | AO92: 0 | AP92: 731.3035153 | AQ92: 676.7612041 | AR92: 2391.934354 | AS92: 182.7875193 | AT92: 4650.685844 | AU92: 883.9844478 | AV92: 862.5364747 | AW92: 17404.74548 | AX92: 25294.69695 | AY92: 1472.709535 | AZ92: 7340.344938 | BA92: 36904.09322 | BB92: 989.6570051 | BC92: 1072.385379 | BD92: 310.1462353 | BE92: 1026.912244 | BF92: 256.9382962 | BG92: 262.3349749 | BH92: 682.282457 | BI92: 51.22685045 | BJ92: 12405.03414 | BK92: 438.099021 | BL92: 15228.10496 | BM92: 41137.14273 | BN92: 1479.061145 | BO92: 1177.309622 | BP92: 1821.594242 | BQ92: 158.5315909 | BR92: 391.8959974 | BS92: 100230.4683 | BT92: 123.0051446 | BU92: 2351.611388 | BV92: 3028.990177 | BW92: 2057.520617 | BX92: 208.5183991 | BY92: 1701.245766 | BZ92: 3240.969833 | CA92: 0 | CB92: 1292.116198 | CC92: 920.7552787 | CD92: 147550.7644 | CE92: 17897.91098 | CF92: 137687.7006 | CG92: 18192.58117 | CH92: 42078.69305 | CI92: 2073419.924 | CJ92: 945826.211 | CK92: 22484.43526 | CL92: 112672.6253 | CM92: 541127.2989 | CN92: 20400.55087 | CO92: 30408.77005 | CP92: 11875.01485 | CQ92: 14277.22386 | CR92: 4982.867581 | CS92: 16811.15591 | CT92: 14020.31377 | CU92: 2133.512946 | CV92: 71283.63861 | CW92: 16675.37918 | CX92: 683144.9887 | CY92: 1095774.906 | CZ92: 46621.03752 | DA92: 51193.77102 | DB92: 135252.7996 | DC92: 13029.81083 | DD92: 29257.41759 | DE92: 4977015.76 | DF92: 35739.7935 | DG92: 404188.692 | DH92: 133693.297 | DI92: 136239.5043 | DJ92: 14323.54749 | DK92: 139123.9819 | DL92: 242946.335 | DM92: 0 | DN92: 83952.51696 | DO92: 45011.94297 | DP92: 12905772.11 | DQ92: 206.2398869 | DR92: 31105.49746 | DS92: 0 | DT92: 0 | DU92: 0 | DV92: -3.354788767 | DW92: 31308.38256 | DX92: 305.1228414 | DY92: 112948.3669 | DZ92: 0 | EA92: 0 | EB92: 0 | EC92: 127.9068329 | ED92: 113381.3965 | EE92: 14345.20814 | EF92: 4628942.819 | EG92: 0 | EH92: 0 | EI92: 0 | EJ92: -15248.97885 | EK92: 4628039.048 | EL92: 1391116.228 | EM92: 6163845.055 | EN92: 19069617.16 | EO92: -3187669.161 | EP92: 15881948
D93: 8 | E93: プラスチック・ゴム製品 | F93: 53.09861568 | G93: 0.09436836742 | H93: 3833.3205 | I93: 201.7987426 | J93: 985.1776113 | K93: 1334.129013 | L93: 0.6127641457 | M93: 17678.34069 | N93: 178.9793593 | O93: 56.21997285 | P93: 162.5386494 | Q93: 314.2400452 | R93: 330.4287627 | S93: 1029.715621 | T93: 4145.372252 | U93: 104.6043439 | V93: 4535.051133 | W93: 445.1603299 | X93: 9267.233733 | Y93: 4616.122793 | Z93: 10143.78531 | AA93: 0 | AB93: 1537.659016 | AC93: 429.5726194 | AD93: 8613.735129 | AE93: 1424.358239 | AF93: 624.579912 | AG93: 1046.13483 | AH93: 4292.34721 | AI93: 503.1496988 | AJ93: 3794.877933 | AK93: 1090.870624 | AL93: 193.9910779 | AM93: 7927.770944 | AN93: 1917.666426 | AO93: 961.737599 | AP93: 165.2116296 | AQ93: 48.60180407 | AR93: 2612.80968 | AS93: 21.09213805 | AT93: 14049.13235 | AU93: 1165.619171 | AV93: 4248.637859 | AW93: 6747.343015 | AX93: 52.90554882 | AY93: 151519.3982 | AZ93: 2137.632821 | BA93: 776.3868777 | BB93: 706.3519415 | BC93: 2820.934574 | BD93: 6106.339079 | BE93: 6027.947829 | BF93: 10348.72527 | BG93: 3783.069363 | BH93: 23496.89411 | BI93: 4999.453625 | BJ93: 265372.4484 | BK93: 14736.14057 | BL93: 9375.237794 | BM93: 0 | BN93: 4002.231369 | BO93: 1141.485534 | BP93: 6154.851299 | BQ93: 927.2634912 | BR93: 713.0258187 | BS93: 2318.223387 | BT93: 811.9051314 | BU93: 453.5240919 | BV93: 5338.433338 | BW93: 1673.890705 | BX93: 366.7837009 | BY93: 10508.71892 | BZ93: 1926.659077 | CA93: 1005.310277 | CB93: 252.4990026 | CC93: 53.60458293 | CD93: 102600.8119 | CE93: 3721.443315 | CF93: 606684.7823 | CG93: 31307.55565 | CH93: 221111.3034 | CI93: 449603.903 | CJ93: 1986.671583 | CK93: 2378007.858 | CL93: 38229.75327 | CM93: 15673.76836 | CN93: 41707.80811 | CO93: 45515.92066 | CP93: 111549.9603 | CQ93: 292132.5068 | CR93: 217276.8571 | CS93: 236331.2991 | CT93: 517870.9389 | CU93: 193040.7026 | CV93: 1227121.398 | CW93: 476041.3334 | CX93: 719979.1761 | CY93: 0 | CZ93: 146999.0928 | DA93: 58710.79672 | DB93: 420925.6301 | DC93: 87924.19267 | DD93: 41090.46959 | DE93: 131908.1004 | DF93: 175106.9532 | DG93: 68378.69983 | DH93: 134892.7322 | DI93: 125812.4797 | DJ93: 31217.72959 | DK93: 549051.1208 | DL93: 131893.7235 | DM93: 60088.03186 | DN93: 16165.64793 | DO93: 2527.603226 | DP93: 10772929.96 | DQ93: 333.9968895 | DR93: 6924.643578 | DS93: 34.96199926 | DT93: 0 | DU93: -5.137742435 | DV93: -47.81386149 | DW93: 7240.650863 | DX93: 438.3359593 | DY93: 13736.77417 | DZ93: 144.7767433 | EA93: 0 | EB93: 0 | EC93: -284.7842302 | ED93: 14035.10264 | EE93: 21923.72348 | EF93: 790854.2735 | EG93: 3212.126052 | EH93: 0 | EI93: -617.0882644 | EJ93: -23507.48476 | EK93: 791865.55 | EL93: 2328476.909 | EM93: 3141618.213 | EN93: 13914548.17 | EO93: -1779632.208 | EP93: 12134916
D94: 9 | E94: 窯業・土石製品 | F94: 6.073474045 | G94: 0.004103810485 | H94: 705.161476 | I94: 10.90630015 | J94: 190.6822521 | K94: 420.1917352 | L94: 5.766196302 | M94: 203.1573287 | N94: 3970.813212 | O94: 243.8431916 | P94: 210.6186806 | Q94: 225.0776578 | R94: 342.093761 | S94: 707.3044913 | T94: 630.6194821 | U94: 366.692352 | V94: 957.9564522 | W94: 19.78091195 | X94: 1414.492741 | Y94: 168.7357161 | Z94: 50322.02008 | AA94: 7.533057581 | AB94: 144.832008 | AC94: 26.32037767 | AD94: 347.7269635 | AE94: 4.547105071 | AF94: 88.30251097 | AG94: 22.98182353 | AH94: 6.442320505 | AI94: 63.72286238 | AJ94: 738.7569135 | AK94: 550.8284166 | AL94: 12.82919678 | AM94: 479.1868502 | AN94: 908.2583097 | AO94: 90.37845648 | AP94: 193.9784796 | AQ94: 0 | AR94: 543.1290556 | AS94: 1.091105849 | AT94: 2973.31029 | AU94: 99.34247057 | AV94: 878.4433554 | AW94: 2882.693837 | AX94: 161.2426946 | AY94: 2689.714557 | AZ94: 20216.12598 | BA94: 12430.79043 | BB94: 5147.899151 | BC94: 1992.437653 | BD94: 3180.101035 | BE94: 6813.998697 | BF94: 3072.315327 | BG94: 4056.053733 | BH94: 4516.644385 | BI94: 487.0218871 | BJ94: 49931.32745 | BK94: 2343.270015 | BL94: 59652.4032 | BM94: 39.54341806 | BN94: 692.5231807 | BO94: 50.2936555 | BP94: 235.039909 | BQ94: 2.448019165 | BR94: 177.2225465 | BS94: 14.1326526 | BT94: 1.1796673 | BU94: 69.02643622 | BV94: 1573.30468 | BW94: 592.1897991 | BX94: 22.81354283 | BY94: 1022.135436 | BZ94: 540.518023 | CA94: 155.1092563 | CB94: 345.9725036 | CC94: 0 | CD94: 24825.68346 | CE94: 407.6421056 | CF94: 95706.14552 | CG94: 1963.91423 | CH94: 33393.4502 | CI94: 168258.8828 | CJ94: 4642.98006 | CK94: 34897.73973 | CL94: 454397.139 | CM94: 105988.4589 | CN94: 65972.21134 | CO94: 35075.82132 | CP94: 53885.6837 | CQ94: 55552.8551 | CR94: 113243.9105 | CS94: 402760.3605 | CT94: 122202.3759 | CU94: 12810.47497 | CV94: 206163.8329 | CW94: 38487.05101 | CX94: 2942449.635 | CY94: 914.9493171 | CZ94: 17764.16594 | DA94: 2037.3465 | DB94: 16522.96046 | DC94: 305.1499444 | DD94: 5179.129026 | DE94: 1359.990762 | DF94: 527.4812212 | DG94: 6274.815544 | DH94: 71092.30914 | DI94: 47513.57812 | DJ94: 1783.947052 | DK94: 41927.20418 | DL94: 63462.02787 | DM94: 6466.544716 | DN94: 19387.13825 | DO94: 0 | DP94: 5530016.412 | DQ94: 145.955112 | DR94: 1007.64155 | DS94: 0 | DT94: 0 | DU94: 0 | DV94: -179.0056433 | DW94: 974.591019 | DX94: 236.1026049 | DY94: 2504.708274 | DZ94: 0 | EA94: 0 | EB94: 0 | EC94: -1259.967654 | ED94: 1480.843225 | EE94: 10146.38219 | EF94: 119590.6194 | EG94: 0 | EH94: 0 | EI94: 0 | EJ94: -49536.52721 | EK94: 80200.47439 | EL94: 755972.3178 | EM94: 838628.2264 | EN94: 6368644.639 | EO94: -681822.6388 | EP94: 5686822
D95: 10 | E95: 鉄鋼 | F95: 0.1390143377 | G95: 0.05703005523 | H95: 0 | I95: 5.063907062 | J95: 568.5760838 | K95: 0.2174060418 | L95: 0 | M95: 186.093834 | N95: 425.0105905 | O95: 80159.68167 | P95: 27.73914816 | Q95: 17086.8607 | R95: 3616.525938 | S95: 14271.05649 | T95: 5865.177869 | U95: 48.39632997 | V95: 9039.492017 | W95: 74.34341557 | X95: 8583.35788 | Y95: 98.11662969 | Z95: 19951.83664 | AA95: 0 | AB95: 1.0007924 | AC95: 0 | AD95: 0 | AE95: 0 | AF95: 0 | AG95: 123.5650327 | AH95: 0 | AI95: 4.481975037 | AJ95: 0 | AK95: 1.721419039 | AL95: 0.1749117677 | AM95: 92.9170034 | AN95: 23.75722406 | AO95: 0.4447170163 | AP95: 227.1128274 | AQ95: 0 | AR95: 12.30155755 | AS95: 9.4842331 | AT95: 0 | AU95: 42.00953739 | AV95: 1559.706277 | AW95: 41.11042405 | AX95: -0.7739708138 | AY95: 2302.734322 | AZ95: 1086.366447 | BA95: 658197.0288 | BB95: 157.3826277 | BC95: 100636.6028 | BD95: 35387.63108 | BE95: 78298.68993 | BF95: 11130.2666 | BG95: 482.8198863 | BH95: 39845.04852 | BI95: 1524.19672 | BJ95: 370629.7546 | BK95: 1048.550237 | BL95: 23457.50415 | BM95: 0 | BN95: 3.017534039 | BO95: 0 | BP95: 0 | BQ95: 0 | BR95: 0 | BS95: 82.11486706 | BT95: 0 | BU95: 2.286918708 | BV95: 0 | BW95: 1.959974882 | BX95: 0.2225696259 | BY95: 110.4468087 | BZ95: 14.67855434 | CA95: 0.4484917599 | CB95: 421.2973151 | CC95: 0 | CD95: 664.0000673 | CE95: 2037.606928 | CF95: 0 | CG95: 444.5512516 | CH95: 100891.7765 | CI95: 808.2947351 | CJ95: -5.81140046 | CK95: 23157.38559 | CL95: 42949.47398 | CM95: 12026875.95 | CN95: 8844.372578 | CO95: 2218594.917 | CP95: 998519.7752 | CQ95: 1220964.061 | CR95: 107598.9556 | CS95: 69611.2966 | CT95: 573722.4693 | CU95: 42054.27117 | CV95: 1941800.127 | CW95: 27615.71415 | CX95: 1231830.071 | CY95: 0 | CZ95: 94.04814441 | DA95: 0 | DB95: 0 | DC95: 0 | DD95: 0 | DE95: 12630.38773 | DF95: 0 | DG95: 1223.824779 | DH95: 0 | DI95: 152.7898285 | DJ95: 16.79722147 | DK95: 6978.087334 | DL95: 1211.704506 | DM95: 28.13241891 | DN95: 19954.7402 | DO95: 0 | DP95: 22168237.58 | DQ95: 0 | DR95: 0.3529011617 | DS95: 0 | DT95: 0 | DU95: 0 | DV95: -695.059709 | DW95: -694.7068079 | DX95: 0 | DY95: -5306.772323 | DZ95: 0 | EA95: -2823.983165 | EB95: 0 | EC95: -10250.68729 | ED95: -18381.44278 | EE95: 0 | EF95: -32591.42808 | EG95: 0 | EH95: -26804.59296 | EI95: -166801.3818 | EJ95: -199630.1329 | EK95: -425827.5358 | EL95: 3095708.32 | EM95: 2650804.635 | EN95: 24819042.21 | EO95: -887671.2144 | EP95: 23931371
D96: 11 | E96: 非鉄金属 | F96: 0 | G96: 0.0133936198 | H96: 449.0083811 | I96: 0.06755438621 | J96: 196.8242345 | K96: 250.9121094 | L96: 0.0361066547 | M96: 158.262582 | N96: 344.5628875 | O96: 738.8724925 | P96: 26328.81284 | Q96: 3988.585837 | R96: 1536.756885 | S96: 2685.470887 | T96: 3174.96088 | U96: 457.9330094 | V96: 10498.37584 | W96: 228.0366258 | X96: 7714.071061 | Y96: 498.7052189 | Z96: 6318.149843 | AA96: 47.85995317 | AB96: 10.21320175 | AC96: 0.2992958886 | AD96: 38.84377207 | AE96: 0 | AF96: 0 | AG96: 17.97878458 | AH96: 54.56507938 | AI96: 51.63414169 | AJ96: 77.55986226 | AK96: 942.5170494 | AL96: 8.603866396 | AM96: 474.7260785 | AN96: 282.9667343 | AO96: 22.20675737 | AP96: 114.7258491 | AQ96: 0 | AR96: 0 | AS96: 2.460819048 | AT96: 1643.906976 | AU96: 1.37747781 | AV96: 649.2052603 | AW96: 1722.83255 | AX96: 5.682910801 | AY96: 1960.271743 | AZ96: 3168.655786 | BA96: 9611.522809 | BB96: 104422.5318 | BC96: 30305.72745 | BD96: 19214.67904 | BE96: 18138.75689 | BF96: 17071.52728 | BG96: 9230.415941 | BH96: 48876.23138 | BI96: 6789.682376 | BJ96: 202198.2754 | BK96: 4425.031549 | BL96: 6220.376397 | BM96: 135.4324751 | BN96: 23.27962897 | BO96: 0.633909584 | BP96: 16.55448299 | BQ96: 0 | BR96: 0 | BS96: 3.044790388 | BT96: 5.627354791 | BU96: 38.34167177 | BV96: 154.6222416 | BW96: 1489.062779 | BX96: 14.7480448 | BY96: 523.6170649 | BZ96: 186.9239041 | CA96: 25.35049611 | CB96: 258.1126457 | CC96: 0 | CD96: 0 | CE96: 569.503707 | CF96: 46340.11126 | CG96: 23.87118501 | CH96: 25926.94975 | CI96: 128765.0242 | CJ96: 165.5625015 | CK96: 26302.89105 | CL96: 50074.03984 | CM96: 198810.4398 | CN96: 3083201.215 | CO96: 641317.2931 | CP96: 320946.2806 | CQ96: 261688.0649 | CR96: 200372.1588 | CS96: 570824.152 | CT96: 865788.0829 | CU96: 200276.8827 | CV96: 833935.2295 | CW96: 106071.7851 | CX96: 509781.7663 | CY96: 5656.932892 | CZ96: 995.1659213 | DA96: 15.89877682 | DB96: 1048.498079 | DC96: 0 | DD96: 0 | DE96: 620.8976615 | DF96: 3147.548141 | DG96: 7580.462657 | DH96: 3387.84773 | DI96: 71284.71137 | DJ96: 835.3986488 | DK96: 23244.71447 | DL96: 15857.45836 | DM96: 1163.160896 | DN96: 16545.9862 | DO96: 0 | DP96: 8778813.609 | DQ96: 21.27322564 | DR96: 726.9676655 | DS96: 0 | DT96: 0 | DU96: -440.9019644 | DV96: -271.5531436 | DW96: 35.78578313 | DX96: 29.42933967 | DY96: 2639.156312 | DZ96: 0 | EA96: 0 | EB96: 7695.242563 | EC96: -3301.022634 | ED96: 7062.80558 | EE96: 1097.010608 | EF96: 156263.4407 | EG96: 0 | EH96: 0 | EI96: 87267.19725 | EJ96: -111889.4937 | EK96: 132738.1549 | EL96: 2340729.116 | EM96: 2480565.863 | EN96: 11259379.47 | EO96: -3186596.472 | EP96: 8072783
D97: 12 | E97: 金属製品 | F97: 1.46172253 | G97: 0.3436148927 | H97: 1503.671004 | I97: 18.92464459 | J97: 488.968388 | K97: 425.6317443 | L97: 1.252943861 | M97: 212.3886447 | N97: 337.7312979 | O97: 105.7920324 | P97: 115.1707954 | Q97: 3176.296601 | R97: 488.6113591 | S97: 2222.638258 | T97: 6660.950569 | U97: 117.8454844 | V97: 2863.759617 | W97: 182.8587313 | X97: 964.3087099 | Y97: 317.7226557 | Z97: 47735.15292 | AA97: 43.01112428 | AB97: 16.18707025 | AC97: 3.968697641 | AD97: 4183.564057 | AE97: 29.82408723 | AF97: 163.1934566 | AG97: 454.9138192 | AH97: 220.4112836 | AI97: 633.7528976 | AJ97: 62.16357684 | AK97: 134.2487619 | AL97: 44.00989099 | AM97: 812.4039464 | AN97: 1050.475961 | AO97: 4.240544867 | AP97: 130.5659786 | AQ97: 13.04159878 | AR97: 126.364589 | AS97: 86.65901468 | AT97: 6495.699142 | AU97: 56.15699951 | AV97: 2195.27355 | AW97: 3393.860137 | AX97: 124.8325221 | AY97: 3540.144529 | AZ97: 2031.743391 | BA97: 1489.102245 | BB97: 524.0709135 | BC97: 31236.13383 | BD97: 7315.610628 | BE97: 16640.47391 | BF97: 12377.92553 | BG97: 2174.487403 | BH97: 15577.79172 | BI97: 2371.911523 | BJ97: 41296.61827 | BK97: 3650.503389 | BL97: 37708.16259 | BM97: 229.2280975 | BN97: 52.57831202 | BO97: 10.86948703 | BP97: 2048.595366 | BQ97: 25.68966166 | BR97: 317.4973927 | BS97: 513.4800919 | BT97: 29.89676936 | BU97: 598.6848481 | BV97: 129.4796414 | BW97: 218.936863 | BX97: 93.94208749 | BY97: 838.6275152 | BZ97: 774.7716159 | CA97: 5.735549626 | CB97: 273.65126 | CC97: 20.59375344 | CD97: 15559.83939 | CE97: 16464.44129 | CF97: 423719.0344 | CG97: 8145.725817 | CH97: 132670.8301 | CI97: 225093.0322 | CJ97: 7414.283614 | CK97: 80170.6714 | CL97: 55660.58104 | CM97: 17288.82495 | CN97: 12327.81168 | CO97: 676516.209 | CP97: 335307.9548 | CQ97: 462551.3693 | CR97: 195374.6144 | CS97: 262254.6763 | CT97: 364070.3561 | CU97: 133705.5891 | CV97: 392817.3543 | CW97: 96402.79193 | CX97: 5318649.54 | CY97: 10433.52666 | CZ97: 3270.734959 | DA97: 673.9083862 | DB97: 247675.72 | DC97: 3863.587747 | DD97: 22411.88882 | DE97: 65827.20489 | DF97: 17730.47646 | DG97: 166481.9477 | DH97: 6972.874284 | DI97: 20080.25549 | DJ97: 9996.138708 | DK97: 67748.68042 | DL97: 121660.63 | DM97: 492.6564118 | DN97: 25210.31517 | DO97: 1485.389963 | DP97: 10296718.71 | DQ97: 234.8654389 | DR97: 1564.659713 | DS97: 1.131938461 | DT97: 133.3263619 | DU97: 2235.874954 | DV97: -123.745982 | DW97: 4046.112425 | DX97: 396.1709434 | DY97: 4120.934696 | DZ97: 7.778103109 | EA97: 145.4846978 | EB97: 7191.65581 | EC97: -552.5078328 | ED97: 11309.51642 | EE97: 26943.62513 | EF97: 244422.0482 | EG97: 607.2120604 | EH97: 16944.96705 | EI97: 381337.5631 | EJ97: 12177.72484 | EK97: 682433.1404 | EL97: 776014.7354 | EM97: 1473803.505 | EN97: 11770522.21 | EO97: -1147581.214 | EP97: 10622941
D98: 13 | E98: はん用機械 | F98: 0 | G98: 0.07327125926 | H98: 0 | I98: 0 | J98: 107.9916596 | K98: 1.0848217 | L98: 0 | M98: 23.14837961 | N98: 85.29018815 | O98: 22.68559599 | P98: 3.601689455 | Q98: 73.05790308 | R98: 4549.48909 | S98: 4179.83577 | T98: 7654.089691 | U98: 12.60835547 | V98: 1799.247313 | W98: 16.29323853 | X98: 1427.079649 | Y98: 3.613049499 | Z98: 4831.526738 | AA98: 0 | AB98: 287.279918 | AC98: 0 | AD98: 7.737037915 | AE98: 0 | AF98: 0 | AG98: 70.84801589 | AH98: 3.217422407 | AI98: 91.66290876 | AJ98: 0 | AK98: 0 | AL98: 0 | AM98: 12085.82865 | AN98: 5.108227958 | AO98: 0 | AP98: 0 | AQ98: 0.4925456873 | AR98: 0.1051551677 | AS98: 18.06722564 | AT98: 0 | AU98: 0 | AV98: 571.1241268 | AW98: 7.76492833 | AX98: 0 | AY98: 308.8050324 | AZ98: 707.9426078 | BA98: 404.9629584 | BB98: 1.150735331 | BC98: 708.4699878 | BD98: 65745.13043 | BE98: 28452.50092 | BF98: 3841.969225 | BG98: 420.469654 | BH98: 10755.54557 | BI98: 466.8719595 | BJ98: 60528.96329 | BK98: 51.29161065 | BL98: 2768.877579 | BM98: 0 | BN98: 1581.174803 | BO98: 0 | BP98: 5.66825516 | BQ98: 0.009817403277 | BR98: 0 | BS98: 89.43721294 | BT98: 1.343373372 | BU98: 80.1919283 | BV98: 0 | BW98: 0.3243081431 | BX98: 0 | BY98: 10780.62667 | BZ98: 5.750199056 | CA98: 0 | CB98: 0 | CC98: 0.9232958681 | CD98: 21.6042942 | CE98: 1736.927431 | CF98: 0 | CG98: 0 | CH98: 11375.3066 | CI98: 474.6771648 | CJ98: 0 | CK98: 4213.810104 | CL98: 11000.63861 | CM98: 2295.00023 | CN98: 116.1918391 | CO98: 9973.631445 | CP98: 1393346.997 | CQ98: 560751.6811 | CR98: 67511.69875 | CS98: 27430.7155 | CT98: 174446.852 | CU98: 10341.06714 | CV98: 283940.4375 | CW98: 4587.58869 | CX98: 345530.8277 | CY98: 0 | CZ98: 40723.668 | DA98: 0 | DB98: 351.345472 | DC98: 0.9298901682 | DD98: 0 | DE98: 4060.669539 | DF98: 265.3669608 | DG98: 12479.78008 | DH98: 0 | DI98: 8.861086685 | DJ98: 0 | DK98: 422875.1366 | DL98: 342.9868996 | DM98: 0 | DN98: 0 | DO98: 36.4164966 | DP98: 3615889.168 | DQ98: 0 | DR98: 68.60317288 | DS98: 0 | DT98: 2562.66801 | DU98: 38761.08143 | DV98: 153.8928697 | DW98: 41546.24548 | DX98: 0 | DY98: 116.0391665 | DZ98: 0 | EA98: 1632.975967 | EB98: 137245.9887 | EC98: 572.3046598 | ED98: 139567.3085 | EE98: 0 | EF98: 12077.79636 | EG98: 0 | EH98: 137174.2514 | EI98: 3663335.059 | EJ98: 83671.44376 | EK98: 3896258.551 | EL98: 3178283.935 | EM98: 7255656.04 | EN98: 10871545.21 | EO98: -1386862.208 | EP98: 9484683
D99: 14 | E99: 生産用機械 | F99: 0 | G99: 0.06549775433 | H99: 0 | I99: 0 | J99: 7.36097725 | K99: 0 | L99: 0.09315236172 | M99: 188.6995154 | N99: 92.16601405 | O99: 35.15676868 | P99: 33.11275358 | Q99: 57.5545763 | R99: 234.5589726 | S99: 17660.18888 | T99: 475.2810005 | U99: 15.67291595 | V99: 407.9268995 | W99: 9.637207288 | X99: 182.7487408 | Y99: 1.549743907 | Z99: 43.96112237 | AA99: 0.6850579935 | AB99: 8.19449682 | AC99: 0 | AD99: 8.105225807 | AE99: 0 | AF99: 0 | AG99: 39.37336856 | AH99: 2.181317804 | AI99: 3.963827059 | AJ99: 0 | AK99: 0 | AL99: 0 | AM99: 18429.73828 | AN99: 6.829717687 | AO99: 0 | AP99: 0 | AQ99: 0 | AR99: 0.4510398261 | AS99: 14.27034795 | AT99: 0 | AU99: 0 | AV99: 23.69343185 | AW99: 0 | AX99: 5.776732629 | AY99: 1846.666531 | AZ99: 488.9539338 | BA99: 360.8093091 | BB99: 105.2703056 | BC99: 285.3698769 | BD99: 2262.949931 | BE99: 104388.6414 | BF99: 1034.028661 | BG99: 627.132501 | BH99: 1491.949975 | BI99: 150.2096228 | BJ99: 5892.57959 | BK99: 15.0564655 | BL99: 53.21043116 | BM99: 5.015913507 | BN99: 31.58247099 | BO99: 0 | BP99: 3.544619743 | BQ99: 0 | BR99: 0 | BS99: 32.83524351 | BT99: 0.2754894214 | BU99: 3.205195135 | BV99: 0 | BW99: 0 | BX99: 0 | BY99: 18464.90357 | BZ99: 4.260217821 | CA99: 0 | CB99: 0 | CC99: 0 | CD99: 100.7824314 | CE99: 1441.293394 | CF99: 0 | CG99: 0 | CH99: 910.6140926 | CI99: 0 | CJ99: 186.1512167 | CK99: 25569.14865 | CL99: 5948.36244 | CM99: 2418.574762 | CN99: 676.2314439 | CO99: 4161.632628 | CP99: 39837.05185 | CQ99: 2054004.56 | CR99: 8306.933763 | CS99: 32650.49479 | CT99: 27959.16237 | CU99: 3808.312249 | CV99: 30965.81093 | CW99: 980.0478288 | CX99: 3387.057172 | CY99: 99.94909378 | CZ99: 863.1062307 | DA99: 0 | DB99: 244.1968453 | DC99: 0 | DD99: 0 | DE99: 1903.669839 | DF99: 116.5398107 | DG99: 526.1984134 | DH99: 0 | DI99: 0 | DJ99: 0 | DK99: 615601.6605 | DL99: 362.4899209 | DM99: 0 | DN99: 0 | DO99: 0 | DP99: 3038567.482 | DQ99: 0 | DR99: 95.99609375 | DS99: 0 | DT99: 718.925577 | DU99: 58150.76888 | DV99: 122.5132986 | DW99: 59088.20385 | DX99: 0 | DY99: 171.0229068 | DZ99: 0 | EA99: 1801.421973 | EB99: 417028.8384 | EC99: 1151.85453 | ED99: 420153.1378 | EE99: 0 | EF99: 7205.73964 | EG99: 0 | EH99: 90328.61612 | EI99: 7139482.785 | EJ99: 157694.6005 | EK99: 7394711.741 | EL99: 5676041.248 | EM99: 13549994.33 | EN99: 16588561.81 | EO99: -1861653.812 | EP99: 14726908
D100: 15 | E100: 業務用機械 | F100: 21.64356028 | G100: 0 | H100: 0 | I100: 0 | J100: 0 | K100: 0 | L100: 0 | M100: 0 | N100: 0 | O100: 0 | P100: 0 | Q100: 0.78096115 | R100: 55.08249207 | S100: 451.8982237 | T100: 14033.44264 | U100: 0 | V100: 131.5702314 | W100: 12.89721911 | X100: 113.7198569 | Y100: 4.826157964 | Z100: 95.36238877 | AA100: 0 | AB100: 2.346584688 | AC100: 0.964004177 | AD100: 2198.038205 | AE100: 4.082465159 | AF100: 0 | AG100: 4.541755107 | AH100: 77.74484777 | AI100: 359.0339174 | AJ100: 0 | AK100: 4888.773067 | AL100: 0 | AM100: 6385.762952 | AN100: 367.3039068 | AO100: 834.8327071 | AP100: 0 | AQ100: 22.10876291 | AR100: 60.70632871 | AS100: 0 | AT100: 0 | AU100: 0 | AV100: 0 | AW100: 0.004797343492 | AX100: 0 | AY100: 0 | AZ100: 0 | BA100: 0 | BB100: 0 | BC100: 9.624197775 | BD100: 1392.325217 | BE100: 3294.556252 | BF100: 26752.19226 | BG100: 13.42547998 | BH100: 586.2328176 | BI100: 142.2053982 | BJ100: 2159.068526 | BK100: 58.73694419 | BL100: 100.708862 | BM100: 0 | BN100: 10.93012612 | BO100: 2.771414653 | BP100: 1007.78835 | BQ100: 2.828338355 | BR100: 0 | BS100: 22.44518892 | BT100: 10.89483806 | BU100: 260.3582722 | BV100: 0 | BW100: 8718.636026 | BX100: 0 | BY100: 6348.710461 | BZ100: 440.6139962 | CA100: 1087.832167 | CB100: 0 | CC100: 33.15060428 | CD100: 3790.01615 | CE100: 0 | CF100: 7.98895933 | CG100: 0 | CH100: 0 | CI100: 18.39441396 | CJ100: 0 | CK100: 0 | CL100: 0 | CM100: 0 | CN100: 0 | CO100: 166.7273299 | CP100: 21040.08755 | CQ100: 74261.15839 | CR100: 398113.907 | CS100: 1524.33897 | CT100: 11684.88884 | CU100: 6044.991106 | CV100: 13346.55051 | CW100: 1453.441812 | CX100: 10167.26139 | CY100: 0 | CZ100: 363.8417366 | DA100: 112.0707774 | DB100: 85215.37315 | DC100: 356.1451257 | DD100: 0 | DE100: 1310.625212 | DF100: 9279.933192 | DG100: 92345.64755 | DH100: 0 | DI100: 649608.4582 | DJ100: 0 | DK100: 230964.9431 | DL100: 24624.84607 | DM100: 33225.30817 | DN100: 0 | DO100: 959.5763804 | DP100: 1752570.025 | DQ100: 51.60167572 | DR100: 858.7380913 | DS100: 0.8673371716 | DT100: 2147.741132 | DU100: 35959.82545 | DV100: -39.33816067 | DW100: 38979.43553 | DX100: 82.36964556 | DY100: 1839.330744 | DZ100: 3.429675212 | EA100: 3223.547829 | EB100: 115450.6762 | EC100: 797.6783957 | ED100: 121397.0325 | EE100: 2112.760847 | EF100: 88458.27389 | EG100: 167.7968433 | EH100: 334750.2165 | EI100: 3322258.157 | EJ100: 58062.85086 | EK100: 3805810.056 | EL100: 1953490.675 | EM100: 5919677.199 | EN100: 7672247.224 | EO100: -1961072.224 | EP100: 5711175
D101: 16 | E101: 電子部品 | F101: 0 | G101: 0.002470612291 | H101: 0.3809684152 | I101: 0 | J101: 0.6057941337 | K101: 0.3137677609 | L101: 0 | M101: 0.03409444961 | N101: 0 | O101: 0.1215541247 | P101: 0.3631800067 | Q101: 261.3836964 | R101: 254.0967684 | S101: 1139.870612 | T101: 23464.97002 | U101: 1790.493777 | V101: 13869.29126 | W101: 2618.146173 | X101: 3272.464134 | Y101: 104.8351838 | Z101: 224.0158517 | AA101: 0.9946685082 | AB101: 0.7233952787 | AC101: 0 | AD101: 43.60976579 | AE101: 22.35953535 | AF101: 0 | AG101: 4.673410209 | AH101: 1096.250203 | AI101: 503.5463617 | AJ101: 1474.390152 | AK101: 1.872229994 | AL101: 0 | AM101: 14237.24217 | AN101: 11.11330821 | AO101: 719.6261126 | AP101: 0 | AQ101: 24.51637988 | AR101: 0.1280153298 | AS101: 0.3343992095 | AT101: 1.429657792 | AU101: 0.03626106191 | AV101: 4.435300384 | AW101: 2.191669557 | AX101: 0 | AY101: 0.356708616 | AZ101: 0 | BA101: 1.291599892 | BB101: 18.28861273 | BC101: 4967.235422 | BD101: 8051.931668 | BE101: 10065.9261 | BF101: 42601.84462 | BG101: 51212.22531 | BH101: 50908.98693 | BI101: 33473.88122 | BJ101: 101377.3151 | BK101: 406.9446732 | BL101: 318.7042308 | BM101: 3.023498494 | BN101: 3.596190181 | BO101: 0 | BP101: 37.88667245 | BQ101: 14.9967957 | BR101: 0 | BS101: 7.147560741 | BT101: 277.8091963 | BU101: 489.1240996 | BV101: 3321.050983 | BW101: 8.345126798 | BX101: 0 | BY101: 16757.89672 | BZ101: 10.5610309 | CA101: 1169.154257 | CB101: 0 | CC101: 44.68571634 | CD101: 11.25841849 | CE101: 19.98568969 | CF101: 50.60118966 | CG101: 2.820832496 | CH101: 104.6954042 | CI101: 128.8904151 | CJ101: 0 | CK101: 3.875421339 | CL101: 0 | CM101: 15.32580935 | CN101: 1156.55539 | CO101: 21827.14741 | CP101: 63020.82866 | CQ101: 130941.9937 | CR101: 744053.0489 | CS101: 3577646.999 | CT101: 2116636.059 | CU101: 1573156.564 | CV101: 349369.549 | CW101: 66625.16705 | CX101: 17817.63921 | CY101: 83.04666171 | CZ101: 87.0294223 | DA101: 0 | DB101: 1972.399188 | DC101: 1296.927735 | DD101: 0 | DE101: 275.6183481 | DF101: 66248.67404 | DG101: 85610.7015 | DH101: 55283.41294 | DI101: 202.1110258 | DJ101: 0 | DK101: 663752.9989 | DL101: 596.4418208 | DM101: 48934.33066 | DN101: 0 | DO101: 1568.644851 | DP101: 9979202.414 | DQ101: 7.429131158 | DR101: 1453.617833 | DS101: 0 | DT101: 0 | DU101: 0 | DV101: 13.40504817 | DW101: 1474.452012 | DX101: 14.74640084 | DY101: 3892.05503 | DZ101: 0 | EA101: 0 | EB101: 0 | EC101: 1044.879393 | ED101: 4951.680824 | EE101: 497.2374132 | EF101: 146217.1461 | EG101: 0 | EH101: 0 | EI101: 0 | EJ101: 87532.90719 | EK101: 234247.2907 | EL101: 6717986.439 | EM101: 6958659.862 | EN101: 16937862.28 | EO101: -3833872.276 | EP101: 13103990
D102: 17 | E102: 電気機械 | F102: 0.05163527418 | G102: 0.01639283471 | H102: 0 | I102: 0 | J102: 11.95525842 | K102: 0.09006372524 | L102: 0 | M102: 1.401481233 | N102: 1.021881359 | O102: 0 | P102: 0.03119462288 | Q102: 34.32418155 | R102: 296.3926922 | S102: 2767.510369 | T102: 4067.485375 | U102: 69.11168794 | V102: 21618.00146 | W102: 126.7747258 | X102: 4406.025571 | Y102: 23.27899593 | Z102: 5491.913076 | AA102: 0.5359237512 | AB102: 5.524651581 | AC102: 0 | AD102: 483.4974965 | AE102: 1.138726506 | AF102: 13.25764787 | AG102: 157.2572768 | AH102: 162.8430152 | AI102: 412.4471152 | AJ102: 130.253548 | AK102: 33.9914278 | AL102: 0 | AM102: 7176.657479 | AN102: 108.2060519 | AO102: 0 | AP102: 40.02613647 | AQ102: 197.2022821 | AR102: 28.41049404 | AS102: 3.425377242 | AT102: 0 | AU102: 0 | AV102: 46.98725712 | AW102: 0.362085057 | AX102: 0 | AY102: 14.37678696 | AZ102: 7.514184177 | BA102: 0 | BB102: 1.345497401 | BC102: 408.3075842 | BD102: 11747.21271 | BE102: 18790.84949 | BF102: 7624.364348 | BG102: 3173.010835 | BH102: 124862.8268 | BI102: 2287.550131 | BJ102: 245670.846 | BK102: 238.7499699 | BL102: 6278.193795 | BM102: 1.744021874 | BN102: 24.04985575 | BO102: 0 | BP102: 235.9016055 | BQ102: 0.615918744 | BR102: 11.83873045 | BS102: 183.3058793 | BT102: 28.45684242 | BU102: 347.0106416 | BV102: 245.837426 | BW102: 48.2729951 | BX102: 0 | BY102: 8054.917835 | BZ102: 117.63258 | CA102: 0 | CB102: 78.37499288 | CC102: 274.6140713 | CD102: 2659.064288 | CE102: 274.4678848 | CF102: 14.9107828 | CG102: 0 | CH102: 1553.745056 | CI102: 77.33163367 | CJ102: 0 | CK102: 227.5132532 | CL102: 243.8811849 | CM102: 0 | CN102: 179.9856646 | CO102: 7891.500599 | CP102: 198346.8445 | CQ102: 299604.09 | CR102: 98513.30471 | CS102: 265998.441 | CT102: 1428348.115 | CU102: 92592.70121 | CV102: 1101456.428 | CW102: 11905.31666 | CX102: 442320.7013 | CY102: 71.75704862 | CZ102: 764.0198666 | DA102: 0 | DB102: 19111.84867 | DC102: 79.90357554 | DD102: 920.2198619 | DE102: 10168.64592 | DF102: 11529.97273 | DG102: 69714.59108 | DH102: 19171.26077 | DI102: 4507.227244 | DJ102: 0 | DK102: 364896.4063 | DL102: 8970.113721 | DM102: 0 | DN102: 5107.362495 | DO102: 11015.45461 | DP102: 4956912.258 | DQ102: 1095.627616 | DR102: 33656.19648 | DS102: 0 | DT102: 2557.398963 | DU102: 24686.04459 | DV102: 274.3275424 | DW102: 62269.59519 | DX102: 1636.375112 | DY102: 71294.83199 | DZ102: 0 | EA102: 2674.500926 | EB102: 152294.9889 | EC102: 1436.199635 | ED102: 229336.8966 | EE102: 59431.31013 | EF102: 2856867.907 | EG102: 0 | EH102: 274849.1478 | EI102: 4502239.534 | EJ102: 33308.76864 | EK102: 7726696.668 | EL102: 5497964.132 | EM102: 13516267.29 | EN102: 18473179.55 | EO102: -4310348.581 | EP102: 14162830.97
D103: 18 | E103: 情報通信機器 | F103: 0.1669061541 | G103: 0 | H103: 2.849442686 | I103: 0.004554943778 | J103: 0.09500311308 | K103: 1.610497979 | L103: 0.003578884397 | M103: 0.001626765635 | N103: 0.2179865951 | O103: 0.0445733784 | P103: 0 | Q103: 1.745194173 | R103: 25.35108877 | S103: 26.77179544 | T103: 0.5776141309 | U103: 0.1581216197 | V103: 4.92552099 | W103: 253.6076305 | X103: 15.10456371 | Y103: 1.088956916 | Z103: 646.5220127 | AA103: 2.094623432 | AB103: 0.2697177423 | AC103: 0.5537510221 | AD103: 502.3022815 | AE103: 46.79358814 | AF103: 51.67030616 | AG103: 47.24791301 | AH103: 144.1980252 | AI103: 241.0921438 | AJ103: 67.56478247 | AK103: 11.68115332 | AL103: 1.742265995 | AM103: 1054.537313 | AN103: 69.10211741 | AO103: 0 | AP103: 0 | AQ103: 272.7013902 | AR103: 1.580230302 | AS103: 0.07711768149 | AT103: 11.06358384 | AU103: 0.7181077547 | AV103: 0.8602291083 | AW103: 6.414120125 | AX103: 0.7372451097 | AY103: 4.272080956 | AZ103: 1.657323571 | BA103: 0.363232561 | BB103: 0.168096704 | BC103: 12.34587563 | BD103: 473.2278291 | BE103: 158.5975464 | BF103: 9.717425186 | BG103: 10.97863098 | BH103: 21.47763729 | BI103: 2283.375894 | BJ103: 35735.97981 | BK103: 8.140249157 | BL103: 875.3151205 | BM103: 5.744872918 | BN103: 0.7201630119 | BO103: 1.453815109 | BP103: 248.0571214 | BQ103: 29.37072864 | BR103: 45.24380442 | BS103: 62.11698879 | BT103: 40.08000955 | BU103: 182.2513813 | BV103: 123.2451024 | BW103: 23.76212997 | BX103: 2.973762904 | BY103: 823.3214912 | BZ103: 66.7996663 | CA103: 0 | CB103: 0 | CC103: 464.8119179 | CD103: 161.0960092 | CE103: 9.828840316 | CF103: 561.9550065 | CG103: 16.37632882 | CH103: 55.14827109 | CI103: 824.4429391 | CJ103: 38.44130627 | CK103: 85.63415528 | CL103: 40.44817335 | CM103: 7.842803241 | CN103: 17.89889702 | CO103: 549.3697939 | CP103: 6132.742424 | CQ103: 3155.442752 | CR103: 148.7294793 | CS103: 730.105629 | CT103: 619.7208242 | CU103: 121301.6523 | CV103: 235897.5717 | CW103: 331.0814307 | CX103: 94191.44232 | CY103: 295.0649297 | CZ103: 48.31908975 | DA103: 94.58025055 | DB103: 26653.95494 | DC103: 4812.51293 | DD103: 4977.12327 | DE103: 5312.154194 | DF103: 10806.47252 | DG103: 64716.79999 | DH103: 4585.521746 | DI103: 1549.827705 | DJ103: 287.9074218 | DK103: 87864.76963 | DL103: 7160.60359 | DM103: 0 | DN103: 0 | DO103: 29220.04508 | DP103: 758494.047 | DQ103: 301.7331531 | DR103: 16720.22249 | DS103: 0 | DT103: 8003.098063 | DU103: 29083.48162 | DV103: 125.9911046 | DW103: 54234.52643 | DX103: 618.7671111 | DY103: 44630.75617 | DZ103: 0 | EA103: 8874.746513 | EB103: 101026.6514 | EC103: 1030.097441 | ED103: 156181.0186 | EE103: 33694.47865 | EF103: 3211098.909 | EG103: 0 | EH103: 935789.159 | EI103: 4404994.686 | EJ103: 6462.961862 | EK103: 8592040.194 | EL103: 1513322.209 | EM103: 10315777.95 | EN103: 11074272 | EO103: -5920512.996 | EP103: 5153759
D104: 19 | E104: 輸送機械 | F104: 0 | G104: 0.004076723635 | H104: 0 | I104: 0 | J104: 0 | K104: 0 | L104: 0 | M104: 0 | N104: 0 | O104: 0 | P104: 0 | Q104: 0 | R104: 0 | S104: 14.73484167 | T104: 0 | U104: 0 | V104: 0 | W104: 0 | X104: 44027.44603 | Y104: 0 | Z104: 0 | AA104: 0 | AB104: 0 | AC104: 0 | AD104: 0 | AE104: 0 | AF104: 0 | AG104: 15357.11573 | AH104: 0 | AI104: 720.6053978 | AJ104: 25.13707793 | AK104: 0 | AL104: 0 | AM104: 12058.08898 | AN104: 13.14179387 | AO104: 0 | AP104: 0 | AQ104: 0 | AR104: 1033.849311 | AS104: 0.5662836949 | AT104: 0 | AU104: 0 | AV104: 0 | AW104: 0 | AX104: 0 | AY104: 0 | AZ104: 0 | BA104: 0 | BB104: 0 | BC104: 0 | BD104: 0 | BE104: 36.6190087 | BF104: 0 | BG104: 0 | BH104: 0 | BI104: 0 | BJ104: 1912035.256 | BK104: 0 | BL104: 0 | BM104: 0 | BN104: 0 | BO104: 0 | BP104: 0 | BQ104: 0 | BR104: 0 | BS104: 5496.575281 | BT104: 0 | BU104: 633.0320826 | BV104: 30.63603611 | BW104: 0 | BX104: 0 | BY104: 19236.44686 | BZ104: 9.105444022 | CA104: 0 | CB104: 0 | CC104: 0 | CD104: 70917.87214 | CE104: 30.32579187 | CF104: 0 | CG104: 0 | CH104: 0 | CI104: 0 | CJ104: 0 | CK104: 0 | CL104: 0 | CM104: 0 | CN104: 0 | CO104: 0 | CP104: 0 | CQ104: 7286.235414 | CR104: 0 | CS104: 0 | CT104: 0 | CU104: 0 | CV104: 14930487.59 | CW104: 0 | CX104: 0 | CY104: 0 | CZ104: 0 | DA104: 0 | DB104: 0 | DC104: 0 | DD104: 0 | DE104: 719632.203 | DF104: 0 | DG104: 196516.6289 | DH104: 2868.751888 | DI104: 0 | DJ104: 0 | DK104: 1458326.075 | DL104: 1120.615699 | DM104: 0 | DN104: 0 | DO104: 0 | DP104: 19397914.66 | DQ104: 0 | DR104: 84151.14811 | DS104: 0 | DT104: 8809.505427 | DU104: 51065.29932 | DV104: 62.70289303 | DW104: 144088.6558 | DX104: 0 | DY104: 243287.5072 | DZ104: 0 | EA104: 10123.3043 | EB104: 225044.3704 | EC104: 5841.398567 | ED104: 484296.5805 | EE104: 0 | EF104: 3942219.303 | EG104: 0 | EH104: 737703.5588 | EI104: 5429736.406 | EJ104: 91586.20926 | EK104: 10201245.48 | EL104: 11590956.21 | EM104: 22420586.92 | EN104: 41818501.58 | EO104: -3814730.583 | EP104: 38003771
D105: 20 | E105: その他の製造工業製品 | F105: 0.8637879414 | G105: 0.1338121874 | H105: 1918.475178 | I105: 220.1932815 | J105: 412.1217858 | K105: 164.9410772 | L105: 0.5948656422 | M105: 54.78540059 | N105: 169.337391 | O105: 232.4355475 | P105: 299.3385433 | Q105: 283.096207 | R105: 39.67215487 | S105: 555.0156549 | T105: 680.3674913 | U105: 24.29381416 | V105: 449.1837395 | W105: 83.56899378 | X105: 677.7686791 | Y105: 4241.317243 | Z105: 2512.345741 | AA105: 388.1802032 | AB105: 149.2884819 | AC105: 218.4351528 | AD105: 14332.38984 | AE105: 9348.775748 | AF105: 92.61038423 | AG105: 2139.43447 | AH105: 22514.04347 | AI105: 3443.600946 | AJ105: 14459.94616 | AK105: 3601.139149 | AL105: 1958.914288 | AM105: 15097.29432 | AN105: 4981.127304 | AO105: 2984.730661 | AP105: 29.90926684 | AQ105: 2622.38873 | AR105: 136.7416679 | AS105: 27.46602049 | AT105: 7302.356823 | AU105: 624.3287804 | AV105: 1926.499798 | AW105: 1388.156495 | AX105: 11.15002428 | AY105: 594.1388647 | AZ105: 1237.008176 | BA105: 1926.9516 | BB105: 971.3598918 | BC105: 2943.211528 | BD105: 663.7829 | BE105: 4465.127439 | BF105: 1743.434112 | BG105: 1029.460689 | BH105: 2387.438487 | BI105: 1383.189974 | BJ105: 10124.10987 | BK105: 8556.047193 | BL105: 2805.561137 | BM105: 1339.638417 | BN105: 436.1828915 | BO105: 450.0777267 | BP105: 7667.637108 | BQ105: 6079.742272 | BR105: 51.76891557 | BS105: 1512.378675 | BT105: 3024.107611 | BU105: 2870.114518 | BV105: 22240.63824 | BW105: 4400.406451 | BX105: 2887.323984 | BY105: 5268.258763 | BZ105: 3886.505755 | CA105: 3750.16507 | CB105: 61.90591526 | CC105: 3218.723526 | CD105: 29168.92824 | CE105: 3364.792618 | CF105: 281703.5231 | CG105: 53168.13527 | CH105: 156935.3362 | CI105: 89922.27795 | CJ105: 20507.44829 | CK105: 23861.31485 | CL105: 52400.23063 | CM105: 183900.1095 | CN105: 258764.8493 | CO105: 25358.14512 | CP105: 11297.6812 | CQ105: 38285.93618 | CR105: 40175.51091 | CS105: 67976.82676 | CT105: 56309.792 | CU105: 36862.0782 | CV105: 58313.55919 | CW105: 463429.3485 | CX105: 187453.2126 | CY105: 200019.2533 | CZ105: 14752.02359 | DA105: 17028.65423 | DB105: 520738.3199 | DC105: 522931.6185 | DD105: 4488.456219 | DE105: 112405.6643 | DF105: 1014925.724 | DG105: 327146.1684 | DH105: 658995.3627 | DI105: 241213.353 | DJ105: 189221.0026 | DK105: 674539.4448 | DL105: 305893.0053 | DM105: 189177.3655 | DN105: 7338.073692 | DO105: 140045.3452 | DP105: 7512793.028 | DQ105: 2529.530157 | DR105: 20954.62184 | DS105: 0.04620544565 | DT105: 1047.512353 | DU105: 10085.56523 | DV105: 379.7756132 | DW105: 34997.0514 | DX105: 3854.920338 | DY105: 42495.74307 | DZ105: 0.3094767787 | EA105: 1454.15851 | EB105: 26849.75112 | EC105: 992.3727591 | ED105: 75647.25527 | EE105: 195464.3158 | EF105: 2796466.495 | EG105: 8.713840846 | EH105: 100132.4687 | EI105: 937469.2657 | EJ105: 33985.86366 | EK105: 4063527.123 | EL105: 737869.0769 | EM105: 4912040.506 | EN105: 12424833.53 | EO105: -3214511.181 | EP105: 9210322.353
D106: 21 | E106: 建設 | F106: 0 | G106: 0 | H106: 0 | I106: 0 | J106: 0 | K106: 0 | L106: 0 | M106: 0 | N106: 0 | O106: 0 | P106: 0 | Q106: 0 | R106: 0 | S106: 0 | T106: 0 | U106: 0 | V106: 0 | W106: 0 | X106: 0 | Y106: 0 | Z106: 0 | AA106: 0 | AB106: 0 | AC106: 0 | AD106: 0 | AE106: 0 | AF106: 0 | AG106: 0 | AH106: 0 | AI106: 0 | AJ106: 0 | AK106: 0 | AL106: 0 | AM106: 0 | AN106: 0 | AO106: 0 | AP106: 0 | AQ106: 0 | AR106: 0 | AS106: 0 | AT106: 0 | AU106: 0 | AV106: 0 | AW106: 0 | AX106: 0 | AY106: 0 | AZ106: 0 | BA106: 0 | BB106: 0 | BC106: 0 | BD106: 0 | BE106: 0 | BF106: 0 | BG106: 0 | BH106: 0 | BI106: 0 | BJ106: 0 | BK106: 0 | BL106: 0 | BM106: 0 | BN106: 0 | BO106: 0 | BP106: 0 | BQ106: 0 | BR106: 0 | BS106: 0 | BT106: 0 | BU106: 0 | BV106: 0 | BW106: 0 | BX106: 0 | BY106: 0 | BZ106: 0 | CA106: 0 | CB106: 0 | CC106: 0 | CD106: 25145.17888 | CE106: 2201.637508 | CF106: 7045.125853 | CG106: 6310.99375 | CH106: 35334.70124 | CI106: 61595.39159 | CJ106: 3990.400969 | CK106: 29331.75994 | CL106: 26124.08089 | CM106: 85691.6955 | CN106: 21756.45323 | CO106: 36628.85046 | CP106: 9823.439034 | CQ106: 16961.60051 | CR106: 3649.848744 | CS106: 34691.40309 | CT106: 15226.38574 | CU106: 5914.268137 | CV106: 12983.06316 | CW106: 8802.352944 | CX106: 26706.97844 | CY106: 300678.453 | CZ106: 126027.4661 | DA106: 13242.28821 | DB106: 235814.1012 | DC106: 70007.18982 | DD106: 684982.11 | DE106: 321597.5489 | DF106: 150579.8842 | DG106: 316183.3723 | DH106: 191478.6816 | DI106: 108795.9152 | DJ106: 5364.206728 | DK106: 69343.29723 | DL106: 94520.54768 | DM106: 0 | DN106: 0 | DO106: 352834.303 | DP106: 3517364.975 | DQ106: 0 | DR106: 0 | DS106: 0 | DT106: 0 | DU106: 0 | DV106: 0 | DW106: 0 | DX106: 0 | DY106: 0 | DZ106: 0 | EA106: 0 | EB106: 0 | EC106: 0 | ED106: 0 | EE106: 0 | EF106: 0 | EG106: 0 | EH106: 19559195.55 | EI106: 34659050.48 | EJ106: 0 | EK106: 54218246.03 | EL106: 0 | EM106: 54218246.03 | EN106: 57735611 | EO106: 0 | EP106: 57735611
D107: 22 | E107: 電力・ガス・熱供給 | F107: 5.801858092 | G107: 0.07295535674 | H107: 122.6761594 | I107: 18.47182177 | J107: 27.18615742 | K107: 187.8403105 | L107: 2.254227414 | M107: 110.5291075 | N107: 96.38135482 | O107: 336.9130635 | P107: 138.5407207 | Q107: 91.47667642 | R107: 21.2476094 | S107: 80.53292238 | T107: 29.87637494 | U107: 11.44510061 | V107: 66.34645441 | W107: 3.583192284 | X107: 198.7651424 | Y107: 107.0054449 | Z107: 99.20081355 | AA107: 1099.260439 | AB107: 87.74267769 | AC107: 192.5011636 | AD107: 1658.898067 | AE107: 126.9914882 | AF107: 259.7707181 | AG107: 713.4459617 | AH107: 334.6155855 | AI107: 187.6290433 | AJ107: 391.3144824 | AK107: 402.854464 | AL107: 6.366098245 | AM107: 294.7920826 | AN107: 1033.101224 | AO107: 0 | AP107: 10.16076795 | AQ107: 197.529707 | AR107: 4873.047825 | AS107: 414.7330069 | AT107: 16299.25088 | AU107: 5403.719075 | AV107: 17572.67273 | AW107: 19825.95419 | AX107: 5913.904662 | AY107: 38423.11772 | AZ107: 17319.41788 | BA107: 124595.3801 | BB107: 12918.98135 | BC107: 14989.0725 | BD107: 7557.83311 | BE107: 16259.22238 | BF107: 3256.891467 | BG107: 10426.77005 | BH107: 8915.291081 | BI107: 1198.079339 | BJ107: 127822.5471 | BK107: 6318.063679 | BL107: 3899.072329 | BM107: 92031.01288 | BN107: 9102.111809 | BO107: 13741.52691 | BP107: 45301.63687 | BQ107: 3574.892155 | BR107: 6811.286901 | BS107: 17050.92388 | BT107: 1521.620842 | BU107: 5658.524867 | BV107: 21145.05684 | BW107: 18681.4682 | BX107: 336.5983061 | BY107: 5041.337264 | BZ107: 27549.92877 | CA107: 0 | CB107: -829.9114892 | CC107: 8120.287513 | CD107: 102959.165 | CE107: 30249.98232 | CF107: 433877.108 | CG107: 92049.77317 | CH107: 455756.9547 | CI107: 714732.9839 | CJ107: 115870.1856 | CK107: 360402.9836 | CL107: 299126.4567 | CM107: 936519.724 | CN107: 271533.6225 | CO107: 235558.3725 | CP107: 122931.7376 | CQ107: 144463.0025 | CR107: 55005.38511 | CS107: 347608.8654 | CT107: 123809.6434 | CU107: 26508.30041 | CV107: 437609.0635 | CW107: 154084.3197 | CX107: 175625.7131 | CY107: 1871866.279 | CZ107: 168643.0431 | DA107: 320373.6947 | DB107: 1936137.063 | DC107: 160674.52 | DD107: 294221.7697 | DE107: 592083.9961 | DF107: 249115.2771 | DG107: 438809.2328 | DH107: 745564.5787 | DI107: 715297.4963 | DJ107: 17658.36704 | DK107: 356040.6831 | DL107: 1758854.258 | DM107: 0 | DN107: 21183.98814 | DO107: 227824.1876 | DP107: 16258426.22 | DQ107: 4.484006224 | DR107: 2840.953555 | DS107: 0 | DT107: 0 | DU107: 0 | DV107: 0 | DW107: 2845.437562 | DX107: 202.5553749 | DY107: 194372.727 | DZ107: 0 | EA107: 0 | EB107: 0 | EC107: 0 | ED107: 194575.2824 | EE107: 5974.079207 | EF107: 6159868.774 | EG107: 0 | EH107: 0 | EI107: 0 | EJ107: 0 | EK107: 6165842.854 | EL107: 57348.20828 | EM107: 6420611.782 | EN107: 22679038 | EO107: -1662.004768 | EP107: 22677376
D108: 23 | E108: 水道 | F108: 0 | G108: 0 | H108: 0 | I108: 0 | J108: 0 | K108: 0 | L108: 0 | M108: 0 | N108: 0 | O108: 0 | P108: 0 | Q108: 0 | R108: 0 | S108: 0 | T108: 0 | U108: 0 | V108: 0 | W108: 0 | X108: 0 | Y108: 0 | Z108: 0 | AA108: 0 | AB108: 0 | AC108: 0 | AD108: 0 | AE108: 0 | AF108: 0 | AG108: 0 | AH108: 0 | AI108: 0 | AJ108: 0 | AK108: 0 | AL108: 0 | AM108: 0 | AN108: 0 | AO108: 0 | AP108: 0 | AQ108: 0 | AR108: 0 | AS108: 0 | AT108: 0 | AU108: 0 | AV108: 0 | AW108: 0 | AX108: 0 | AY108: 0 | AZ108: 0 | BA108: 0 | BB108: 0 | BC108: 0 | BD108: 0 | BE108: 0 | BF108: 0 | BG108: 0 | BH108: 0 | BI108: 0 | BJ108: 0 | BK108: 0 | BL108: 0 | BM108: 0 | BN108: 0 | BO108: 0 | BP108: 0 | BQ108: 0 | BR108: 0 | BS108: 0 | BT108: 0 | BU108: 0 | BV108: 0 | BW108: 0 | BX108: 0 | BY108: 0 | BZ108: 0 | CA108: 0 | CB108: 0 | CC108: 0 | CD108: 6529.112857 | CE108: 2094.26308 | CF108: 62129.99718 | CG108: 5082.889739 | CH108: 21808.51991 | CI108: 62682.47517 | CJ108: 7382.733624 | CK108: 10333.85796 | CL108: 6704.516263 | CM108: 21843.16922 | CN108: 5940.780754 | CO108: 6765.193564 | CP108: 5488.786969 | CQ108: 7368.77341 | CR108: 3243.010966 | CS108: 22140.73607 | CT108: 7939.132064 | CU108: 1159.056458 | CV108: 13377.03753 | CW108: 6950.829126 | CX108: 42390.65882 | CY108: 16557.62581 | CZ108: 381969.9452 | DA108: 40725.86163 | DB108: 201414.8793 | DC108: 42005.12851 | DD108: 30314.05075 | DE108: 180961.3284 | DF108: 85149.9755 | DG108: 152044.8898 | DH108: 359650.8209 | DI108: 287418.2015 | DJ108: 9309.522772 | DK108: 50682.40782 | DL108: 436751.9648 | DM108: 0 | DN108: 6111.921428 | DO108: 40848.76342 | DP108: 2651272.818 | DQ108: 0 | DR108: 0 | DS108: 0 | DT108: 0 | DU108: 0 | DV108: 0 | DW108: 0 | DX108: 0 | DY108: 0 | DZ108: 0 | EA108: 0 | EB108: 0 | EC108: 0 | ED108: 0 | EE108: 2460.037518 | EF108: 1784233.484 | EG108: -203840.4841 | EH108: 0 | EI108: 0 | EJ108: 0 | EK108: 1582853.037 | EL108: 19842.99847 | EM108: 1602696.036 | EN108: 4253968.854 | EO108: -1472.622382 | EP108: 4252496
D109: 24 | E109: 廃棄物処理 | F109: 0 | G109: 0 | H109: 0 | I109: 0 | J109: 0 | K109: 0 | L109: 0 | M109: 0 | N109: 0 | O109: 0 | P109: 0 | Q109: 0 | R109: 0 | S109: 0 | T109: 0 | U109: 0 | V109: 0 | W109: 0 | X109: 0 | Y109: 0 | Z109: 0 | AA109: 0 | AB109: 0 | AC109: 0 | AD109: 0 | AE109: 0 | AF109: 0 | AG109: 0 | AH109: 0 | AI109: 0 | AJ109: 0 | AK109: 0 | AL109: 0 | AM109: 0 | AN109: 0 | AO109: 0 | AP109: 0 | AQ109: 0 | AR109: 13.72025031 | AS109: 3.011918498 | AT109: 136.9210183 | AU109: 3.852519963 | AV109: 36.18945145 | AW109: 214.9430843 | AX109: 0.6937275712 | AY109: 6.453707536 | AZ109: 80.80450255 | BA109: 28.97334799 | BB109: 3.855988964 | BC109: 7.233095513 | BD109: 27.89571829 | BE109: 4.234038541 | BF109: 96.84756581 | BG109: 31.13106899 | BH109: 25.78896364 | BI109: 3.922799532 | BJ109: 196.0768758 | BK109: 9.83538595 | BL109: 361.4000537 | BM109: 1011.454428 | BN109: 35.77674647 | BO109: 0 | BP109: 340.951138 | BQ109: 232.809495 | BR109: 2.26223307 | BS109: 730.7668047 | BT109: 53.39399154 | BU109: 2459.682319 | BV109: 846.6306155 | BW109: 833.2154409 | BX109: 0.2552296661 | BY109: 56.17537904 | BZ109: 2218.943968 | CA109: 0 | CB109: 219.8760047 | CC109: 126.4676886 | CD109: 4702.956766 | CE109: 1862.913356 | CF109: 26012.39473 | CG109: 275.6438308 | CH109: 8145.388925 | CI109: 58410.15736 | CJ109: 188.534438 | CK109: 426.4128927 | CL109: 11428.11485 | CM109: 3190.655136 | CN109: 1420.713583 | CO109: 861.1376398 | CP109: 2363.090562 | CQ109: 265.01207 | CR109: 2208.388523 | CS109: 9583.741123 | CT109: 3200.403568 | CU109: 862.8409391 | CV109: 16340.16396 | CW109: 2553.36592 | CX109: 108921.4626 | CY109: 233501.2824 | CZ109: 8336.725923 | DA109: 0 | DB109: 114408.3619 | DC109: 107618.7985 | DD109: 894.4395776 | DE109: 241743.4203 | DF109: 170092.451 | DG109: 1021730.394 | DH109: 188310.3389 | DI109: 219393.577 | DJ109: 79.51224688 | DK109: 19668.50894 | DL109: 885553.8636 | DM109: 0 | DN109: 63097.02136 | DO109: 27273.17105 | DP109: 3575387.806 | DQ109: 0 | DR109: 0 | DS109: 0 | DT109: 0 | DU109: 0 | DV109: 0 | DW109: 0 | DX109: 0 | DY109: 1494.871269 | DZ109: 1739.802204 | EA109: 0 | EB109: 0 | EC109: 0 | ED109: 3234.673472 | EE109: 0 | EF109: 271899.1416 | EG109: 720655.5933 | EH109: 0 | EI109: 0 | EJ109: 0 | EK109: 992554.7348 | EL109: 8145.040151 | EM109: 1003934.448 | EN109: 4579322.255 | EO109: -297.2548182 | EP109: 4579025
D110: 25 | E110: 商業 | F110: 205.5546964 | G110: 0.4505186738 | H110: 8961.816437 | I110: 622.2221479 | J110: 1502.917684 | K110: 2226.450406 | L110: 41.6469445 | M110: 2323.598408 | N110: 1009.555497 | O110: 3123.066607 | P110: 3677.27869 | Q110: 1917.927376 | R110: 775.0828336 | S110: 2957.445095 | T110: 5096.370856 | U110: 152.1817008 | V110: 4935.460544 | W110: 224.9784131 | X110: 5972.755976 | Y110: 3239.640831 | Z110: 23704.67305 | AA110: 2304.957803 | AB110: 373.9629437 | AC110: 393.1244908 | AD110: 14048.43515 | AE110: 1398.35825 | AF110: 605.779737 | AG110: 7282.491258 | AH110: 6272.878885 | AI110: 1712.709555 | AJ110: 7320.387846 | AK110: 19312.04838 | AL110: 685.1533553 | AM110: 12631.99276 | AN110: 33233.05775 | AO110: 2484.208783 | AP110: 230.6177383 | AQ110: 314.191169 | AR110: 4274.660322 | AS110: 56.9775616 | AT110: 23369.77914 | AU110: 2883.962808 | AV110: 8726.247503 | AW110: 7892.569873 | AX110: 1681.699567 | AY110: 16770.03547 | AZ110: 3769.026425 | BA110: 14547.83973 | BB110: 5145.331897 | BC110: 7479.307624 | BD110: 6369.521715 | BE110: 11633.38065 | BF110: 7031.904235 | BG110: 3026.422338 | BH110: 14525.38552 | BI110: 2097.155746 | BJ110: 114985.4324 | BK110: 5953.536217 | BL110: 16360.98622 | BM110: 5123.207323 | BN110: 785.8113619 | BO110: 567.1868968 | BP110: 4251.165841 | BQ110: 642.7312725 | BR110: 475.7276547 | BS110: 9220.548465 | BT110: 661.130067 | BU110: 983.6378228 | BV110: 7749.520115 | BW110: 19143.5666 | BX110: 752.6536021 | BY110: 6863.622255 | BZ110: 12774.70312 | CA110: 1845.718608 | CB110: 263.5345102 | CC110: 252.8109186 | CD110: 786273.822 | CE110: 16702.28234 | CF110: 2502423.194 | CG110: 238870.7526 | CH110: 853009.4115 | CI110: 994330.3754 | CJ110: 163758.8855 | CK110: 666203.3588 | CL110: 197381.467 | CM110: 507749.7717 | CN110: 285964.0314 | CO110: 458549.4912 | CP110: 401853.2058 | CQ110: 571083.7717 | CR110: 262873.823 | CS110: 527036.5388 | CT110: 690147.229 | CU110: 213389.4528 | CV110: 1412884.4 | CW110: 629508.1403 | CX110: 3125965.264 | CY110: 390330.0689 | CZ110: 73247.50982 | DA110: 65784.31331 | DB110: 935661.3264 | DC110: 177553.398 | DD110: 94033.67298 | DE110: 1378936.225 | DF110: 557033.7935 | DG110: 371986.9177 | DH110: 733426.8005 | DI110: 3114267.428 | DJ110: 158664.343 | DK110: 1276895.452 | DL110: 3962999.13 | DM110: 304952.4795 | DN110: 43791.15695 | DO110: 47391.33062 | DP110: 29727127.89 | DQ110: 10772.95416 | DR110: 214040.6301 | DS110: 96.6641072 | DT110: 3320.042174 | DU110: 31501.20744 | DV110: 965.4199935 | DW110: 260696.9179 | DX110: 9523.304851 | DY110: 258621.8542 | DZ110: 59.28960435 | EA110: 2182.277003 | EB110: 62649.13379 | EC110: 664.0253719 | ED110: 333699.8848 | EE110: 1527830.041 | EF110: 44770758.98 | EG110: 9366.787897 | EH110: 461165.9832 | EI110: 6274479.887 | EJ110: 170142.5568 | EK110: 53213744.23 | EL110: 5208135.265 | EM110: 59016276.3 | EN110: 88743404.19 | EO110: -174620.9505 | EP110: 88568783
D111: 26 | E111: 金融・保険 | F111: 28.38969123 | G111: 0.6562548461 | H111: 579.1298504 | I111: 106.3667903 | J111: 160.7759746 | K111: 227.3311474 | L111: 5.927168252 | M111: 101.6427815 | N111: 249.4380015 | O111: 285.0634833 | P111: 299.6179657 | Q111: 343.9945329 | R111: 86.71868555 | S111: 382.0891511 | T111: 369.6474001 | U111: 19.42849317 | V111: 348.054972 | W111: 31.47406213 | X111: 668.9193718 | Y111: 434.8879549 | Z111: 3565.958558 | AA111: 1593.578234 | AB111: 378.5975036 | AC111: 756.0308194 | AD111: 18461.80643 | AE111: 10529.08155 | AF111: 29394.85077 | AG111: 7689.576366 | AH111: 2437.35236 | AI111: 3049.693116 | AJ111: 1469.042228 | AK111: 3062.245246 | AL111: 416.5475048 | AM111: 4668.530249 | AN111: 2031.242452 | AO111: 0 | AP111: 49.76949211 | AQ111: 2725.379446 | AR111: 503.8847433 | AS111: 154.0428321 | AT111: 2605.033321 | AU111: 1053.015306 | AV111: 1279.591072 | AW111: 1103.505523 | AX111: 683.770915 | AY111: 1119.072662 | AZ111: 1427.293497 | BA111: 3013.276198 | BB111: 1264.149662 | BC111: 2848.172734 | BD111: 1221.676236 | BE111: 2677.188581 | BF111: 2046.545962 | BG111: 601.6123469 | BH111: 1673.55311 | BI111: 354.1712257 | BJ111: 12190.86324 | BK111: 2610.811528 | BL111: 5503.484043 | BM111: 5826.276427 | BN111: 1665.404767 | BO111: 2092.413845 | BP111: 10365.77218 | BQ111: 7128.691851 | BR111: 54339.64263 | BS111: 7028.201059 | BT111: 374.6226559 | BU111: 3482.042775 | BV111: 3398.28493 | BW111: 3696.890361 | BX111: 856.6729599 | BY111: 3109.033684 | BZ111: 1643.97765 | CA111: 0 | CB111: 113.2196354 | CC111: 4095.870034 | CD111: 69521.19419 | CE111: 32570.62702 | CF111: 187056.247 | CG111: 56055.22775 | CH111: 91280.81535 | CI111: 147499.5569 | CJ111: 50102.92466 | CK111: 30519.66322 | CL111: 56186.21381 | CM111: 89919.12631 | CN111: 58801.7303 | CO111: 113431.9463 | CP111: 57366.75147 | CQ111: 88302.13942 | CR111: 61123.21356 | CS111: 73626.82708 | CT111: 77278.5393 | CU111: 30377.92108 | CV111: 148916.9037 | CW111: 123769.0303 | CX111: 701349.3985 | CY111: 367301.4599 | CZ111: 99153.54843 | DA111: 120766.5766 | DB111: 1453629.779 | DC111: 1535301.129 | DD111: 5755189.684 | DE111: 1145337.218 | DF111: 240839.0538 | DG111: 808609.0644 | DH111: 292910.8747 | DI111: 519839.1261 | DJ111: 106035.6998 | DK111: 585040.3451 | DL111: 317555.324 | DM111: 0 | DN111: 12723.26426 | DO111: 495822.038 | DP111: 16453270.75 | DQ111: 1.133755568 | DR111: 55474.60537 | DS111: 0 | DT111: 0 | DU111: 0 | DV111: 0 | DW111: 55475.73912 | DX111: 1.62445595 | DY111: 123130.1657 | DZ111: 0 | EA111: 0 | EB111: 0 | EC111: 0 | ED111: 123131.7902 | EE111: 261.057505 | EF111: 16680573.59 | EG111: 0 | EH111: 0 | EI111: 0 | EJ111: 0 | EK111: 16680834.65 | EL111: 1664074.184 | EM111: 18523516.36 | EN111: 34976787.11 | EO111: -1309449.553 | EP111: 33667337.07
D112: 27 | E112: 不動産 | F112: 31.88964436 | G112: 0.04259275948 | H112: 119.0280356 | I112: 12.4777373 | J112: 22.99358131 | K112: 48.35854019 | L112: 0.4999225228 | M112: 51.6001575 | N112: 32.3095199 | O112: 45.2431025 | P112: 37.69641918 | Q112: 61.42435447 | R112: 25.78449185 | S112: 86.90247535 | T112: 46.32813307 | U112: 2.47403412 | V112: 75.82447543 | W112: 5.481676726 | X112: 36.20704287 | Y112: 70.88976739 | Z112: 736.5607005 | AA112: 244.2963102 | AB112: 11.50997956 | AC112: 22.80048652 | AD112: 16354.72154 | AE112: 1764.210025 | AF112: 7223.283128 | AG112: 4560.184316 | AH112: 4894.946505 | AI112: 96.2023132 | AJ112: 1669.159201 | AK112: 2490.128588 | AL112: 143.0585736 | AM112: 2520.584695 | AN112: 2319.755152 | AO112: 0 | AP112: 278.8978458 | AQ112: 4893.034399 | AR112: 219.4959503 | AS112: 11.98046228 | AT112: 568.2060155 | AU112: 91.55077678 | AV112: 131.4204617 | AW112: 81.34690774 | AX112: 8.482424305 | AY112: 278.0430951 | AZ112: 72.84761556 | BA112: 183.1446062 | BB112: 116.3992223 | BC112: 568.7871336 | BD112: 327.4590047 | BE112: 573.5441049 | BF112: 32.27951367 | BG112: 36.78796762 | BH112: 417.1839391 | BI112: 24.12869536 | BJ112: 764.1979155 | BK112: 135.2217886 | BL112: 1325.39867 | BM112: 828.7371398 | BN112: 54.73555067 | BO112: 99.16978678 | BP112: 12154.94092 | BQ112: 2242.6912 | BR112: 15000.4564 | BS112: 6998.407341 | BT112: 1610.474776 | BU112: 148.3415449 | BV112: 4669.29483 | BW112: 7106.644051 | BX112: 418.7556534 | BY112: 1983.564796 | BZ112: 2648.34076 | CA112: 0 | CB112: 974.0968312 | CC112: 12589.38369 | CD112: 18945.00309 | CE112: 5494.359485 | CF112: 48579.34051 | CG112: 8028.627456 | CH112: 11542.93309 | CI112: 15095.26037 | CJ112: 822.5366436 | CK112: 9426.289268 | CL112: 5066.659058 | CM112: 4644.140333 | CN112: 1948.861549 | CO112: 33430.64533 | CP112: 14756.26281 | CQ112: 21394.72502 | CR112: 643.8267483 | CS112: 7169.614738 | CT112: 23032.14098 | CU112: 3008.392936 | CV112: 9918.126805 | CW112: 15187.97114 | CX112: 216521.86 | CY112: 71258.72004 | CZ112: 5866.888617 | DA112: 8240.746617 | DB112: 2171742.259 | DC112: 461656.4465 | DD112: 2193688.898 | DE112: 931880.0874 | DF112: 966565.9422 | DG112: 61501.88562 | DH112: 249674.0002 | DI112: 930822.4907 | DJ112: 65956.86568 | DK112: 412656.1607 | DL112: 479125.1242 | DM112: 0 | DN112: 139503.0045 | DO112: 1354912.292 | DP112: 11106242.12 | DQ112: 0 | DR112: 1982.889931 | DS112: 0 | DT112: 0 | DU112: 0 | DV112: 0 | DW112: 1982.889931 | DX112: 0 | DY112: 7144.22193 | DZ112: 4.184827026 | EA112: 0 | EB112: 0 | EC112: 0 | ED112: 7148.406757 | EE112: 0 | EF112: 62011529.37 | EG112: 20650.36448 | EH112: 0 | EI112: 2832884.733 | EJ112: 0 | EK112: 64865064.47 | EL112: 45357.98536 | EM112: 64919553.75 | EN112: 76025795.87 | EO112: -1695.867322 | EP112: 76024100
D113: 28 | E113: 運輸・郵便 | F113: 93.28739478 | G113: 0.2962689779 | H113: 5986.035755 | I113: 213.008702 | J113: 990.0003867 | K113: 1876.600452 | L113: 85.50455153 | M113: 846.3394275 | N113: 1695.972844 | O113: 2425.289162 | P113: 2614.229853 | Q113: 1164.888378 | R113: 397.7885648 | S113: 1370.057738 | T113: 2237.649924 | U113: 81.49665583 | V113: 2025.733881 | W113: 141.3724692 | X113: 1838.855598 | Y113: 6912.977262 | Z113: 18553.2469 | AA113: 6517.276026 | AB113: 381.10859 | AC113: 1183.312266 | AD113: 11186.03162 | AE113: 2267.107867 | AF113: 413.5695402 | AG113: 10510.54467 | AH113: 8913.230128 | AI113: 1905.142371 | AJ113: 4764.402667 | AK113: 6082.683421 | AL113: 392.6950796 | AM113: 6744.560857 | AN113: 12957.49147 | AO113: 1159.429212 | AP113: 1725.675699 | AQ113: 24360.83522 | AR113: 5745.382983 | AS113: 78.08044476 | AT113: 21686.70251 | AU113: 1964.150595 | AV113: 10770.53093 | AW113: 10143.56327 | AX113: 7450.841888 | AY113: 8709.990995 | AZ113: 10799.94608 | BA113: 26779.73693 | BB113: 6616.980728 | BC113: 7644.171322 | BD113: 5658.786732 | BE113: 10155.72465 | BF113: 5813.882875 | BG113: 2696.747854 | BH113: 16570.05907 | BI113: 1984.945988 | BJ113: 92524.26011 | BK113: 24345.22211 | BL113: 25856.15635 | BM113: 26387.59906 | BN113: 1694.408589 | BO113: 3840.744484 | BP113: 14539.67211 | BQ113: 4702.700526 | BR113: 525.0103655 | BS113: 37365.60272 | BT113: 1971.138021 | BU113: 3444.827977 | BV113: 9987.982979 | BW113: 11119.04764 | BX113: 1003.786515 | BY113: 5574.99227 | BZ113: 10008.51125 | CA113: 1585.297296 | CB113: 4995.566023 | CC113: 44422.44051 | CD113: 666467.1694 | CE113: 168817.9614 | CF113: 880629.6259 | CG113: 77405.76016 | CH113: 387502.7365 | CI113: 481674.3858 | CJ113: 284604.3384 | CK113: 125296.7583 | CL113: 317177.7633 | CM113: 387969.6389 | CN113: 218900.9437 | CO113: 264587.0312 | CP113: 170946.6003 | CQ113: 236915.9311 | CR113: 121322.6324 | CS113: 212170.9534 | CT113: 253710.7013 | CU113: 97192.84914 | CV113: 437564.7316 | CW113: 764327.1393 | CX113: 2469732.372 | CY113: 813380.3926 | CZ113: 82070.46133 | DA113: 280579.6132 | DB113: 4499507.882 | DC113: 1150552.37 | DD113: 192975.2045 | DE113: 5935302.363 | DF113: 1245739.385 | DG113: 1322822.78 | DH113: 992724.6136 | DI113: 888543.7186 | DJ113: 146675.9289 | DK113: 1030154.349 | DL113: 1819767.606 | DM113: 67515.1264 | DN113: 276070.5502 | DO113: 2277700.548 | DP113: 32687181.84 | DQ113: 4778.300633 | DR113: 58780.86018 | DS113: 27.57205014 | DT113: 672.0144748 | DU113: 6728.846311 | DV113: 439.0209082 | DW113: 71426.61456 | DX113: 8866.135692 | DY113: 172332.6867 | DZ113: 249.4332045 | EA113: 982.2663549 | EB113: 28789.65696 | EC113: 1554.607562 | ED113: 212774.7865 | EE113: 377345.339 | EF113: 13948561.6 | EG113: 50212.92886 | EH113: 55057.43571 | EI113: 690336.2223 | EJ113: 45581.38791 | EK113: 15167094.91 | EL113: 6784267.713 | EM113: 22235564.02 | EN113: 54922745.86 | EO113: -3333887.941 | EP113: 51588857.94
D114: 29 | E114: 情報通信 | F114: 16.83629451 | G114: 0.07929270726 | H114: 467.2436356 | I114: 39.66251118 | J114: 94.85608857 | K114: 408.5596482 | L114: 1.811531685 | M114: 151.003538 | N114: 140.7739053 | O114: 191.5102593 | P114: 220.535045 | Q114: 221.176344 | R114: 76.91505328 | S114: 486.1670365 | T114: 658.4503075 | U114: 42.14106648 | V114: 995.213719 | W114: 95.10590041 | X114: 316.5407658 | Y114: 231.9750781 | Z114: 1798.365169 | AA114: 777.9162782 | AB114: 524.0126386 | AC114: 156.1582994 | AD114: 29287.41046 | AE114: 10397.86693 | AF114: 1195.757604 | AG114: 3284.729138 | AH114: 59957.59801 | AI114: 3852.296856 | AJ114: 9407.622735 | AK114: 3605.883688 | AL114: 985.9147486 | AM114: 63576.95423 | AN114: 6276.269305 | AO114: 0 | AP114: 1029.196212 | AQ114: 11983.02771 | AR114: 916.9718823 | AS114: 50.90579535 | AT114: 4754.822475 | AU114: 808.6346624 | AV114: 1859.571769 | AW114: 5376.758293 | AX114: 304.9882652 | AY114: 3925.222054 | AZ114: 2312.214969 | BA114: 4490.650345 | BB114: 1418.334956 | BC114: 2936.731178 | BD114: 4205.705567 | BE114: 7973.598086 | BF114: 4243.628858 | BG114: 1789.264688 | BH114: 14087.30915 | BI114: 2680.499448 | BJ114: 21585.50768 | BK114: 1790.123189 | BL114: 8932.717668 | BM114: 6082.573137 | BN114: 6863.910306 | BO114: 1567.43156 | BP114: 63814.9856 | BQ114: 29786.83388 | BR114: 4271.188016 | BS114: 10825.89351 | BT114: 31868.37496 | BU114: 14202.83373 | BV114: 58276.98413 | BW114: 21288.62138 | BX114: 6072.529748 | BY114: 55056.15783 | BZ114: 16666.20287 | CA114: 0 | CB114: 8360.306557 | CC114: 50981.8678 | CD114: 38895.90869 | CE114: 5549.153176 | CF114: 116469.9202 | CG114: 14897.3065 | CH114: 48388.25394 | CI114: 260965.3075 | CJ114: 7119.125915 | CK114: 38274.70961 | CL114: 24581.5394 | CM114: 38460.7215 | CN114: 18727.47239 | CO114: 55403.06125 | CP114: 56426.35505 | CQ114: 133463.5895 | CR114: 30869.38975 | CS114: 86302.20484 | CT114: 151066.5967 | CU114: 90975.31179 | CV114: 64432.20469 | CW114: 42587.46465 | CX114: 467363.2678 | CY114: 159963.9393 | CZ114: 162713.8746 | DA114: 43594.44302 | DB114: 3062892.314 | DC114: 1802547.64 | DD114: 211109.1147 | DE114: 474983.6367 | DF114: 7716598.689 | DG114: 1146528.487 | DH114: 1053199.95 | DI114: 712496.7199 | DJ114: 271294.3122 | DK114: 5137467.614 | DL114: 948349.0734 | DM114: 0 | DN114: 331287.7279 | DO114: 1543354.447 | DP114: 27264985.24 | DQ114: 1006.588085 | DR114: 32850.39433 | DS114: 361.9417365 | DT114: 4038.675672 | DU114: 21122.9141 | DV114: -290.2335022 | DW114: 59090.28043 | DX114: 5770.459999 | DY114: 374931.246 | DZ114: 630.5638926 | EA114: 18685.42398 | EB114: 345093.3772 | EC114: -165.0088354 | ED114: 744946.0623 | EE114: 165017.556 | EF114: 12237297.27 | EG114: 34006.05781 | EH114: 985494.2573 | EI114: 7535619.236 | EJ114: -25778.34822 | EK114: 20931656.03 | EL114: 730029.9403 | EM114: 22465722.31 | EN114: 49730707.55 | EO114: -2171106.552 | EP114: 47559601
D115: 30 | E115: 公務 | F115: 0 | G115: 0 | H115: 0 | I115: 0 | J115: 0 | K115: 0 | L115: 0 | M115: 0 | N115: 0 | O115: 0 | P115: 0 | Q115: 0 | R115: 0 | S115: 0 | T115: 0 | U115: 0 | V115: 0 | W115: 0 | X115: 0 | Y115: 0 | Z115: 0 | AA115: 0 | AB115: 0 | AC115: 0 | AD115: 0 | AE115: 0 | AF115: 0 | AG115: 0 | AH115: 0 | AI115: 0 | AJ115: 0 | AK115: 0 | AL115: 0 | AM115: 0 | AN115: 0 | AO115: 0 | AP115: 0 | AQ115: 0 | AR115: 0 | AS115: 0 | AT115: 0 | AU115: 0 | AV115: 0 | AW115: 0 | AX115: 0 | AY115: 0 | AZ115: 0 | BA115: 0 | BB115: 0 | BC115: 0 | BD115: 0 | BE115: 0 | BF115: 0 | BG115: 0 | BH115: 0 | BI115: 0 | BJ115: 0 | BK115: 0 | BL115: 0 | BM115: 0 | BN115: 0 | BO115: 0 | BP115: 0 | BQ115: 0 | BR115: 0 | BS115: 0 | BT115: 0 | BU115: 0 | BV115: 0 | BW115: 0 | BX115: 0 | BY115: 0 | BZ115: 0 | CA115: 0 | CB115: 0 | CC115: 0 | CD115: 0 | CE115: 0 | CF115: 0 | CG115: 0 | CH115: 0 | CI115: 0 | CJ115: 0 | CK115: 0 | CL115: 0 | CM115: 0 | CN115: 0 | CO115: 0 | CP115: 0 | CQ115: 0 | CR115: 0 | CS115: 0 | CT115: 0 | CU115: 0 | CV115: 0 | CW115: 0 | CX115: 0 | CY115: 0 | CZ115: 0 | DA115: 0 | DB115: 0 | DC115: 0 | DD115: 0 | DE115: 0 | DF115: 0 | DG115: 0 | DH115: 0 | DI115: 0 | DJ115: 0 | DK115: 0 | DL115: 0 | DM115: 0 | DN115: 1079949.335 | DO115: 0 | DP115: 1079949.335 | DQ115: 0 | DR115: 0 | DS115: 0 | DT115: 0 | DU115: 0 | DV115: 0 | DW115: 0 | DX115: 0 | DY115: 0 | DZ115: 0 | EA115: 0 | EB115: 0 | EC115: 0 | ED115: 0 | EE115: 0 | EF115: 1094719.053 | EG115: 36197426.61 | EH115: 0 | EI115: 0 | EJ115: 0 | EK115: 37292145.67 | EL115: 0 | EM115: 37292145.67 | EN115: 38372095 | EO115: 0 | EP115: 38372095
D116: 31 | E116: 教育・研究 | F116: 0.1665682526 | G116: 0.0009980607846 | H116: 2.022286946 | I116: 0 | J116: 0.334269439 | K116: 0.909988664 | L116: 0 | M116: 0 | N116: 1.42628281 | O116: 0.736568859 | P116: 0 | Q116: 1.258743472 | R116: 1.167892966 | S116: 2.266811839 | T116: 2.644348561 | U116: 0.6084664086 | V116: 8.636894334 | W116: 0.2794030704 | X116: 1.482605808 | Y116: 0.05192613541 | Z116: 5.376958066 | AA116: 5.145003344 | AB116: 0.2035774254 | AC116: 0.361999344 | AD116: 23.84097468 | AE116: 2.880942917 | AF116: 0 | AG116: 73.05926329 | AH116: 231.6242822 | AI116: 1.51972288 | AJ116: 0.02443900191 | AK116: 3.208387778 | AL116: 0 | AM116: 37.8710658 | AN116: 16.68976126 | AO116: 0 | AP116: 0.3267165466 | AQ116: 157.2032864 | AR116: 2.220815419 | AS116: 0.9871419017 | AT116: 47.42679795 | AU116: 0 | AV116: 2.904991462 | AW116: 7.560870351 | AX116: 0 | AY116: 0 | AZ116: 38.10458588 | BA116: 34.11618042 | BB116: 0 | BC116: 28.65755001 | BD116: 35.44173347 | BE116: 22.04317989 | BF116: 13.50325494 | BG116: 64.0027397 | BH116: 147.0265887 | BI116: 60.48987477 | BJ116: 150.5528127 | BK116: -2.86305284e-08 | BL116: 4.60330108 | BM116: 42.99146038 | BN116: 4.152150024 | BO116: 7.306796655 | BP116: 8.191950701 | BQ116: 12.32799651 | BR116: 0 | BS116: 241.7309275 | BT116: 236.4265215 | BU116: 9.046321419 | BV116: 0.09542168561 | BW116: 21.54233801 | BX116: 0 | BY116: 96.51950592 | BZ116: 28.15665956 | CA116: 0 | CB116: 5.212664821 | CC116: 1837.884071 | CD116: 228.8958619 | CE116: 165.6044055 | CF116: 3934.884384 | CG116: 0 | CH116: 325.9637745 | CI116: 683.1444552 | CJ116: 0 | CK116: 0 | CL116: 843.2774266 | CM116: 646.7191795 | CN116: 0 | CO116: 1940.444285 | CP116: 996.4601218 | CQ116: 1650.409074 | CR116: 125.1119963 | CS116: 9971.627152 | CT116: 8785.095788 | CU116: 4813.642928 | CV116: 2609.644927 | CW116: 65.57048789 | CX116: 707.1167348 | CY116: 4335.57558 | CZ116: 450.8078955 | DA116: 659.1832894 | DB116: 683.8456628 | DC116: 2868.491486 | DD116: 0 | DE116: 44037.50639 | DF116: 148904.722 | DG116: 4996.745339 | DH116: 11.59020792 | DI116: 1816.708367 | DJ116: 0 | DK116: 20619.48746 | DL116: 4959.71188 | DM116: 0 | DN116: 697.0366639 | DO116: 184671.2658 | DP116: 462000.8486 | DQ116: 0 | DR116: 5657.620011 | DS116: 4621.390158 | DT116: 33169.67592 | DU116: 20609.71468 | DV116: 0 | DW116: 64058.40076 | DX116: 0 | DY116: 10190.52649 | DZ116: 8887.55022 | EA116: 35837.17575 | EB116: 271696.5425 | EC116: 0 | ED116: 326611.7949 | EE116: 0 | EF116: 8603321.024 | EG116: 16667290.97 | EH116: 2661609.55 | EI116: 12881718.41 | EJ116: 0 | EK116: 40813939.95 | EL116: 641710.4227 | EM116: 41846320.57 | EN116: 42308321.42 | EO116: -1807188.416 | EP116: 40501133.01
D117: 32 | E117: 医療・福祉 | F117: 7.852109604 | G117: 0 | H117: 0 | I117: 0 | J117: 0 | K117: 0.2650773101 | L117: 0 | M117: 0 | N117: 0 | O117: 0.08127560381 | P117: 0 | Q117: 0 | R117: 0 | S117: 0 | T117: 0 | U117: 0 | V117: 0 | W117: 0 | X117: 0 | Y117: 0.2872342281 | Z117: 0.06224079697 | AA117: 0.03283252397 | AB117: 2.11135286 | AC117: 0 | AD117: 10.91016714 | AE117: 14.32938245 | AF117: 1.528223063 | AG117: 99.70119611 | AH117: 130.5987161 | AI117: 1.63890694 | AJ117: 2.945963677 | AK117: 1627.988242 | AL117: 0.1023246759 | AM117: 9.95621111 | AN117: 12.70971174 | AO117: 0 | AP117: 19.06361083 | AQ117: 33.52392052 | AR117: 40.61465059 | AS117: 0 | AT117: 0 | AU117: 0 | AV117: 0.1444803856 | AW117: 1.595062477 | AX117: 0 | AY117: 0 | AZ117: 0 | BA117: 0.9425853649 | BB117: 0 | BC117: 0 | BD117: 0 | BE117: 0 | BF117: 0 | BG117: 0 | BH117: 0 | BI117: 0 | BJ117: 0 | BK117: 0.7730567606 | BL117: 0.3190871861 | BM117: 1.33804102 | BN117: 10.42219323 | BO117: 0 | BP117: 12.20670389 | BQ117: 20.79894388 | BR117: 3.014474385 | BS117: 613.7036278 | BT117: 30.11857931 | BU117: 3.041304637 | BV117: 9.189291697 | BW117: 4908.452365 | BX117: 0.1970711059 | BY117: 10.75939121 | BZ117: 14.41089803 | CA117: 0 | CB117: 73.02654112 | CC117: 94.66726547 | CD117: 4674.934468 | CE117: 0 | CF117: 0 | CG117: 0 | CH117: 16.11742576 | CI117: 344.0297721 | CJ117: 0 | CK117: 0 | CL117: 0 | CM117: 42.43156217 | CN117: 0 | CO117: 0 | CP117: 0 | CQ117: 0 | CR117: 0 | CS117: 0 | CT117: 0 | CU117: 0 | CV117: 0 | CW117: 103.4432561 | CX117: 59.33270841 | CY117: 657.8738865 | CZ117: 1258.033548 | DA117: 0 | DB117: 2106.906807 | DC117: 5506.607733 | DD117: 512.0696335 | DE117: 58810.02826 | DF117: 27111.84389 | DG117: 1062.300124 | DH117: 971.0617529 | DI117: 998010.3206 | DJ117: 31.52105792 | DK117: 2908.854492 | DL117: 3689.441453 | DM117: 0 | DN117: 10855.04557 | DO117: 10575.02108 | DP117: 1137132.643 | DQ117: 1360.225081 | DR117: 4750.369101 | DS117: 13849.41145 | DT117: 0 | DU117: 0 | DV117: 0 | DW117: 19960.00563 | DX117: 4999.286773 | DY117: 43337.82416 | DZ117: 59225.37723 | EA117: 0 | EB117: 0 | EC117: 0 | ED117: 107562.4882 | EE117: 741918.0796 | EF117: 14767980.88 | EG117: 47174977.8 | EH117: 0 | EI117: 0 | EJ117: 0 | EK117: 62684876.76 | EL117: 231.1427766 | EM117: 62812630.39 | EN117: 63949763.04 | EO117: -3386.266509 | EP117: 63946376.77
D118: 33 | E118: 他に分類されない会員制団体 | F118: 3.911849106 | G118: 0.03985714799 | H118: 90.17441455 | I118: 3.370311769 | J118: 23.90302481 | K118: 60.50726633 | L118: 0.3474503553 | M118: 12.31780826 | N118: 15.75527066 | O118: 34.59145554 | P118: 17.10998046 | Q118: 26.89512691 | R118: 28.12918219 | S118: 133.7640545 | T118: 212.1650141 | U118: 1.872852725 | V118: 40.90924672 | W118: 1.393917105 | X118: 24.30397906 | Y118: 30.22818091 | Z118: 338.6120327 | AA118: 106.8732599 | AB118: 141.385651 | AC118: 39.07105239 | AD118: 476.1768128 | AE118: 639.7893222 | AF118: 163.1069301 | AG118: 364.0346113 | AH118: 536.3264479 | AI118: 0.252139784 | AJ118: 707.7918985 | AK118: 286.944172 | AL118: 0 | AM118: 1133.927845 | AN118: 859.4394654 | AO118: 0 | AP118: 80.90611134 | AQ118: 1782.40191 | AR118: 45.23768419 | AS118: 6.424067143 | AT118: 257.8516883 | AU118: 12.6452819 | AV118: 130.0319341 | AW118: 206.2482599 | AX118: 6.773442039 | AY118: 126.2397621 | AZ118: 36.06942913 | BA118: 361.7211369 | BB118: 26.83608266 | BC118: 149.8374762 | BD118: 468.9301111 | BE118: 655.3288885 | BF118: 341.393701 | BG118: 57.71745692 | BH118: 142.6629733 | BI118: 31.38988535 | BJ118: 261.9065108 | BK118: 76.19040162 | BL118: 254.4551428 | BM118: 380.8307818 | BN118: 417.6928465 | BO118: 115.082504 | BP118: 178.9126587 | BQ118: 609.9506813 | BR118: 137.2581438 | BS118: 484.4034613 | BT118: 67.81329372 | BU118: 0.2275316029 | BV118: 1267.608504 | BW118: 455.6201776 | BX118: 0 | BY118: 650.8101941 | BZ118: 780.5227323 | CA118: 0 | CB118: 185.9086316 | CC118: 3016.457914 | CD118: 11715.04478 | CE118: 1819.534259 | CF118: 21397.28804 | CG118: 1549.366858 | CH118: 6726.571461 | CI118: 30727.33525 | CJ118: 561.3755977 | CK118: 3458.206265 | CL118: 1391.575986 | CM118: 12227.37078 | CN118: 1204.720275 | CO118: 7235.387492 | CP118: 18146.79463 | CQ118: 21290.71316 | CR118: 5823.752901 | CS118: 6901.58744 | CT118: 6153.125008 | CU118: 3162.526917 | CV118: 3715.01181 | CW118: 4440.849537 | CX118: 40048.22475 | CY118: 21313.16098 | CZ118: 39127.39265 | DA118: 8807.781036 | DB118: 22011.31999 | DC118: 81079.56602 | DD118: 18235.21981 | DE118: 48967.73146 | DF118: 49196.53181 | DG118: 109.8091625 | DH118: 62567.22019 | DI118: 46741.62899 | DJ118: 0 | DK118: 119666.2292 | DL118: 121862.8817 | DM118: 0 | DN118: 21471.81342 | DO118: 261812.3071 | DP118: 1153490.678 | DQ118: 0 | DR118: 13660.17751 | DS118: 0 | DT118: 0 | DU118: 0 | DV118: 0 | DW118: 13660.17751 | DX118: 0 | DY118: 31229.80182 | DZ118: 0 | EA118: 0 | EB118: 0 | EC118: 0 | ED118: 31229.80182 | EE118: 0 | EF118: 3111860.242 | EG118: 0 | EH118: 0 | EI118: 0 | EJ118: 0 | EK118: 3111860.242 | EL118: 33144.1428 | EM118: 3189894.364 | EN118: 4343385.042 | EO118: -119079.0417 | EP118: 4224306
D119: 34 | E119: 対事業所サービス | F119: 28.55902111 | G119: 0.1457670273 | H119: 1424.26622 | I119: 55.78727404 | J119: 119.5404442 | K119: 574.3941497 | L119: 4.461237596 | M119: 295.7704279 | N119: 198.2187883 | O119: 180.9224179 | P119: 194.9493761 | Q119: 195.7342047 | R119: 134.58156 | S119: 590.2755635 | T119: 558.5852889 | U119: 31.79061184 | V119: 940.1057666 | W119: 39.52662591 | X119: 1618.515042 | Y119: 531.9539054 | Z119: 7542.495832 | AA119: 811.0419455 | AB119: 361.3940498 | AC119: 199.6161567 | AD119: 21089.66189 | AE119: 8935.528837 | AF119: 3863.767719 | AG119: 4070.753309 | AH119: 19466.74258 | AI119: 3062.587306 | AJ119: 3645.551028 | AK119: 3693.170576 | AL119: 252.4165669 | AM119: 16291.55069 | AN119: 4280.943733 | AO119: 0 | AP119: 154.3408153 | AQ119: 13044.88003 | AR119: 639.6190389 | AS119: 98.32007673 | AT119: 11968.06501 | AU119: 1024.793395 | AV119: 2142.72754 | AW119: 8089.483734 | AX119: 496.4230359 | AY119: 10001.8798 | AZ119: 4723.971594 | BA119: 5059.629277 | BB119: 1632.679244 | BC119: 3883.64057 | BD119: 7013.875071 | BE119: 11012.20458 | BF119: 3882.942857 | BG119: 3984.903091 | BH119: 13213.41234 | BI119: 1776.840788 | BJ119: 78177.03623 | BK119: 4512.287437 | BL119: 38243.27951 | BM119: 10437.2641 | BN119: 6481.798304 | BO119: 2246.839012 | BP119: 48971.5398 | BQ119: 19963.7402 | BR119: 12724.56873 | BS119: 21387.7002 | BT119: 13583.24797 | BU119: 12630.87615 | BV119: 28474.62284 | BW119: 22991.7997 | BX119: 1886.089959 | BY119: 38971.0494 | BZ119: 7541.653936 | CA119: 0 | CB119: 1156.698642 | CC119: 42021.39374 | CD119: 224153.648 | CE119: 39233.71235 | CF119: 996394.6973 | CG119: 96115.85536 | CH119: 200387.1288 | CI119: 1057086.51 | CJ119: 68497.31364 | CK119: 380620.8132 | CL119: 281742.5294 | CM119: 231489.2882 | CN119: 100686.9952 | CO119: 271648.5924 | CP119: 317408.4983 | CQ119: 432555.9547 | CR119: 150667.6814 | CS119: 540202.911 | CT119: 480916.3757 | CU119: 168874.4421 | CV119: 833647.8472 | CW119: 307765.2138 | CX119: 5207414.468 | CY119: 1387726.281 | CZ119: 561719.6847 | DA119: 282380.4372 | DB119: 7076712.101 | DC119: 3675939.316 | DD119: 1977025.509 | DE119: 5751997.594 | DF119: 7405371.678 | DG119: 3499630.325 | DH119: 2702994.635 | DI119: 2759845.09 | DJ119: 300379.5469 | DK119: 9514418.983 | DL119: 1489878.988 | DM119: 0 | DN119: 177514.5543 | DO119: 3646512.066 | DP119: 65219090.69 | DQ119: 165.6280514 | DR119: 2168.661012 | DS119: 0 | DT119: 172.5207381 | DU119: 313.7527519 | DV119: 0 | DW119: 2820.562554 | DX119: 918.4192004 | DY119: 11373.07054 | DZ119: 0 | EA119: 981.7944997 | EB119: 23482.94167 | EC119: 0 | ED119: 36756.22592 | EE119: 74530.72509 | EF119: 3777025.581 | EG119: 0 | EH119: 165587.488 | EI119: 1685698.107 | EJ119: 0 | EK119: 5702841.901 | EL119: 2972589.054 | EM119: 8715007.743 | EN119: 73934098.43 | EO119: -3543301.583 | EP119: 70390796.41
D120: 35 | E120: 対個人サービス | F120: 1.22066428 | G120: 0.0004586418227 | H120: 4.6143757 | I120: 0.3505668204 | J120: 0.4979461688 | K120: 1.221982153 | L120: 0.01084219021 | M120: 0.772511614 | N120: 0.70871269 | O120: 1.596798612 | P120: 2.110378475 | Q120: 1.032846463 | R120: 0.8071904792 | S120: 3.018557024 | T120: 3.385300084 | U120: 0.1146175723 | V120: 3.581758656 | W120: 0.1687369658 | X120: 3.011149055 | Y120: 1.694178565 | Z120: 33.27599228 | AA120: 1.911887219 | AB120: 1.993223359 | AC120: 0.0591800718 | AD120: 456.4820467 | AE120: 16.60603386 | AF120: 117.4976884 | AG120: 47.76392962 | AH120: 3321.841265 | AI120: 27.41944281 | AJ120: 774.2943032 | AK120: 1340.708711 | AL120: 20.26630881 | AM120: 519.6758943 | AN120: 5098.231007 | AO120: 0 | AP120: 13.52362166 | AQ120: 143.3764162 | AR120: 21.23255052 | AS120: 0.7619116044 | AT120: 63.20221154 | AU120: 6.965341823 | AV120: 11.90374759 | AW120: 18.10041463 | AX120: 2.496658252 | AY120: 31.41793832 | AZ120: 10.84843012 | BA120: 43.69225943 | BB120: 14.80182848 | BC120: 20.46080981 | BD120: 25.8792908 | BE120: 42.17108984 | BF120: 18.76573881 | BG120: 16.60847395 | BH120: 40.25816269 | BI120: 8.006734983 | BJ120: 326.5952356 | BK120: 11.76108918 | BL120: 125.1116943 | BM120: 17.37079309 | BN120: 20.15262393 | BO120: 1.892380002 | BP120: 601.5023522 | BQ120: 42.67977923 | BR120: 395.1723816 | BS120: 188.1455687 | BT120: 696.7911953 | BU120: 78.10055749 | BV120: 2567.934483 | BW120: 5250.772136 | BX120: 99.95461358 | BY120: 531.5456327 | BZ120: 5460.704289 | CA120: 0 | CB120: 64.12621972 | CC120: 373.7415145 | CD120: 2567.156787 | CE120: 138.3013276 | CF120: 5296.0912 | CG120: 514.9951815 | CH120: 972.792113 | CI120: 2051.565966 | CJ120: 160.3998628 | CK120: 944.436495 | CL120: 329.3063052 | CM120: 1168.861744 | CN120: 553.9010465 | CO120: 921.7593294 | CP120: 984.1901539 | CQ120: 1877.976176 | CR120: 524.9105734 | CS120: 2134.87001 | CT120: 1479.590521 | CU120: 610.173671 | CV120: 3232.006357 | CW120: 4099.4992 | CX120: 14300.01116 | CY120: 1584.632211 | CZ120: 1155.670873 | DA120: 218.6322502 | DB120: 73430.78921 | DC120: 6269.161045 | DD120: 38283.91039 | DE120: 32518.6105 | DF120: 504036.3833 | DG120: 18630.88588 | DH120: 116273.824 | DI120: 762411.0366 | DJ120: 10671.04608 | DK120: 101237.8182 | DL120: 791220.3385 | DM120: 0 | DN120: 7320.789945 | DO120: 30814.92641 | DP120: 2570157.725 | DQ120: 138756.6678 | DR120: 359315.5238 | DS120: 0 | DT120: 0 | DU120: 0 | DV120: 0 | DW120: 498072.1916 | DX120: 209109.2589 | DY120: 721171.7948 | DZ120: 0 | EA120: 0 | EB120: 0 | EC120: 0 | ED120: 930281.0538 | EE120: 9368992.807 | EF120: 38409709.62 | EG120: 0 | EH120: 0 | EI120: 0 | EJ120: 0 | EK120: 47778702.43 | EL120: 1428934.89 | EM120: 50635990.56 | EN120: 53206148.29 | EO120: -1203614.289 | EP120: 52002534
D121: 36 | E121: 事務用品 | F121: 0 | G121: 0 | H121: 0 | I121: 0 | J121: 0 | K121: 0 | L121: 0 | M121: 0 | N121: 0 | O121: 0 | P121: 0 | Q121: 0 | R121: 0 | S121: 0 | T121: 0 | U121: 0 | V121: 0 | W121: 0 | X121: 0 | Y121: 0 | Z121: 0 | AA121: 0 | AB121: 0 | AC121: 0 | AD121: 0 | AE121: 0 | AF121: 0 | AG121: 0 | AH121: 0 | AI121: 0 | AJ121: 0 | AK121: 0 | AL121: 0 | AM121: 0 | AN121: 0 | AO121: 0 | AP121: 0 | AQ121: 0 | AR121: 0 | AS121: 0 | AT121: 0 | AU121: 0 | AV121: 0 | AW121: 0 | AX121: 0 | AY121: 0 | AZ121: 0 | BA121: 0 | BB121: 0 | BC121: 0 | BD121: 0 | BE121: 0 | BF121: 0 | BG121: 0 | BH121: 0 | BI121: 0 | BJ121: 0 | BK121: 0 | BL121: 0 | BM121: 0 | BN121: 0 | BO121: 0 | BP121: 0 | BQ121: 0 | BR121: 0 | BS121: 0 | BT121: 0 | BU121: 0 | BV121: 0 | BW121: 0 | BX121: 0 | BY121: 0 | BZ121: 0 | CA121: 0 | CB121: 0 | CC121: 0 | CD121: 8181.557531 | CE121: 560.7344849 | CF121: 17948.56893 | CG121: 2811.700079 | CH121: 7505.940974 | CI121: 7672.808131 | CJ121: 151.129536 | CK121: 715.804149 | CL121: 5295.701452 | CM121: 2047.177341 | CN121: 2194.263849 | CO121: 2959.100028 | CP121: 6888.904565 | CQ121: 12071.61515 | CR121: 3949.737165 | CS121: 9657.527354 | CT121: 10921.61089 | CU121: 4108.221932 | CV121: 10886.19672 | CW121: 8753.153015 | CX121: 45174.84623 | CY121: 237.4813147 | CZ121: 3844.290898 | DA121: 14891.11901 | DB121: 167106.5062 | DC121: 116993.4094 | DD121: 19824.06457 | DE121: 87938.58369 | DF121: 82073.37684 | DG121: 109427.6755 | DH121: 144717.2272 | DI121: 129157.0365 | DJ121: 20097.6111 | DK121: 98719.55347 | DL121: 79689.67908 | DM121: 0 | DN121: 1066.897829 | DO121: 123773.1879 | DP121: 1370014 | DQ121: 0 | DR121: 0 | DS121: 0 | DT121: 0 | DU121: 0 | DV121: 0 | DW121: 0 | DX121: 0 | DY121: 0 | DZ121: 0 | EA121: 0 | EB121: 0 | EC121: 0 | ED121: 0 | EE121: 0 | EF121: 0 | EG121: 0 | EH121: 0 | EI121: 0 | EJ121: 0 | EK121: 0 | EL121: 0 | EM121: 0 | EN121: 1370014 | EO121: 0 | EP121: 1370014
D122: 37 | E122: 分類不明 | F122: 11.79629359 | G122: 0.3626307196 | H122: 868.814736 | I122: 31.17610762 | J122: 98.04336171 | K122: 123.0565096 | L122: 7.438115648 | M122: 118.2515424 | N122: 197.8562556 | O122: 480.6249396 | P122: 177.2422634 | Q122: 252.5584167 | R122: 216.5165362 | S122: 628.4108374 | T122: 427.0961511 | U122: 2.798821787 | V122: 313.7006878 | W122: 10.79872865 | X122: 528.6111621 | Y122: 148.6490735 | Z122: 8991.137002 | AA122: 515.7291795 | AB122: 247.7979522 | AC122: 664.9779375 | AD122: 12249.51546 | AE122: 1954.770808 | AF122: 1918.253498 | AG122: 6018.40184 | AH122: 2246.684131 | AI122: 248.50647 | AJ122: 4832.823222 | AK122: 2611.634277 | AL122: 122.5890112 | AM122: 3917.348972 | AN122: 2060.080884 | AO122: 8.89172287 | AP122: 0 | AQ122: 0 | AR122: 5.291932869 | AS122: 0.6810548198 | AT122: 23.98949728 | AU122: 1.731431911 | AV122: 5.458111977 | AW122: 4.533723208 | AX122: 1.099424727 | AY122: 12.26803732 | AZ122: 13.81759139 | BA122: 45.11072132 | BB122: 5.361005825 | BC122: 14.54607802 | BD122: 24.00667138 | BE122: 29.07024722 | BF122: 6.862219462 | BG122: 0.7227289975 | BH122: 15.41121577 | BI122: 1.174138977 | BJ122: 37.09419588 | BK122: 2.6934597 | BL122: 78.63318885 | BM122: 12.14792802 | BN122: 7.463102869 | BO122: 15.04935287 | BP122: 60.12858934 | BQ122: 15.25999396 | BR122: 11.01194077 | BS122: 51.73265494 | BT122: 3.068161311 | BU122: 1.996713238 | BV122: 73.76727322 | BW122: 25.89428722 | BX122: 2.000812986 | BY122: 15.23894081 | BZ122: 15.53340694 | CA122: 0.08881412509 | CB122: -442.4028365 | CC122: 0.2004669123 | CD122: 47095.45277 | CE122: 10078.01107 | CF122: 203461.7968 | CG122: 8783.963664 | CH122: 32383.05818 | CI122: 36292.89257 | CJ122: 5520.24038 | CK122: 25132.0689 | CL122: 43496.95171 | CM122: 76991.75298 | CN122: 39964.28542 | CO122: 38417.57745 | CP122: 67253.45433 | CQ122: 85176.96024 | CR122: 13765.94906 | CS122: 9124.260288 | CT122: 32198.66136 | CU122: 7011.980583 | CV122: 74880.24762 | CW122: 17734.2383 | CX122: 801681.0901 | CY122: 63857.59208 | CZ122: 37914.49776 | DA122: 97247.68172 | DB122: 605984.0458 | DC122: 158575.5832 | DD122: 133052.7596 | DE122: 474455.3765 | DF122: 127380.5091 | DG122: 35884.243 | DH122: 387033.4378 | DI122: 226586.7322 | DJ122: 19189.79607 | DK122: 214958.0472 | DL122: 138050.6767 | DM122: 680.5525016 | DN122: 130944.9523 | DO122: 1328.788813 | DP122: 4583020.848 | DQ122: 0 | DR122: 87.6354635 | DS122: 0 | DT122: 0 | DU122: 0 | DV122: 0 | DW122: 87.6354635 | DX122: 0 | DY122: 443.8038688 | DZ122: 0 | EA122: 0 | EB122: 0 | EC122: 0 | ED122: 443.8038688 | EE122: 0 | EF122: -121556.8538 | EG122: 0 | EH122: 0 | EI122: 0 | EJ122: 0 | EK122: -121556.8538 | EL122: 5135.95759 | EM122: -115889.4569 | EN122: 4467131.391 | EO122: -49416.39114 | EP122: 4417715
D123: 38 | E123: 本社 | F123: 128.6391284 | G123: 1.004521519 | H123: 8310.903646 | I123: 451.5713874 | J123: 1012.147918 | K123: 4714.68578 | L123: 29.81878881 | M123: 3592.347504 | N123: 1627.299597 | O123: 2300.755915 | P123: 1711.373253 | Q123: 1909.63951 | R123: 1126.537057 | S123: 3798.99034 | T123: 4892.623108 | U123: 191.1686661 | V123: 4691.100934 | W123: 279.1280986 | X123: 6396.461187 | Y123: 3080.816115 | Z123: 11649.27891 | AA123: 5885.708667 | AB123: 0 | AC123: 0 | AD123: 54284.66315 | AE123: 19937.67117 | AF123: 9946.863281 | AG123: 19029.08788 | AH123: 47266.74911 | AI123: 0 | AJ123: 21222.38611 | AK123: 38510.98759 | AL123: 1310.472397 | AM123: 38149.13119 | AN123: 31486.38402 | AO123: 0 | AP123: 0 | AQ123: 0 | AR123: 1423.043034 | AS123: 95.2461678 | AT123: 13417.05061 | AU123: 1650.317188 | AV123: 4395.155137 | AW123: 9266.151937 | AX123: 1404.708116 | AY123: 18287.24735 | AZ123: 4156.231222 | BA123: 10146.78274 | BB123: 2468.275112 | BC123: 5351.673158 | BD123: 6837.255022 | BE123: 10606.54648 | BF123: 5296.252276 | BG123: 2376.24302 | BH123: 9607.560547 | BI123: 1726.47222 | BJ123: 81345.2443 | BK123: 4085.13244 | BL123: 6326.532565 | BM123: 11029.44588 | BN123: 0 | BO123: 0 | BP123: 15930.61204 | BQ123: 5903.77653 | BR123: 4208.24623 | BS123: 8869.987652 | BT123: 3376.67983 | BU123: 0 | BV123: 17126.90876 | BW123: 27793.78198 | BX123: 1003.596931 | BY123: 10569.62187 | BZ123: 12355.78019 | CA123: 0 | CB123: 0 | CC123: 0 | CD123: 253208.3654 | CE123: 28220.99521 | CF123: 1421776.504 | CG123: 117636.8752 | CH123: 433349.1252 | CI123: 1404168.577 | CJ123: 128791.4336 | CK123: 703476.6596 | CL123: 242623.8603 | CM123: 428668.6542 | CN123: 198288.807 | CO123: 320348.3501 | CP123: 388329.1187 | CQ123: 495817.7308 | CR123: 192283.1205 | CS123: 405113.6143 | CT123: 470851.142 | CU123: 171268.2752 | CV123: 1080422.501 | CW123: 377952.3557 | CX123: 1140789.803 | CY123: 789910.977 | CZ123: 0 | DA123: 0 | DB123: 2899051.326 | DC123: 1501272.549 | DD123: 757352.615 | DE123: 1373111.878 | DF123: 2523231.895 | DG123: 0 | DH123: 1443906.971 | DI123: 4318302.147 | DJ123: 172990.3611 | DK123: 2269438.591 | DL123: 2450769.893 | DM123: 0 | DN123: 0 | DO123: 0 | DP123: 31570089.03 | DQ123: 0 | DR123: 0 | DS123: 0 | DT123: 0 | DU123: 0 | DV123: 0 | DW123: 0 | DX123: 0 | DY123: 0 | DZ123: 0 | EA123: 0 | EB123: 0 | EC123: 0 | ED123: 0 | EE123: 0 | EF123: 0 | EG123: 0 | EH123: 0 | EI123: 0 | EJ123: 0 | EK123: 0 | EL123: 0 | EM123: 0 | EN123: 31570089.03 | EO123: 0 | EP123: 31570089.03
E124: 内生部門計 | F124: 5022.87 | G124: 34.963 | H124: 271083.332 | I124: 17506.181 | J124: 40223.455 | K124: 131576.997 | L124: 5646.95 | M124: 93462.546 | N124: 45935.488 | O124: 220725.158 | P124: 170609.286 | Q124: 81446.338 | R124: 36919.988 | S124: 143473.324 | T124: 232638.368 | U124: 9431.741 | V124: 211613.363 | W124: 13396.707 | X124: 360470.702 | Y124: 92501.206 | Z124: 748271.608 | AA124: 279555.193 | AB124: 31468.064 | AC124: 30266.932 | AD124: 1333282.491 | AE124: 361676.152 | AF124: 323416.325 | AG124: 741293.148 | AH124: 1032787.929 | AI124: 184021.271 | AJ124: 386626.055 | AK124: 590695.746 | AL124: 29970.041 | AM124: 1042170.896 | AN124: 779964.651 | AO124: 40468.863 | AP124: 71103.184 | AQ124: 339713.495 | AR124: 207313.3446 | AS124: 8192.149159 | AT124: 1158007.18 | AU124: 157758.9929 | AV124: 410589.2116 | AW124: 666165.0644 | AX124: 659400.8136 | AY124: 1119142.098 | AZ124: 288655.9256 | BA124: 2293362.519 | BB124: 455669.1575 | BC124: 579505.2592 | BD124: 548193.6683 | BE124: 947403.2966 | BF124: 534882.0403 | BG124: 261092.0327 | BH124: 1047230.157 | BI124: 187786.0286 | BJ124: 13089741.07 | BK124: 314256.4847 | BL124: 941990.0835 | BM124: 1029438.419 | BN124: 125074.7454 | BO124: 81182.44782 | BP124: 829425.9701 | BQ124: 272467.9838 | BR124: 446953.1046 | BS124: 997475.8409 | BT124: 175387.7693 | BU124: 199545.1894 | BV124: 710419.896 | BW124: 996968.9957 | BX124: 56179.93239 | BY124: 695082.4438 | BZ124: 594421.3816 | CA124: 52920.137 | CB124: 90824.50251 | CC124: 506647.676 | CD124: 6694705.896 | CE124: 417887.0028 | CF124: 23418752.3 | CG124: 2051274.849 | CH124: 7523727.021 | CI124: 18658515.32 | CJ124: 11182427.66 | CK124: 7907326.371 | CL124: 3094592.652 | CM124: 17883588.93 | CN124: 6157542.08 | CO124: 6046802.603 | CP124: 5562331.515 | CQ124: 8269444.437 | CR124: 3398483.898 | CS124: 8430440.691 | CT124: 9334310.948 | CU124: 3445363.468 | CV124: 29323661.94 | CW124: 5138580.426 | CX124: 31521332.22 | CY124: 15036701.11 | CZ124: 2120650.191 | DA124: 1546675.62 | DB124: 28396589.63 | DC124: 12015004.2 | DD124: 12616361.45 | DE124: 25913383.2 | DF124: 24667550.4 | DG124: 11208407.54 | DH124: 11819783.57 | DI124: 27907986.5 | DJ124: 1783810.001 | DK124: 27963285.09 | DL124: 25877758.35 | DM124: 1370014 | DN124: 2598694.313 | DO124: 11006434.87 | DP124: 503577406.3 | DQ124: 419183.073 | DR124: 5995228.59 | DS124: 1873089.539 | DT124: 604312.169 | DU124: 1864298.621 | DV124: 804.554 | DW124: 10756916.55 | DX124: 665257.9156 | DY124: 12862678.5 | DZ124: 2898630.619 | EA124: 779667.8482 | EB124: 6426358.116 | EC124: -4987.252351 | ED124: 23627605.75 | EE124: 13971059.01 | EF124: 286758506.9 | EG124: 100757610.8 | EH124: 26757475.98 | EI124: 100500811.3 | EJ124: 507436.6984 | EK124: 529252900.7 | EL124: 86769418 | EM124: 650406841 | EN124: 1153984247 | EO124: -102168127 | EP124: 1051816120
B125: 粗付加価値額 | E125: 家計外消費支出（行） | F125: 160.724 | G125: 3.055 | H125: 2547.761 | I125: 350.468 | J125: 1005.048 | K125: 1920.681 | L125: 44.595 | M125: 2266.07 | N125: 1277.126 | O125: 720.899 | P125: 2410.743 | Q125: 2151.096 | R125: 763.464 | S125: 4174.762 | T125: 6308.232 | U125: 205.309 | V125: 5234.929 | W125: 326.76 | X125: 5599.755 | Y125: 3062.001 | Z125: 26252.994 | AA125: 2960.685 | AB125: 990.778 | AC125: 2199.563 | AD125: 111782.068 | AE125: 29117.349 | AF125: 7860.887 | AG125: 29228.567 | AH125: 31950.146 | AI125: 6387.246 | AJ125: 11124.992 | AK125: 16055.374 | AL125: 2705.253 | AM125: 37547.762 | AN125: 29679.931 | AO125: 0 | AP125: 503.792 | AQ125: 32302.208 | AR125: 2205.292408 | AS125: 741.3865146 | AT125: 13209.33561 | AU125: 2810.727849 | AV125: 9258.192076 | AW125: 12187.73329 | AX125: 2755.422927 | AY125: 25812.11896 | AZ125: 7547.625526 | BA125: 22860.69724 | BB125: 5211.491344 | BC125: 13489.29156 | BD125: 12372.51265 | BE125: 29630.85346 | BF125: 18681.93465 | BG125: 7220.757816 | BH125: 22006.80297 | BI125: 2812.164859 | BJ125: 112561.0035 | BK125: 9956.713326 | BL125: 35313.07653 | BM125: 11915.71769 | BN125: 2785.111443 | BO125: 5898.578068 | BP125: 55222.74933 | BQ125: 23853.51828 | BR125: 7657.064683 | BS125: 24423.58709 | BT125: 6324.000442 | BU125: 6579.54578 | BV125: 19561.48781 | BW125: 25769.48685 | BX125: 4889.786281 | BY125: 21628.25555 | BZ125: 31284.9507 | CA125: 0 | CB125: 643.5242742 | CC125: 48175.41631 | CD125: 70016.26532 | CE125: 35475.7689 | CF125: 271805.4674 | CG125: 37656.70731 | CH125: 170217.1643 | CI125: 285124.0956 | CJ125: 47776.32923 | CK125: 182554.191 | CL125: 80678.22902 | CM125: 178939.7972 | CN125: 74743.48515 | CO125: 156401.9983 | CP125: 136999.159 | CQ125: 207742.7239 | CR125: 96200.45001 | CS125: 192669.703 | CT125: 208897.1383 | CU125: 89179.40624 | CV125: 287596.1259 | CW125: 161952.1768 | CX125: 1116240.187 | CY125: 213530.9041 | CZ125: 60537.11056 | DA125: 112345.8589 | DB125: 2007360.947 | DC125: 981403.6997 | DD125: 257807.4748 | DE125: 771415.9839 | DF125: 805454.1418 | DG125: 421307.2082 | DH125: 367657.373 | DI125: 658597.6216 | DJ125: 154368.6057 | DK125: 999560.0732 | DL125: 1005868.038 | DM125: 0 | DN125: 18412.68373 | DO125: 1046564.719 | DP125: 15055500
E126: 雇用者所得 | F126: 4375.852 | G126: 14.246 | H126: 57978.925 | I126: 8197.036 | J126: 17037.818 | K126: 15098.487 | L126: 382.009 | M126: 35425.075 | N126: 23455.391 | O126: 26561.284 | P126: 23418.106 | Q126: 46134.85 | R126: 16952.063 | S126: 74094.91 | T126: 37810.64 | U126: 4980.304 | V126: 76167.121 | W126: 4276.972 | X126: 97392.535 | Y126: 51398.289 | Z126: 453605.965 | AA126: 24439.172 | AB126: 10082.945 | AC126: 40552.911 | AD126: 1750243.567 | AE126: 289200.99 | AF126: 93793.482 | AG126: 383197.759 | AH126: 358426.38 | AI126: 237456.447 | AJ126: 507734.926 | AK126: 661676.71 | AL126: 36153.903 | AM126: 897376.235 | AN126: 358904.799 | AO126: 0 | AP126: 1667.246 | AQ126: 480345.747 | AR126: 42274.08046 | AS126: 3235.659253 | AT126: 221125.9596 | AU126: 56613.91498 | AV126: 95879.30949 | AW126: 74256.17362 | AX126: 7306.760836 | AY126: 343962.8624 | AZ126: 117118.7303 | BA126: 199563.2565 | BB126: 83709.22439 | BC126: 243867.5451 | BD126: 187113.342 | BE126: 416624.3444 | BF126: 137056.5159 | BG126: 68613.8569 | BH126: 291354.6469 | BI126: 54121.40141 | BJ126: 1993540.216 | BK126: 129108.8252 | BL126: 600871.8494 | BM126: 87759.17923 | BN126: 30897.0959 | BO126: 112103.2533 | BP126: 972882.3199 | BQ126: 230693.4378 | BR126: 118061.9662 | BS126: 507637.6624 | BT126: 83427.99374 | BU126: 264432.1143 | BV126: 992442.4458 | BW126: 1011878.205 | BX126: 64046.38618 | BY126: 631085.1452 | BZ126: 300710.7595 | CA126: 0 | CB126: 1955.346533 | CC126: 716386.1991 | CD126: 1322905.647 | CE126: 156257.5218 | CF126: 4160320.418 | CG126: 776386.8086 | CH126: 1653600.189 | CI126: 1801396.013 | CJ126: 126077.649 | CK126: 2419882.966 | CL126: 1141819.965 | CM126: 1202551.734 | CN126: 680980.709 | CO126: 2877985.54 | CP126: 1962840.419 | CQ126: 3213905.407 | CR126: 1132057.701 | CS126: 2506062.531 | CT126: 2482647.643 | CU126: 905296.852 | CV126: 4424064.29 | CW126: 2189569.27 | CX126: 19572739.11 | CY126: 1532196.396 | CZ126: 611477.9591 | DA126: 2201564.836 | DB126: 33148004.83 | DC126: 9638146.49 | DD126: 4075815.591 | DE126: 14013439.16 | DF126: 8907719.192 | DG126: 13821808.44 | DH126: 19704971.18 | DI126: 29260221.08 | DJ126: 2019571.22 | DK126: 22943476.82 | DL126: 12893113.8 | DM126: 0 | DN126: 55810.40747 | DO126: 15562803.15 | DP126: 265799218
